Workbook

Sheet Contents
A1: .
H4: Gas Distribution Regulatory Information Notice
H5: Regulatory templates
H7: for access arrangement period
H8: =CONCATENATE(FRCP_y1," to ",FRCP_y5) -> 2016-17 to 2020-21
H9: Table of contents

Sheet Instructions
D7: Instructions
E10: The pro formas in this spreadsheet must be filled out as part of an access arrangement proposal
E13: Please follow the instructions below when completing the pro formas in this spreadsheet:
E15: 1. Complete the Business Details pro forma first.
E16: 2. Only input data into the yellow input cells.
E17: 3. Check all pre-entered formulas to ensure they are operating correctly and as intended.
E18: 4. Ensure all links within each worksheet and between worksheets is correct.
E19: 5. As stated in the notice, further information must be provided in the accompanying proposal.
E20: 6. The service provider is encouraged to add extra rows in a regulatory template if it considers that this is necessary to fully complete the regulatory template in question.

Sheet AGN business details
B1: =(LOOKUP(dms_Model,J15:J22,K15:K22)) -> REGULATORY REPORTING STATEMENT | J1: Data is in this column used for data validation and database purposes.
B2: =dms_TradingName -> AGN
B3: =CONCATENATE(FRCP_y1," to ",FRCP_y5) -> 2016-17 to 2020-21 | C3: =CONCATENATE(LEFT(FRCP_y1,4),"-",LEFT(FRCP_y5,2),RIGHT(FRCP_y5,2)) -> 2016-2021
B4: 1.0 BUSINESS & OTHER DETAILS
B7: Instructions
B8: Complete the following business details regulatory template before entering data or values in any other regulatory template. This regulatory template is linked to other cells within the spreadsheet and automatically generates column headings.
B10: TABLE 1.2.1 - SUBMISSION PARTICULARS INPUT SHEETS
B12: Entity details
B14: Trading name | C14: AGN
B15: ACN / ABN | C15: =INDEX(dms_ABN_List,MATCH(dms_TradingName,dms_TradingName_List)) -> 78551685 | J15: CA | K15: CATEGORY ANALYSIS
J16: CAM/Service change Backcast | K16: REGULATORY REPORTING STATEMENT
J17: CPI | K17: CPI
B18: Business address | C18: Address 1 | E18: Level 6 | J18: EB | K18: ECONOMIC BENCHMARKING
D19: Address 2 | E19: 400 King William St | J19: PTRM | K19: POST TAX REVENUE MODEL
C20: Suburb | E20: ADELAIDE | J20: Reset | K20: REGULATORY REPORTING STATEMENT
D21: State | E21: SA | G21: 5000 | J21: RFM | K21: ROLL FORWARD MODEL
J22: WACC | K22: WEIGHTED AVERAGE COST OF CAPITAL
B23: Postal address | C23: Address 1 | E23: PO Box 6468
D24: Address 2 | E24: Halifax St
C25: Suburb | E25: ADELAIDE
D26: State | E26: SA | F26: p/code | G26: 5000
J27: ActewAGL Distribution | K27: 76670568688
J28: AGN | K28: 78551685
B29: Contact name/s | C29: Craig de Laine | J29: Ausgrid | K29: 67505337385
B30: Contact phone/s | C30: 08 8418 1129 | F30: 0403 309 940 | J30: AusNet (D) | K30: 91064651118
B31: Contact email address/s | C31: craig.delaine@agnl.com.au | J31: AusNet (T) | K31: 78079798173
J32: Citipower | K32: 76064651056
B33: Regulatory control period details | J33: Electranet | K33: 41094482416
J34: Endeavour Energy | K34: 59253130878
B35: Forthcoming regulatory control period | C35: =CONCATENATE(IF(dms_RPT="Calendar",G38+1,(LEFT(G38,4)+1&"-"&IF(MID(G38,6,2)<"09","0"&RIGHT(G38,1)+1,RIGHT(G38,2)+1)))) -> 2016-17 | D35: =CONCATENATE(IF(dms_RPT="Calendar",C35+1,(LEFT(C35,4)+1&"-"&IF(MID(C35,6,2)<"09","0"&RIGHT(C35,1)+1,RIGHT(C35,2)+1)))) -> 2017-18 | E35: =CONCATENATE(IF(dms_RPT="Calendar",D35+1,(LEFT(D35,4)+1&"-"&IF(MID(D35,6,2)<"09","0"&RIGHT(D35,1)+1,RIGHT(D35,2)+1)))) -> 2018-19 | F35: =CONCATENATE(IF(dms_RPT="Calendar",E35+1,(LEFT(E35,4)+1&"-"&IF(MID(E35,6,2)<"09","0"&RIGHT(E35,1)+1,RIGHT(E35,2)+1)))) -> 2019-20 | G35: =CONCATENATE(IF(dms_RPT="Calendar",F35+1,(LEFT(F35,4)+1&"-"&IF(MID(F35,6,2)<"09","0"&RIGHT(F35,1)+1,RIGHT(F35,2)+1)))) -> 2020-21 | J35: Energex | K35: 40078849055
J36: Ergon Energy | K36: 50087646062
J37: Essential Energy | K37: 37428185226
B38: Current regulatory control period | C38: 2011-12 | D38: =CONCATENATE(IF(dms_RPT="Calendar",C38+1,(LEFT(C38,4)+1&"-"&IF(MID(C38,6,2)<"09","0"&RIGHT(C38,1)+1,RIGHT(C38,2)+1)))) -> 2012-13 | E38: =CONCATENATE(IF(dms_RPT="Calendar",D38+1,(LEFT(D38,4)+1&"-"&IF(MID(D38,6,2)<"09","0"&RIGHT(D38,1)+1,RIGHT(D38,2)+1)))) -> 2013-14 | F38: =CONCATENATE(IF(dms_RPT="Calendar",E38+1,(LEFT(E38,4)+1&"-"&IF(MID(E38,6,2)<"09","0"&RIGHT(E38,1)+1,RIGHT(E38,2)+1)))) -> 2014-15 | G38: =CONCATENATE(IF(dms_RPT="Calendar",F38+1,(LEFT(F38,4)+1&"-"&IF(MID(F38,6,2)<"09","0"&RIGHT(F38,1)+1,RIGHT(F38,2)+1)))) -> 2015-16 | J38: Jemena Electricity | K38: 82064651083
J39: Powercor Australia | K39: 89064651109
J40: Powerlink | K40: 82078849233
B41: Previous regulatory control period | C41: =CONCATENATE(IF(dms_RPT="Calendar",D41-1,(LEFT(D41,4)-1&"-"&IF(MID(D41,3,1)="0","0"&RIGHT(D41,2)-1,RIGHT(D41,2)-1)))) -> 2006-07 | D41: =CONCATENATE(IF(dms_RPT="Calendar",E41-1,(LEFT(E41,4)-1&"-"&IF(MID(E41,3,1)="0","0"&RIGHT(E41,2)-1,RIGHT(E41,2)-1)))) -> 2007-08 | E41: =CONCATENATE(IF(dms_RPT="Calendar",F41-1,(LEFT(F41,4)-1&"-"&IF(MID(F41,3,1)="0","0"&RIGHT(F41,2)-1,RIGHT(F41,2)-1)))) -> 2008-09 | F41: =CONCATENATE(IF(dms_RPT="Calendar",G41-1,(LEFT(G41,4)-1&"-"&IF(MID(G41,3,1)="0","0"&RIGHT(G41,2)-1,RIGHT(G41,2)-1)))) -> 2009-10 | G41: =CONCATENATE(IF(dms_RPT="Calendar",C38-1,(LEFT(C38,4)-1&"-"&IF(MID(C38,3,1)="0","0"&RIGHT(C38,2)-1,RIGHT(C38,2)-1)))) -> 2010-11 | J41: Qld,SA &ACT Gas Reset | K41: 22222222222
J42: SA Power Networks | K42: 13332330749
J43: TasNetworks (D) | K43: 24167357299
B44: Sector | C44: Gas | J44: TasNetworks (T) | K44: 24167357299
B45: Segment | C45: Distribution | J45: TransGrid | K45: 19622755774
B46: Source | C46: Regulatory proposal | J46: United Energy | K46: 70064651029
B47: Regulatory Year Ending | C47: =CONCATENATE(LEFT(G38, 2) &IF(G38>"2009-10",,"") &RIGHT(G38,2)) -> 2016 | J47: Victorian DNSP Backcasting | K47: 33333333666
B48: Reporting Period Type | C48: =IF(LEN(CRCP_y1)>4,"Financial","Calendar") -> Financial | J48: Victorian DNSP Reset | K48: 33333333333
B49: Model or RIN Type | C49: Reset
B50: Security Classification | C50: Confidential
B51: Data quality (Actual, estimate, public, consolidated) | C51: Consolidated
B52: RIN response - version no. | C52: 1
B53: Amended RIN submission - amendment reason
B54: Template - version no. | C54: 1
B55: $ real (the last month before the FRCP_y1) | C55: =CONCATENATE(IF(C48="Financial","June ","December "),(IF(C48="Financial",LEFT(G38,2),LEFT(G38,2))&(RIGHT(G38,2)))) -> June 2016
B56: Previous $ real - End Year 5 | C56: =CONCATENATE(IF(C48="Financial","June ","December "),(IF(C48="Financial",LEFT(G41,2),LEFT(G38,2))&(RIGHT(G41,2)))) -> June 2011
B57: Previous $ real - Beginning Year 1 | C57: =CONCATENATE(IF(C48="Financial","July ","January "),(LEFT(C41,4))) -> July 2006
B58: EBSS - First application of scheme in forthcoming period? | C58: No
B59: Form of control | C59: Weighted Average Price Cap

Sheet 1.CPI
C1: =SheetHeader -> REGULATORY REPORTING STATEMENT
C2: =dms_TradingName -> AGN
C3: =CONCATENATE(FRCP_y1," to ",FRCP_y5) -> 2016-17 to 2020-21
C4: 1. CPI ESCALATION
C7: Instructions
C8: SERVICE PROVIDERS ARE NOT TO MAKE ANY CHANGES TO THIS TEMPLATE EXCEPT AS INDICATED
C10: Service providers should insert inflation forecasts (yellow cells)
C12: Table 1.1 provides CPI index figures used to calculate CPI escalators to be used in the RIN
C14: Tables 1.2 provide the CPI escalators for converting nominal values to real values.
C17: Table 1.1 - CPI (actual/estimated)
D20: CPI Index | E20: ABS series ID A2325846C, 25/1/12 release | F20: ABS series ID A2325846C, 22/1/14 release | G20: Annual CPI
C21: Actual | D21: 1998-03-01 | E21: 120 | F21: 67
C22: Actual | D22: 1999-03-01 | E22: 121.9 | F22: 67.8 | G22: =E22/E21-1 -> 0.01583333333
C23: Actual | D23: 2000-03-01 | E23: 124.1 | F23: 69.7 | G23: 0.01804757998
C24: Actual | D24: 2001-03-01 | E24: 131.3 | F24: 73.9 | G24: 0.05801772764
C25: Actual | D25: 2002-03-01 | E25: 135.4 | F25: 76.1 | G25: 0.03122619954
C26: Actual | D26: 2003-03-01 | E26: 139.5 | F26: 78.6 | G26: 0.03028064993
C27: Actual | D27: 2004-03-01 | E27: 142.8 | F27: 80.2 | G27: 0.02365591398
C28: Actual | D28: 2005-03-01 | E28: 146.5 | F28: 82.1 | G28: 0.02591036415
C29: Actual | D29: 2006-03-01 | E29: 150.6 | F29: 84.5 | G29: 0.02798634812
C30: Actual | D30: 2007-03-01 | E30: 155.5 | F30: 86.6 | G30: 0.03253652058
C31: Actual | D31: 2008-03-01 | E31: 160.1 | F31: 90.3 | G31: 0.02958199357
C32: Actual | D32: 2009-03-01 | E32: 166 | F32: 92.5 | G32: 0.03685196752
C33: Actual | D33: 2010-03-01 | E33: 169.5 | F33: 95.2 | G33: 0.02108433735
C34: Actual | D34: 2011-03-01 | E34: 174 | F34: 98.3 | G34: 0.02654867257
C35: Actual | D35: 2012-03-01 | E35: 179.4 | F35: 99.9 | G35: 0.03103448276
C36: Actual | D36: 2013-03-01 | F36: 102.4 | G36: =F36/F35-1 -> 0.02502502503
C37: Actual | D37: 2014-03-01 | F37: 105.4 | G37: =F37/F36-1 -> 0.029296875
C38: Actual | D38: 2015-03-01 | F38: 106.8 | G38: =F38/F37-1 -> 0.01328273245
C39: Estimated | D39: 2016-03-01 | G39: 0.025
C40: Estimated | D40: 2017-03-01 | G40: 0.025
C41: Estimated | D41: 2018-03-01 | G41: 0.025
C42: Estimated | D42: 2019-03-01 | G42: 0.025
C43: Estimated | D43: 2020-03-01 | G43: 0.025
C44: Estimated | D44: 2021-03-01 | G44: 0.025
C46: Table 1.2 - CPI p.a.
E47: 1999-00 | F47: 2000-01 | G47: 2001-02 | H47: 2002-03 | I47: 2003-04 | J47: 2004-05 | K47: 2005-06 | L47: 2006-07 | M47: 2007-08 | N47: 2008-09 | O47: 2009-10 | P47: 2010-11 | Q47: 2011-12 | R47: 2012-13 | S47: 2013-14 | T47: 2014-15 | U47: 2015-16 | V47: 2016-17 | W47: 2017-18 | X47: 2018-19 | Y47: 2019-20 | Z47: 2020-21
E48: =$G22 -> 0.01583333333 | F48: =$G23 -> 0.01804757998 | G48: =$G24 -> 0.05801772764 | H48: =$G25 -> 0.03122619954 | I48: =$G26 -> 0.03028064993 | J48: =$G27 -> 0.02365591398 | K48: =$G28 -> 0.02591036415 | L48: =$G29 -> 0.02798634812 | M48: =$G30 -> 0.03253652058 | N48: =$G31 -> 0.02958199357 | O48: =$G32 -> 0.03685196752 | P48: =$G33 -> 0.02108433735 | Q48: =$G34 -> 0.02654867257 | R48: =$G35 -> 0.03103448276 | S48: =$G36 -> 0.02502502503 | T48: =$G37 -> 0.029296875 | U48: =$G38 -> 0.01328273245 | V48: =$G39 -> 0.025 | W48: =$G40 -> 0.025 | X48: =$G41 -> 0.025 | Y48: =$G42 -> 0.025 | Z48: =$G41 -> 0.025
C49: =CONCATENATE("Escalator : Nominal $ to Real $ ", dms_DollarReal) -> Escalator : Nominal $ to Real $ June 2016 | E49: =F49*(1+F48) -> 1.573346932 | F49: 1.545455205 | G49: 1.460708233 | H49: 1.416477038 | I49: 1.374845814 | J49: 1.343074167 | K49: 1.309153522 | L49: 1.273512556 | M49: 1.233382579 | N49: 1.197944978 | O49: 1.155367416 | P49: 1.131510271 | Q49: 1.102247075 | R49: 1.069069069 | S49: 1.04296875 | T49: =U49*(1+U48) -> 1.013282732 | U49: 1 | V49: =U49/(1+V48) -> 0.9756097561 | W49: =V49/(1+W48) -> 0.9518143962 | X49: 0.9285994109 | Y49: 0.9059506448 | Z49: 0.8838542876
C51: Example
C52: Costs ($nominal) | E52: 75 | F52: 76 | G52: 77 | H52: 78 | I52: 79 | J52: 80 | K52: 80 | L52: 80 | M52: 80 | N52: 80 | O52: 80 | P52: 80 | Q52: 123 | R52: 70 | S52: 120 | T52: 200 | U52: 145 | V52: 150 | W52: 100 | X52: 55 | Y52: 135 | Z52: 215
C53: Costs (real $2015) | E53: =E52*E$49 -> 118.0010199 | F53: 117.4545956 | G53: 112.4745339 | H53: 110.485209 | I53: 108.6128193 | J53: 107.4459333 | K53: 104.7322818 | L53: 101.8810045 | M53: 98.6706063 | N53: 95.83559825 | O53: 92.42939325 | P53: 90.52082171 | Q53: 135.5763902 | R53: 74.83483483 | S53: 125.15625 | T53: 202.6565465 | U53: 145 | V53: 146.3414634 | W53: 95.18143962 | X53: 51.0729676 | Y53: 122.303337 | Z53: =Z52*Z$49 -> 190.0286718

Sheet 3 - Capex summary (hidden)
B1: =SheetHeader -> REGULATORY REPORTING STATEMENT
B2: =dms_TradingName -> AGN
B3: =CONCATENATE(FRCP_y1," to ",FRCP_y5) -> 2016-17 to 2020-21 | C3: =CONCATENATE(LEFT(FRCP_y1,4),"-",LEFT(FRCP_y5,2),RIGHT(FRCP_y5,2)) -> 2016-2021
B4: 4. CAPITAL EXPENDITURE SUMMARY (by driver)
B6: Instructions This template aggregates information relating to capital expenditure inclusive of related party margins from tabs 4 to 15. No input is required. Please check that the forecast capex aligns with the AAI proposed totals and the capex totals in the PTRM and RFM models.
B9: Table 3.1 - Capex by driver (forecast)
C10: Previous access arrangement period | H10: Current access arrangement period | N10: Next access arrangement period
C11: $0's, Nominal | L11: =CONCATENATE("$0's, Real ",dms_DollarReal) -> $0's, Real June 2016 | N11: =CONCATENATE("Real, $ ",dms_DollarReal) -> Real, $ June 2016
C12: Actual | L12: Forecast
C13: =PRCP_y1 -> 2006-07 | D13: =PRCP_y2 -> 2007-08 | E13: =PRCP_y3 -> 2008-09 | F13: =PRCP_y4 -> 2009-10 | G13: =PRCP_y5 -> 2010-11 | H13: =CRCP_y1 -> 2011-12 | I13: =CRCP_y2 -> 2012-13 | J13: =CRCP_y3 -> 2013-14 | K13: =CRCP_y4 -> 2014-15 | L13: =CRCP_y5 -> 2015-16 | M13: =CRCP_y6 -> 0 | N13: =FRCP -> 2016-17 | O13: 2017-18 | P13: 2018-19 | Q13: 2019-20 | R13: 2020-21
B14: Connections/ Market expansion
B15: Total direct costs (excl escalation) | C15: ='4.Connections market expansn'!C489 -> 20335274.57 | D15: ='4.Connections market expansn'!D489 -> 20369651.46 | E15: ='4.Connections market expansn'!E489 -> 20531405.48 | F15: ='4.Connections market expansn'!F489 -> 18843065.67 | G15: ='4.Connections market expansn'!G489 -> 20192108.57 | H15: ='4.Connections market expansn'!H489 -> 18486898.05 | I15: ='4.Connections market expansn'!I489 -> 18362472.51 | J15: ='4.Connections market expansn'!K489 -> 17478549.85 | K15: ='4.Connections market expansn'!L489 -> 19099725.78 | M15: ='4.Connections market expansn'!M489 -> 19035644.4 | N15: ='4.Connections market expansn'!N489 -> 19082996.75 | O15: ='4.Connections market expansn'!O489 -> 19621073.03 | P15: ='4.Connections market expansn'!P489 -> 25236137.33 | Q15: ='4.Connections market expansn'!Q489 -> 19481843.22 | R15: ='4.Connections market expansn'!S489 -> 0
B16: Escalation | C16: ='4.Connections market expansn'!C490 -> 0 | D16: ='4.Connections market expansn'!D490 -> 0 | E16: ='4.Connections market expansn'!E490 -> 0 | F16: ='4.Connections market expansn'!F490 -> 0 | G16: ='4.Connections market expansn'!G490 -> 0 | H16: ='4.Connections market expansn'!H490 -> 0 | I16: ='4.Connections market expansn'!I490 -> 0 | J16: ='4.Connections market expansn'!K490 -> 0 | K16: ='4.Connections market expansn'!L490 -> 0 | M16: ='4.Connections market expansn'!M490 -> 115662.6347 | N16: ='4.Connections market expansn'!N490 -> 264144.9832 | O16: ='4.Connections market expansn'!O490 -> 448363.6905 | P16: ='4.Connections market expansn'!P490 -> 839789.284 | Q16: ='4.Connections market expansn'!Q490 -> 967165.6147 | R16: ='4.Connections market expansn'!S490 -> 0
B17: Total direct costs (incl escalation) | C17: ='4.Connections market expansn'!C491 -> 20335274.57 | D17: ='4.Connections market expansn'!D491 -> 20369651.46 | E17: ='4.Connections market expansn'!E491 -> 20531405.48 | F17: ='4.Connections market expansn'!F491 -> 18843065.67 | G17: ='4.Connections market expansn'!G491 -> 20192108.57 | H17: ='4.Connections market expansn'!H491 -> 18484346.4 | I17: ='4.Connections market expansn'!I491 -> 18352222.61 | J17: ='4.Connections market expansn'!K491 -> 17478549.85 | K17: ='4.Connections market expansn'!L491 -> 19099725.78 | M17: ='4.Connections market expansn'!M491 -> 19151307.04 | N17: ='4.Connections market expansn'!N491 -> 19347141.73 | O17: ='4.Connections market expansn'!O491 -> 20069436.72 | P17: ='4.Connections market expansn'!P491 -> 26075926.62 | Q17: ='4.Connections market expansn'!Q491 -> 20449008.83 | R17: ='4.Connections market expansn'!S491 -> 0
B18: Augmentation/ Growth capacity development
B19: Total direct costs (excl escalation) | C19: ='5.Mains augmentation'!F323 -> 0 | D19: ='5.Mains augmentation'!G323 -> 0 | E19: ='5.Mains augmentation'!H323 -> 0 | F19: ='5.Mains augmentation'!I323 -> 0 | G19: ='5.Mains augmentation'!J323 -> 0 | H19: ='5.Mains augmentation'!K323 -> 0 | I19: ='5.Mains augmentation'!L323 -> 0 | J19: ='5.Mains augmentation'!N323 -> 0 | K19: ='5.Mains augmentation'!O323 -> 0 | M19: ='5.Mains augmentation'!Q323 -> 1652664.137 | N19: ='5.Mains augmentation'!R323 -> 8896622.391 | O19: ='5.Mains augmentation'!S323 -> 4386500.949 | P19: ='5.Mains augmentation'!T323 -> 2369055.028 | Q19: ='5.Mains augmentation'!U323 -> 836971.537 | R19: ='5.Mains augmentation'!V323 -> 0
B20: Escalation | C20: ='5.Mains augmentation'!F324 -> 0 | D20: ='5.Mains augmentation'!G324 -> 0 | E20: ='5.Mains augmentation'!H324 -> 0 | F20: ='5.Mains augmentation'!I324 -> 0 | G20: ='5.Mains augmentation'!J324 -> 0 | H20: ='5.Mains augmentation'!K324 -> 0 | I20: ='5.Mains augmentation'!L324 -> 0 | J20: ='5.Mains augmentation'!N324 -> 0 | K20: ='5.Mains augmentation'!O324 -> 0 | M20: ='5.Mains augmentation'!Q324 -> 10464.38695 | N20: ='5.Mains augmentation'!R324 -> 134577.1561 | O20: ='5.Mains augmentation'!S324 -> 111452.2627 | P20: ='5.Mains augmentation'!T324 -> 89571.638 | Q20: ='5.Mains augmentation'!U324 -> 46809.06848 | R20: ='5.Mains augmentation'!V324 -> 0
B21: Total direct costs (incl escalation) | C21: ='5.Mains augmentation'!F325 -> 0 | D21: ='5.Mains augmentation'!G325 -> 0 | E21: ='5.Mains augmentation'!H325 -> 2467732 | F21: ='5.Mains augmentation'!I325 -> 1807223.89 | G21: ='5.Mains augmentation'!J325 -> 1169339.048 | H21: ='5.Mains augmentation'!K325 -> 5790940 | I21: ='5.Mains augmentation'!L325 -> 14449855.04 | J21: ='5.Mains augmentation'!N325 -> 5420433.64 | K21: ='5.Mains augmentation'!O325 -> 15313828.27 | M21: ='5.Mains augmentation'!Q325 -> 1663128.524 | N21: ='5.Mains augmentation'!R325 -> 9031199.547 | O21: ='5.Mains augmentation'!S325 -> 4497953.211 | P21: ='5.Mains augmentation'!T325 -> 2458626.666 | Q21: ='5.Mains augmentation'!U325 -> 883780.6055 | R21: ='5.Mains augmentation'!V325 -> 0
B22: Mains and service renewal
B23: Total direct costs (excl escalation) | C23: ='6. Mains replacement'!G1365 -> 0 | D23: ='6. Mains replacement'!H1365 -> 0 | E23: ='6. Mains replacement'!I1365 -> 0 | F23: ='6. Mains replacement'!J1365 -> 0 | G23: ='6. Mains replacement'!K1365 -> 0 | H23: ='6. Mains replacement'!L1365 -> 22038235.72 | I23: ='6. Mains replacement'!M1365 -> 34605249.11 | J23: ='6. Mains replacement'!O1365 -> 49521586.3 | K23: ='6. Mains replacement'!P1365 -> 71735594.23 | M23: ='6. Mains replacement'!Q1365 -> 76197204.76 | N23: ='6. Mains replacement'!R1365 -> 75036225.94 | O23: ='6. Mains replacement'!S1365 -> 74611376.76 | P23: ='6. Mains replacement'!T1365 -> 76804424.57 | Q23: ='6. Mains replacement'!U1365 -> 72216523.55 | R23: ='6. Mains replacement'!W1365 -> 0
B24: Escalation | C24: ='6. Mains replacement'!G1367 -> 5756533.01 | D24: ='6. Mains replacement'!H1367 -> 9357216.5 | E24: ='6. Mains replacement'!I1367 -> 7830221.35 | F24: ='6. Mains replacement'!J1367 -> 9215470.4 | G24: ='6. Mains replacement'!K1367 -> 13973888.06 | H24: ='6. Mains replacement'!L1367 -> 22038235.72 | I24: ='6. Mains replacement'!M1367 -> 34605249.11 | J24: ='6. Mains replacement'!O1367 -> 49521586.3 | K24: ='6. Mains replacement'!P1367 -> 71735594.23 | M24: ='6. Mains replacement'!Q1367 -> 76679819.66 | N24: ='6. Mains replacement'!R1367 -> 76155507.14 | O24: ='6. Mains replacement'!S1367 -> 76473343.32 | P24: ='6. Mains replacement'!T1367 -> 79650213.26 | Q24: ='6. Mains replacement'!U1367 -> 76171579.89 | R24: ='6. Mains replacement'!W1367 -> 0
B25: Total direct costs (incl escalation) | C25: ='6. Mains replacement'!G1369 -> 0 | D25: ='6. Mains replacement'!H1369 -> 0 | E25: ='6. Mains replacement'!I1369 -> 0 | F25: ='6. Mains replacement'!J1369 -> 0 | G25: ='6. Mains replacement'!K1369 -> 0 | H25: ='6. Mains replacement'!L1369 -> 0 | I25: ='6. Mains replacement'!M1369 -> 0 | J25: ='6. Mains replacement'!O1369 -> 0 | K25: ='6. Mains replacement'!P1369 -> 0 | N25: ='6. Mains replacement'!R1369 -> 0 | O25: ='6. Mains replacement'!S1369 -> 0 | P25: ='6. Mains replacement'!T1369 -> 0 | Q25: ='6. Mains replacement'!U1369 -> 0 | R25: ='6. Mains replacement'!W1369 -> 0
B26: Facilities renewal and upgrade
B27: Total direct costs (excl escalation)
B28: Escalation
B29: Total direct costs (incl escalation)
B30: Meter renewal and upgrade
B31: Total direct costs (excl escalation) | C31: ='8.Meter replacement'!C61 -> 0 | D31: ='8.Meter replacement'!D61 -> 0 | E31: ='8.Meter replacement'!E61 -> 0 | F31: ='8.Meter replacement'!F61 -> 0 | G31: ='8.Meter replacement'!G61 -> 0 | H31: ='8.Meter replacement'!H61 -> 2016382.968 | I31: ='8.Meter replacement'!J61 -> 3501852.399 | J31: ='8.Meter replacement'!K61 -> 3755093.333 | K31: ='8.Meter replacement'!L61 -> 3661537.685 | M31: ='8.Meter replacement'!M61 -> 4273419.609 | N31: ='8.Meter replacement'!N61 -> 4076636.049 | O31: ='8.Meter replacement'!O61 -> 3708444.569 | P31: ='8.Meter replacement'!P61 -> 2955273.541 | Q31: ='8.Meter replacement'!Q61 -> 2313085.343
B32: Escalation | C32: ='8.Meter replacement'!C62 -> 0 | D32: ='8.Meter replacement'!D62 -> 0 | E32: ='8.Meter replacement'!E62 -> 0 | F32: ='8.Meter replacement'!F62 -> 0 | G32: ='8.Meter replacement'!G62 -> 0 | H32: ='8.Meter replacement'!H62 -> 0 | I32: ='8.Meter replacement'!J62 -> 0 | J32: ='8.Meter replacement'!K62 -> 0 | K32: ='8.Meter replacement'!L62 -> 0 | M32: ='8.Meter replacement'!M62 -> 20896.56406 | N32: ='8.Meter replacement'!N62 -> 35936.25425 | O32: ='8.Meter replacement'!O62 -> 49535.93002 | P32: ='8.Meter replacement'!P62 -> 55189.55306 | Q32: ='8.Meter replacement'!Q62 -> 63148.28439
B33: Total direct costs (incl escalation) | C33: ='8.Meter replacement'!C63 -> 0 | D33: ='8.Meter replacement'!D63 -> 0 | E33: ='8.Meter replacement'!E63 -> 0 | F33: ='8.Meter replacement'!F63 -> 0 | G33: ='8.Meter replacement'!G63 -> 0 | H33: ='8.Meter replacement'!H63 -> 2016382.968 | I33: ='8.Meter replacement'!J63 -> 3501852.399 | J33: ='8.Meter replacement'!K63 -> 3755093.333 | K33: ='8.Meter replacement'!L63 -> 3661537.685 | M33: ='8.Meter replacement'!M63 -> 4294316.173 | N33: ='8.Meter replacement'!N63 -> 4112572.304 | O33: ='8.Meter replacement'!O63 -> 3757980.499 | P33: ='8.Meter replacement'!P63 -> 3010463.094 | Q33: ='8.Meter replacement'!Q63 -> 2376233.628
B34: IT system
B35: Total direct costs (excl escalation)
B36: Escalation
B37: Total direct costs (incl escalation)
B38: Capitalised regulatory costs
B39: Total direct costs (excl escalation) | C39: ='9. Regulators'!G142 -> 0 | D39: ='9. Regulators'!H142 -> 0 | E39: ='9. Regulators'!I142 -> 0 | F39: ='9. Regulators'!J142 -> 0 | G39: ='9. Regulators'!K142 -> 0 | H39: ='9. Regulators'!M142 -> 867040.27 | I39: ='9. Regulators'!N142 -> 2578483.8 | J39: ='9. Regulators'!O142 -> 2677028.4 | K39: ='9. Regulators'!P142 -> 673833.0171 | M39: ='9. Regulators'!Q142 -> 2656310.55 | N39: ='9. Regulators'!R142 -> 2677528.691 | O39: ='9. Regulators'!S142 -> 2865036.66 | P39: ='9. Regulators'!T142 -> 2887207.287 | Q39: ='9. Regulators'!U142 -> 2697966.603 | R39: ='9. Regulators'!V142 -> 0
B40: Escalation | C40: ='9. Regulators'!G143 -> 0 | D40: ='9. Regulators'!H143 -> 0 | E40: ='9. Regulators'!I143 -> 0 | F40: ='9. Regulators'!J143 -> 0 | G40: ='9. Regulators'!K143 -> 0 | H40: ='9. Regulators'!M143 -> 0 | I40: ='9. Regulators'!N143 -> 0 | J40: ='9. Regulators'!O143 -> 0 | K40: ='9. Regulators'!P143 -> 0 | M40: ='9. Regulators'!Q143 -> 8933.160569 | N40: ='9. Regulators'!R143 -> 19225.47809 | O40: ='9. Regulators'!S143 -> 33300.48344 | P40: ='9. Regulators'!T143 -> 48875.68058 | Q40: ='9. Regulators'!U143 -> 67060.71112 | R40: ='9. Regulators'!V143 -> 0
B41: Total direct costs (incl escalation) | C41: ='9. Regulators'!G144 -> 877003.59 | D41: ='9. Regulators'!H144 -> 401486.63 | E41: ='9. Regulators'!I144 -> 103218.3 | F41: ='9. Regulators'!J144 -> 210693.7 | G41: ='9. Regulators'!K144 -> 151251.4105 | H41: ='9. Regulators'!M144 -> 867040.27 | I41: ='9. Regulators'!N144 -> 2578483.8 | J41: ='9. Regulators'!O144 -> 2677028.4 | K41: ='9. Regulators'!P144 -> 673833.0171 | M41: ='9. Regulators'!Q144 -> 2665243.711 | N41: ='9. Regulators'!R144 -> 2696754.169 | O41: ='9. Regulators'!S144 -> 2898337.144 | P41: ='9. Regulators'!T144 -> 2936082.967 | Q41: ='9. Regulators'!U144 -> 2765027.315 | R41: ='9. Regulators'!V144 -> 0
B42: Other
B43: Total direct costs (excl escalation) | C43: ='11. Other non-distribution syst'!H122 -> 0 | D43: ='11. Other non-distribution syst'!I122 -> 0 | E43: ='11. Other non-distribution syst'!J122 -> 0 | F43: ='11. Other non-distribution syst'!K122 -> 702498.1053 | G43: ='11. Other non-distribution syst'!L122 -> 0 | H43: ='11. Other non-distribution syst'!M122 -> 660293.6012 | I43: ='11. Other non-distribution syst'!N122 -> 586909.8244 | J43: ='11. Other non-distribution syst'!O122 -> 3140000 | K43: ='11. Other non-distribution syst'!P122 -> 2312311.195 | M43: ='11. Other non-distribution syst'!Q122 -> 0 | N43: ='11. Other non-distribution syst'!R122 -> 1364891.841 | O43: ='11. Other non-distribution syst'!S122 -> 1060907.021 | P43: ='11. Other non-distribution syst'!T122 -> 891688.8046 | Q43: ='11. Other non-distribution syst'!U122 -> 891688.8046 | R43: ='11. Other non-distribution syst'!V122 -> 891688.8046
B44: Escalation | C44: ='11. Other non-distribution syst'!H123 -> 0 | D44: ='11. Other non-distribution syst'!I123 -> 0 | E44: ='11. Other non-distribution syst'!J123 -> 0 | F44: ='11. Other non-distribution syst'!K123 -> 0 | G44: ='11. Other non-distribution syst'!L123 -> 0 | H44: ='11. Other non-distribution syst'!M123 -> 0 | I44: ='11. Other non-distribution syst'!N123 -> 0 | J44: ='11. Other non-distribution syst'!O123 -> 0 | K44: ='11. Other non-distribution syst'!P123 -> 0 | M44: ='11. Other non-distribution syst'!Q123 -> 1619.473637 | N44: ='11. Other non-distribution syst'!R123 -> 1619.473637 | O44: ='11. Other non-distribution syst'!S123 -> 3011.321833 | P44: ='11. Other non-distribution syst'!T123 -> 4252.749789 | Q44: ='11. Other non-distribution syst'!U123 -> 6329.958571 | R44: ='11. Other non-distribution syst'!V123 -> 9360.871707
B45: Total direct costs (incl escalation) | C45: ='11. Other non-distribution syst'!H124 -> 0 | D45: ='11. Other non-distribution syst'!I124 -> 0 | E45: ='11. Other non-distribution syst'!J124 -> 0 | F45: ='11. Other non-distribution syst'!K124 -> 0 | G45: ='11. Other non-distribution syst'!L124 -> 0 | H45: ='11. Other non-distribution syst'!M124 -> 660293.6012 | I45: ='11. Other non-distribution syst'!N124 -> 586909.8244 | J45: ='11. Other non-distribution syst'!O124 -> 3140000 | K45: ='11. Other non-distribution syst'!P124 -> 2312311.195 | M45: ='11. Other non-distribution syst'!Q124 -> 1619.473637 | N45: ='11. Other non-distribution syst'!R124 -> 1366511.314 | O45: ='11. Other non-distribution syst'!S124 -> 1063918.343 | P45: ='11. Other non-distribution syst'!T124 -> 895941.5543 | Q45: ='11. Other non-distribution syst'!U124 -> 898018.7631 | R45: ='11. Other non-distribution syst'!V124 -> 901049.6763
B46: Overheads
B47: Total costs | C47: ='13. Overheads'!#REF! ->  | D47: ='13. Overheads'!#REF! ->  | E47: ='13. Overheads'!#REF! ->  | F47: ='13. Overheads'!#REF! ->  | G47: ='13. Overheads'!#REF! ->  | H47: ='13. Overheads'!#REF! ->  | I47: ='13. Overheads'!#REF! ->  | J47: ='13. Overheads'!#REF! ->  | K47: ='13. Overheads'!#REF! ->  | M47: ='13. Overheads'!#REF! ->  | N47: ='13. Overheads'!#REF! ->  | O47: ='13. Overheads'!#REF! ->  | P47: ='13. Overheads'!#REF! ->  | Q47: ='13. Overheads'!#REF! -> 
B48: Related party margin
B49: Total cost | C49: ='14. Related party transactions'!C126 -> 0 | D49: ='14. Related party transactions'!D126 -> 0 | E49: ='14. Related party transactions'!E126 -> 0 | F49: ='14. Related party transactions'!F126 -> 0 | G49: ='14. Related party transactions'!G126 -> 0 | H49: ='14. Related party transactions'!H126 -> 0 | I49: ='14. Related party transactions'!I126 -> 0 | J49: ='14. Related party transactions'!K126 -> 0 | K49: ='14. Related party transactions'!L126 -> 0 | M49: ='14. Related party transactions'!M126 -> 0 | N49: ='14. Related party transactions'!N126 -> 0 | O49: ='14. Related party transactions'!O126 -> 0 | P49: ='14. Related party transactions'!P126 -> 0 | Q49: ='14. Related party transactions'!Q126 -> 0 | R49: ='14. Related party transactions'!R126 -> 0
B50: Gross total capex (excl escalation) | C50: =SUM(C15,C19,C23,C27,C39,C31,C35,C43,C47,C49) ->  | D50: =SUM(D15,D19,D23,D27,D39,D31,D35,D43,D47,D49) ->  | R50: =SUM(R15,R19,R23,R27,R39,R31,R35,R43,R47,R49) -> 891688.8046
B51: Total escalation | C51: =SUM(C16,C20,C24,C28,C40,C32,C36,C44) -> 5756533.01 | D51: =SUM(D16,D20,D24,D28,D40,D32,D36,D44) -> 9357216.5 | E51: 7830221.35 | F51: 9215470.4 | G51: 13973888.06 | H51: 22038235.72 | I51: 34605249.11 | J51: 49521586.3 | K51: 71735594.23 | M51: 76837395.88 | N51: 76611010.49 | O51: 77119007.01 | P51: 80687892.17 | Q51: 77322093.52 | R51: =SUM(R16,R20,R24,R28,R40,R32,R36,R44) -> 9360.871707
B52: Gross total capex (incl escalation) | C52: =SUM(C17,C21,C25,C29,C41,C33,C37,C45,C47,C49) ->  | D52: =SUM(D17,D21,D25,D29,D41,D33,D37,D45,D47,D49) ->  | R52: =SUM(R17,R21,R25,R29,R41,R33,R37,R45,R47,R49) -> 901049.6763
B53: Less: Contributions
B54: Net total capex (excl escalation) | C54: =C50-C53 ->  | D54: =D50-D53 ->  | M54: =M50-M53 ->  | R54: 891688.8046
B55: Net total capex (incl escalation) | C55: =C52-C53 ->  | D55: =D52-D53 ->  | M55: =M52-M53 ->  | R55: =R52-R53 -> 901049.6763
B58: Table 3.2 - Capex by driver (approved)
C59: Previous access arrangement period | H59: Current access arrangement period
C60: $0's, Nominal | H60: =CONCATENATE("$0's, Real ",dms_DollarReal) -> $0's, Real June 2016
C61: Approved
C62: =PRCP_y1 -> 2006-07 | D62: =PRCP_y2 -> 2007-08 | E62: =PRCP_y3 -> 2008-09 | F62: =PRCP_y4 -> 2009-10 | G62: =PRCP_y5 -> 2010-11 | H62: =CRCP_y1 -> 2011-12 | I62: =CRCP_y2 -> 2012-13 | J62: =CRCP_y3 -> 2013-14 | K62: =CRCP_y4 -> 2014-15 | L62: =CRCP_y5 -> 2015-16 | M62: =CRCP_y6 -> 0
B63: Connections/ Market expansion
B64: Total direct costs (excl escalation) | C64: ='4.Connections market expansn'!S489 -> 0 | D64: ='4.Connections market expansn'!T489 -> 0 | E64: ='4.Connections market expansn'!U489 -> 0 | F64: ='4.Connections market expansn'!V489 -> 0 | G64: ='4.Connections market expansn'!W489 -> 0 | H64: ='4.Connections market expansn'!Y489 -> 0 | I64: ='4.Connections market expansn'!AA489 -> 0 | J64: ='4.Connections market expansn'!AB489 -> 0 | K64: ='4.Connections market expansn'!AC489 -> 0 | L64: ='4.Connections market expansn'!#REF! -> 
B65: Escalation | C65: ='4.Connections market expansn'!S490 -> 0 | D65: ='4.Connections market expansn'!T490 -> 0 | E65: ='4.Connections market expansn'!U490 -> 0 | F65: ='4.Connections market expansn'!V490 -> 0 | G65: ='4.Connections market expansn'!W490 -> 0 | H65: ='4.Connections market expansn'!Y490 -> 0 | I65: ='4.Connections market expansn'!AA490 -> 0 | J65: ='4.Connections market expansn'!AB490 -> 0 | K65: ='4.Connections market expansn'!AC490 -> 0 | L65: ='4.Connections market expansn'!#REF! -> 
B66: Total direct costs (incl escalation) | C66: ='4.Connections market expansn'!S491 -> 0 | D66: ='4.Connections market expansn'!T491 -> 0 | E66: ='4.Connections market expansn'!U491 -> 0 | F66: ='4.Connections market expansn'!V491 -> 0 | G66: ='4.Connections market expansn'!W491 -> 0 | H66: ='4.Connections market expansn'!Y491 -> 0 | I66: ='4.Connections market expansn'!AA491 -> 0 | J66: ='4.Connections market expansn'!AB491 -> 0 | K66: ='4.Connections market expansn'!AC491 -> 0 | L66: ='4.Connections market expansn'!#REF! -> 
B67: Augmentation/ Growth capacity development
B68: Total direct costs (excl escalation) | C68: ='5.Mains augmentation'!F366 -> 0 | D68: ='5.Mains augmentation'!G366 -> 0 | E68: ='5.Mains augmentation'!H366 -> 0 | F68: ='5.Mains augmentation'!I366 -> 0 | G68: ='5.Mains augmentation'!J366 -> 0 | H68: ='5.Mains augmentation'!K366 -> 0 | I68: ='5.Mains augmentation'!L366 -> 0 | J68: ='5.Mains augmentation'!N366 -> 0 | K68: ='5.Mains augmentation'!O366 -> 0 | L68: ='5.Mains augmentation'!#REF! ->  | M68: ='5.Mains augmentation'!P366 -> 0
B69: Escalation | C69: ='5.Mains augmentation'!F367 -> 0 | D69: ='5.Mains augmentation'!G367 -> 0 | E69: ='5.Mains augmentation'!H367 -> 0 | F69: ='5.Mains augmentation'!I367 -> 0 | G69: ='5.Mains augmentation'!J367 -> 0 | H69: ='5.Mains augmentation'!K367 -> 0 | I69: ='5.Mains augmentation'!L367 -> 0 | J69: ='5.Mains augmentation'!N367 -> 0 | K69: ='5.Mains augmentation'!O367 -> 0 | L69: ='5.Mains augmentation'!#REF! ->  | M69: ='5.Mains augmentation'!P367 -> 0
B70: Total direct costs (incl escalation) | C70: ='5.Mains augmentation'!F368 -> 0 | D70: ='5.Mains augmentation'!G368 -> 0 | E70: ='5.Mains augmentation'!H368 -> 0 | F70: ='5.Mains augmentation'!I368 -> 0 | G70: ='5.Mains augmentation'!J368 -> 0 | H70: ='5.Mains augmentation'!K368 -> 0 | I70: ='5.Mains augmentation'!L368 -> 0 | J70: ='5.Mains augmentation'!N368 -> 0 | K70: ='5.Mains augmentation'!O368 -> 0 | L70: ='5.Mains augmentation'!#REF! ->  | M70: ='5.Mains augmentation'!P368 -> 0
B71: Mains and service renewal
B72: Total direct costs (excl escalation) | C72: ='6. Mains replacement'!W1365 -> 0 | D72: ='6. Mains replacement'!X1365 -> 0 | E72: ='6. Mains replacement'!Y1365 -> 0 | F72: ='6. Mains replacement'!Z1365 -> 0 | G72: ='6. Mains replacement'!AA1365 -> 0 | H72: ='6. Mains replacement'!AC1365 -> 0 | I72: ='6. Mains replacement'!AD1365 -> 0 | J72: ='6. Mains replacement'!AE1365 -> 0 | K72: ='6. Mains replacement'!AG1365 -> 0 | L72: ='6. Mains replacement'!#REF! -> 
B73: Escalation | C73: ='6. Mains replacement'!W1367 -> 0 | D73: ='6. Mains replacement'!X1367 -> 0 | E73: ='6. Mains replacement'!Y1367 -> 0 | F73: ='6. Mains replacement'!Z1367 -> 0 | G73: ='6. Mains replacement'!AA1367 -> 0 | H73: ='6. Mains replacement'!AC1367 -> 0 | I73: ='6. Mains replacement'!AD1367 -> 0 | J73: ='6. Mains replacement'!AE1367 -> 0 | K73: ='6. Mains replacement'!AG1367 -> 0 | L73: ='6. Mains replacement'!#REF! -> 
B74: Total direct costs (incl escalation) | C74: ='6. Mains replacement'!W1369 -> 0 | D74: ='6. Mains replacement'!X1369 -> 0 | E74: ='6. Mains replacement'!Y1369 -> 0 | F74: ='6. Mains replacement'!Z1369 -> 0 | G74: ='6. Mains replacement'!AA1369 -> 0 | H74: ='6. Mains replacement'!AC1369 -> 0 | I74: ='6. Mains replacement'!AD1369 -> 0 | J74: ='6. Mains replacement'!AE1369 -> 0 | K74: ='6. Mains replacement'!AG1369 -> 0 | L74: ='6. Mains replacement'!#REF! -> 
B75: Facilities renewal and upgrade
B76: Total direct costs (excl escalation)
B77: Escalation
B78: Total direct costs (incl escalation)
B79: Meter renewal and upgrade
B80: Total direct costs (excl escalation) | C80: ='8.Meter replacement'!C190 -> 0 | D80: ='8.Meter replacement'!D190 -> 0 | E80: ='8.Meter replacement'!E190 -> 0 | F80: ='8.Meter replacement'!F190 -> 0 | G80: ='8.Meter replacement'!G190 -> 0 | H80: ='8.Meter replacement'!H190 -> 0 | I80: ='8.Meter replacement'!J190 -> 0 | J80: ='8.Meter replacement'!K190 -> 0 | K80: ='8.Meter replacement'!L190 -> 0 | L80: ='8.Meter replacement'!#REF! ->  | M80: ='8.Meter replacement'!M190 -> 0
B81: Escalation | C81: ='8.Meter replacement'!C191 -> 0 | D81: ='8.Meter replacement'!D191 -> 0 | E81: ='8.Meter replacement'!E191 -> 0 | F81: ='8.Meter replacement'!F191 -> 0 | G81: ='8.Meter replacement'!G191 -> 0 | H81: ='8.Meter replacement'!H191 -> 0 | I81: ='8.Meter replacement'!J191 -> 0 | J81: ='8.Meter replacement'!K191 -> 0 | K81: ='8.Meter replacement'!L191 -> 0 | L81: ='8.Meter replacement'!#REF! ->  | M81: ='8.Meter replacement'!M191 -> 0
B82: Total direct costs (incl escalation) | C82: ='8.Meter replacement'!C192 -> 0 | D82: ='8.Meter replacement'!D192 -> 0 | E82: ='8.Meter replacement'!E192 -> 0 | F82: ='8.Meter replacement'!F192 -> 0 | G82: ='8.Meter replacement'!G192 -> 0 | H82: ='8.Meter replacement'!H192 -> 0 | I82: ='8.Meter replacement'!J192 -> 0 | J82: ='8.Meter replacement'!K192 -> 0 | K82: ='8.Meter replacement'!L192 -> 0 | L82: ='8.Meter replacement'!#REF! ->  | M82: ='8.Meter replacement'!M192 -> 0
B83: IT
B84: Total direct costs (excl escalation)
B85: Escalation
B86: Total direct costs (incl escalation)
B87: Capitalised regulatory costs
B88: Total direct costs (excl escalation) | C88: ='9. Regulators'!G182 -> 0 | D88: ='9. Regulators'!H182 -> 0 | E88: ='9. Regulators'!I182 -> 0 | F88: ='9. Regulators'!J182 -> 0 | G88: ='9. Regulators'!K182 -> 0 | H88: ='9. Regulators'!M182 -> 0 | I88: ='9. Regulators'!N182 -> 0 | J88: ='9. Regulators'!O182 -> 0 | K88: ='9. Regulators'!P182 -> 0 | L88: ='9. Regulators'!#REF! ->  | M88: ='9. Regulators'!Q182 -> 0
B89: Escalation | C89: ='9. Regulators'!G183 -> 0 | D89: ='9. Regulators'!H183 -> 0 | E89: ='9. Regulators'!I183 -> 0 | F89: ='9. Regulators'!J183 -> 0 | G89: ='9. Regulators'!K183 -> 0 | H89: ='9. Regulators'!M183 -> 0 | I89: ='9. Regulators'!N183 -> 0 | J89: ='9. Regulators'!O183 -> 0 | K89: ='9. Regulators'!P183 -> 0 | L89: ='9. Regulators'!#REF! ->  | M89: ='9. Regulators'!Q183 -> 0
B90: Total direct costs (incl escalation) | C90: ='9. Regulators'!G184 -> 0 | D90: ='9. Regulators'!H184 -> 0 | E90: ='9. Regulators'!I184 -> 0 | F90: ='9. Regulators'!J184 -> 0 | G90: ='9. Regulators'!K184 -> 0 | H90: ='9. Regulators'!M184 -> 0 | I90: ='9. Regulators'!N184 -> 0 | J90: ='9. Regulators'!O184 -> 0 | K90: ='9. Regulators'!P184 -> 0 | L90: ='9. Regulators'!#REF! ->  | M90: ='9. Regulators'!Q184 -> 0
B91: Other
B92: Total direct costs (excl escalation) | C92: ='11. Other non-distribution syst'!G188 -> 0 | D92: ='11. Other non-distribution syst'!H188 -> 0 | E92: ='11. Other non-distribution syst'!I188 -> 0 | F92: ='11. Other non-distribution syst'!J188 -> 0 | G92: ='11. Other non-distribution syst'!K188 -> 0 | H92: ='11. Other non-distribution syst'!L188 -> 0 | I92: ='11. Other non-distribution syst'!N188 -> 0 | J92: ='11. Other non-distribution syst'!O188 -> 0 | K92: ='11. Other non-distribution syst'!P188 -> 0 | L92: ='11. Other non-distribution syst'!#REF! ->  | M92: ='11. Other non-distribution syst'!Q188 -> 0
B93: Escalation | C93: ='11. Other non-distribution syst'!G189 -> 0 | D93: ='11. Other non-distribution syst'!H189 -> 0 | E93: ='11. Other non-distribution syst'!I189 -> 0 | F93: ='11. Other non-distribution syst'!J189 -> 0 | G93: ='11. Other non-distribution syst'!K189 -> 0 | H93: ='11. Other non-distribution syst'!L189 -> 0 | I93: ='11. Other non-distribution syst'!N189 -> 0 | J93: ='11. Other non-distribution syst'!O189 -> 0 | K93: ='11. Other non-distribution syst'!P189 -> 0 | L93: ='11. Other non-distribution syst'!#REF! ->  | M93: ='11. Other non-distribution syst'!Q189 -> 0
B94: Total direct costs (incl escalation) | C94: ='11. Other non-distribution syst'!G190 -> 0 | D94: ='11. Other non-distribution syst'!H190 -> 0 | E94: ='11. Other non-distribution syst'!I190 -> 0 | F94: ='11. Other non-distribution syst'!J190 -> 0 | G94: ='11. Other non-distribution syst'!K190 -> 0 | H94: ='11. Other non-distribution syst'!L190 -> 0 | I94: ='11. Other non-distribution syst'!N190 -> 0 | J94: ='11. Other non-distribution syst'!O190 -> 0 | K94: ='11. Other non-distribution syst'!P190 -> 0 | L94: ='11. Other non-distribution syst'!#REF! ->  | M94: ='11. Other non-distribution syst'!Q190 -> 0
B95: Overheads
B96: Total costs | C96: ='13. Overheads'!#REF! ->  | D96: ='13. Overheads'!#REF! ->  | E96: ='13. Overheads'!#REF! ->  | F96: ='13. Overheads'!#REF! ->  | G96: ='13. Overheads'!#REF! ->  | H96: ='13. Overheads'!#REF! ->  | I96: ='13. Overheads'!#REF! ->  | J96: ='13. Overheads'!#REF! ->  | K96: ='13. Overheads'!#REF! ->  | L96: ='13. Overheads'!#REF! -> 
B97: Related party margin
B98: Total cost | C98: ='14. Related party transactions'!C143 -> 0 | D98: ='14. Related party transactions'!D143 -> 0 | E98: ='14. Related party transactions'!E143 -> 0 | F98: ='14. Related party transactions'!F143 -> 0 | G98: ='14. Related party transactions'!G143 -> 0 | H98: ='14. Related party transactions'!H143 -> 0 | I98: ='14. Related party transactions'!I143 -> 0 | J98: ='14. Related party transactions'!K143 -> 0 | K98: ='14. Related party transactions'!L143 -> 0 | L98: ='14. Related party transactions'!#REF! ->  | M98: ='14. Related party transactions'!M143 -> 0
B99: Gross total capex (excl escalation) excluding overheads and RPM | C99: =SUM(C64,C68,C72,C76,C87,C80,C84,C92) -> 0 | D99: =SUM(D64,D68,D72,D76,D87,D80,D84,D92) -> 0 | E99: 0 | F99: 0 | G99: 0 | H99: 0 | I99: 0 | J99: 0 | K99: 0 | M99: =SUM(M64,M68,M72,M76,M87,M80,M84,M92) -> 0
B100: Total escalation | C100: =SUM(C65,C69,C73,C77,C88,C81,C85,C93) -> 0 | D100: =SUM(D65,D69,D73,D77,D88,D81,D85,D93) -> 0 | E100: 0 | F100: 0 | G100: 0 | H100: 0 | I100: 0 | J100: 0 | K100: 0 | M100: =SUM(M65,M69,M73,M77,M88,M81,M85,M93) -> 0
B101: Gross total capex (incl escalation) excluding overheads and RPM | C101: =SUM(C66,C70,C74,C78,C89,C82,C90,C94) -> 0 | D101: =SUM(D66,D70,D74,D78,D89,D82,D90,D94) -> 0 | E101: 0 | F101: 0 | G101: 0 | H101: 0 | I101: 0 | J101: 0 | K101: 0 | M101: =SUM(M66,M70,M74,M78,M89,M82,M90,M94) -> 0
B102: Gross total capex (incl escalation) including overheads, excluding RPM | C102: =C101+C96 ->  | M102: 0
B103: Gross total capex (incl escalation) including overheads and RPM | C103: =C102+C98 ->  | M103: 0
B104: Less: Contributions
B105: Net total capex (incl escalation) including overheads and RPM | C105: =C103-C104 ->  | M105: =M103-M104 -> 0

Sheet 2.Escalators
B1: REGULATORY REPORTING STATEMENT
B2: ActewAGL Distribution
B3: 2016-17 to 2020-21 | C3: 2016-2021
B4: 2. REAL COST ESCALATORS
B7: Instructions This template asks for real cost escalators used to escalate unit costs. Please identify the unit used in this sheet. In Tables 2.1 and 2.2 enter the current access arrangement period data and, subject to cl.6.1 of the ActewAGL RIN, enter the next access arrangement period data via link from the ActewAGL capex model. If linked/adjustable escalation is not provided in the ActewAGL capex model, ensure the escalation in table 2.2 is linked through to all capex categories/subcategories and projects.
B10: Unit used in this sheet
B11: 0
B13: Table 2.1 - Real cost escalators ( % )
C14: Current access arrangement | I14: Next access arrangement
C15: Approved | I15: Forecast
C16: 2010-11 | D16: 2011-12 | E16: 2012-13 | F16: 2013-14 | G16: 2014-15 | H16: 2015-16 | I16: 2016-17 | J16: 2017-18 | K16: 2018-19 | L16: 2019-20 | M16: 2020-21
B17: EGW Labour | C17: 0.032 | D17: 0.015 | E17: 0.007 | F17: 0.002 | G17: -0.004 | H17: -0.013
B18: General Labour | C18: 0.045 | D18: 0.003 | E18: -0.004 | F18: -0.005 | G18: -0.008 | H18: -0.015
B19: Construction Labour | C19: 0 | D19: 0.012 | E19: 0.012 | F19: 0.011 | G19: 0.002 | H19: -0.007 | I19: 0.005712502153 | J19: 0.01003505194 | K19: 0.01161851743 | L19: 0.01387057501 | M19: 0.01991395035
B20: EGWWS Labour | I20: 0.008 | J20: 0.0091 | K20: 0.01035 | L20: 0.01185 | M20: 0.0188
B21: Materials | C21: 0 | D21: 0 | E21: 0 | F21: 0 | G21: 0 | H21: 0 | I21: 0 | J21: 0 | K21: 0 | L21: 0 | M21: 0
B22: Other | C22: 0 | D22: 0 | E22: 0 | F22: 0 | G22: 0 | H22: 0 | I22: 0 | J22: 0 | K22: 0 | L22: 0 | M22: 0
C26: =SUM(C17:C25) -> 0.077 | D26: 0.03 | E26: 0.015 | F26: 0.008 | G26: -0.01 | H26: -0.035 | I26: 0.01371250215 | J26: 0.01913505194 | K26: 0.02196851743 | L26: 0.02572057501 | M26: 0.03871395035
B27: Source(s) of data: | C27: For the current AA period, source is the AER's Final Decision. For the forecast AA period, sources are the Opex and Capex Models submitted as Attachments to AGN's AA Proposal.
B29: Table 2.2 - Input / Cost Mix (Weights)
C30: Forecast | L30: Forecast
C31: Labour | E31: Materials | L31: Cumulative Factor
C32: EBA | D32: Non-EBA | E32: =B19 -> Construction Labour | F32: =B20 -> EGWWS Labour | G32: =B21 -> Materials | H32: =B22 -> Other | I32: =B23 -> 0 | J32: =B24 -> 0 | K32: Total | L32: 2013-14 | M32: 2014-15 | N32: 2015-16 | O32: 2016-17 | P32: 2017-18 | Q32: 2018-19 | R32: 2019-20 | S32: 2020-21
B33: Opex - Operations & Maintenance | C33: =194/286 -> 0.6783216783 | D33: =1-C33 -> 0.3216783217 | E33: 0 | F33: 0.8564022533 | G33: 0.1435977467 | H33: 0 | I33: 0 | J33: 0 | K33: 1 | L33: 1 | M33: =L33 -> 1 | N33: 1.00385381 | O33: 1.010735859 | P33: 1.018626815 | Q33: 1.027683366 | R33: 1.038159781 | S33: 1.054977547
B34: Opex - Admin & General | C34: =194/286 -> 0.6783216783 | D34: =1-C34 -> 0.3216783217 | E34: 0 | F34: 0.6433957474 | G34: 0.3566042526 | H34: 0 | I34: 0 | J34: 0 | K34: 1 | L34: 1 | M34: =L34 -> 1 | N34: 1.002895281 | O34: 1.008065609 | P34: 1.013993907 | Q34: 1.02079789 | R34: 1.028668585 | S34: 1.041303394
B35: Opex - Network Development | C35: 0.6783216783 | D35: 0.3216783217 | E35: 0 | F35: 0.3975700021 | G35: 0.6024299979 | H35: 0 | I35: 0 | J35: 0 | K35: 1 | L35: 1 | M35: 1 | N35: 1.001789065 | O35: 1.004983938 | P35: 1.008647178 | Q35: 1.012851526 | R35: 1.017715021 | S35: 1.02552238
B36: Opex - Non-Base Year Costs | C36: 0.6783216783 | D36: 0.3216783217 | E36: 0 | F36: 0.8564022533 | G36: 0.1435977467 | H36: 0 | I36: 0 | J36: 0 | K36: 1 | L36: 1 | M36: 1 | N36: 1.00385381 | O36: 1.010735859 | P36: 1.018626815 | Q36: 1.027683366 | R36: 1.038159781 | S36: 1.054977547
B37: Capex - PMC Meters Domestic | C37: 0.6783216783 | D37: 0.3216783217 | E37: 0.06545824395 | F37: 0.3487221454 | G37: 0.5858196106 | H37: 0 | I37: 0 | J37: 0 | K37: 1 | L37: 1 | M37: 1 | N37: 1.001659094 | O37: 1.004835869 | P37: 1.008710557 | Q37: 1.013171942 | R37: 1.018372168 | S37: 1.02658023
B38: Capex - PMC Meters I&C<10TJ | C38: 0.6783216783 | D38: 0.3216783217 | E38: 0.05647820891 | F38: 0.4028373262 | G38: 0.5406844649 | H38: 0 | I38: 0 | J38: 0 | K38: 1 | L38: 1 | M38: 1 | N38: 1.001890287 | O38: 1.005450562 | P38: 1.009733118 | Q38: 1.014660648 | R38: 1.020394695 | S38: 1.029478885
B39: Capex - Mains Renewal - Trunk (MP) | C39: 0.6783216783 | D39: 0.3216783217 | E39: 0.7890928304 | F39: 0.07210993485 | G39: 0.1387972348 | H39: 0 | I39: 0 | J39: 0 | K39: 1 | L39: 1 | M39: 1 | N39: 1.001407557 | O39: 1.006500914 | P39: 1.015140093 | Q39: 1.025228436 | R39: 1.037373333 | S39: 1.055183627
B40: Capex - Mains Renewal - Trunk (MP) Abandoned | C40: 0.6783216783 | D40: 0.3216783217 | E40: 0.7890928304 | F40: 0.07210993485 | G40: 0.1387972348 | H40: 0 | I40: 0 | J40: 0 | K40: 1 | L40: 1 | M40: 1 | N40: 1.001407557 | O40: 1.006500914 | P40: 1.015140093 | Q40: 1.025228436 | R40: 1.037373333 | S40: 1.055183627
B41: Capex - Mains Renewal - Piece (CI & UPS) | C41: 0.6783216783 | D41: 0.3216783217 | E41: 0.739649356 | F41: 0.0710802198 | G41: 0.1892704242 | H41: 0 | I41: 0 | J41: 0 | K41: 1 | L41: 1 | M41: 1 | N41: 1.00133506 | O41: 1.006137308 | P41: 1.014267313 | Q41: 1.023760426 | R41: 1.035187017 | S41: 1.05194985
B42: Capex - Mains Renewal - HDPE Class 250 | C42: 0.6783216783 | D42: 0.3216783217 | E42: 0.8090408005 | F42: 0.04562253339 | G42: 0.1453366661 | H42: 0 | I42: 0 | J42: 0 | K42: 1 | L42: 1 | M42: 1 | N42: 1.001315743 | O42: 1.006310356 | P42: 1.014907078 | Q42: 1.024951065 | R42: 1.037056659 | S42: 1.054761241
B43: Capex - Mains Renewal - HDPE Class 575 | C43: 0.6783216783 | D43: 0.3216783217 | E43: 0.8090408005 | F43: 0.04562253339 | G43: 0.1453366661 | H43: 0 | I43: 0 | J43: 0 | K43: 1 | L43: 1 | M43: 1 | N43: 1.001315743 | O43: 1.006310356 | P43: 1.014907078 | Q43: 1.024951065 | R43: 1.037056659 | S43: 1.054761241
B44: Capex - Mains Renewal - Block | C44: 0.6783216783 | D44: 0.3216783217 | E44: 0.8090408005 | F44: 0.04562253339 | G44: 0.1453366661 | H44: 0 | I44: 0 | J44: 0 | K44: 1 | L44: 1 | M44: 1 | N44: 1.001315743 | O44: 1.006310356 | P44: 1.014907078 | Q44: 1.024951065 | R44: 1.037056659 | S44: 1.054761241
B45: Capex - Mains Renewal - Block CBD - Trunk | C45: 0.6783216783 | D45: 0.3216783217 | E45: 0.8090408005 | F45: 0.04562253339 | G45: 0.1453366661 | H45: 0 | I45: 0 | J45: 0 | K45: 1 | L45: 1 | M45: 1 | N45: 1.001315743 | O45: 1.006310356 | P45: 1.014907078 | Q45: 1.024951065 | R45: 1.037056659 | S45: 1.054761241
B46: Capex - Mains Renewal - Piece (HDPE) | C46: 0.6783216783 | D46: 0.3216783217 | E46: 0.739649356 | F46: 0.0710802198 | G46: 0.1892704242 | H46: 0 | I46: 0 | J46: 0 | K46: 1 | L46: 1 | M46: 1 | N46: 1.00133506 | O46: 1.006137308 | P46: 1.014267313 | Q46: 1.023760426 | R46: 1.035187017 | S46: 1.05194985
B47: Capex - Mains Renewal - SA CBD Abandoned | C47: 0.6783216783 | D47: 0.3216783217 | E47: 0.7890928304 | F47: 0.07210993485 | G47: 0.1387972348 | H47: 0 | I47: 0 | J47: 0 | K47: 1 | L47: 1 | M47: 1 | N47: 1.001407557 | O47: 1.006500914 | P47: 1.015140093 | Q47: 1.025228436 | R47: 1.037373333 | S47: 1.055183627
B48: Capex - Mains Renewal - Block CBD - Retic | C48: 0.6783216783 | D48: 0.3216783217 | E48: 0.8090408005 | F48: 0.04562253339 | G48: 0.1453366661 | H48: 0 | I48: 0 | J48: 0 | K48: 1 | L48: 1 | M48: 1 | N48: 1.001315743 | O48: 1.006310356 | P48: 1.014907078 | Q48: 1.024951065 | R48: 1.037056659 | S48: 1.054761241
B49: Capex - Service Renewal - Multi User | C49: 0.6783216783 | D49: 0.3216783217 | E49: 0.743708289 | F49: 0.08261275837 | G49: 0.1736789527 | H49: 0 | I49: 0 | J49: 0 | K49: 1 | L49: 1 | M49: 1 | N49: 1.001392527 | O49: 1.00631067 | P49: 1.014587957 | Q49: 1.024250998 | R49: 1.0358766 | S49: 1.052950234
B50: Capex - Service Renewal - Non AMRP | C50: 0.6783216783 | D50: 0.3216783217 | E50: 0.7124086717 | F50: 0.1020658462 | G50: 0.1855254821 | H50: 0 | I50: 0 | J50: 0 | K50: 1 | L50: 1 | M50: 1 | N50: 1.001437106 | O50: 1.006332529 | P50: 1.014472737 | Q50: 1.023971587 | R50: 1.035388419 | S50: 1.052193784
B51: Capex - New Main - Estate | C51: 0.6783216783 | D51: 0.3216783217 | E51: 0.8603941636 | F51: 0.05704617465 | G51: 0.08255966176 | H51: 0 | I51: 0 | J51: 0 | K51: 1 | L51: 1 | M51: 1 | N51: 1.001437634 | O51: 1.006817807 | P51: 1.016038775 | Q51: 1.026810481 | R51: 1.03978879 | S51: 1.058784626
B52: Capex - New Main - Existing Domestic | C52: 0.6783216783 | D52: 0.3216783217 | E52: 0.8703769013 | F52: 0.06113764783 | G52: 0.06848545082 | H52: 0 | I52: 0 | J52: 0 | K52: 1 | L52: 1 | M52: 1 | N52: 1.001469747 | O52: 1.006939904 | P52: 1.016299459 | Q52: 1.027232412 | R52: 1.040403257 | S52: 1.059686841
B53: Capex - New Main - I&C<10TJ | C53: 0.6783216783 | D53: 0.3216783217 | E53: 0.7959810529 | F53: 0.05092461082 | G53: 0.1530943363 | H53: 0 | I53: 0 | J53: 0 | K53: 1 | L53: 1 | M53: 1 | N53: 1.001321677 | O53: 1.006284192 | P53: 1.014797782 | Q53: 1.024743495 | R53: 1.036727547 | S53: 1.05426492
B54: Capex - Meter - Growth - Domestic | C54: 0.6783216783 | D54: 0.3216783217 | E54: 0.02448852526 | F54: 0.1532979467 | G54: 0.822213528 | H54: 0 | I54: 0 | J54: 0 | K54: 1 | L54: 1 | M54: 1 | N54: 1.000723452 | O54: 1.002095437 | P54: 1.003755423 | Q54: 1.00566598 | R54: 1.007890808 | S54: 1.011410001
B55: Capex - I&C Meters<10TJ | C55: 0.6783216783 | D55: 0.3216783217 | E55: 0.07909097388 | F55: 0.4560356123 | G55: 0.4648734138 | H55: 0 | I55: 0 | J55: 0 | K55: 1 | L55: 1 | M55: 1 | N55: 1.002160716 | O55: 1.006277846 | P55: 1.011279105 | Q55: 1.017036457 | R55: 1.023744036 | S55: 1.034342721
B56: Capex - New Service - New Home | C56: 0.6783216783 | D56: 0.3216783217 | E56: 0.7971849416 | F56: 0.0674884879 | G56: 0.1353265705 | H56: 0 | I56: 0 | J56: 0 | K56: 1 | L56: 1 | M56: 1 | N56: 1.001397867 | O56: 1.006500376 | P56: 1.015178754 | Q56: 1.025313859 | R56: 1.037517721 | S56: 1.055405382
B57: Capex - New Service - Exist Home | C57: 0.6783216783 | D57: 0.3216783217 | E57: 0.8333029827 | F57: 0.0946409509 | G57: 0.07205606643 | H57: 0 | I57: 0 | J57: 0 | K57: 1 | L57: 1 | M57: 1 | N57: 1.001569627 | O57: 1.00709694 | P57: 1.01639052 | Q57: 1.027239622 | R57: 1.040291156 | S57: 1.059462419
B58: Capex - New Service - Multi User | C58: 0.6783216783 | D58: 0.3216783217 | E58: 0.743708289 | F58: 0.08261275837 | G58: 0.1736789527 | H58: 0 | I58: 0 | J58: 0 | K58: 1 | L58: 1 | M58: 1 | N58: 1.001392527 | O58: 1.00631067 | P58: 1.014587957 | Q58: 1.024250998 | R58: 1.0358766 | S58: 1.052950234
B59: Capex - New Service - I&C < 10 Tj | C59: 0.6783216783 | D59: 0.3216783217 | E59: 0.7484113316 | F59: 0.0982296954 | G59: 0.153358973 | H59: 0 | I59: 0 | J59: 0 | K59: 1 | L59: 1 | M59: 1 | N59: 1.001469259 | O59: 1.006539802 | P59: 1.015008515 | Q59: 1.024892289 | R59: 1.03677606 | S59: 1.054254086
B60: Capex - MAINS RENEWAL - BLOCK (SA CBD - UPGRADE) | C60: 0.6783216783 | D60: 0.3216783217 | E60: 0.8090408005 | F60: 0.04562253339 | G60: 0.1453366661 | H60: 0 | I60: 0 | J60: 0 | K60: 1 | L60: 1 | M60: 1 | N60: 1.001315743 | O60: 1.006310356 | P60: 1.014907078 | Q60: 1.024951065 | R60: 1.037056659 | S60: 1.054761241
B61: Capex - Telemetry | C61: 0.6783216783 | D61: 0.3216783217 | E61: 0.2205581691 | F61: 0.3249168315 | G61: 0.4545249995 | H61: 0 | I61: 0 | J61: 0 | K61: 1 | L61: 1 | M61: 1 | N61: 1.001764851 | O61: 1.005637551 | P61: 1.010860371 | Q61: 1.016903036 | R61: 1.024025802 | S61: 1.034988744
B62: Capex - Regulator - S I B | C62: 0.6783216783 | D62: 0.3216783217 | E62: 0.2754126525 | F62: 0.1123410482 | G62: 0.6122462992 | H62: 0 | I62: 0 | J62: 0 | K62: 1 | L62: 1 | M62: 1 | N62: 1.00088355 | O62: 1.003361777 | P62: 1.00718028 | Q62: 1.011623221 | R62: 1.016928478 | S62: 1.02485658
B63: Capex - Information Technology | C63: 0.6783216783 | D63: 0.3216783217 | E63: 0.5124169206 | F63: 0.137256045 | G63: 0.3503270343 | H63: 0 | I63: 0 | J63: 0 | K63: 1 | L63: 1 | M63: 1 | N63: 1.001320965 | O63: 1.005355155 | P63: 1.011798446 | Q63: 1.019305865 | R63: 1.028298685 | S63: 1.041640069
B64: Capex - Other Dist.System | C64: 0.6783216783 | D64: 0.3216783217 | E64: 0.3530458447 | F64: 0.1048999764 | G64: 0.5420541789 | H64: 0 | I64: 0 | J64: 0 | K64: 1 | L64: 1 | M64: 1 | N64: 1.00095662 | O64: 1.003819139 | P64: 1.008353658 | Q64: 1.013635405 | R64: 1.019957698 | S64: 1.029352585
B65: Capex - Other - Non-Dist.System | C65: 0.6783216783 | D65: 0.3216783217 | E65: 0.1593770205 | F65: 0.00447343066 | G65: 0.8361495488 | H65: 0 | I65: 0 | J65: 0 | K65: 1 | L65: 1 | M65: 1 | N65: 1.000238882 | O65: 1.001186522 | P65: 1.002838441 | Q65: 1.004769321 | R65: 1.007098843 | S65: 1.010497913
B66: Capex - Large Consumers | C66: 0.6783216783 | D66: 0.3216783217 | E66: 0.785386454 | F66: 0.06353527163 | G66: 0.1510782744 | H66: 0 | I66: 0 | J66: 0 | K66: 1 | L66: 1 | M66: 1 | N66: 1.001363884 | O66: 1.006367133 | P66: 1.014889847 | Q66: 1.024843709 | R66: 1.03683081 | S66: 1.054395713
B67: Capex - Mains Augmentation | C67: 0.6783216783 | D67: 0.3216783217 | E67: 0.8464964005 | F67: 0.02608107266 | G67: 0.1274225268 | H67: 0 | I67: 0 | J67: 0 | K67: 1 | L67: 1 | M67: 1 | N67: 1.001279216 | O67: 1.006331053 | P67: 1.015126253 | Q67: 1.02540625 | R67: 1.037807398 | S67: 1.05590641
B68: Capex - Growth New Areas | C68: 0.6783216783 | D68: 0.3216783217 | E68: 0.6845857696 | F68: 0.05038087109 | G68: 0.2650333593 | H68: 0 | I68: 0 | J68: 0 | K68: 1 | L68: 1 | M68: 1 | N68: 1.001166336 | O68: 1.005487262 | P68: 1.012870056 | Q68: 1.021493511 | R68: 1.031880959 | S68: 1.047093301
B70: Source(s) of data: | C70: AGN's Opex and Capex Models, submitted as Attachments with AGN's AA Proposal.

Sheet 4.Connections market expansn
B1: =SheetHeader -> REGULATORY REPORTING STATEMENT
B2: =dms_TradingName -> AGN
B3: =CONCATENATE(FRCP_y1," to ",FRCP_y5) -> 2016-17 to 2020-21 | C3: =CONCATENATE(LEFT(FRCP_y1,4),"-",LEFT(FRCP_y5,2),RIGHT(FRCP_y5,2)) -> 2016-2021
B4: 4. NEW CUSTOMER CONNECTIONS / GROWTH CAPTIAL EXPENDITURE
B7: Instructions This template asks for information relating to new connections/ market growth capital expenditure. This does not include expenditure relating to network capacity expansion, which should be included at tab 5 relating to augmentation.
B8: In table 4.1.1 AGN is to insert each residential and industrial and commerical type of new connection. This may require the insertion of new lines in the table.
B9: =CONCATENATE("As set out in cl.6.1 of the ",dms_TradingName," RIN, for tables 4.1 to 4.10, where the requested data is captured in the ", dms_TradingName," capex model it is not required to be reentered in the RIN template tables. If the requested data has not been provided in the ",dms_TradingName," RIN please enter into the tables. This may require the insertion of new lines in each table.") -> As set out in cl.6.1 of the AGN RIN, for tables 4.1 to 4.10, where the requested data is captured in the AGN capex model it is not required to be reentered in the RIN template tables. If the requested data has not been provided in the AGN RIN please enter into the tables. This may require the insertion of new lines in each table.
B10: Reported expenditure is to be entered EXCLUSIVE of any profit margins or management fees paid pursuant to arrangements or contracts between ActewAGL and any related parties or network operator. Include any related party margins or management fees in the separate 'Related party margin and/or network operator' line item.
B11: =CONCATENATE("Subject to cl.6.1 of the ", dms_TradingName, " RIN, where linked/adjustable escalation is not provided in the ", dms_TradingName, " capex model, escalation should be linked to allocations derived in tab '2 - Escalators'.") -> Subject to cl.6.1 of the AGN RIN, where linked/adjustable escalation is not provided in the AGN capex model, escalation should be linked to allocations derived in tab '2 - Escalators'.
B12: =CONCATENATE("Subject to cl.6.1 of the ", dms_TradingName, " RIN, where linked/adjustable overhead costs and related party margin costs is not provided in the ", dms_TradingName, " capex model, overhead costs and related party margin costs should be linked to allocations derived in tabs '12 - Overheads' and '13 - Related party transactions'.") -> Subject to cl.6.1 of the AGN RIN, where linked/adjustable overhead costs and related party margin costs is not provided in the AGN capex model, overhead costs and related party margin costs should be linked to allocations derived in tabs '12 - Overheads' and '13 - Related party transactions'.
B13: Capital expenditure amounts entered should be GROSS of customer contributions. There is a separate line item for customer contributions from which net capital expenditure is derived.
B14: If the cost of the connection is not split by the line items specified, provide assumptions on how the cost is split between line items. This can be provided as a note to this template or in the written RIN submission.
B18: TABLE 4.1 - NEW CUSTOMER CONNECTIONS
C19: Previous access arrangement period | H19: Current access arrangement period | M19: Next access arrangement period | S19: Previous access arrangement period | Y19: Current access arrangement period
C20: 0's | S20: 0's | X20: Variance | Y20: 0's | AD20: Variance
C21: Actual | L21: Forecast | S21: Approved | X21: Actual vs Approved | Y21: Approved | AD21: Actual vs Approved
C22: =PRCP -> 2006-07 | D22: 2007-08 | E22: 2008-09 | F22: 2009-10 | G22: 2010-11 | H22: =CRCP_y1 -> 2011-12 | I22: =CRCP_y2 -> 2012-13 | J22: =CRCP_y3 -> 2013-14 | K22: =CRCP_y4 -> 2014-15 | L22: =CRCP_y5 -> 2015-16 | M22: =FRCP -> 2016-17 | N22: 2017-18 | O22: 2018-19 | P22: 2019-20 | Q22: 2020-21 | S22: =PRCP -> 2006-07 | T22: 2007-08 | U22: 2008-09 | V22: 2009-10 | W22: 2010-11 | X22: % | Y22: =CRCP_y1 -> 2011-12 | Z22: =CRCP_y2 -> 2012-13 | AA22: =CRCP_y3 -> 2013-14 | AB22: =CRCP_y4 -> 2014-15 | AC22: =CRCP_y5 -> 2015-16 | AD22: %
B24: Table 4.1.1 - Number of new customer connections
B25: New Home | H25: 5807 | I25: 4874 | J25: 5319 | K25: 6138.666667 | L25: 5739 | M25: 5560 | N25: 5188 | O25: 5118 | P25: 5032 | Q25: 5040 | AD25: =SUM(H25:L25)/SUM(Y25:AC25)-1 -> 
B26: Existing Home | H26: 1521 | I26: 1837 | J26: 1364 | K26: 1088 | L26: 1435 | M26: 1435 | N26: 1435 | O26: 1435 | P26: 1435 | Q26: 1435 | X26: =SUM(C26:G26)/SUM(S26:W26)-1 -> 
B27: Multi User | H27: 109 | I27: 110 | J27: 116 | K27: 140 | L27: 122.5 | M27: 118.6666667 | N27: 110.8333333 | O27: 109.3333333 | P27: 107.5 | Q27: 107.6666667
B28: I&C | H28: 228 | I28: 266 | J28: 267 | K28: 264 | L28: 329 | M28: 276 | N28: 350 | O28: 412 | P28: 478 | Q28: 414
B29: Demand | H29: 1 | I29: 5 | J29: 6 | K29: 1 | L29: 1 | M29: 1 | N29: 1 | O29: 1 | P29: 1 | Q29: 1
B30: Total number of new connections | C30: =SUM(C25:C29) -> 0 | D30: =SUM(D25:D29) -> 0 | E30: 0 | F30: 0 | G30: 0 | H30: 7666 | I30: 7092 | J30: =SUM(J25:J29) -> 7072 | K30: 7631.666667 | L30: 7626.5 | M30: 7390.666667 | N30: 7084.833333 | O30: 7075.333333 | P30: 7053.5 | Q30: 6997.666667 | S30: =SUM(S25:S29) -> 0 | T30: 0 | U30: 0 | V30: 0 | W30: 0 | Y30: =SUM(Y25:Y29) -> 0 | Z30: =SUM(Z25:Z29) -> 0 | AA30: =SUM(AA25:AA29) -> 0 | AB30: =SUM(AB25:AB29) -> 0 | AC30: =SUM(AC25:AC29) -> 0
B31: Total number of new connections (from tab 27 - Customer numbers)
B32: Difference | C32: =C30-C31 -> 0 | D32: 0 | E32: 0 | F32: 0 | G32: 0 | H32: 7666 | I32: 7092 | J32: =J30-J31 -> 7072 | K32: 7631.666667 | L32: 7626.5 | M32: 7390.666667 | N32: 7084.833333 | O32: 7075.333333 | P32: 7053.5 | Q32: 6997.666667 | S32: 0 | T32: 0 | U32: 0 | V32: 0 | W32: 0 | Y32: =Y30-Y31 -> 0 | Z32: =Z30-Z31 -> 0 | AA32: =AA30-AA31 -> 0 | AB32: =AB30-AB31 -> 0 | AC32: =AC30-AC31 -> 0
B33: Source(s) of data: | C33: Historic data sourced from Oracle Financials BM17 report. Forecast data sourced from capex model submitted as Attachment 8.8 to the AAI.
B35: Table 4.1.2 - Volume of mains/services/meters per connection
B36: Number of mains metres per connection
B37: =B25 -> New Home | H37: [c-i-c] | I37: [c-i-c] | J37: [c-i-c] | K37: [c-i-c] | L37: [c-i-c] | M37: [c-i-c] | N37: [c-i-c] | O37: [c-i-c] | P37: [c-i-c] | Q37: [c-i-c] | X37: =SUM(C37:G37)/SUM(S37:W37)-1 ->  | AD37: =SUM(H37:L37)/SUM(Y37:AC37)-1 -> 
B38: =B26 -> Existing Home | H38: [c-i-c] | I38: [c-i-c] | J38: [c-i-c] | K38: [c-i-c] | L38: [c-i-c] | M38: [c-i-c] | N38: [c-i-c] | O38: [c-i-c] | P38: [c-i-c] | Q38: [c-i-c] | X38: =SUM(C38:G38)/SUM(S38:W38)-1 ->  | AD38: =SUM(H38:L38)/SUM(Y38:AC38)-1 -> 
B39: =B27 -> Multi User | H39: [c-i-c] | I39: [c-i-c] | J39: [c-i-c] | K39: [c-i-c] | L39: [c-i-c] | M39: [c-i-c] | N39: [c-i-c] | O39: [c-i-c] | P39: [c-i-c] | Q39: [c-i-c] | X39: =SUM(C39:G39)/SUM(S39:W39)-1 ->  | AD39: =SUM(H39:L39)/SUM(Y39:AC39)-1 -> 
B40: =B28 -> I&C | H40: [c-i-c] | I40: [c-i-c] | J40: [c-i-c] | K40: [c-i-c] | L40: [c-i-c] | M40: [c-i-c] | N40: [c-i-c] | O40: [c-i-c] | P40: [c-i-c] | Q40: [c-i-c] | X40: =SUM(C40:G40)/SUM(S40:W40)-1 ->  | AD40: =SUM(H40:L40)/SUM(Y40:AC40)-1 -> 
B41: =B29 -> Demand | H41: [c-i-c] | I41: [c-i-c] | J41: [c-i-c] | K41: [c-i-c] | L41: [c-i-c] | M41: [c-i-c] | N41: [c-i-c] | O41: [c-i-c] | P41: [c-i-c] | Q41: [c-i-c] | X41: =SUM(C41:G41)/SUM(S41:W41)-1 ->  | AD41: =SUM(H41:L41)/SUM(Y41:AC41)-1 -> 
B42: Number of inlets/services per connection
B43: =B25 -> New Home | H43: [c-i-c] | I43: [c-i-c] | J43: [c-i-c] | K43: [c-i-c] | L43: [c-i-c] | M43: [c-i-c] | N43: [c-i-c] | O43: [c-i-c] | P43: [c-i-c] | Q43: [c-i-c] | X43: =SUM(C43:G43)/SUM(S43:W43)-1 ->  | AD43: =SUM(H43:L43)/SUM(Y43:AC43)-1 -> 
B44: =B26 -> Existing Home | H44: [c-i-c] | I44: [c-i-c] | J44: [c-i-c] | K44: [c-i-c] | L44: [c-i-c] | M44: [c-i-c] | N44: [c-i-c] | O44: [c-i-c] | P44: [c-i-c] | Q44: [c-i-c] | X44: =SUM(C44:G44)/SUM(S44:W44)-1 ->  | AD44: =SUM(H44:L44)/SUM(Y44:AC44)-1 -> 
B45: =B27 -> Multi User | H45: [c-i-c] | I45: [c-i-c] | J45: [c-i-c] | K45: [c-i-c] | L45: [c-i-c] | M45: [c-i-c] | N45: [c-i-c] | O45: [c-i-c] | P45: [c-i-c] | Q45: [c-i-c] | X45: =SUM(C45:G45)/SUM(S45:W45)-1 ->  | AD45: =SUM(H45:L45)/SUM(Y45:AC45)-1 -> 
B46: =B28 -> I&C | H46: [c-i-c] | I46: [c-i-c] | J46: [c-i-c] | K46: [c-i-c] | L46: [c-i-c] | M46: [c-i-c] | N46: [c-i-c] | O46: [c-i-c] | P46: [c-i-c] | Q46: [c-i-c] | X46: =SUM(C46:G46)/SUM(S46:W46)-1 ->  | AD46: =SUM(H46:L46)/SUM(Y46:AC46)-1 -> 
B47: =B29 -> Demand | H47: [c-i-c] | I47: [c-i-c] | J47: [c-i-c] | K47: [c-i-c] | L47: [c-i-c] | M47: [c-i-c] | N47: [c-i-c] | O47: [c-i-c] | P47: [c-i-c] | Q47: [c-i-c] | X47: =SUM(C47:G47)/SUM(S47:W47)-1 ->  | AD47: =SUM(H47:L47)/SUM(Y47:AC47)-1 -> 
B48: Number of meters per connection
B49: =B25 -> New Home | H49: [c-i-c] | I49: [c-i-c] | J49: [c-i-c] | K49: [c-i-c] | L49: [c-i-c] | M49: [c-i-c] | N49: [c-i-c] | O49: [c-i-c] | P49: [c-i-c] | Q49: [c-i-c] | X49: =SUM(C49:G49)/SUM(S49:W49)-1 ->  | AD49: =SUM(H49:L49)/SUM(Y49:AC49)-1 -> 
B50: =B26 -> Existing Home | H50: [c-i-c] | I50: [c-i-c] | J50: [c-i-c] | K50: [c-i-c] | L50: [c-i-c] | M50: [c-i-c] | N50: [c-i-c] | O50: [c-i-c] | P50: [c-i-c] | Q50: [c-i-c] | X50: =SUM(C50:G50)/SUM(S50:W50)-1 ->  | AD50: =SUM(H50:L50)/SUM(Y50:AC50)-1 -> 
B51: =B27 -> Multi User | H51: [c-i-c] | I51: [c-i-c] | J51: [c-i-c] | K51: [c-i-c] | L51: [c-i-c] | M51: [c-i-c] | N51: [c-i-c] | O51: [c-i-c] | P51: [c-i-c] | Q51: [c-i-c] | X51: =SUM(C51:G51)/SUM(S51:W51)-1 ->  | AD51: =SUM(H51:L51)/SUM(Y51:AC51)-1 -> 
B52: =B28 -> I&C | H52: [c-i-c] | I52: [c-i-c] | J52: [c-i-c] | K52: [c-i-c] | L52: [c-i-c] | M52: [c-i-c] | N52: [c-i-c] | O52: [c-i-c] | P52: [c-i-c] | Q52: [c-i-c] | X52: =SUM(C52:G52)/SUM(S52:W52)-1 ->  | AD52: =SUM(H52:L52)/SUM(Y52:AC52)-1 -> 
B53: =B29 -> Demand | H53: [c-i-c] | I53: [c-i-c] | J53: [c-i-c] | K53: [c-i-c] | L53: [c-i-c] | M53: [c-i-c] | N53: [c-i-c] | O53: [c-i-c] | P53: [c-i-c] | Q53: [c-i-c] | X53: =SUM(C53:G53)/SUM(S53:W53)-1 ->  | AD53: =SUM(H53:L53)/SUM(Y53:AC53)-1 -> 
B55: Source(s) of data: | C55: Historic data sourced from Oracle Financials BM17 report. Forecast data sourced from capex model submitted as Attachment 8.8 of the AAI.
B57: TABLE 4.2 - NEW CUSTOMER CONNECTION COSTS
C58: Previous access arrangement period | H58: Current access arrangement period | M58: Next access arrangement period | S58: Previous access arrangement period | Y58: Current access arrangement period
C59: $0's, Nominal | L59: =CONCATENATE("$0's, Real ",dms_DollarReal) -> $0's, Real June 2016 | S59: $0's, Nominal | X59: Variance | Y59: Real, June 2016 | AD59: Variance
C60: Actual | L60: Forecast | S60: Approved | X60: Actual vs Approved | Y60: Approved | AD60: Actual vs Approved
C61: =PRCP -> 2006-07 | D61: 2007-08 | E61: 2008-09 | F61: 2009-10 | G61: 2010-11 | H61: =CRCP_y1 -> 2011-12 | I61: =CRCP_y2 -> 2012-13 | J61: =CRCP_y3 -> 2013-14 | K61: =CRCP_y4 -> 2014-15 | L61: =CRCP_y5 -> 2015-16 | M61: =FRCP -> 2016-17 | N61: 2017-18 | O61: 2018-19 | P61: 2019-20 | Q61: 2020-21 | S61: =PRCP -> 2006-07 | T61: 2007-08 | U61: 2008-09 | V61: 2009-10 | W61: 2010-11 | X61: % | Y61: =CRCP_y1 -> 2011-12 | Z61: =CRCP_y2 -> 2012-13 | AA61: =CRCP_y3 -> 2013-14 | AB61: =CRCP_y4 -> 2014-15 | AC61: =CRCP_y5 -> 2015-16 | AD61: %
B63: Table 4.2.1 - Unit rates - mains/services/meters (direct costs, unescalated)
B64: Unit rates per metre of mains per connection
B65: New Main - Estate | H65: [c-i-c] | I65: [c-i-c] | J65: [c-i-c] | K65: [c-i-c] | L65: [c-i-c] | M65: [c-i-c] | N65: [c-i-c] | O65: [c-i-c] | P65: [c-i-c] | Q65: [c-i-c] | X65: =SUM(C65:G65)/SUM(S65:W65)-1 ->  | AD65: =SUM(H65:L65)/SUM(Y65:AC65)-1 -> 
B66: New Main - Existing Domestic | H66: [c-i-c] | I66: [c-i-c] | J66: [c-i-c] | K66: [c-i-c] | L66: [c-i-c] | M66: [c-i-c] | N66: [c-i-c] | O66: [c-i-c] | P66: [c-i-c] | Q66: [c-i-c] | X66: =SUM(C66:G66)/SUM(S66:W66)-1 ->  | AD66: =SUM(H66:L66)/SUM(Y66:AC66)-1 -> 
B67: New Main - I&C < 10tj | H67: [c-i-c] | I67: [c-i-c] | J67: [c-i-c] | K67: [c-i-c] | L67: [c-i-c] | M67: [c-i-c] | N67: [c-i-c] | O67: [c-i-c] | P67: [c-i-c] | Q67: [c-i-c] | X67: =SUM(C67:G67)/SUM(S67:W67)-1 ->  | AD67: =SUM(H67:L67)/SUM(Y67:AC67)-1 -> 
H68: [c-i-c] | I68: [c-i-c] | J68: [c-i-c] | K68: [c-i-c] | L68: [c-i-c] | M68: [c-i-c] | N68: [c-i-c] | O68: [c-i-c] | P68: [c-i-c] | Q68: [c-i-c] | X68: =SUM(C68:G68)/SUM(S68:W68)-1 ->  | AD68: =SUM(H68:L68)/SUM(Y68:AC68)-1 -> 
B69: Demand | H69: [c-i-c] | I69: [c-i-c] | J69: [c-i-c] | K69: [c-i-c] | L69: [c-i-c] | M69: [c-i-c] | N69: [c-i-c] | O69: [c-i-c] | P69: [c-i-c] | Q69: [c-i-c] | X69: =SUM(C69:G69)/SUM(S69:W69)-1 ->  | AD69: =SUM(H69:L69)/SUM(Y69:AC69)-1 -> 
B70: Unit rates per service per connection
B71: New Service - New Home | H71: [c-i-c] | I71: [c-i-c] | J71: [c-i-c] | K71: [c-i-c] | L71: [c-i-c] | M71: [c-i-c] | N71: [c-i-c] | O71: [c-i-c] | P71: [c-i-c] | Q71: [c-i-c] | X71: =SUM(C71:G71)/SUM(S71:W71)-1 ->  | AD71: =SUM(H71:L71)/SUM(Y71:AC71)-1 -> 
B72: New Service - Exist Home | H72: [c-i-c] | I72: [c-i-c] | J72: [c-i-c] | K72: [c-i-c] | L72: [c-i-c] | M72: [c-i-c] | N72: [c-i-c] | O72: [c-i-c] | P72: [c-i-c] | Q72: [c-i-c] | X72: =SUM(C72:G72)/SUM(S72:W72)-1 ->  | AD72: =SUM(H72:L72)/SUM(Y72:AC72)-1 -> 
B73: New Service - Multi User | H73: [c-i-c] | I73: [c-i-c] | J73: [c-i-c] | K73: [c-i-c] | L73: [c-i-c] | M73: [c-i-c] | N73: [c-i-c] | O73: [c-i-c] | P73: [c-i-c] | Q73: [c-i-c] | X73: =SUM(C73:G73)/SUM(S73:W73)-1 ->  | AD73: =SUM(H73:L73)/SUM(Y73:AC73)-1 -> 
B74: New Service - I&C < 10 Tj | H74: [c-i-c] | I74: [c-i-c] | J74: [c-i-c] | K74: [c-i-c] | L74: [c-i-c] | M74: [c-i-c] | N74: [c-i-c] | O74: [c-i-c] | P74: [c-i-c] | Q74: [c-i-c] | X74: =SUM(C74:G74)/SUM(S74:W74)-1 ->  | AD74: =SUM(H74:L74)/SUM(Y74:AC74)-1 -> 
B75: Demand | H75: [c-i-c] | I75: [c-i-c] | J75: [c-i-c] | K75: [c-i-c] | L75: [c-i-c] | M75: [c-i-c] | N75: [c-i-c] | O75: [c-i-c] | P75: [c-i-c] | Q75: [c-i-c] | X75: =SUM(C75:G75)/SUM(S75:W75)-1 ->  | AD75: =SUM(H75:L75)/SUM(Y75:AC75)-1 -> 
B76: Number of meters per connection
B77: Meter - Growth - Domestic | H77: [c-i-c] | I77: [c-i-c] | J77: [c-i-c] | K77: [c-i-c] | L77: [c-i-c] | M77: [c-i-c] | N77: [c-i-c] | O77: [c-i-c] | P77: [c-i-c] | Q77: [c-i-c] | X77: =SUM(C77:G77)/SUM(S77:W77)-1 ->  | AD77: =SUM(H77:L77)/SUM(Y77:AC77)-1 -> 
B78: I & C Meters < 10tj | H78: [c-i-c] | I78: [c-i-c] | J78: [c-i-c] | K78: [c-i-c] | L78: [c-i-c] | M78: [c-i-c] | N78: [c-i-c] | O78: [c-i-c] | P78: [c-i-c] | Q78: [c-i-c] | X78: =SUM(C78:G78)/SUM(S78:W78)-1 ->  | AD78: =SUM(H78:L78)/SUM(Y78:AC78)-1 -> 
B79: Multi User | H79: [c-i-c] | I79: [c-i-c] | J79: [c-i-c] | K79: [c-i-c] | L79: [c-i-c] | M79: [c-i-c] | N79: [c-i-c] | O79: [c-i-c] | P79: [c-i-c] | Q79: [c-i-c] | X79: =SUM(C79:G79)/SUM(S79:W79)-1 ->  | AD79: =SUM(H79:L79)/SUM(Y79:AC79)-1 -> 
B80: I&C | H80: [c-i-c] | I80: [c-i-c] | J80: [c-i-c] | K80: [c-i-c] | L80: [c-i-c] | M80: [c-i-c] | N80: [c-i-c] | O80: [c-i-c] | P80: [c-i-c] | Q80: [c-i-c] | X80: =SUM(C80:G80)/SUM(S80:W80)-1 ->  | AD80: =SUM(H80:L80)/SUM(Y80:AC80)-1 -> 
B81: Demand | H81: [c-i-c] | I81: [c-i-c] | J81: [c-i-c] | K81: [c-i-c] | L81: [c-i-c] | M81: [c-i-c] | N81: [c-i-c] | O81: [c-i-c] | P81: [c-i-c] | Q81: [c-i-c] | X81: =SUM(C81:G81)/SUM(S81:W81)-1 ->  | AD81: =SUM(H81:L81)/SUM(Y81:AC81)-1 -> 
B83: Source(s) of data: | C83: Historic data sourced from Oracle Financials BM17 report. Forecast data sourced from capex model submitted as Attachment 8.8 of the AAI.
B85: ="Table 4.2.2 - " &B65 -> Table 4.2.2 - New Main - Estate
B86: Number of new New Main - Estate connections | C86: =C25 -> 0 | D86: 0 | E86: 0 | F86: 0 | G86: 0 | H86: 5807 | I86: 4874 | J86: 5319 | K86: 6138.666667 | L86: 5739 | M86: 5560 | N86: 5188 | O86: 5118 | P86: 5032 | Q86: 5040 | S86: 0 | T86: 0 | U86: 0 | V86: 0 | W86: 0 | Y86: 0 | Z86: 0 | AA86: 0 | AB86: 0 | AC86: 0 | AD86: =SUM(H86:L86)/SUM(Y86:AC86)-1 -> 
B87: Direct contractor cost (excl escalation)
B88: Distribution mains | H88: 1171485.693 | I88: 1094340 | J88: 1102150 | K88: 1104966.347 | L88: 1416308.155 | M88: 1415861.712 | N88: 1321131.396 | O88: 1303305.799 | P88: 1281405.78 | Q88: 1283442.991 | X88: =SUM(C88:G88)/SUM(S88:W88)-1 ->  | AD88: =SUM(H88:L88)/SUM(Y88:AC88)-1 -> 
B89: Inlet/Service Pipes | H89: 0 | I89: 0 | J89: 0 | X89: =SUM(C89:G89)/SUM(S89:W89)-1 ->  | AD89: =SUM(H89:L89)/SUM(Y89:AC89)-1 -> 
B90: Meters | H90: 0 | I90: 0 | J90: 0 | X90: =SUM(C90:G90)/SUM(S90:W90)-1 ->  | AD90: =SUM(H90:L90)/SUM(Y90:AC90)-1 -> 
B91: Total contractor costs (excl escalation) | H91: 1171485.693 | I91: 1094340 | J91: 1102150 | K91: =SUM(K88:K90) -> 1104966.347 | L91: 1416308.155 | M91: 1415861.712 | N91: 1321131.396 | O91: 1303305.799 | P91: 1281405.78 | Q91: 1283442.991 | S91: 0 | T91: 0 | U91: 0 | V91: 0 | W91: 0 | X91: =SUM(C91:G91)/SUM(S91:W91)-1 ->  | Y91: =SUM(Y88:Y90) -> 0 | Z91: =SUM(Z88:Z90) -> 0 | AA91: =SUM(AA88:AA90) -> 0 | AB91: =SUM(AB88:AB90) -> 0 | AC91: =SUM(AC88:AC90) -> 0 | AD91: =SUM(H91:L91)/SUM(Y91:AC91)-1 -> 
B92: Direct internal labour cost (excl escalation) | H92: 0 | I92: 0 | J92: 0
B93: Distribution mains | H93: 81338.08464 | I93: 74050 | J93: 81150 | K93: 72539.97333 | L93: 92979.26229 | M93: 80045.68628 | N93: 74690.11159 | O93: 73682.34216 | P93: 72444.22543 | Q93: 72559.39908 | X93: =SUM(C93:G93)/SUM(S93:W93)-1 ->  | AD93: =SUM(H93:L93)/SUM(Y93:AC93)-1 -> 
B94: Inlet/Service Pipes | H94: 0 | I94: 0 | J94: 0 | X94: =SUM(C94:G94)/SUM(S94:W94)-1 ->  | AD94: =SUM(H94:L94)/SUM(Y94:AC94)-1 -> 
B95: Meters | H95: 0 | I95: 0 | J95: 0 | X95: =SUM(C95:G95)/SUM(S95:W95)-1 ->  | AD95: =SUM(H95:L95)/SUM(Y95:AC95)-1 -> 
B96: Total labour cost (excl escalation) | H96: 81338.08464 | I96: 74050 | J96: 81150 | K96: =SUM(K93:K95) -> 72539.97333 | L96: 92979.26229 | M96: 80045.68628 | N96: 74690.11159 | O96: 73682.34216 | P96: 72444.22543 | Q96: 72559.39908 | S96: 0 | T96: 0 | U96: 0 | V96: 0 | W96: 0 | X96: =SUM(C96:G96)/SUM(S96:W96)-1 ->  | Y96: =SUM(Y93:Y95) -> 0 | Z96: =SUM(Z93:Z95) -> 0 | AA96: =SUM(AA93:AA95) -> 0 | AB96: =SUM(AB93:AB95) -> 0 | AC96: =SUM(AC93:AC95) -> 0 | AD96: =SUM(H96:L96)/SUM(Y96:AC96)-1 -> 
B97: Other internal direct costs (excl escalation) | H97: 0 | I97: 0 | J97: 0
B98: Distribution mains | H98: 178358.6511 | I98: 80400 | J98: 56080 | K98: 135628.6267 | L98: 173844.1452 | M98: 139410.429 | N98: 130082.9686 | O98: 128327.8014 | P98: 126171.453 | Q98: 126372.0435 | X98: =SUM(C98:G98)/SUM(S98:W98)-1 ->  | AD98: =SUM(H98:L98)/SUM(Y98:AC98)-1 -> 
B99: Inlet/Service Pipes | H99: 0 | I99: 0 | J99: 0 | X99: =SUM(C99:G99)/SUM(S99:W99)-1 ->  | AD99: =SUM(H99:L99)/SUM(Y99:AC99)-1 -> 
B100: Meters | H100: 0 | I100: 0 | J100: 0 | X100: =SUM(C100:G100)/SUM(S100:W100)-1 ->  | AD100: =SUM(H100:L100)/SUM(Y100:AC100)-1 -> 
B101: Total material costs (excl escalation) | H101: 178358.6511 | I101: 80400 | J101: 56080 | K101: =SUM(K98:K100) -> 135628.6267 | L101: 173844.1452 | M101: 139410.429 | N101: 130082.9686 | O101: 128327.8014 | P101: 126171.453 | Q101: 126372.0435 | S101: 0 | T101: 0 | U101: 0 | V101: 0 | W101: 0 | X101: =SUM(C101:G101)/SUM(S101:W101)-1 ->  | Y101: =SUM(Y98:Y100) -> 0 | Z101: =SUM(Z98:Z100) -> 0 | AA101: =SUM(AA98:AA100) -> 0 | AB101: =SUM(AB98:AB100) -> 0 | AC101: =SUM(AC98:AC100) -> 0 | AD101: =SUM(H101:L101)/SUM(Y101:AC101)-1 -> 
B102: Total Direct costs (excl escalation) | H102: 0 | I102: 0 | J102: 0
B103: Distribution mains | H103: 1431182.429 | I103: 1248790 | J103: 1239380 | K103: =K93+K88+K98 -> 1313134.947 | L103: 1683131.562 | M103: 1635317.828 | N103: 1525904.477 | O103: 1505315.943 | P103: 1480021.458 | Q103: 1482374.434 | S103: 0 | T103: 0 | U103: 0 | V103: 0 | W103: 0 | X103: =SUM(C103:G103)/SUM(S103:W103)-1 ->  | Y103: =Y93+Y88+Y98 -> 0 | Z103: 0 | AA103: 0 | AB103: 0 | AC103: 0 | AD103: =SUM(H103:L103)/SUM(Y103:AC103)-1 -> 
B104: Inlet/Service Pipes | H104: 0 | I104: 0 | J104: 0 | K104: =K94+K89+K99 -> 0 | L104: 0 | M104: 0 | N104: 0 | O104: 0 | P104: 0 | Q104: 0 | S104: 0 | T104: 0 | U104: 0 | V104: 0 | W104: 0 | Y104: 0 | Z104: 0 | AA104: 0 | AB104: 0 | AC104: 0
B105: Meters | H105: 0 | I105: 0 | J105: 0 | K105: =K95+K90+K100 -> 0 | L105: 0 | M105: 0 | N105: 0 | O105: 0 | P105: 0 | Q105: 0 | S105: 0 | T105: 0 | U105: 0 | V105: 0 | W105: 0 | Y105: 0 | Z105: 0 | AA105: 0 | AB105: 0 | AC105: 0
B106: Total Direct costs (excl escalation) | C106: 6892586.99 | D106: 6022421.84 | E106: 6601520.24 | F106: 4327908.08 | G106: 3718101.746 | H106: 1431182.429 | I106: 1248790 | J106: 1239380 | K106: =SUM(K103:K105) -> 1313134.947 | L106: 1683131.562 | M106: 1635317.828 | N106: 1525904.477 | O106: 1505315.943 | P106: 1480021.458 | Q106: 1482374.434 | S106: 0 | T106: 0 | U106: 0 | V106: 0 | W106: =SUM(W103:W105) -> 0 | Y106: =SUM(Y103:Y105) -> 0 | Z106: =SUM(Z103:Z105) -> 0 | AA106: =SUM(AA103:AA105) -> 0 | AB106: =SUM(AB103:AB105) -> 0 | AC106: =SUM(AC103:AC105) -> 0
B107: Escalation | C107: 0 | D107: 0 | E107: 0 | F107: 0 | G107: 0 | H107: 0 | I107: 0 | J107: 0 | M107: 11141.52796 | N107: 24456.6212 | O107: 40330.18081 | P107: 58847.31563 | Q107: 87080.23277
B108: Total Direct costs (incl escalation) | C108: 6892586.99 | D108: 6022421.84 | E108: 6601520.24 | F108: 4327908.08 | G108: =+G106 -> 3718101.746 | H108: 1431182.429 | I108: 1248790 | J108: 1239380 | K108: =SUM(K106,K107) -> 1313134.947 | L108: 1683131.562 | M108: 1646459.356 | N108: 1550361.098 | O108: 1545646.124 | P108: 1538868.774 | Q108: 1569454.667 | S108: 0 | T108: 0 | U108: 0 | V108: 0 | W108: 0 | Y108: =SUM(Y106,Y107) -> 0 | Z108: =SUM(Z106,Z107) -> 0 | AA108: =SUM(AA106,AA107) -> 0 | AB108: =SUM(AB106,AB107) -> 0 | AC108: =SUM(AC106,AC107) -> 0
B109: Total Overhead cost | C109: 0 | D109: 0 | E109: 0 | F109: 0 | G109: 0 | H109: 176512.231 | I109: 120477.3085 | J109: 106604.012 | K109: 126586.2089 | L109: 162253.8826 | M109: 158619.0763 | N109: 149361.9541 | O109: 148908.782 | P109: 148257.0999 | Q109: 151205.6083
B110: Related party and/or network operator margin | C110: 0 | D110: 0 | E110: 0 | F110: 0 | G110: 0 | H110: 0 | I110: 0 | J110: 0
B111: Total Gross costs of new <residential type 1> connections | C111: 6892586.99 | D111: 6022421.84 | E111: 6601520.24 | F111: 4327908.08 | G111: =+G108 -> 3718101.746 | H111: 1607694.66 | I111: 1369267.309 | J111: 1345984.012 | K111: =SUM(K108,K109,K110) -> 1439721.156 | L111: 1845385.445 | M111: 1805078.432 | N111: 1699723.052 | O111: 1694554.906 | P111: 1687125.874 | Q111: 1720660.275 | S111: 0 | T111: 0 | U111: 0 | V111: 0 | W111: 0 | Y111: =SUM(Y108,Y109,Y110) -> 0 | Z111: =SUM(Z108,Z109,Z110) -> 0 | AA111: =SUM(AA108,AA109,AA110) -> 0 | AB111: =SUM(AB108,AB109,AB110) -> 0 | AC111: =SUM(AC108,AC109,AC110) -> 0
B112: Less customer contributions | C112: 0 | D112: 0 | E112: 0 | F112: 0 | G112: 0 | H112: 0 | I112: 0 | J112: 0
B113: Total Net Costs of new <residential type 1> connections | C113: 6892586.99 | D113: 6022421.84 | E113: 6601520.24 | F113: 4327908.08 | G113: =+G111 -> 3718101.746 | H113: 1607694.66 | I113: 1369267.309 | J113: 1345984.012 | K113: =K111-K112 -> 1439721.156 | L113: 1845385.445 | M113: 1805078.432 | N113: 1699723.052 | O113: 1694554.906 | P113: 1687125.874 | Q113: 1720660.275 | S113: 0 | T113: 0 | U113: 0 | V113: 0 | W113: =W111-W112 -> 0 | X113: =SUM(C113:G113)/SUM(S113:W113)-1 ->  | Y113: =Y111-Y112 -> 0 | Z113: =Z111-Z112 -> 0 | AA113: =AA111-AA112 -> 0 | AB113: =AB111-AB112 -> 0 | AC113: =AC111-AC112 -> 0 | AD113: =SUM(H113:L113)/SUM(Y113:AC113)-1 -> 
B114: Source(s) of data: | C114: 2006/07 to 2008/09 sourced from the SA Capex Past Performance Submission model. 2009/10 to 2013/14 sourced from the Capex Ring Fenced Accounts and the SA Annual RIN's. Forecast data sourced from capex model submitted as Attachment 8.8 of the AAI.
B116: ="Table 4.2.3 - " &B66 -> Table 4.2.3 - New Main - Existing Domestic
B117: Number of new New Main - Existing Domestic connections | C117: =C26 -> 0 | D117: 0 | E117: 0 | F117: 0 | G117: 0 | H117: 1521 | I117: 1837 | J117: 1364 | K117: 1088 | L117: 1435 | M117: 1435 | N117: 1435 | O117: 1435 | P117: 1435 | Q117: 1435 | S117: 0 | T117: 0 | U117: 0 | V117: 0 | W117: 0 | X117: =SUM(C117:G117)/SUM(S117:W117)-1 ->  | AD117: =SUM(H117:L117)/SUM(Y117:AC117)-1 -> 
B118: Direct contractor cost (excl escalation)
B119: Distribution mains | H119: 1074615.713 | I119: 1006920 | J119: 935250 | K119: 1031457.933 | L119: 1132307.37 | M119: 1140794.973 | N119: 1135043.272 | O119: 1133941.882 | P119: 1132595.739 | Q119: 1132718.115 | X119: =SUM(C119:G119)/SUM(S119:W119)-1 ->  | AD119: =SUM(H119:L119)/SUM(Y119:AC119)-1 -> 
B120: Inlet/Service Pipes | H120: 0 | I120: 0 | J120: 0 | X120: =SUM(C120:G120)/SUM(S120:W120)-1 ->  | AD120: =SUM(H120:L120)/SUM(Y120:AC120)-1 -> 
B121: Meters | H121: 0 | I121: 0 | J121: 0 | X121: =SUM(C121:G121)/SUM(S121:W121)-1 ->  | AD121: =SUM(H121:L121)/SUM(Y121:AC121)-1 -> 
B122: Total contractor costs (excl escalation) | H122: 1074615.713 | I122: 1006920 | J122: 935250 | K122: =SUM(K119:K121) -> 1031457.933 | L122: 1132307.37 | M122: 1140794.973 | N122: 1135043.272 | O122: 1133941.882 | P122: 1132595.739 | Q122: 1132718.115 | S122: =SUM(S119:S121) -> 0 | T122: =SUM(T119:T121) -> 0 | U122: =SUM(U119:U121) -> 0 | V122: =SUM(V119:V121) -> 0 | W122: =SUM(W119:W121) -> 0 | X122: =SUM(C122:G122)/SUM(S122:W122)-1 ->  | Y122: =SUM(Y119:Y121) -> 0 | Z122: =SUM(Z119:Z121) -> 0 | AA122: =SUM(AA119:AA121) -> 0 | AB122: =SUM(AB119:AB121) -> 0 | AC122: =SUM(AC119:AC121) -> 0 | AD122: =SUM(H122:L122)/SUM(Y122:AC122)-1 -> 
B123: Direct internal labour cost (excl escalation) | H123: 0 | I123: 0 | J123: 0
B124: Distribution mains | H124: 70549.6558 | I124: 61290 | J124: 92010 | K124: 72801.4 | L124: 79919.46068 | M124: 78550.81944 | N124: 78154.77905 | O124: 78078.94153 | P124: 77986.25122 | Q124: 77994.67761 | X124: =SUM(C124:G124)/SUM(S124:W124)-1 ->  | AD124: =SUM(H124:L124)/SUM(Y124:AC124)-1 -> 
B125: Inlet/Service Pipes | H125: 0 | I125: 0 | J125: 0 | X125: =SUM(C125:G125)/SUM(S125:W125)-1 ->  | AD125: =SUM(H125:L125)/SUM(Y125:AC125)-1 -> 
B126: Meters | H126: 0 | I126: 0 | J126: 0 | X126: =SUM(C126:G126)/SUM(S126:W126)-1 ->  | AD126: =SUM(H126:L126)/SUM(Y126:AC126)-1 -> 
B127: Total labour cost (excl escalation) | H127: 70549.6558 | I127: 61290 | J127: 92010 | K127: =SUM(K124:K126) -> 72801.4 | L127: 79919.46068 | M127: 78550.81944 | N127: 78154.77905 | O127: 78078.94153 | P127: 77986.25122 | Q127: 77994.67761 | S127: =SUM(S124:S126) -> 0 | T127: =SUM(T124:T126) -> 0 | U127: =SUM(U124:U126) -> 0 | V127: =SUM(V124:V126) -> 0 | W127: =SUM(W124:W126) -> 0 | X127: =SUM(C127:G127)/SUM(S127:W127)-1 ->  | Y127: =SUM(Y124:Y126) -> 0 | Z127: =SUM(Z124:Z126) -> 0 | AA127: =SUM(AA124:AA126) -> 0 | AB127: =SUM(AB124:AB126) -> 0 | AC127: =SUM(AC124:AC126) -> 0 | AD127: =SUM(H127:L127)/SUM(Y127:AC127)-1 -> 
B128: Other internal direct costs (excl escalation) | H128: 0 | I128: 0 | J128: 0
B129: Distribution mains | H129: 123599.0387 | I129: 73820 | J129: 30410 | K129: 90022.97333 | L129: 98824.85059 | M129: 84789.07729 | N129: 84361.58462 | O129: 84279.72433 | P129: 84179.67285 | Q129: 84188.76844 | X129: =SUM(C129:G129)/SUM(S129:W129)-1 ->  | AD129: =SUM(H129:L129)/SUM(Y129:AC129)-1 -> 
B130: Inlet/Service Pipes | H130: 0 | I130: 0 | J130: 0 | X130: =SUM(C130:G130)/SUM(S130:W130)-1 ->  | AD130: =SUM(H130:L130)/SUM(Y130:AC130)-1 -> 
B131: Meters | H131: 0 | I131: 0 | J131: 0 | X131: =SUM(C131:G131)/SUM(S131:W131)-1 ->  | AD131: =SUM(H131:L131)/SUM(Y131:AC131)-1 -> 
B132: Total material costs (excl escalation) | H132: 123599.0387 | I132: 73820 | J132: 30410 | K132: =SUM(K129:K131) -> 90022.97333 | L132: 98824.85059 | M132: 84789.07729 | N132: 84361.58462 | O132: 84279.72433 | P132: 84179.67285 | Q132: 84188.76844 | S132: =SUM(S129:S131) -> 0 | T132: =SUM(T129:T131) -> 0 | U132: =SUM(U129:U131) -> 0 | V132: =SUM(V129:V131) -> 0 | W132: =SUM(W129:W131) -> 0 | X132: =SUM(C132:G132)/SUM(S132:W132)-1 ->  | Y132: =SUM(Y129:Y131) -> 0 | Z132: =SUM(Z129:Z131) -> 0 | AA132: =SUM(AA129:AA131) -> 0 | AB132: =SUM(AB129:AB131) -> 0 | AC132: =SUM(AC129:AC131) -> 0 | AD132: =SUM(H132:L132)/SUM(Y132:AC132)-1 -> 
B133: Total Direct costs (excl escalation) | H133: 0 | I133: 0 | J133: 0
B134: Distribution mains | H134: 1268764.408 | I134: 1142030 | J134: 1057670 | K134: =K124+K119+K129 -> 1194282.307 | L134: 1311051.681 | M134: 1304134.87 | N134: 1297559.635 | O134: 1296300.548 | P134: 1294761.663 | Q134: 1294901.562 | S134: =S124+S119+S129 -> 0 | T134: 0 | U134: 0 | V134: 0 | W134: 0 | X134: =SUM(C134:G134)/SUM(S134:W134)-1 ->  | Y134: =Y124+Y119+Y129 -> 0 | Z134: 0 | AA134: 0 | AB134: 0 | AC134: 0 | AD134: =SUM(H134:L134)/SUM(Y134:AC134)-1 -> 
B135: Inlet/Service Pipes | H135: 0 | I135: 0 | J135: 0 | K135: =K125+K120+K130 -> 0 | L135: 0 | M135: 0 | N135: 0 | O135: 0 | P135: 0 | Q135: 0 | S135: 0 | T135: 0 | U135: 0 | V135: 0 | W135: 0 | Y135: 0 | Z135: 0 | AA135: 0 | AB135: 0 | AC135: 0
B136: Meters | H136: 0 | I136: 0 | J136: 0 | K136: =K126+K121+K131 -> 0 | L136: 0 | M136: 0 | N136: 0 | O136: 0 | P136: 0 | Q136: 0 | S136: 0 | T136: 0 | U136: 0 | V136: 0 | W136: 0 | Y136: 0 | Z136: 0 | AA136: 0 | AB136: 0 | AC136: 0
B137: Total Direct costs (excl escalation) | H137: 1268764.408 | I137: 1142030 | J137: 1057670 | K137: =SUM(K134:K136) -> 1194282.307 | L137: 1311051.681 | M137: 1304134.87 | N137: 1297559.635 | O137: 1296300.548 | P137: 1294761.663 | Q137: 1294901.562 | S137: =SUM(S134:S136) -> 0 | T137: =SUM(T134:T136) -> 0 | U137: =SUM(U134:U136) -> 0 | V137: =SUM(V134:V136) -> 0 | W137: =SUM(W134:W136) -> 0 | Y137: =SUM(Y134:Y136) -> 0 | Z137: =SUM(Z134:Z136) -> 0 | AA137: =SUM(AA134:AA136) -> 0 | AB137: =SUM(AB134:AB136) -> 0 | AC137: =SUM(AC134:AC136) -> 0
B138: Escalation | H138: 0 | I138: 0 | J138: 0 | M138: 9070.841537 | N138: 21196.89053 | O138: 35380.45746 | P138: 52429.75652 | Q138: 77461.69243
B139: Total Direct costs (incl escalation) | C139: =SUM(C137,C138) -> 0 | D139: 0 | E139: 0 | F139: 0 | G139: 0 | H139: 1268764.408 | I139: 1142030 | J139: 1057670 | K139: 1194282.307 | L139: 1311051.681 | M139: 1313205.712 | N139: 1318756.526 | O139: 1331681.005 | P139: 1347191.419 | Q139: 1372363.254 | S139: 0 | T139: 0 | U139: 0 | V139: 0 | W139: 0 | Y139: =SUM(Y137,Y138) -> 0 | Z139: =SUM(Z137,Z138) -> 0 | AA139: =SUM(AA137,AA138) -> 0 | AB139: =SUM(AB137,AB138) -> 0 | AC139: =SUM(AC137,AC138) -> 0
B140: Total Overhead cost | H140: 156482.3124 | I140: 110178.0298 | J140: 90974.04556 | K140: 115128.8144 | L140: 126385.382 | M140: 126882.6204 | N140: 127416.3329 | O140: 128662.0595 | P140: 130157.0255 | Q140: 132583.7737
B141: Related party and/or network operator margin | H141: 0 | I141: 0 | J141: 0
B142: Total Gross costs of new <residential type 2> connections | C142: =SUM(C139,C140,C141) -> 0 | D142: 0 | E142: 0 | F142: 0 | G142: 0 | H142: 1425246.72 | I142: 1252208.03 | J142: 1148644.046 | K142: 1309411.121 | L142: 1437437.063 | M142: 1440088.332 | N142: 1446172.859 | O142: 1460343.065 | P142: 1477348.445 | Q142: 1504947.028 | S142: 0 | T142: 0 | U142: 0 | V142: 0 | W142: 0 | Y142: =SUM(Y139,Y140,Y141) -> 0 | Z142: =SUM(Z139,Z140,Z141) -> 0 | AA142: =SUM(AA139,AA140,AA141) -> 0 | AB142: =SUM(AB139,AB140,AB141) -> 0 | AC142: =SUM(AC139,AC140,AC141) -> 0
B143: Less customer contributions | H143: 0 | I143: 0 | J143: 0
B144: Total Net Costs of new <residential type 2> connections | C144: =C142-C143 -> 0 | D144: =D142-D143 -> 0 | E144: 0 | F144: 0 | G144: 0 | H144: 1425246.72 | I144: 1252208.03 | J144: 1148644.046 | K144: 1309411.121 | L144: 1437437.063 | M144: 1440088.332 | N144: 1446172.859 | O144: 1460343.065 | P144: 1477348.445 | Q144: 1504947.028 | S144: 0 | T144: 0 | U144: 0 | V144: 0 | W144: =W142-W143 -> 0 | X144: =SUM(C144:G144)/SUM(S144:W144)-1 ->  | Y144: =Y142-Y143 -> 0 | Z144: =Z142-Z143 -> 0 | AA144: =AA142-AA143 -> 0 | AB144: =AB142-AB143 -> 0 | AC144: =AC142-AC143 -> 0 | AD144: =SUM(H144:L144)/SUM(Y144:AC144)-1 -> 
B145: Source(s) of data: | C145: 2006/07 to 2008/09 sourced from the SA Capex Past Performance Submission model. 2009/10 to 2013/14 sourced from the Capex Ring Fenced Accounts and the SA Annual RIN's. Forecast data sourced from capex model submitted as Attachment 8.8 of the AAI.
B147: ="Table 4.2.4 - " &B67 -> Table 4.2.4 - New Main - I&C < 10tj
B148: Number of new <residential type 3> connections | C148: =C27 -> 0 | D148: 0 | E148: 0 | F148: 0 | G148: 0 | H148: 109 | I148: 110 | J148: 116 | K148: 140 | L148: 122.5 | M148: 118.6666667 | N148: 110.8333333 | O148: 109.3333333 | P148: 107.5 | Q148: 107.6666667 | S148: 0 | T148: 0 | U148: 0 | V148: 0 | W148: 0 | AD148: =SUM(H148:L148)/SUM(Y148:AC148)-1 -> 
B149: Direct contractor cost (excl escalation)
B150: Distribution mains | H150: 332601.9907 | I150: 432050 | J150: 739210 | K150: 563255.9867 | L150: 721940.7673 | M150: 622603.636 | N150: 789533.5964 | O150: 929393.8335 | P150: 1078277.312 | Q150: 933905.454 | X150: =SUM(C150:G150)/SUM(S150:W150)-1 ->  | AD150: =SUM(H150:L150)/SUM(Y150:AC150)-1 -> 
B151: Inlet/Service Pipes | H151: 0 | I151: 0 | J151: 0 | X151: =SUM(C151:G151)/SUM(S151:W151)-1 ->  | AD151: =SUM(H151:L151)/SUM(Y151:AC151)-1 -> 
B152: Meters | H152: 0 | I152: 0 | J152: 0 | X152: =SUM(C152:G152)/SUM(S152:W152)-1 ->  | AD152: =SUM(H152:L152)/SUM(Y152:AC152)-1 -> 
B153: Total contractor costs (excl escalation) | H153: 332601.9907 | I153: 432050 | J153: 739210 | K153: =SUM(K150:K152) -> 563255.9867 | L153: 721940.7673 | M153: 622603.636 | N153: 789533.5964 | O153: 929393.8335 | P153: 1078277.312 | Q153: 933905.454 | S153: 0 | T153: 0 | U153: 0 | V153: 0 | W153: 0 | X153: =SUM(C153:G153)/SUM(S153:W153)-1 ->  | Y153: =SUM(Y150:Y152) -> 0 | Z153: =SUM(Z150:Z152) -> 0 | AA153: =SUM(AA150:AA152) -> 0 | AB153: =SUM(AB150:AB152) -> 0 | AC153: =SUM(AC150:AC152) -> 0 | AD153: =SUM(H153:L153)/SUM(Y153:AC153)-1 -> 
B154: Direct internal labour cost (excl escalation) | H154: 0 | I154: 0 | J154: 0
B155: Distribution mains | H155: 33107.46159 | I155: 24680 | J155: 45660 | K155: 41870.54667 | L155: 53666.63702 | M155: 39359.38142 | N155: 49912.25904 | O155: 58753.85922 | P155: 68165.88521 | Q155: 59039.07213 | X155: =SUM(C155:G155)/SUM(S155:W155)-1 ->  | AD155: =SUM(H155:L155)/SUM(Y155:AC155)-1 -> 
B156: Inlet/Service Pipes | H156: 0 | I156: 0 | J156: 0 | X156: =SUM(C156:G156)/SUM(S156:W156)-1 ->  | AD156: =SUM(H156:L156)/SUM(Y156:AC156)-1 -> 
B157: Meters | H157: 0 | I157: 0 | J157: 0 | X157: =SUM(C157:G157)/SUM(S157:W157)-1 ->  | AD157: =SUM(H157:L157)/SUM(Y157:AC157)-1 -> 
B158: Total labour cost (excl escalation) | H158: 33107.46159 | I158: 24680 | J158: 45660 | K158: =SUM(K155:K157) -> 41870.54667 | L158: 53666.63702 | M158: 39359.38142 | N158: 49912.25904 | O158: 58753.85922 | P158: 68165.88521 | Q158: 59039.07213 | S158: 0 | T158: 0 | U158: 0 | V158: 0 | W158: 0 | X158: =SUM(C158:G158)/SUM(S158:W158)-1 ->  | Y158: =SUM(Y155:Y157) -> 0 | Z158: =SUM(Z155:Z157) -> 0 | AA158: =SUM(AA155:AA157) -> 0 | AB158: =SUM(AB155:AB157) -> 0 | AC158: =SUM(AC155:AC157) -> 0 | AD158: =SUM(H158:L158)/SUM(Y158:AC158)-1 -> 
B159: Other internal direct costs (excl escalation) | H159: 0 | I159: 0 | J159: 0
B160: Distribution mains | H160: 102097.4741 | I160: 51510 | J160: 131910 | K160: 98738.18667 | L160: 126555.4631 | M160: 101889.5856 | N160: 129207.8079 | O160: 152096.0481 | P160: 176460.949 | Q160: 152834.3784 | X160: =SUM(C160:G160)/SUM(S160:W160)-1 ->  | AD160: =SUM(H160:L160)/SUM(Y160:AC160)-1 -> 
B161: Inlet/Service Pipes | H161: 0 | I161: 0 | J161: 0 | X161: =SUM(C161:G161)/SUM(S161:W161)-1 ->  | AD161: =SUM(H161:L161)/SUM(Y161:AC161)-1 -> 
B162: Meters | H162: 0 | I162: 0 | J162: 0 | X162: =SUM(C162:G162)/SUM(S162:W162)-1 ->  | AD162: =SUM(H162:L162)/SUM(Y162:AC162)-1 -> 
B163: Total material costs (excl escalation) | H163: 102097.4741 | I163: 51510 | J163: 131910 | K163: =SUM(K160:K162) -> 98738.18667 | L163: 126555.4631 | M163: 101889.5856 | N163: 129207.8079 | O163: 152096.0481 | P163: 176460.949 | Q163: 152834.3784 | S163: 0 | T163: 0 | U163: 0 | V163: 0 | W163: 0 | X163: =SUM(C163:G163)/SUM(S163:W163)-1 ->  | Y163: =SUM(Y160:Y162) -> 0 | Z163: =SUM(Z160:Z162) -> 0 | AA163: =SUM(AA160:AA162) -> 0 | AB163: =SUM(AB160:AB162) -> 0 | AC163: =SUM(AC160:AC162) -> 0 | AD163: =SUM(H163:L163)/SUM(Y163:AC163)-1 -> 
B164: Total Direct costs (excl escalation) | H164: 0 | I164: 0 | J164: 0
B165: Distribution mains | H165: 467806.9264 | I165: 508240 | J165: 916780 | K165: =K155+K150+K160 -> 703864.72 | L165: 902162.8674 | M165: 763852.6031 | N165: 968653.6633 | O165: 1140243.741 | P165: 1322904.146 | Q165: 1145778.905 | S165: 0 | T165: 0 | U165: 0 | V165: 0 | W165: 0 | X165: =SUM(C165:G165)/SUM(S165:W165)-1 ->  | Y165: =Y155+Y150+Y160 -> 0 | Z165: 0 | AA165: 0 | AB165: 0 | AC165: 0 | AD165: =SUM(H165:L165)/SUM(Y165:AC165)-1 -> 
B166: Inlet/Service Pipes | H166: 0 | I166: 0 | J166: 0 | K166: =K156+K151+K161 -> 0 | L166: 0 | M166: 0 | N166: 0 | O166: 0 | P166: 0 | Q166: 0 | S166: 0 | T166: 0 | U166: 0 | V166: 0 | W166: 0 | Y166: 0 | Z166: 0 | AA166: 0 | AB166: 0 | AC166: 0
B167: Meters | H167: 0 | I167: 0 | J167: 0 | K167: =K157+K152+K162 -> 0 | L167: 0 | M167: 0 | N167: 0 | O167: 0 | P167: 0 | Q167: 0 | S167: 0 | T167: 0 | U167: 0 | V167: 0 | W167: 0 | Y167: 0 | Z167: 0 | AA167: 0 | AB167: 0 | AC167: 0
B168: Total Direct costs (excl escalation) | H168: 467806.9264 | I168: 508240 | J168: 916780 | K168: =SUM(K165:K167) -> 703864.72 | L168: 902162.8674 | M168: 763852.6031 | N168: 968653.6633 | O168: 1140243.741 | P168: 1322904.146 | Q168: 1145778.905 | S168: 0 | T168: 0 | U168: 0 | V168: 0 | W168: =SUM(W165:W167) -> 0 | Y168: =SUM(Y165:Y167) -> 0 | Z168: =SUM(Z165:Z167) -> 0 | AA168: =SUM(AA165:AA167) -> 0 | AB168: =SUM(AB165:AB167) -> 0 | AC168: =SUM(AC165:AC167) -> 0
B169: Escalation | H169: 0 | I169: 0 | J169: 0 | M169: 4798.221951 | N169: 14328.03029 | O169: 28202.01063 | P169: 48567.03945 | Q169: 62150.02632
B170: Total Direct costs (incl escalation) | C170: =SUM(C168,C169) -> 0 | D170: 0 | E170: 0 | F170: 0 | G170: 0 | H170: 467806.9264 | I170: 508240 | J170: 916780 | K170: 703864.72 | L170: 902162.8674 | M170: 768650.825 | N170: 982981.6936 | O170: 1168445.751 | P170: 1371471.185 | Q170: 1207928.931 | S170: 0 | T170: 0 | U170: 0 | V170: 0 | W170: 0 | Y170: =SUM(Y168,Y169) -> 0 | Z170: =SUM(Z168,Z169) -> 0 | AA170: =SUM(AA168,AA169) -> 0 | AB170: =SUM(AB168,AB169) -> 0 | AC170: =SUM(AC168,AC169) -> 0
B171: Total Overhead cost | H171: 57697.91362 | I171: 49032.71851 | J171: 78855.38635 | K171: 67852.55901 | L171: 86968.50042 | M171: 74072.32758 | N171: 94727.0065 | O171: 112600.0661 | P171: 132165.7103 | Q171: 116406.2654
B172: Related party and/or network operator margin | H172: 0 | I172: 0 | J172: 0
B173: Total Gross costs of new <residential type 3> connections | C173: =SUM(C170,C171,C172) -> 0 | D173: 0 | E173: 0 | F173: 0 | G173: 0 | H173: 525504.84 | I173: 557272.7185 | J173: 995635.3864 | K173: 771717.279 | L173: 989131.3678 | M173: 842723.1526 | N173: 1077708.7 | O173: 1281045.818 | P173: 1503636.896 | Q173: 1324335.196 | S173: 0 | T173: 0 | U173: 0 | V173: 0 | W173: 0 | Y173: =SUM(Y170,Y171,Y172) -> 0 | Z173: =SUM(Z170,Z171,Z172) -> 0 | AA173: =SUM(AA170,AA171,AA172) -> 0 | AB173: =SUM(AB170,AB171,AB172) -> 0 | AC173: =SUM(AC170,AC171,AC172) -> 0
B174: Less customer contributions | H174: 0 | I174: 0 | J174: 0
B175: Total Net Costs of new <residential type 3> connections | C175: =C173-C174 -> 0 | D175: =D173-D174 -> 0 | E175: 0 | F175: 0 | G175: 0 | H175: 525504.84 | I175: 557272.7185 | J175: 995635.3864 | K175: 771717.279 | L175: 989131.3678 | M175: 842723.1526 | N175: 1077708.7 | O175: 1281045.818 | P175: 1503636.896 | Q175: 1324335.196 | S175: 0 | T175: 0 | U175: 0 | V175: 0 | W175: =W173-W174 -> 0 | X175: =SUM(C175:G175)/SUM(S175:W175)-1 ->  | Y175: =Y173-Y174 -> 0 | Z175: =Z173-Z174 -> 0 | AA175: =AA173-AA174 -> 0 | AB175: =AB173-AB174 -> 0 | AC175: =AC173-AC174 -> 0 | AD175: =SUM(H175:L175)/SUM(Y175:AC175)-1 -> 
B176: Source(s) of data: | C176: 2006/07 to 2008/09 sourced from the SA Capex Past Performance Submission model. 2009/10 to 2013/14 sourced from the Capex Ring Fenced Accounts and the SA Annual RIN's. Forecast data sourced from capex model submitted as Attachment 8.8 of the AAI.
B178: ="Table 4.2.5 - " &B71 -> Table 4.2.5 - New Service - New Home
B179: Number of new <residential type 3> connections | X179: =X58 -> 0 | AD179: =SUM(H179:L179)/SUM(Y179:AC179)-1 -> 
B180: Direct contractor cost (excl escalation)
B181: Distribution mains | X181: =SUM(C181:G181)/SUM(S181:W181)-1 ->  | AD181: =SUM(H181:L181)/SUM(Y181:AC181)-1 -> 
B182: Inlet/Service Pipes | H182: 4915694.065 | I182: 3715488.513 | J182: 4089512.895 | K182: 5491979.24 | L182: 5202615.158 | M182: 5619505.388 | N182: 5243524.093 | O182: 5172774.924 | P182: 5085854.517 | Q182: 5093940.136 | X182: =SUM(C182:G182)/SUM(S182:W182)-1 ->  | AD182: =SUM(H182:L182)/SUM(Y182:AC182)-1 -> 
B183: Meters | H183: 0 | I183: 0 | J183: 0 | X183: =SUM(C183:G183)/SUM(S183:W183)-1 ->  | AD183: =SUM(H183:L183)/SUM(Y183:AC183)-1 -> 
B184: Total contractor costs (excl escalation) | H184: =SUM(H181:H183) -> 4915694.065 | I184: =SUM(I181:I183) -> 3715488.513 | J184: 4089512.895 | K184: 5491979.24 | L184: 5202615.158 | M184: =SUM(M181:M183) -> 5619505.388 | N184: 5243524.093 | O184: 5172774.924 | P184: 5085854.517 | Q184: 5093940.136 | S184: =SUM(S181:S183) -> 0 | T184: =SUM(T181:T183) -> 0 | U184: =SUM(U181:U183) -> 0 | V184: =SUM(V181:V183) -> 0 | W184: =SUM(W181:W183) -> 0 | X184: =SUM(C184:G184)/SUM(S184:W184)-1 ->  | Y184: =SUM(Y181:Y183) -> 0 | Z184: =SUM(Z181:Z183) -> 0 | AA184: =SUM(AA181:AA183) -> 0 | AB184: =SUM(AB181:AB183) -> 0 | AC184: =SUM(AC181:AC183) -> 0 | AD184: =SUM(H184:L184)/SUM(Y184:AC184)-1 -> 
B185: Direct internal labour cost (excl escalation) | H185: 0 | I185: 0 | J185: 0
B186: Distribution mains | H186: 0 | I186: 0 | J186: 0 | X186: =SUM(C186:G186)/SUM(S186:W186)-1 ->  | AD186: =SUM(H186:L186)/SUM(Y186:AC186)-1 -> 
B187: Inlet/Service Pipes | H187: 445742.5955 | I187: 309712.5654 | J187: 379801.7343 | K187: 379001.28 | L187: 359032.2756 | M187: 368146.5359 | N187: 343515.1489 | O187: 338880.2105 | P187: 333185.8576 | Q187: 333715.5649 | X187: =SUM(C187:G187)/SUM(S187:W187)-1 ->  | AD187: =SUM(H187:L187)/SUM(Y187:AC187)-1 -> 
B188: Meters | H188: 0 | I188: 0 | J188: 0 | X188: =SUM(C188:G188)/SUM(S188:W188)-1 ->  | AD188: =SUM(H188:L188)/SUM(Y188:AC188)-1 -> 
B189: Total labour cost (excl escalation) | H189: =SUM(H186:H188) -> 445742.5955 | I189: 309712.5654 | J189: 379801.7343 | K189: 379001.28 | L189: 359032.2756 | M189: =SUM(M186:M188) -> 368146.5359 | N189: 343515.1489 | O189: 338880.2105 | P189: 333185.8576 | Q189: 333715.5649 | S189: =SUM(S186:S188) -> 0 | T189: =SUM(T186:T188) -> 0 | U189: =SUM(U186:U188) -> 0 | V189: =SUM(V186:V188) -> 0 | W189: =SUM(W186:W188) -> 0 | X189: =SUM(C189:G189)/SUM(S189:W189)-1 ->  | Y189: =SUM(Y186:Y188) -> 0 | Z189: =SUM(Z186:Z188) -> 0 | AA189: =SUM(AA186:AA188) -> 0 | AB189: =SUM(AB186:AB188) -> 0 | AC189: =SUM(AC186:AC188) -> 0 | AD189: =SUM(H189:L189)/SUM(Y189:AC189)-1 -> 
B190: Other internal direct costs (excl escalation) | H190: 0 | I190: 0 | J190: 0
B191: Distribution mains | H191: 0 | I191: 0 | J191: 0 | X191: =SUM(C191:G191)/SUM(S191:W191)-1 ->  | AD191: =SUM(H191:L191)/SUM(Y191:AC191)-1 -> 
B192: Inlet/Service Pipes | H192: 619571.7699 | I192: 766058.8231 | J192: 702692.8139 | K192: 637698.36 | L192: 604098.9976 | M192: 753717.9083 | N192: 703289.3 | O192: 693800.0458 | P192: 682141.8192 | Q192: 683226.3054 | X192: =SUM(C192:G192)/SUM(S192:W192)-1 ->  | AD192: =SUM(H192:L192)/SUM(Y192:AC192)-1 -> 
B193: Meters | H193: 0 | I193: 0 | J193: 0 | X193: =SUM(C193:G193)/SUM(S193:W193)-1 ->  | AD193: =SUM(H193:L193)/SUM(Y193:AC193)-1 -> 
B194: Total material costs (excl escalation) | H194: =SUM(H191:H193) -> 619571.7699 | I194: 766058.8231 | J194: 702692.8139 | K194: 637698.36 | L194: 604098.9976 | M194: =SUM(M191:M193) -> 753717.9083 | N194: 703289.3 | O194: 693800.0458 | P194: 682141.8192 | Q194: 683226.3054 | S194: =SUM(S191:S193) -> 0 | T194: =SUM(T191:T193) -> 0 | U194: =SUM(U191:U193) -> 0 | V194: =SUM(V191:V193) -> 0 | W194: =SUM(W191:W193) -> 0 | X194: =SUM(C194:G194)/SUM(S194:W194)-1 ->  | Y194: =SUM(Y191:Y193) -> 0 | Z194: =SUM(Z191:Z193) -> 0 | AA194: =SUM(AA191:AA193) -> 0 | AB194: =SUM(AB191:AB193) -> 0 | AC194: =SUM(AC191:AC193) -> 0 | AD194: =SUM(H194:L194)/SUM(Y194:AC194)-1 -> 
B195: Total Direct costs (excl escalation) | H195: 0 | I195: 0 | J195: 0
B196: Distribution mains | H196: =H181+H186+H191 -> 0 | I196: =I181+I186+I191 -> 0 | J196: 0 | K196: 0 | L196: 0 | M196: =M186+M181+M191 -> 0 | N196: 0 | O196: 0 | P196: 0 | Q196: 0 | S196: =S186+S181+S191 -> 0 | T196: 0 | U196: 0 | V196: 0 | W196: 0 | X196: =SUM(C196:G196)/SUM(S196:W196)-1 ->  | Y196: =Y186+Y181+Y191 -> 0 | Z196: 0 | AA196: 0 | AB196: 0 | AC196: 0 | AD196: =SUM(H196:L196)/SUM(Y196:AC196)-1 -> 
B197: Inlet/Service Pipes | H197: =H182+H187+H192 -> 5981008.431 | I197: 4791259.901 | J197: 5172007.443 | K197: 6508678.88 | L197: 6165746.431 | M197: =M187+M182+M192 -> 6741369.832 | N197: 6290328.542 | O197: 6205455.18 | P197: 6101182.194 | Q197: 6110882.006 | S197: 0 | T197: 0 | U197: 0 | V197: 0 | W197: 0 | Y197: 0 | Z197: 0 | AA197: 0 | AB197: 0 | AC197: 0
B198: Meters | H198: =H183+H188+H193 -> 0 | I198: 0 | J198: 0 | K198: 0 | L198: 0 | M198: =M188+M183+M193 -> 0 | N198: 0 | O198: 0 | P198: 0 | Q198: 0 | S198: 0 | T198: 0 | U198: 0 | V198: 0 | W198: 0 | Y198: 0 | Z198: 0 | AA198: 0 | AB198: 0 | AC198: 0
B199: Total Direct costs (excl escalation) | C199: 7186800.47 | D199: 8636809.44 | E199: 8349167.65 | F199: 8460803.33 | G199: 10482966.51 | H199: =SUM(H196:H198) -> 5981008.431 | I199: 4791259.901 | J199: 5172007.443 | K199: 6508678.88 | L199: 6165746.431 | M199: =SUM(M196:M198) -> 6741369.832 | N199: 6290328.542 | O199: 6205455.18 | P199: 6101182.194 | Q199: 6110882.006 | S199: =SUM(S196:S198) -> 0 | T199: =SUM(T196:T198) -> 0 | U199: =SUM(U196:U198) -> 0 | V199: =SUM(V196:V198) -> 0 | W199: =SUM(W196:W198) -> 0 | Y199: =SUM(Y196:Y198) -> 0 | Z199: =SUM(Z196:Z198) -> 0 | AA199: =SUM(AA196:AA198) -> 0 | AB199: =SUM(AB196:AB198) -> 0 | AC199: =SUM(AC196:AC198) -> 0
B200: Escalation | C200: 0 | D200: 0 | E200: 0 | F200: 0 | G200: 0 | H200: 0 | I200: 0 | J200: 0 | M200: 43836.7192 | N200: 95512.64582 | O200: 157138.8015 | P200: 228982.2806 | Q200: 338693.8296
B201: Total Direct costs (incl escalation) | C201: 7186800.47 | D201: 8636809.44 | E201: 8349167.65 | F201: 8460803.33 | G201: =+G199 -> 10482966.51 | H201: =H199 -> 5981008.431 | I201: =I199 -> 4791259.901 | J201: 5172007.443 | K201: 6508678.88 | L201: 6165746.431 | M201: =SUM(M199,M200) -> 6785206.552 | N201: 6385841.187 | O201: 6362593.982 | P201: 6330164.474 | Q201: 6449575.836 | S201: =SUM(S199,S200) -> 0 | T201: =SUM(T199,T200) -> 0 | U201: =SUM(U199,U200) -> 0 | V201: =SUM(V199,V200) -> 0 | W201: =SUM(W199,W200) -> 0 | Y201: =SUM(Y199,Y200) -> 0 | Z201: =SUM(Z199,Z200) -> 0 | AA201: =SUM(AA199,AA200) -> 0 | AB201: =SUM(AB199,AB200) -> 0 | AC201: =SUM(AC199,AC200) -> 0
B202: Total Overhead cost | C202: 0 | D202: 0 | E202: 0 | F202: 0 | G202: 0 | H202: 737655.1693 | I202: 462237.3171 | J202: 444864.819 | K202: 627436.644 | L202: 594377.9559 | M202: 654361.8525 | N202: 615845.4367 | O202: 613601.4111 | P202: 610471.5035 | Q202: 621983.8115
B203: Related party and/or network operator margin | C203: 0 | D203: 0 | E203: 0 | F203: 0 | G203: 0 | H203: 0 | I203: 0 | J203: 0
B204: Total Gross costs of new <residential type 3> connections | C204: 7186800.47 | D204: 8636809.44 | E204: 8349167.65 | F204: 8460803.33 | G204: =+G201 -> 10482966.51 | H204: =H201+H202 -> 6718663.6 | I204: =I201+I202 -> 5253497.218 | J204: 5616872.262 | K204: 7136115.524 | L204: 6760124.387 | M204: =SUM(M201,M202,M203) -> 7439568.404 | N204: 7001686.624 | O204: 6976195.393 | P204: 6940635.978 | Q204: 7071559.648 | S204: =SUM(S201,S202,S203) -> 0 | T204: =SUM(T201,T202,T203) -> 0 | U204: =SUM(U201,U202,U203) -> 0 | V204: =SUM(V201,V202,V203) -> 0 | W204: =SUM(W201,W202,W203) -> 0 | Y204: =SUM(Y201,Y202,Y203) -> 0 | Z204: =SUM(Z201,Z202,Z203) -> 0 | AA204: =SUM(AA201,AA202,AA203) -> 0 | AB204: =SUM(AB201,AB202,AB203) -> 0 | AC204: =SUM(AC201,AC202,AC203) -> 0
B205: Less customer contributions | C205: 0 | D205: 0 | E205: 0 | F205: 0 | G205: 0 | H205: 0 | I205: 0 | J205: 0
B206: Total Net Costs of new <residential type 3> connections | C206: 7186800.47 | D206: 8636809.44 | E206: 8349167.65 | F206: 8460803.33 | G206: =+G204 -> 10482966.51 | H206: =H204-H205 -> 6718663.6 | I206: =I204-I205 -> 5253497.218 | J206: 5616872.262 | K206: 7136115.524 | L206: 6760124.387 | M206: =M204-M205 -> 7439568.404 | N206: 7001686.624 | O206: 6976195.393 | P206: 6940635.978 | Q206: 7071559.648 | S206: =S204-S205 -> 0 | T206: =T204-T205 -> 0 | U206: =U204-U205 -> 0 | V206: =V204-V205 -> 0 | W206: =W204-W205 -> 0 | X206: =SUM(C206:G206)/SUM(S206:W206)-1 ->  | Y206: =Y204-Y205 -> 0 | Z206: =Z204-Z205 -> 0 | AA206: =AA204-AA205 -> 0 | AB206: =AB204-AB205 -> 0 | AC206: =AC204-AC205 -> 0 | AD206: =SUM(H206:L206)/SUM(Y206:AC206)-1 -> 
B207: Source(s) of data: | C207: 2006/07 to 2008/09 sourced from the SA Capex Past Performance Submission model. 2009/10 to 2013/14 sourced from the Capex Ring Fenced Accounts and the SA Annual RIN's. Forecast data sourced from capex model submitted as Attachment 8.8 of AAI.
B209: ="Table 4.2.6 - " &B72 -> Table 4.2.6 - New Service - Exist Home
B210: Number of new <residential type 3> connections | X210: =X91 ->  | AD210: =SUM(H210:L210)/SUM(Y210:AC210)-1 -> 
B211: Direct contractor cost (excl escalation)
B212: Distribution mains | X212: =SUM(C212:G212)/SUM(S212:W212)-1 ->  | AD212: =SUM(H212:L212)/SUM(Y212:AC212)-1 -> 
B213: Service Pipes | H213: 2178939.941 | I213: 2716590 | J213: 2052020 | K213: 1661419.107 | L213: 2220408.331 | M213: 2243928.157 | N213: 2243928.157 | O213: 2243928.157 | P213: 2243928.157 | Q213: 2243928.157 | X213: =SUM(C213:G213)/SUM(S213:W213)-1 ->  | AD213: =SUM(H213:L213)/SUM(Y213:AC213)-1 -> 
B214: Meters | H214: 0 | I214: 0 | J214: 0 | X214: =SUM(C214:G214)/SUM(S214:W214)-1 ->  | AD214: =SUM(H214:L214)/SUM(Y214:AC214)-1 -> 
B215: Total contractor costs (excl escalation) | H215: 2178939.941 | I215: 2716590 | J215: 2052020 | K215: =SUM(K212:K214) -> 1661419.107 | L215: 2220408.331 | M215: 2243928.157 | N215: 2243928.157 | O215: 2243928.157 | P215: 2243928.157 | Q215: 2243928.157 | S215: 0 | T215: 0 | U215: 0 | V215: 0 | W215: 0 | X215: =SUM(C215:G215)/SUM(S215:W215)-1 ->  | Y215: =SUM(Y212:Y214) -> 0 | Z215: =SUM(Z212:Z214) -> 0 | AA215: =SUM(AA212:AA214) -> 0 | AB215: =SUM(AB212:AB214) -> 0 | AC215: =SUM(AC212:AC214) -> 0 | AD215: =SUM(H215:L215)/SUM(Y215:AC215)-1 -> 
B216: Direct internal labour cost (excl escalation)
... 308 more rows

Sheet 5.Mains augmentation
E1: =SheetHeader -> REGULATORY REPORTING STATEMENT
E2: =dms_TradingName -> AGN
E3: =CONCATENATE(FRCP_y1," to ",FRCP_y5) -> 2016-17 to 2020-21 | F3: =CONCATENATE(LEFT(FRCP_y1,4),"-",LEFT(FRCP_y5,2),RIGHT(FRCP_y5,2)) -> 2016-2021
E4: 5. MAINS AUGMENTATION CAPITAL EXPENDITURE
A6: Asset category
A7: HPM | B7: HP mains | E7: Instructions
A8: HPS | B8: HP services | E8: This template asks for information relating to network augmentation capital expenditure
A9: MPM | B9: MP mains
A10: MPS | B10: MP services | E10: =CONCATENATE("As set out in cl.6.1 of the ", dms_TradingName, " RIN, for tables 5.1 to 5.2, where the requested data is captured in the ", dms_TradingName, " capex model it is not required to be reentered in the RIN template tables. If the requested data has not been provided in the ", dms_TradingName, " RIN please enter into the tables. This may require the insertion of new lines in each table.") -> As set out in cl.6.1 of the AGN RIN, for tables 5.1 to 5.2, where the requested data is captured in the AGN capex model it is not required to be reentered in the RIN template tables. If the requested data has not been provided in the AGN RIN please enter into the tables. This may require the insertion of new lines in each table.
A11: TRS | B11: TRS & DRS - valves & regulators | E11: Reported expenditure is to be entered EXCLUSIVE of any profit margins or management fees paid pursuant to arrangements or contracts with any related parties. Include any related party margins or management fees in the separate 'Related party margin' line item.
A12: CM | B12: Contract meters | E12: =CONCATENATE("Subject to cl.6.1 of the ", dms_TradingName, " RIN, where linked/adjustable escalation is not provided in the ", dms_TradingName, " capex model, escalation should be linked to allocations derived in tab '2 - Escalators'.") -> Subject to cl.6.1 of the AGN RIN, where linked/adjustable escalation is not provided in the AGN capex model, escalation should be linked to allocations derived in tab '2 - Escalators'.
A13: TM | B13: Tariff meters | E13: =CONCATENATE("Subject to cl.6.1 of the ", dms_TradingName, " RIN, where linked/adjustable overhead costs and related party margin costs is not provided in the ", dms_TradingName, " capex model, overhead costs and related party margin costs should be linked to allocations derived in tabs '12 - Overheads' and '13 - Related party transactions'.") -> Subject to cl.6.1 of the AGN RIN, where linked/adjustable overhead costs and related party margin costs is not provided in the AGN capex model, overhead costs and related party margin costs should be linked to allocations derived in tabs '12 - Overheads' and '13 - Related party transactions'.
A14: RC | B14: Regulatory costs | E14: Capital expenditure amounts entered should be GROSS of customer contributions. There is a separate line item for customer contributions from which net capital expenditure is derived.
A15: ERC | B15: Equity raising costs
E17: Table 5.1 - Mains augmentation (actual/forecast)
F18: Previous access arrangement period | K18: Current access arrangement period | P18: Variance | Q18: Next access arrangement period | V18: Supporting documentation (business case, costing spreadsheet, contracts)
F19: $0's, Nominal | O19: =CONCATENATE("$0's, Real ",dms_DollarReal) -> $0's, Real June 2016 | Q19: =CONCATENATE("$0's, Real ",dms_DollarReal) -> $0's, Real June 2016
A20: Internal identification code | B20: Asset category | C20: Percent allocation | F20: Actual | O20: Forecast | P20: Actual vs Approved | Q20: Forecast
F21: =PRCP -> 2006-07 | G21: 2007-08 | H21: 2008-09 | I21: 2009-10 | J21: 2010-11 | K21: =CRCP_y1 -> 2011-12 | L21: =CRCP_y2 -> 2012-13 | M21: =CRCP_y3 -> 2013-14 | N21: =CRCP_y4 -> 2014-15 | O21: =CRCP_y5 -> 2015-16 | P21: % | Q21: =FRCP -> 2016-17 | R21: 2017-18 | S21: 2018-19 | T21: 2019-20 | U21: 2020-21
E22: River Road | V22: History through to 2013/14 has been based on the Oracle BM20 report. Forecast data has been extracted from the capex model at Attachment 8.8 to the AAI.
E23: Direct internal labour (excl escalation)
E24: Direct contractor costs (excl escalation)
E25: Other internal direct costs (excl escalation)
E26: Total direct costs (excl escalation) | Q26: =SUM(Q23:Q25) -> 0 | R26: =SUM(R23:R25) -> 0 | S26: =SUM(S23:S25) -> 0 | T26: =SUM(T23:T25) -> 0 | U26: =SUM(U23:U25) -> 0
E27: Escalation | Q27: 0 | R27: 0 | S27: 0 | T27: 0 | U27: 0
E28: Total direct costs (incl escalation) | H28: 2467732 | I28: 702089.68 | J28: 182454.6624 | Q28: =SUM(Q26:Q27) -> 0 | R28: =SUM(R26:R27) -> 0 | S28: =SUM(S26:S27) -> 0 | T28: =SUM(T26:T27) -> 0 | U28: =SUM(U26:U27) -> 0
E29: Total overhead costs | H29: 0 | I29: 0 | J29: 0
E30: Related party and/or operator margin | H30: 0 | I30: 0 | J30: 0
E31: Total gross costs | F31: =SUM(F28:F30) -> 0 | G31: =SUM(G28:G30) -> 0 | H31: 2467732 | I31: 702089.68 | J31: =+J28 -> 182454.6624 | K31: 0 | L31: 0 | M31: =SUM(M28:M30) -> 0 | N31: 0 | O31: 0 | P31: 0 | Q31: =SUM(Q28:Q30) -> 0 | R31: =SUM(R28:R30) -> 0 | S31: =SUM(S28:S30) -> 0 | T31: =SUM(T28:T30) -> 0 | U31: =SUM(U28:U30) -> 0
E32: Less customer contributions | H32: 0 | I32: 0 | J32: 0
E33: Total net costs | F33: =F31-F32 -> 0 | G33: =G31-G32 -> 0 | H33: 2467732 | I33: 702089.68 | J33: =+J31 -> 182454.6624 | K33: =K31-K32 -> 0 | L33: 0 | M33: =M31-M32 -> 0 | N33: 0 | O33: 0 | P33: 0 | Q33: =Q31-Q32 -> 0 | R33: 0 | S33: 0 | T33: 0 | U33: 0
E34: Fosters Road | V34: History through to 2013/14 has been based on the Oracle BM20 report. Forecast data has been extracted from the capex model at Attachment 8.8 to the AAI.
E35: Direct internal labour (excl escalation) | N35: 0 | O35: 0
E36: Direct contractor costs (excl escalation) | N36: 0 | O36: 0
E37: Other internal direct costs (excl escalation) | N37: 0 | O37: 0
E38: Total direct costs (excl escalation) | N38: 0 | O38: 0 | Q38: =SUM(Q35:Q37) -> 0 | R38: =SUM(R35:R37) -> 0 | S38: =SUM(S35:S37) -> 0 | T38: =SUM(T35:T37) -> 0 | U38: =SUM(U35:U37) -> 0
E39: Escalation | Q39: 0 | R39: 0 | S39: 0 | T39: 0 | U39: 0
E40: Total direct costs (incl escalation) | H40: 0 | I40: 738841.01 | J40: 885550.1701 | K40: 657000 | L40: -2 | Q40: =SUM(Q38:Q39) -> 0 | R40: =SUM(R38:R39) -> 0 | S40: =SUM(S38:S39) -> 0 | T40: =SUM(T38:T39) -> 0 | U40: =SUM(U38:U39) -> 0
E41: Total overhead costs | H41: 0 | I41: 0 | J41: 0 | N41: 0 | O41: 0
E42: Related party and/or operator margin | H42: 0 | I42: 0 | J42: 0
E43: Total gross costs | F43: =SUM(F40:F42) -> 0 | G43: 0 | H43: 0 | I43: 738841.01 | J43: =+J40 -> 885550.1701 | K43: 657000 | L43: -2 | M43: =SUM(M38:M42) -> 0 | N43: 0 | O43: 0 | P43: 0 | Q43: 0 | R43: 0 | S43: 0 | T43: 0 | U43: 0
E44: Less customer contributions | H44: 0 | I44: 0 | J44: 0 | K44: 0 | L44: 0
E45: Total net costs | F45: =F43-F44 -> 0 | G45: 0 | H45: 0 | I45: 738841.01 | J45: =+J43 -> 885550.1701 | K45: 657000 | L45: -2 | M45: =M43-M44 -> 0 | N45: 0 | O45: 0 | P45: 0 | Q45: 0 | R45: 0 | S45: 0 | T45: 0 | U45: 0
E46: Mt Gambier Improve Supply | V46: History through to 2013/14 has been based on the Oracle BM20 report. Forecast data has been extracted from the capex model at Attachment 8.8 to the AAI.
E47: Direct internal labour (excl escalation)
E48: Direct contractor costs (excl escalation)
E49: Other internal direct costs (excl escalation)
E50: Total direct costs (excl escalation) | Q50: =SUM(Q47:Q49) -> 0 | R50: =SUM(R47:R49) -> 0 | S50: =SUM(S47:S49) -> 0 | T50: =SUM(T47:T49) -> 0 | U50: =SUM(U47:U49) -> 0
E51: Escalation | Q51: 0 | R51: 0 | S51: 0 | T51: 0 | U51: 0
E52: Total direct costs (incl escalation) | H52: 0 | I52: 137370.68 | J52: 101334.2154 | K52: 186000 | L52: -122.19 | Q52: =SUM(Q50:Q51) -> 0 | R52: =SUM(R50:R51) -> 0 | S52: =SUM(S50:S51) -> 0 | T52: =SUM(T50:T51) -> 0 | U52: =SUM(U50:U51) -> 0
E53: Total overhead costs | H53: 0 | I53: 0 | J53: 0 | N53: 0
E54: Related party and/or operator margin | H54: 0 | I54: 0 | J54: 0
E55: Total gross costs | F55: =SUM(F52:F54) -> 0 | G55: 0 | H55: 0 | I55: 137370.68 | J55: =+J52 -> 101334.2154 | K55: 186000 | L55: -122.19 | M55: =SUM(M52:M54) -> 0 | N55: =SUM(N50:N54) -> 0 | O55: 0 | P55: 0 | Q55: 0 | R55: 0 | S55: 0 | T55: 0 | U55: 0
E56: Less customer contributions | H56: 0 | I56: 0 | J56: 0
E57: Total net costs | F57: =F55-F56 -> 0 | G57: 0 | H57: 0 | I57: 137370.68 | J57: =+J55 -> 101334.2154 | K57: 186000 | L57: -122.19 | M57: =M55-M56 -> 0 | N57: 0 | O57: 0 | P57: 0 | Q57: 0 | R57: 0 | S57: 0 | T57: 0 | U57: 0
E58: Tennyson Reinforcement | V58: History through to 2013/14 has been based on the Oracle BM20 report. Forecast data has been extracted from the capex model at Attachment 8.8 to the AAI.
E59: Direct internal labour (excl escalation)
E60: Direct contractor costs (excl escalation)
E61: Other internal direct costs (excl escalation)
E62: Total direct costs (excl escalation) | Q62: =SUM(Q59:Q61) -> 0 | R62: =SUM(R59:R61) -> 0 | S62: =SUM(S59:S61) -> 0 | T62: =SUM(T59:T61) -> 0 | U62: =SUM(U59:U61) -> 0
E63: Escalation | Q63: 0 | R63: 0 | S63: 0 | T63: 0 | U63: 0
E64: Total direct costs (incl escalation) | I64: 228922.52 | Q64: =SUM(Q62:Q63) -> 0 | R64: =SUM(R62:R63) -> 0 | S64: =SUM(S62:S63) -> 0 | T64: =SUM(T62:T63) -> 0 | U64: =SUM(U62:U63) -> 0
E65: Total overhead costs
E66: Related party and/or operator margin
E67: Total gross costs | F67: =SUM(F64:F66) -> 0 | G67: 0 | H67: 0 | I67: 228922.52 | J67: 0 | K67: 0 | L67: 0 | M67: 0 | N67: 0 | O67: 0 | P67: 0 | Q67: 0 | R67: 0 | S67: 0 | T67: 0 | U67: 0
E68: Less customer contributions
E69: Total net costs | F69: =F67-F68 -> 0 | G69: 0 | H69: 0 | I69: 228922.52 | J69: 0 | K69: 0 | L69: 0 | M69: 0 | N69: 0 | O69: 0 | P69: 0 | Q69: 0 | R69: 0 | S69: 0 | T69: 0 | U69: 0
E70: Greenhill Road | V70: History through to 2013/14 has been based on the Oracle BM20 report. Forecast data has been extracted from the capex model at Attachment 8.8 to the AAI.
E71: Direct internal labour (excl escalation)
E72: Direct contractor costs (excl escalation)
E73: Other internal direct costs (excl escalation)
E74: Total direct costs (excl escalation) | Q74: =SUM(Q71:Q73) -> 0 | R74: =SUM(R71:R73) -> 0 | S74: =SUM(S71:S73) -> 0 | T74: =SUM(T71:T73) -> 0 | U74: =SUM(U71:U73) -> 0
E75: Escalation | Q75: 0 | R75: 0 | S75: 0 | T75: 0 | U75: 0
E76: Total direct costs (incl escalation) | K76: 1861000 | L76: 8431000 | M76: 25000 | N76: 3000 | O76: 0 | Q76: =SUM(Q74:Q75) -> 0 | R76: =SUM(R74:R75) -> 0 | S76: =SUM(S74:S75) -> 0 | T76: =SUM(T74:T75) -> 0 | U76: =SUM(U74:U75) -> 0
E77: Total overhead costs | K77: 0 | L77: 813513.2272 | M77: 2110.251597 | N77: 289.2 | O77: 0
E78: Related party and/or operator margin | K78: 0 | L78: 0 | M78: 0
E79: Total gross costs | F79: =SUM(F76:F78) -> 0 | G79: 0 | H79: 0 | I79: 0 | J79: 0 | K79: 1861000 | L79: 9244513.227 | M79: 27110.2516 | N79: =SUM(N76:N78) -> 3289.2 | O79: =SUM(O76:O78) -> 0 | P79: 0 | Q79: 0 | R79: 0 | S79: 0 | T79: 0 | U79: 0
E80: Less customer contributions | K80: 0 | L80: 0 | M80: 0
E81: Total net costs | F81: =F79-F80 -> 0 | G81: 0 | H81: 0 | I81: 0 | J81: 0 | K81: 1861000 | L81: 9244513.227 | M81: 27110.2516 | N81: 3289.2 | O81: 0 | P81: 0 | Q81: 0 | R81: 0 | S81: 0 | T81: 0 | U81: 0
E82: DPTI - Road Profiling | V82: History through to 2013/14 has been based on the Oracle BM20 report. Forecast data has been extracted from the capex model at Attachment 8.8 to the AAI.
E83: Direct internal labour (excl escalation)
E84: Direct contractor costs (excl escalation)
E85: Other internal direct costs (excl escalation)
E86: Total direct costs (excl escalation) | O86: =SUM(O83:O85) -> 0 | Q86: =SUM(Q83:Q85) -> 0 | R86: =SUM(R83:R85) -> 0 | S86: =SUM(S83:S85) -> 0 | T86: =SUM(T83:T85) -> 0 | U86: =SUM(U83:U85) -> 0
E87: Escalation | Q87: 0 | R87: 0 | S87: 0 | T87: 0 | U87: 0
E88: Total direct costs (incl escalation) | L88: 0 | M88: 1958550.04 | N88: 63941.71 | O88: 0 | Q88: =SUM(Q86:Q87) -> 0 | R88: =SUM(R86:R87) -> 0 | S88: =SUM(S86:S87) -> 0 | T88: =SUM(T86:T87) -> 0 | U88: =SUM(U86:U87) -> 0
E89: Total overhead costs | L89: -360.52 | M89: 168452.6082 | N89: 6163.980844 | O89: 0
E90: Related party and/or operator margin | L90: 0 | M90: 0
E91: Total gross costs | F91: =SUM(F88:F90) -> 0 | G91: 0 | H91: 0 | I91: 0 | J91: 0 | K91: 0 | L91: -360.52 | M91: 2127002.648 | N91: =SUM(N88:N90) -> 70105.69084 | O91: =SUM(O86:O90) -> 0 | P91: 0 | Q91: 0 | R91: 0 | S91: 0 | T91: 0 | U91: 0
E92: Less customer contributions | L92: 0 | M92: 0
E93: Total net costs | F93: =F91-F92 -> 0 | G93: 0 | H93: 0 | I93: 0 | J93: 0 | K93: 0 | L93: -360.52 | M93: 2127002.648 | N93: 70105.69084 | O93: 0 | P93: 0 | Q93: 0 | R93: 0 | S93: 0 | T93: 0 | U93: 0
E94: Ramsey Avenue | V94: History through to 2013/14 has been based on the Oracle BM20 report. Forecast data has been extracted from the capex model at Attachment 8.8 to the AAI.
E95: Direct internal labour (excl escalation) | N95: 0 | O95: 0
E96: Direct contractor costs (excl escalation) | N96: 0 | O96: 0
E97: Other internal direct costs (excl escalation) | N97: 0 | O97: 0
E98: Total direct costs (excl escalation) | N98: 0 | O98: 0 | Q98: =SUM(Q95:Q97) -> 0 | R98: =SUM(R95:R97) -> 0 | S98: =SUM(S95:S97) -> 0 | T98: =SUM(T95:T97) -> 0 | U98: =SUM(U95:U97) -> 0
E99: Escalation | Q99: 0 | R99: 0 | S99: 0 | T99: 0 | U99: 0
E100: Total direct costs (incl escalation) | K100: 936000 | L100: 319000 | M100: 0 | Q100: =SUM(Q98:Q99) -> 0 | R100: =SUM(R98:R99) -> 0 | S100: =SUM(S98:S99) -> 0 | T100: =SUM(T98:T99) -> 0 | U100: =SUM(U98:U99) -> 0
E101: Total overhead costs | K101: 0 | L101: 30907.39909 | M101: -20.18 | N101: 0 | O101: 0 | Q101: 0 | R101: 0 | S101: 0 | T101: 0 | U101: 0
E102: Related party and/or operator margin | K102: 0 | L102: 0 | M102: 0
E103: Total gross costs | F103: =SUM(F100:F102) -> 0 | G103: 0 | H103: 0 | I103: 0 | J103: 0 | K103: 936000 | L103: 349907.3991 | M103: -20.18 | N103: =SUM(N100:N102) -> 0 | O103: =SUM(O97:O102) -> 0 | P103: 0 | Q103: 0 | R103: 0 | S103: 0 | T103: 0 | U103: 0
E104: Less customer contributions | K104: 0 | L104: 0 | M104: 0
E105: Total net costs | F105: =F103-F104 -> 0 | G105: 0 | H105: 0 | I105: 0 | J105: 0 | K105: 936000 | L105: 349907.3991 | M105: -20.18 | N105: 0 | O105: 0 | P105: 0 | Q105: 0 | R105: 0 | S105: 0 | T105: 0 | U105: 0
E106: Virginia Gate Station | V106: History through to 2013/14 has been based on the Oracle BM20 report. Forecast data has been extracted from the capex model at Attachment 8.8 to the AAI.
E107: Direct internal labour (excl escalation) | O107: 0
E108: Direct contractor costs (excl escalation) | O108: 0
E109: Other internal direct costs (excl escalation) | O109: 0
E110: Total direct costs (excl escalation) | O110: 0 | Q110: =SUM(Q107:Q109) -> 0 | R110: =SUM(R107:R109) -> 0 | S110: =SUM(S107:S109) -> 0 | T110: =SUM(T107:T109) -> 0 | U110: =SUM(U107:U109) -> 0
E111: Escalation | Q111: 0 | R111: 0 | S111: 0 | T111: 0 | U111: 0
E112: Total direct costs (incl escalation) | K112: 34000 | L112: 1224000 | N112: 2228000 | O112: =SUM(O110:O111) -> 0 | Q112: =SUM(Q110:Q111) -> 0 | R112: =SUM(R110:R111) -> 0 | S112: =SUM(S110:S111) -> 0 | T112: =SUM(T110:T111) -> 0 | U112: =SUM(U110:U111) -> 0
E113: Total overhead costs | K113: 0 | L113: 118001.2969 | N113: 214779.2 | O113: 0 | Q113: 0 | R113: 0 | S113: 0 | T113: 0 | U113: 0
E114: Related party and/or operator margin | K114: 0 | L114: 0
E115: Total gross costs | F115: =SUM(F112:F114) -> 0 | G115: 0 | H115: 0 | I115: 0 | J115: 0 | K115: 34000 | L115: 1342001.297 | M115: 0 | N115: =SUM(N112:N114) -> 2442779.2 | O115: =SUM(O110:O114) -> 0 | P115: 0 | Q115: 0 | R115: 0 | S115: 0 | T115: 0 | U115: 0
E116: Less customer contributions
E117: Total net costs | F117: =F115-F116 -> 0 | G117: 0 | H117: 0 | I117: 0 | J117: 0 | K117: 34000 | L117: 1342001.297 | N117: 2442779.2 | O117: 0 | P117: 0 | Q117: 0 | R117: 0 | S117: 0 | T117: 0 | U117: 0
E118: Seaford Aldinga/ Southern Networks - SA15 | V118: History through to 2013/14 has been based on the Oracle BM20 report. Forecast data has been extracted from the capex model at Attachment 8.8 to the AAI.
E119: Direct internal labour (excl escalation) | T119: 0
E120: Direct contractor costs (excl escalation) | T120: 1154129.032
E121: Other internal direct costs (excl escalation) | T121: 199616.6983
E122: Total direct costs (excl escalation) | Q122: =SUM(Q119:Q121) -> 0 | R122: =SUM(R119:R121) -> 0 | S122: =SUM(S119:S121) -> 0 | T122: =SUM(T119:T121) -> 1353745.731 | U122: =SUM(U119:U121) -> 0
E123: Escalation | Q123: 0 | R123: 0 | S123: 0 | T123: 51183.79314 | U123: 0
E124: Total direct costs (incl escalation) | K124: 1786000 | L124: 554000 | N124: 513000 | O124: 5380531.309 | Q124: =SUM(Q122:Q123) -> 0 | R124: =SUM(R122:R123) -> 0 | S124: =SUM(S122:S123) -> 0 | T124: =SUM(T122:T123) -> 1404929.524 | U124: =SUM(U122:U123) -> 0
E125: Total overhead costs | K125: 0 | L125: 53395.80133 | N125: 49453.2 | O125: 518683.2182 | Q125: 0 | R125: 0 | S125: 0 | T125: 135449.3376 | U125: 0
E126: Related party and/or operator margin | K126: 0 | L126: 0
E127: Total gross costs | F127: =SUM(F124:F126) -> 0 | G127: 0 | H127: 0 | I127: 0 | J127: 0 | K127: 1786000 | L127: 607395.8013 | M127: 0 | N127: =SUM(N124:N126) -> 562453.2 | O127: 5899214.528 | P127: 0 | Q127: 0 | R127: 0 | S127: 0 | T127: 1540378.861 | U127: 0
E128: Less customer contributions | K128: 0 | L128: 0
E129: Total net costs | F129: =F127-F128 -> 0 | G129: 0 | H129: 0 | I129: 0 | J129: 0 | K129: 1786000 | L129: 607395.8013 | M129: 0 | N129: 562453.2 | O129: 5899214.528 | P129: 0 | Q129: 0 | R129: 0 | S129: 0 | T129: 1540378.861 | U129: 0
E130: Gawler | V130: History through to 2013/14 has been based on the Oracle BM20 report. Forecast data has been extracted from the capex model at Attachment 8.8 to the AAI.
E131: Direct internal labour (excl escalation)
E132: Direct contractor costs (excl escalation)
E133: Other internal direct costs (excl escalation)
E134: Total direct costs (excl escalation) | Q134: =SUM(Q131:Q133) -> 0 | R134: =SUM(R131:R133) -> 0 | S134: =SUM(S131:S133) -> 0 | T134: =SUM(T131:T133) -> 0 | U134: =SUM(U131:U133) -> 0
E135: Escalation | Q135: 0 | R135: 0 | S135: 0 | T135: 0 | U135: 0
E136: Total direct costs (incl escalation) | K136: 39000 | L136: 1169000 | M136: 17000 | Q136: =SUM(Q134:Q135) -> 0 | R136: =SUM(R134:R135) -> 0 | S136: =SUM(S134:S135) -> 0 | T136: =SUM(T134:T135) -> 0 | U136: =SUM(U134:U135) -> 0
E137: Total overhead costs | K137: 0 | L137: 112772.3036 | M137: 1472.004286 | N137: 0 | O137: 0 | Q137: 0 | R137: 0 | S137: 0 | T137: 0 | U137: 0
E138: Related party and/or operator margin | K138: 0 | L138: 0 | M138: 0
E139: Total gross costs | F139: =SUM(F136:F138) -> 0 | G139: 0 | H139: 0 | I139: 0 | J139: 0 | K139: 39000 | L139: 1281772.304 | M139: 18472.00429 | N139: =SUM(N136:N138) -> 0 | O139: 0 | P139: 0 | Q139: 0 | R139: 0 | S139: 0 | T139: 0 | U139: 0
E140: Less customer contributions | K140: 0 | L140: 0 | M140: 0
E141: Total net costs | F141: =F139-F140 -> 0 | G141: 0 | H141: 0 | I141: 0 | J141: 0 | K141: 39000 | L141: 1281772.304 | M141: 18472.00429 | N141: 0 | O141: 0 | P141: 0 | Q141: 0 | R141: 0 | S141: 0 | T141: 0 | U141: 0
E142: Virginia HP - SA17 | V142: History through to 2013/14 has been based on the Oracle BM20 report. Forecast data has been extracted from the capex model at Attachment 8.8 to the AAI.
E143: Direct internal labour (excl escalation)
E144: Direct contractor costs (excl escalation) | S144: 746789.3738
E145: Other internal direct costs (excl escalation) | S145: 72956.35674
E146: Total direct costs (excl escalation) | S146: =SUM(S143:S145) -> 819745.7306 | U146: 0
E147: Escalation | Q147: 0 | R147: 0 | S147: 20828.10823 | T147: 0 | U147: 0
E148: Total direct costs (incl escalation) | Q148: =SUM(Q146:Q147) -> 0 | R148: 0 | S148: 840573.8388 | T148: 0 | U148: 0
E149: Total overhead costs | Q149: 0 | R149: 0 | S149: 81041.90987 | T149: 0 | U149: 0
E150: Related party and/or operator margin
E151: Total gross costs | F151: 0 | G151: 0 | H151: 0 | I151: 0 | J151: 0 | N151: =SUM(N146:N150) -> 0 | O151: 0 | P151: 0 | Q151: 0 | R151: 0 | S151: 0 | T151: 0 | U151: 0
E152: Less customer contributions
E153: Total net costs | F153: 0 | G153: 0 | H153: 0 | I153: 0 | J153: 0 | N153: 0 | O153: 0 | P153: 0 | Q153: 0 | R153: 0 | S153: 0 | T153: 0 | U153: 0
E154: Upgrade TP Reg Stations - SA19 | V154: History through to 2013/14 has been based on the Oracle BM20 report. Forecast data has been extracted from the capex model at Attachment 8.8 to the AAI.
E155: Direct internal labour (excl escalation)
E156: Direct contractor costs (excl escalation) | Q156: 453950.6641 | R156: 390113.852 | S156: 268519.9241 | T156: 292838.7097 | U156: 165165.0854
E157: Other internal direct costs (excl escalation)
E158: Total direct costs (excl escalation) | Q158: =SUM(Q155:Q157) -> 453950.6641 | R158: 390113.852 | S158: =SUM(S155:S157) -> 268519.9241 | T158: =SUM(T155:T157) -> 292838.7097 | U158: 165165.0854
E159: Escalation | Q159: 2874.338046 | R159: 5901.16231 | S159: 6822.557084 | T159: 11071.94328 | U159: 9237.140632
E160: Total direct costs (incl escalation) | Q160: =SUM(Q158:Q159) -> 456825.0022 | R160: 396015.0143 | S160: 275342.4812 | T160: 303910.653 | U160: 174402.226
E161: Total overhead costs | Q161: 44046.0766 | R161: 38179.5423 | S161: 26546.48469 | T161: 29300.04383 | U161: 16819.21902
E162: Related party and/or operator margin
E163: Total gross costs | F163: 0 | G163: 0 | H163: 0 | I163: 0 | J163: 0 | N163: =SUM(N158:N162) -> 0 | O163: 0 | P163: 0 | Q163: 0 | R163: 0 | S163: 0 | T163: 0 | U163: 0
E164: Less customer contributions
E165: Total net costs | F165: 0 | G165: 0 | H165: 0 | I165: 0 | J165: 0 | N165: 0 | O165: 0 | P165: 0 | Q165: 0 | R165: 0 | S165: 0 | T165: 0 | U165: 0
E166: Southern Transmission Pipeline (Replace TP M21 and M23) - SA21 | V166: History through to 2013/14 has been based on the Oracle BM20 report. Forecast data has been extracted from the capex model at Attachment 8.8 to the AAI.
E167: Direct internal labour (excl escalation)
E168: Direct contractor costs (excl escalation) | Q168: 354648.9564 | R168: 6158732.448
E169: Other internal direct costs (excl escalation) | R169: 1053814.042
E170: Total direct costs (excl escalation) | Q170: =SUM(Q167:Q169) -> 354648.9564 | R170: 7212546.49 | S170: =SUM(S167:S169) -> 0 | T170: =SUM(T167:T169) -> 0 | U170: 0
E171: Escalation | Q171: 2245.576599 | R171: 109102.5281 | S171: 0 | T171: 0 | U171: 0
E172: Total direct costs (incl escalation) | Q172: =SUM(Q170:Q171) -> 356894.533 | R172: 7321649.018 | S172: 0 | T172: 0 | U172: 0
E173: Total overhead costs | Q173: 34410.99734 | R173: 705875.2782 | S173: 0 | T173: 0 | U173: 0
E174: Related party and/or operator margin
E175: Total gross costs | F175: 0 | G175: 0 | H175: 0 | I175: 0 | J175: 0 | N175: =SUM(N170:N174) -> 0 | O175: 0 | P175: 0 | Q175: 0 | R175: 0 | S175: 0 | T175: 0 | U175: 0
E176: Less customer contributions
E177: Total net costs | F177: 0 | G177: 0 | H177: 0 | I177: 0 | J177: 0 | N177: 0 | O177: 0 | P177: 0 | Q177: 0 | R177: 0 | S177: 0 | T177: 0 | U177: 0
E179: Direct internal labour (excl escalation)
E180: Direct contractor costs (excl escalation)
E181: Other internal direct costs (excl escalation)
E182: Total direct costs (excl escalation) | Q182: =SUM(Q179:Q181) -> 0 | R182: 0 | S182: =SUM(S179:S181) -> 0 | T182: =SUM(T179:T181) -> 0 | U182: 0
E183: Escalation | Q183: 0 | R183: 0 | S183: 0 | T183: 0 | U183: 0
E184: Total direct costs (incl escalation) | Q184: =SUM(Q182:Q183) -> 0 | R184: 0 | S184: 0 | T184: 0 | U184: 0
E185: Total overhead costs | Q185: 0 | R185: 0 | S185: 0 | T185: 0 | U185: 0
E186: Related party and/or operator margin
E187: Total gross costs | F187: 0 | G187: 0 | H187: 0 | I187: 0 | J187: 0 | N187: =SUM(N182:N186) -> 0 | O187: 0 | P187: 0 | Q187: 0 | R187: 0 | S187: 0 | T187: 0 | U187: 0
E188: Less customer contributions
E189: Total net costs | F189: 0 | G189: 0 | H189: 0 | I189: 0 | J189: 0 | N189: 0 | O189: 0 | P189: 0 | Q189: 0 | R189: 0 | S189: 0 | T189: 0 | U189: 0
E190: Pitting Issues under HSS (M21/M53)- SA21a | V190: History through to 2013/14 has been based on the Oracle BM20 report. Forecast data has been extracted from the capex model at Attachment 8.8 to the AAI.
E191: Direct internal labour (excl escalation)
E192: Direct contractor costs (excl escalation) | Q192: 566425.0474 | R192: 566425.0474 | S192: 566425.0474 | T192: 566425.0474 | U192: 566425.0474
E193: Other internal direct costs (excl escalation) | Q193: 105381.4042 | R193: 105381.4042 | S193: 105381.4042 | T193: 105381.4042 | U193: 105381.4042
E194: Total direct costs (excl escalation) | Q194: =SUM(Q191:Q193) -> 671806.4516 | R194: 671806.4516 | S194: =SUM(S191:S193) -> 671806.4516 | T194: =SUM(T191:T193) -> 671806.4516 | U194: 671806.4516
E195: Escalation | Q195: 4253.763671 | R195: 10162.26133 | S195: 17069.26546 | T195: 25400.34046 | U195: 37571.92785
E196: Total direct costs (incl escalation) | Q196: =SUM(Q194:Q195) -> 676060.2153 | R196: 681968.7129 | S196: 688875.7171 | T196: 697206.7921 | U196: 709378.3795
E197: Total overhead costs | N197: 0 | O197: 0 | Q197: 65184.26068 | R197: 65748.14688 | S197: 66416.29944 | T197: 67217.74762 | U197: 68411.9154
E198: Related party and/or operator margin
E199: Total gross costs | F199: 0 | G199: 0 | H199: 0 | I199: 0 | J199: 0 | N199: =SUM(N194:N198) -> 0 | O199: 0 | P199: 0 | Q199: 0 | R199: 0 | S199: 0 | T199: 0 | U199: 0
E200: Less customer contributions
E201: Total net costs | F201: 0 | G201: 0 | H201: 0 | I201: 0 | J201: 0 | N201: 0 | O201: 0 | P201: 0 | Q201: 0 | R201: 0 | S201: 0 | T201: 0 | U201: 0
E202: Murray Bridge - SA71 | V202: History through to 2013/14 has been based on the Oracle BM20 report. Forecast data has been extracted from the capex model at Attachment 8.8 to the AAI.
E203: Direct internal labour (excl escalation)
... 168 more rows

Sheet 6. Mains replacement
E1: =SheetHeader -> REGULATORY REPORTING STATEMENT
E2: =dms_TradingName -> AGN
E3: =CONCATENATE(FRCP_y1," to ",FRCP_y5) -> 2016-17 to 2020-21 | F3: =CONCATENATE(LEFT(FRCP_y1,4),"-",LEFT(FRCP_y5,2),RIGHT(FRCP_y5,2)) -> 2016-2021
E4: 6. MAINS REPLACEMENT CAPITAL EXPENDITURE
A8: Asset category | E8: Instructions
A9: HPM | B9: HP mains | E9: This template asks for information relating to mains replacement capital expenditure.
A10: TRS | B10: TRS & DRS - valves & regulators | E10: =CONCATENATE("As set out in cl.7.1 of the ", dms_TradingName, " RIN, for tables 6.1 to 6.3, where the requested data is captured in the ", dms_TradingName, " capex model it is not required to be reentered in the RIN template tables. If the requested data has not been provided in the ", dms_TradingName, " RIN please enter into the tables. This may require the insertion of new lines in each table.") -> As set out in cl.7.1 of the AGN RIN, for tables 6.1 to 6.3, where the requested data is captured in the AGN capex model it is not required to be reentered in the RIN template tables. If the requested data has not been provided in the AGN RIN please enter into the tables. This may require the insertion of new lines in each table.
A11: CM | B11: Contract meters | E11: Reported expenditure is to be entered EXCLUSIVE of any profit margins or management fees paid pursuant to arrangements or contracts with any related parties or network operator. Include any related party margins or management fees in the separate 'Related party and/or network operator margin' line item.
A12: RC | B12: Regulatory costs | E12: =CONCATENATE("Subject to cl.7.1 of the ", dms_TradingName, " RIN, where linked/adjustable escalation is not provided in the ", dms_TradingName, " capex model, escalation should be linked to allocations derived in tab '2 - Escalators'.") -> Subject to cl.7.1 of the AGN RIN, where linked/adjustable escalation is not provided in the AGN capex model, escalation should be linked to allocations derived in tab '2 - Escalators'.
A13: ITS | B13: IT System | E13: =CONCATENATE("Subject to cl.7.1 of the ", dms_TradingName, " RIN, where linked/adjustable overhead costs and related party margin costs is not provided in the ", dms_TradingName, " capex model, overhead costs and related party margin costs should be linked to allocations derived in tabs '12 - Overheads' and '13 - Related party transactions'.") -> Subject to cl.7.1 of the AGN RIN, where linked/adjustable overhead costs and related party margin costs is not provided in the AGN capex model, overhead costs and related party margin costs should be linked to allocations derived in tabs '12 - Overheads' and '13 - Related party transactions'.
A14: ERC | B14: Equity raising costs | E14: Capital expenditure amounts entered should be GROSS of customer contributions. There is a separate line item for customer contributions from which net capital expenditure is derived.
E18: Table 6.1 - Mains replacement (actual/forecast)
E20: Table 6.1.1 - Proactive mains replacement
G21: Previous access arrangement period | L21: Current access arrangement period | Q21: Next access arrangement period | W21: Previous access arrangement period | AC21: Current access arrangement period
G22: $0's, Nominal | P22: =CONCATENATE("$0's, Real ",dms_DollarReal) -> $0's, Real June 2016 | W22: $0's, Nominal | AB22: Variance | AC22: =CONCATENATE("$0's, Real ",dms_DollarReal) -> $0's, Real June 2016 | AH22: Variance
G23: Actual | P23: Forecast | W23: Approved | AB23: Actual v approved | AC23: Approved | AH23: Actual v approved
G24: =PRCP -> 2006-07 | H24: 2007-08 | I24: 2008-09 | J24: 2009-10 | K24: 2010-11 | L24: =CRCP_y1 -> 2011-12 | M24: =CRCP_y2 -> 2012-13 | N24: =CRCP_y3 -> 2013-14 | O24: =CRCP_y4 -> 2014-15 | P24: =CRCP_y5 -> 2015-16 | Q24: =FRCP -> 2016-17 | R24: 2017-18 | S24: 2018-19 | T24: 2019-20 | U24: 2020-21 | W24: =PRCP -> 2006-07 | X24: 2007-08 | Y24: 2008-09 | Z24: 2009-10 | AA24: 2010-11 | AB24: % | AC24: =CRCP_y1 -> 2011-12 | AD24: =CRCP_y2 -> 2012-13 | AE24: =CRCP_y3 -> 2013-14 | AF24: =CRCP_y4 -> 2014-15 | AG24: =CRCP_y5 -> 2015-16 | AH24: %
E25: Pressure Increase | F25: Length of mains replaced (metres) | AB25: =SUM(G25:K25)/SUM(W25:AA25)-1 ->  | AH25: =SUM(L25:P25)/SUM(AC25:AG25)-1 -> 
F26: Low pressure - High Pressure | L26: 158796 | M26: 196702 | N26: 259129 | O26: 243778 | P26: 215000 | Q26: 159000 | R26: 159000 | S26: 158500 | T26: 159000 | U26: 159000
F27: Low pressure - Medium Pressure
F28: Low pressure - Low Pressure
F29: Medium Pressure - Medium Pressure
F30: Medium Pressure - High Pressure
F31: Total volume of proactive mains replaced | L31: =SUM(L26:L29) -> 158796 | M31: =SUM(M26:M29) -> 196702 | N31: 259129 | O31: 243778 | P31: 215000 | Q31: 159000 | R31: 159000 | S31: 158500 | T31: 159000 | U31: 159000 | W31: =SUM(W26:W30) -> 0 | X31: =SUM(X26:X30) -> 0 | Y31: =SUM(Y26:Y30) -> 0 | Z31: =SUM(Z26:Z30) -> 0 | AA31: =SUM(AA26:AA30) -> 0 | AC31: =SUM(AC26:AC30) -> 0 | AD31: =SUM(AD26:AD30) -> 0 | AE31: =SUM(AE26:AE30) -> 0 | AF31: =SUM(AF26:AF30) -> 0 | AG31: =SUM(AG26:AG30) -> 0
F32: Direct costs excluding escalation
F33: Direct contractor cost of mains replaced | L33: 14479404.47 | M33: 25685182.2 | N33: 34431923.92 | O33: 36763039.61 | P33: 41661119.54 | Q33: 32815161.29 | R33: 34135468.69 | S33: 32035440.23 | T33: 31672178.37 | U33: 27872368.12
F34: Direct internal labour cost of mains replaced | L34: 1395593.417 | M34: 2768791.672 | N34: 2306946.629 | O34: 1326385.622 | P34: 1975901.328 | Q34: 1469259.962 | R34: 1499658.444 | S34: 1514857.685 | T34: 1530056.926 | U34: 1611119.545
F35: Other internal direct cost of mains replaced | L35: 4517754.904 | M35: 4466357.529 | N35: 5718849.249 | O35: 4230146.075 | P35: 5253870.968 | Q35: 3920390.892 | R35: 3677203.036 | S35: 3357512.334 | T35: 3259730.55 | U35: 2416679.317
F36: Total direct cost of mains replaced | L36: 20392752.79 | M36: 32920331.4 | N36: 42457719.8 | O36: =SUM(O33:O35) -> 42319571.3 | P36: 48890891.84 | Q36: 38204812.14 | R36: =SUM(R33:R35) -> 39312330.17 | S36: 36907810.25 | T36: 36461965.84 | U36: 31900166.98 | W36: 0 | X36: 0 | Y36: 0 | Z36: 0 | AA36: =SUM(AA33:AA35) -> 0 | AB36: =SUM(G36:K36)/SUM(W36:AA36)-1 ->  | AC36: =SUM(AC33:AC35) -> 0 | AD36: =SUM(AD33:AD35) -> 0 | AE36: =SUM(AE33:AE35) -> 0 | AF36: =SUM(AF33:AF35) -> 0 | AG36: =SUM(AG33:AG35) -> 0 | AH36: =SUM(L36:P36)/SUM(AC36:AG36)-1 -> 
F37: Escalation | L37: 0 | M37: 0 | N37: 0 | Q37: 242283.6287 | R37: 587859.7754 | S37: 924808.452 | T37: 1358723.767 | U37: 1762583.922
F38: Total direct cost of mains replaced (incl. escalation) | G38: 5756533.01 | H38: 9357216.5 | I38: 7830221.35 | J38: 9215470.4 | K38: 13973888.06 | L38: 20392752.79 | M38: 32920331.4 | N38: 42457719.8 | O38: =SUM(O36:O37) -> 42319571.3 | P38: 48890891.84 | Q38: 38447095.77 | R38: 39900189.95 | S38: 37832618.7 | T38: 37820689.61 | U38: 33662750.9 | W38: 0 | X38: 0 | Y38: 0 | Z38: 0 | AA38: 0 | AC38: =SUM(AC36:AC37) -> 0 | AD38: =SUM(AD36:AD37) -> 0 | AE38: =SUM(AE36:AE37) -> 0 | AF38: =SUM(AF36:AF37) -> 0 | AG38: =SUM(AG36:AG37) -> 0 | AH38: =SUM(L38:P38)/SUM(AC38:AG38)-1 -> 
F39: Total overhead costs of mains replaced | L39: 2510966.531 | M39: 3117342.051 | N39: 3556076.956 | O39: 4079606.674 | P39: 4713081.973 | Q39: 3787947.268 | R39: 3922361.856 | S39: 3724134.121 | T39: 3724787.05 | U39: 3328754.008 | AB39: =SUM(G39:K39)/SUM(W39:AA39)-1 ->  | AH39: =SUM(L39:P39)/SUM(AC39:AG39)-1 -> 
F40: Related party and/or network operator margin | L40: 0 | M40: 0 | N40: 0
F41: Gross total cost of mains replaced (incl. escalation) | G41: 5756533.01 | H41: 9357216.5 | I41: 7830221.35 | J41: 9215470.4 | K41: =+K38 -> 13973888.06 | L41: 22903719.32 | M41: 36037673.45 | N41: 46013796.76 | O41: =SUM(O38:O40) -> 46399177.98 | P41: 53603973.81 | Q41: 42235043.04 | R41: 43822551.8 | S41: 41556752.82 | T41: 41545476.66 | U41: 36991504.91 | W41: 0 | X41: 0 | Y41: 0 | Z41: 0 | AA41: 0 | AB41: =SUM(G41:K41)/SUM(W41:AA41)-1 ->  | AC41: =SUM(AC38:AC40) -> 0 | AD41: =SUM(AD38:AD40) -> 0 | AE41: =SUM(AE38:AE40) -> 0 | AF41: =SUM(AF38:AF40) -> 0 | AG41: =SUM(AG38:AG40) -> 0 | AH41: =SUM(L41:P41)/SUM(AC41:AG41)-1 -> 
F42: Less customer contributions | G42: 0 | H42: 0 | I42: 0 | J42: 0 | K42: 0 | L42: 0 | M42: 0 | N42: 0
F43: Net total cost of mains replaced (incl. escalation) | G43: 5756533.01 | H43: 9357216.5 | I43: 7830221.35 | J43: 9215470.4 | K43: =+K41 -> 13973888.06 | L43: 22903719.32 | M43: 36037673.45 | N43: 46013796.76 | O43: =O41-O42 -> 46399177.98 | P43: =P41-P42 -> 53603973.81 | Q43: 42235043.04 | R43: 43822551.8 | S43: 41556752.82 | T43: =T41-T42 -> 41545476.66 | U43: 36991504.91 | W43: 0 | X43: 0 | Y43: 0 | Z43: 0 | AA43: 0 | AB43: =SUM(G43:K43)/SUM(W43:AA43)-1 ->  | AC43: =AC41-AC42 -> 0 | AD43: =AD41-AD42 -> 0 | AE43: =AE41-AE42 -> 0 | AF43: =AF41-AF42 -> 0 | AG43: =AG41-AG42 -> 0 | AH43: =SUM(L43:P43)/SUM(AC43:AG43)-1 -> 
E44: HDPE | F44: Length of mains replaced (metres)
F45: Same Pressure | O45: 24500 | P45: 69200 | Q45: 75949 | R45: 75949 | S45: 82985 | T45: 82985 | U45: 82985
F46: Low pressure - Medium Pressure
F47: Low pressure - Low Pressure
F48: Medium Pressure - Medium Pressure
F49: Medium Pressure - High Pressure
F50: Total volume of proactive mains replaced | L50: =SUM(L45:L49) -> 0 | M50: =SUM(M45:M49) -> 0 | N50: 0 | O50: 24500 | P50: 69200 | Q50: 75949 | R50: 75949 | S50: 82985 | T50: 82985 | U50: 82985 | W50: =SUM(W45:W49) -> 0 | X50: =SUM(X45:X49) -> 0 | Y50: =SUM(Y45:Y49) -> 0 | Z50: =SUM(Z45:Z49) -> 0 | AA50: =SUM(AA45:AA49) -> 0 | AC50: =SUM(AC45:AC49) -> 0 | AD50: =SUM(AD45:AD49) -> 0 | AE50: =SUM(AE45:AE49) -> 0 | AF50: =SUM(AF45:AF49) -> 0 | AG50: =SUM(AG45:AG49) -> 0
F51: Direct costs excluding escalation
F52: Direct contractor cost of mains replaced | O52: 4715760 | P52: 17821859.89 | Q52: 19558875.76 | R52: 19558875.76 | S52: 21369757.91 | T52: 24203463.87 | U52: 24203463.87
F53: Direct internal labour cost of mains replaced | O53: 0 | P53: 0 | Q53: 0 | R53: 0 | S53: 0 | T53: 0 | U53: 0
F54: Other internal direct cost of mains replaced | O54: 1249500 | P54: 3576077.419 | Q54: 3924848.323 | R54: 3924848.323 | S54: 4288450.645 | T54: 4288450.645 | U54: 4288450.645
F55: Total direct cost of mains replaced | O55: =SUM(O52:O54) -> 5965260 | P55: 21397937.31 | Q55: 23483724.08 | R55: =SUM(R52:R54) -> 23483724.08 | S55: 25658208.56 | T55: 28491914.52 | U55: 28491914.52 | W55: 0 | X55: 0 | Y55: 0 | Z55: 0 | AA55: =SUM(AA52:AA54) -> 0 | AB55: =SUM(G55:K55)/SUM(W55:AA55)-1 ->  | AC55: =SUM(AC52:AC54) -> 0 | AD55: =SUM(AD52:AD54) -> 0 | AE55: =SUM(AE52:AE54) -> 0 | AF55: =SUM(AF52:AF54) -> 0 | AG55: =SUM(AG52:AG54) -> 0 | AH55: =SUM(L55:P55)/SUM(AC55:AG55)-1 -> 
F56: Escalation | Q56: 148926.8384 | R56: 351165.5683 | S56: 642924.3019 | T56: 1061726.665 | U56: 1574267.321
F57: Total direct cost of mains replaced (incl. escalation) | O57: =SUM(O55:O56) -> 5965260 | P57: 21397937.31 | Q57: 23632650.92 | R57: 23834889.65 | S57: 26301132.86 | T57: 29553641.18 | U57: 30066181.84 | W57: 0 | X57: 0 | Y57: 0 | Z57: 0 | AA57: 0 | AC57: =SUM(AC55:AC56) -> 0 | AD57: =SUM(AD55:AD56) -> 0 | AE57: =SUM(AE55:AE56) -> 0 | AF57: =SUM(AF55:AF56) -> 0 | AG57: =SUM(AG55:AG56) -> 0 | AH57: =SUM(L57:P57)/SUM(AC57:AG57)-1 -> 
F58: Total overhead costs of mains replaced | O58: 575051.064 | P58: 2062761.156 | Q58: 2328374.45 | R58: 2343073.106 | S58: 2589007.837 | T58: 2910603.193 | U58: 2973105.899 | AB58: =SUM(G58:K58)/SUM(W58:AA58)-1 ->  | AH58: =SUM(L58:P58)/SUM(AC58:AG58)-1 -> 
F59: Related party and/or network operator margin
F60: Gross total cost of mains replaced (incl. escalation) | G60: =SUM(G57:G59) -> 0 | H60: 0 | I60: 0 | J60: 0 | K60: 0 | O60: =SUM(O57:O59) -> 6540311.064 | P60: 23460698.46 | Q60: 25961025.37 | R60: 26177962.75 | S60: 28890140.7 | T60: 32464244.37 | U60: 33039287.74 | W60: 0 | X60: 0 | Y60: 0 | Z60: 0 | AA60: 0 | AB60: =SUM(G60:K60)/SUM(W60:AA60)-1 ->  | AC60: =SUM(AC57:AC59) -> 0 | AD60: =SUM(AD57:AD59) -> 0 | AE60: =SUM(AE57:AE59) -> 0 | AF60: =SUM(AF57:AF59) -> 0 | AG60: =SUM(AG57:AG59) -> 0 | AH60: =SUM(L60:P60)/SUM(AC60:AG60)-1 -> 
F61: Less customer contributions
F62: Net total cost of mains replaced (incl. escalation) | G62: =G60-G61 -> 0 | H62: =H60-H61 -> 0 | I62: 0 | J62: 0 | K62: 0 | O62: =O60-O61 -> 6540311.064 | P62: 23460698.46 | Q62: 25961025.37 | R62: 26177962.75 | S62: 28890140.7 | T62: 32464244.37 | U62: =U60-U61 -> 33039287.74 | W62: 0 | X62: 0 | Y62: 0 | Z62: 0 | AA62: 0 | AB62: =SUM(G62:K62)/SUM(W62:AA62)-1 ->  | AC62: =AC60-AC61 -> 0 | AD62: =AD60-AD61 -> 0 | AE62: =AE60-AE61 -> 0 | AF62: =AF60-AF61 -> 0 | AG62: =AG60-AG61 -> 0 | AH62: =SUM(L62:P62)/SUM(AC62:AG62)-1 -> 
E64: Total of all projects | F64: Length of mains replaced (metres) | L64: =SUMIF($F$63:$AH$63,"Length of mains replaced (metres)",M63:M63) -> 0 | M64: =SUMIF($F$63:$AH$63,"Length of mains replaced (metres)",M63:M63) -> 0 | N64: 0 | O64: 0 | P64: 0 | Q64: 0 | R64: 0 | S64: 0 | T64: 0 | U64: 0 | W64: =SUMIF($F$63:$AH$63,"Length of mains replaced (metres)",W63:W63) -> 0 | X64: 0 | Y64: 0 | Z64: 0 | AA64: 0 | AB64: 0 | AC64: 0 | AD64: 0 | AE64: 0 | AF64: 0 | AG64: 0 | AH64: 0
F65: Direct costs excluding escalation
F66: Direct contractor cost of mains replaced | L66: 14479404.47 | M66: 25685182.2 | N66: 34431923.92 | O66: =SUMIF($F$25:$F$62,$F66,O$25:O$62) -> 41478799.61 | P66: =SUMIF($F$25:$F$62,$F66,P$25:P$62) -> 59482979.43 | Q66: =SUMIF($F$25:$F$62,$F66,Q$25:Q$62) -> 52374037.05 | R66: 53694344.45 | S66: 53405198.14 | T66: 55875642.24 | U66: 52075831.99 | W66: =SUMIF($F$63:$AH$63,"Direct contractor cost of mains replaced (excl. escalation)",W63:W63) -> 0 | X66: 0 | Y66: 0 | Z66: 0 | AA66: 0 | AB66: 0 | AC66: 0 | AD66: 0 | AE66: 0 | AF66: 0 | AG66: 0 | AH66: 0
F67: Direct internal labour cost of mains replaced | L67: 1395593.417 | M67: 2768791.672 | N67: 2306946.629 | O67: =SUMIF($F$25:$F$62,$F67,O$25:O$62) -> 1326385.622 | P67: 1975901.328 | Q67: 1469259.962 | R67: 1499658.444 | S67: 1514857.685 | T67: 1530056.926 | U67: 1611119.545 | W67: =SUMIF($F$63:$AH$63,"Direct internal labour cost of mains replaced (excl. escalation)",W63:W63) -> 0 | X67: 0 | Y67: 0 | Z67: 0 | AA67: 0 | AB67: 0 | AC67: 0 | AD67: 0 | AE67: 0 | AF67: 0 | AG67: 0 | AH67: 0
F68: Other internal direct cost of mains replaced | L68: 4517754.904 | M68: 4466357.529 | N68: 5718849.249 | O68: 5479646.075 | P68: 8829948.387 | Q68: 7845239.214 | R68: 7602051.359 | S68: 7645962.979 | T68: 7548181.195 | U68: 6705129.962 | W68: =SUMIF($F$63:$AH$63,"Direct material cost of mains replaced (excl. escalation)",W63:W63) -> 0 | X68: 0 | Y68: 0 | Z68: 0 | AA68: 0 | AB68: 0 | AC68: 0 | AD68: 0 | AE68: 0 | AF68: 0 | AG68: 0 | AH68: 0
F69: Total direct cost of mains replaced | L69: =SUM(L66:L68) -> 20392752.79 | M69: 32920331.4 | N69: 42457719.8 | O69: =SUM(O66:O68) -> 48284831.3 | P69: =SUM(P66:P68) -> 70288829.15 | Q69: 61688536.22 | R69: 62796054.25 | S69: 62566018.8 | T69: 64953880.36 | U69: 60392081.5 | W69: =SUMIF($F$63:$AH$63,"Total direct cost of mains replaced (excl. escalation)",W63:W63) -> 0 | X69: 0 | Y69: 0 | Z69: 0 | AA69: 0 | AB69: 0 | AC69: 0 | AD69: 0 | AE69: 0 | AF69: 0 | AG69: 0 | AH69: 0
F70: Escalation | L70: 0 | M70: 0 | N70: 0 | O70: 0 | P70: 0 | Q70: 391210.4671 | R70: 939025.3437 | S70: 1567732.754 | T70: 2420450.432 | U70: 3336851.243 | W70: =SUMIF($F$63:$AH$63,"Escalation",W63:W63) -> 0 | X70: 0 | Y70: 0 | Z70: 0 | AA70: 0 | AB70: 0 | AC70: 0 | AD70: 0 | AE70: 0 | AF70: 0 | AG70: 0 | AH70: 0
F71: Total direct cost of mains replaced (incl. escalation) | G71: 5756533.01 | H71: 9357216.5 | I71: 7830221.35 | J71: 9215470.4 | K71: =+K38 -> 13973888.06 | L71: 20392752.79 | M71: 32920331.4 | N71: 42457719.8 | O71: =SUM(O69:O70) -> 48284831.3 | P71: =SUM(P69:P70) -> 70288829.15 | Q71: =SUM(Q69:Q70) -> 62079746.69 | R71: 63735079.59 | S71: 64133751.56 | T71: 67374330.79 | U71: 63728932.74 | W71: =SUMIF($F$63:$AH$63,"Total direct cost of mains replaced (incl. escalation)",W63:W63) -> 0 | X71: 0 | Y71: 0 | Z71: 0 | AA71: 0 | AB71: 0 | AC71: 0 | AD71: 0 | AE71: 0 | AF71: 0 | AG71: 0 | AH71: 0
F72: Total overhead costs of mains replaced | G72: 0 | H72: 0 | I72: 0 | J72: 0 | K72: 0 | L72: 2510966.531 | M72: 3117342.051 | N72: 3556076.956 | O72: =SUMIF($F$25:$F$62,$F72,O$25:O$62) -> 4654657.738 | P72: =SUMIF($F$25:$F$62,$F72,P$25:P$62) -> 6775843.13 | Q72: 6116321.718 | R72: 6265434.962 | S72: 6313141.958 | T72: 6635390.244 | U72: 6301859.908 | W72: =SUMIF($F$63:$AH$63,"Total overhead costs of mains replaced",W63:W63) -> 0 | X72: 0 | Y72: 0 | Z72: 0 | AA72: 0 | AB72: 0 | AC72: 0 | AD72: 0 | AE72: 0 | AF72: 0 | AG72: 0 | AH72: 0
F73: Related party and/or network operator margin | G73: 0 | H73: 0 | I73: 0 | J73: 0 | K73: 0 | L73: 0 | M73: 0 | N73: 0 | O73: =SUMIF($F$63:$AH$63,"Related party margin",O63:O63) -> 0 | P73: 0 | Q73: 0 | R73: 0 | S73: 0 | T73: 0 | U73: 0 | W73: =SUMIF($F$63:$AH$63,"Related party margin",W63:W63) -> 0 | X73: 0 | Y73: 0 | Z73: 0 | AA73: 0 | AB73: 0 | AC73: 0 | AD73: 0 | AE73: 0 | AF73: 0 | AG73: 0 | AH73: 0
F74: Gross total cost of mains replaced (incl. escalation) | G74: =SUM(G71:G73) -> 5756533.01 | H74: 9357216.5 | I74: 7830221.35 | J74: 9215470.4 | K74: 13973888.06 | L74: 22903719.32 | M74: 36037673.45 | N74: 46013796.76 | O74: =SUM(O71:O73) -> 52939489.04 | P74: =SUM(P71:P73) -> 77064672.28 | Q74: 68196068.41 | R74: 70000514.56 | S74: 70446893.52 | T74: 74009721.04 | U74: 70030792.65 | W74: =SUM(W71:W73) -> 0 | X74: 0 | Y74: 0 | Z74: 0 | AA74: 0 | AB74: 0 | AC74: 0 | AD74: 0 | AE74: =SUM(AE71:AE73) -> 0 | AF74: 0 | AG74: 0 | AH74: 0
F75: Less customer contributions | G75: 0 | H75: 0 | I75: 0 | J75: 0 | K75: 0 | L75: 0 | M75: 0 | N75: 0 | O75: =SUMIF($F$63:$AH$63,"Less customer contributions",O63:O63) -> 0 | P75: 0 | Q75: 0 | R75: 0 | S75: 0 | T75: 0 | U75: 0 | W75: =SUMIF($F$63:$AH$63,"Less customer contributions",W63:W63) -> 0 | X75: 0 | Y75: 0 | Z75: 0 | AA75: 0 | AB75: 0 | AC75: 0 | AD75: 0 | AE75: 0 | AF75: 0 | AG75: 0 | AH75: 0
F76: Net total cost of mains replaced (incl. escalation) | G76: =SUM(G74:G75) -> 5756533.01 | H76: =SUM(H74:H75) -> 9357216.5 | I76: 7830221.35 | J76: 9215470.4 | K76: 13973888.06 | L76: 22903719.32 | M76: 36037673.45 | N76: 46013796.76 | O76: 52939489.04 | P76: 77064672.28 | Q76: 68196068.41 | R76: 70000514.56 | S76: 70446893.52 | T76: 74009721.04 | U76: 70030792.65 | W76: =SUMIF($F$63:$AH$63,"Net total cost of mains replaced (incl. escalation)",W63:W63) -> 0 | X76: 0 | Y76: 0 | Z76: 0 | AA76: 0 | AB76: 0 | AC76: 0 | AD76: 0 | AE76: 0 | AF76: 0 | AG76: 0 | AH76: 0
E77: Source(s) of data: | F77: 2006/07 to 2008/09 sourced from the SA Capex Past Performance Submission model. 2009/10 to 2013/14 sourced from the Capex Ring Fenced Accounts and the SA Annual RIN's. Forecast data has been sourced from the Mains Replacement Plan submitted as Attachment 8.2 of the AAI.
E80: Table 6.1.1a - Mains replacement (actual/forecast) by project
E82: Table 6.1.1 - Proactive mains replacement
G83: Previous access arrangement period | L83: Current access arrangement period | Q83: Next access arrangement period | W83: Previous access arrangement period | AC83: Current access arrangement period
G84: $0's, Nominal | P84: =CONCATENATE("$0's, Real ",dms_DollarReal) -> $0's, Real June 2016 | W84: $0's, Nominal | AB84: Variance | AC84: =CONCATENATE("$0's, Real ",dms_DollarReal) -> $0's, Real June 2016 | AH84: Variance
G85: Actual | P85: Forecast | W85: Approved | AB85: Actual v approved | AC85: Approved | AH85: Actual v approved
G86: =PRCP -> 2006-07 | H86: 2007-08 | I86: 2008-09 | J86: 2009-10 | K86: 2010-11 | L86: =CRCP_y1 -> 2011-12 | M86: =CRCP_y2 -> 2012-13 | N86: =CRCP_y3 -> 2013-14 | O86: =CRCP_y4 -> 2014-15 | P86: =CRCP_y5 -> 2015-16 | Q86: =FRCP -> 2016-17 | R86: 2017-18 | S86: 2018-19 | T86: 2019-20 | U86: 2020-21 | W86: =PRCP -> 2006-07 | X86: 2007-08 | Y86: 2008-09 | Z86: 2009-10 | AA86: 2010-11 | AB86: % | AC86: =CRCP_y1 -> 2011-12 | AD86: =CRCP_y2 -> 2012-13 | AE86: =CRCP_y3 -> 2013-14 | AF86: =CRCP_y4 -> 2014-15 | AG86: =CRCP_y5 -> 2015-16 | AH86: %
E87: Mitchell Park | F87: Length of mains replaced (metres) | AB87: =SUM(G87:K87)/SUM(W87:AA87)-1 ->  | AH87: =SUM(L87:P87)/SUM(AC87:AG87)-1 -> 
F88: Low pressure - High Pressure | L88: 11480 | M88: 3981
F89: Low pressure - Medium Pressure
F90: Low pressure - Low Pressure
F91: Medium Pressure - Medium Pressure
F92: Medium Pressure - High Pressure
F93: Total volume of proactive mains replaced | L93: =SUM(L88:L91) -> 11480 | M93: =SUM(M88:M91) -> 3981 | W93: =SUM(W88:W92) -> 0 | X93: =SUM(X88:X92) -> 0 | Y93: =SUM(Y88:Y92) -> 0 | Z93: =SUM(Z88:Z92) -> 0 | AA93: =SUM(AA88:AA92) -> 0 | AC93: =SUM(AC88:AC92) -> 0 | AD93: =SUM(AD88:AD92) -> 0 | AE93: =SUM(AE88:AE92) -> 0 | AF93: =SUM(AF88:AF92) -> 0 | AG93: =SUM(AG88:AG92) -> 0
F94: Direct costs excluding escalation
F95: Direct contractor cost of mains replaced | L95: 810226.4242 | M95: 376968.1005
F96: Direct internal labour cost of mains replaced | L96: 78093.45105 | M96: 40636.11967
F97: Other internal direct cost of mains replaced | L97: 252800.7564 | M97: 65550.4135
F98: Total direct cost of mains replaced | L98: =SUM(L95:L97) -> 1141120.632 | M98: =SUM(M95:M97) -> 483154.6337 | W98: =SUM(W95:W97) -> 0 | X98: 0 | Y98: 0 | Z98: 0 | AA98: =SUM(AA95:AA97) -> 0 | AB98: =SUM(G98:K98)/SUM(W98:AA98)-1 ->  | AC98: =SUM(AC95:AC97) -> 0 | AD98: =SUM(AD95:AD97) -> 0 | AE98: =SUM(AE95:AE97) -> 0 | AF98: =SUM(AF95:AF97) -> 0 | AG98: =SUM(AG95:AG97) -> 0 | AH98: =SUM(L98:P98)/SUM(AC98:AG98)-1 -> 
F99: Escalation
F100: Total direct cost of mains replaced (incl. escalation) | L100: =L98 -> 1141120.632 | M100: =M98 -> 483154.6337 | W100: =SUM(W98:W99) -> 0 | X100: 0 | Y100: 0 | Z100: 0 | AA100: 0 | AC100: =SUM(AC98:AC99) -> 0 | AD100: =SUM(AD98:AD99) -> 0 | AE100: =SUM(AE98:AE99) -> 0 | AF100: =SUM(AF98:AF99) -> 0 | AG100: =SUM(AG98:AG99) -> 0 | AH100: =SUM(L100:P100)/SUM(AC100:AG100)-1 -> 
F101: Total overhead costs of mains replaced | L101: 140506.5683 | M101: 45751.61284 | AB101: =SUM(G101:K101)/SUM(W101:AA101)-1 ->  | AH101: =SUM(L101:P101)/SUM(AC101:AG101)-1 -> 
F102: Related party and/or network operator margin
F103: Gross total cost of mains replaced (incl. escalation) | L103: =L100+L101 -> 1281627.2 | M103: =M100+M101 -> 528906.2465 | W103: =SUM(W100:W102) -> 0 | X103: 0 | Y103: 0 | Z103: 0 | AA103: 0 | AB103: =SUM(G103:K103)/SUM(W103:AA103)-1 ->  | AC103: =SUM(AC100:AC102) -> 0 | AD103: =SUM(AD100:AD102) -> 0 | AE103: =SUM(AE100:AE102) -> 0 | AF103: =SUM(AF100:AF102) -> 0 | AG103: =SUM(AG100:AG102) -> 0 | AH103: =SUM(L103:P103)/SUM(AC103:AG103)-1 -> 
F104: Less customer contributions
F105: Net total cost of mains replaced (incl. escalation) | L105: =L103 -> 1281627.2 | M105: =M103 -> 528906.2465 | W105: =W103-W104 -> 0 | X105: 0 | Y105: 0 | Z105: 0 | AA105: 0 | AB105: =SUM(G105:K105)/SUM(W105:AA105)-1 ->  | AC105: =AC103-AC104 -> 0 | AD105: =AD103-AD104 -> 0 | AE105: =AE103-AE104 -> 0 | AF105: =AF103-AF104 -> 0 | AG105: =AG103-AG104 -> 0 | AH105: =SUM(L105:P105)/SUM(AC105:AG105)-1 -> 
E106: Toorak Gardens | F106: Length of mains replaced (metres) | AB106: =SUM(G106:K106)/SUM(W106:AA106)-1 ->  | AH106: =SUM(L106:P106)/SUM(AC106:AG106)-1 -> 
F107: Low pressure - High Pressure | L107: 4029
F108: Low pressure - Medium Pressure
F109: Low pressure - Low Pressure
F110: Medium Pressure - Medium Pressure
F111: Medium Pressure - High Pressure
F112: Total volume of proactive mains replaced | L112: =SUM(L107:L110) -> 4029 | W112: =SUM(W107:W111) -> 0 | X112: =SUM(X107:X111) -> 0 | Y112: =SUM(Y107:Y111) -> 0 | Z112: =SUM(Z107:Z111) -> 0 | AA112: =SUM(AA107:AA111) -> 0 | AC112: =SUM(AC107:AC111) -> 0 | AD112: =SUM(AD107:AD111) -> 0 | AE112: =SUM(AE107:AE111) -> 0 | AF112: =SUM(AF107:AF111) -> 0 | AG112: =SUM(AG107:AG111) -> 0
F113: Direct costs excluding escalation
F114: Direct contractor cost of mains replaced | L114: 284355.5978
F115: Direct internal labour cost of mains replaced | L115: 27407.53609
F116: Other internal direct cost of mains replaced | L116: 88722.49542
F117: Total direct cost of mains replaced | L117: =SUM(L114:L116) -> 400485.6293 | W117: =SUM(W114:W116) -> 0 | X117: 0 | Y117: 0 | Z117: 0 | AA117: =SUM(AA114:AA116) -> 0 | AB117: =SUM(G117:K117)/SUM(W117:AA117)-1 ->  | AC117: =SUM(AC114:AC116) -> 0 | AD117: =SUM(AD114:AD116) -> 0 | AE117: =SUM(AE114:AE116) -> 0 | AF117: =SUM(AF114:AF116) -> 0 | AG117: =SUM(AG114:AG116) -> 0 | AH117: =SUM(L117:P117)/SUM(AC117:AG117)-1 -> 
F118: Escalation
F119: Total direct cost of mains replaced (incl. escalation) | L119: =L117 -> 400485.6293 | W119: =SUM(W117:W118) -> 0 | X119: 0 | Y119: 0 | Z119: 0 | AA119: 0 | AC119: =SUM(AC117:AC118) -> 0 | AD119: =SUM(AD117:AD118) -> 0 | AE119: =SUM(AE117:AE118) -> 0 | AF119: =SUM(AF117:AF118) -> 0 | AG119: =SUM(AG117:AG118) -> 0 | AH119: =SUM(L119:P119)/SUM(AC119:AG119)-1 -> 
F120: Total overhead costs of mains replaced | L120: 49311.93065 | AB120: =SUM(G120:K120)/SUM(W120:AA120)-1 ->  | AH120: =SUM(L120:P120)/SUM(AC120:AG120)-1 -> 
F121: Related party and/or network operator margin
F122: Gross total cost of mains replaced (incl. escalation) | L122: =L119+L120 -> 449797.56 | W122: =SUM(W119:W121) -> 0 | X122: 0 | Y122: 0 | Z122: 0 | AA122: 0 | AB122: =SUM(G122:K122)/SUM(W122:AA122)-1 ->  | AC122: =SUM(AC119:AC121) -> 0 | AD122: =SUM(AD119:AD121) -> 0 | AE122: =SUM(AE119:AE121) -> 0 | AF122: =SUM(AF119:AF121) -> 0 | AG122: =SUM(AG119:AG121) -> 0 | AH122: =SUM(L122:P122)/SUM(AC122:AG122)-1 -> 
F123: Less customer contributions
F124: Net total cost of mains replaced (incl. escalation) | L124: =L122 -> 449797.56 | W124: =W122-W123 -> 0 | X124: 0 | Y124: 0 | Z124: 0 | AA124: 0 | AB124: =SUM(G124:K124)/SUM(W124:AA124)-1 ->  | AC124: =AC122-AC123 -> 0 | AD124: =AD122-AD123 -> 0 | AE124: =AE122-AE123 -> 0 | AF124: =AF122-AF123 -> 0 | AG124: =AG122-AG123 -> 0 | AH124: =SUM(L124:P124)/SUM(AC124:AG124)-1 -> 
E125: Campbelltown | F125: Length of mains replaced (metres) | AB125: =SUM(G125:K125)/SUM(W125:AA125)-1 ->  | AH125: =SUM(L125:P125)/SUM(AC125:AG125)-1 -> 
F126: Low pressure - High Pressure | L126: 6467
F127: Low pressure - Medium Pressure
F128: Low pressure - Low Pressure
F129: Medium Pressure - Medium Pressure
F130: Medium Pressure - High Pressure
F131: Total volume of proactive mains replaced | L131: =SUM(L126:L129) -> 6467 | W131: =SUM(W126:W130) -> 0 | X131: =SUM(X126:X130) -> 0 | Y131: =SUM(Y126:Y130) -> 0 | Z131: =SUM(Z126:Z130) -> 0 | AA131: =SUM(AA126:AA130) -> 0 | AC131: =SUM(AC126:AC130) -> 0 | AD131: =SUM(AD126:AD130) -> 0 | AE131: =SUM(AE126:AE130) -> 0 | AF131: =SUM(AF126:AF130) -> 0 | AG131: =SUM(AG126:AG130) -> 0
F132: Direct costs excluding escalation
F133: Direct contractor cost of mains replaced | L133: 456422.8472
F134: Direct internal labour cost of mains replaced | L134: 43992.19059
F135: Other internal direct cost of mains replaced | L135: 142409.6247
F136: Total direct cost of mains replaced | L136: =SUM(L133:L135) -> 642824.6624 | W136: =SUM(W133:W135) -> 0 | X136: 0 | Y136: 0 | Z136: 0 | AA136: =SUM(AA133:AA135) -> 0 | AB136: =SUM(G136:K136)/SUM(W136:AA136)-1 ->  | AC136: =SUM(AC133:AC135) -> 0 | AD136: =SUM(AD133:AD135) -> 0 | AE136: =SUM(AE133:AE135) -> 0 | AF136: =SUM(AF133:AF135) -> 0 | AG136: =SUM(AG133:AG135) -> 0 | AH136: =SUM(L136:P136)/SUM(AC136:AG136)-1 -> 
F137: Escalation
F138: Total direct cost of mains replaced (incl. escalation) | L138: =L136 -> 642824.6624 | W138: =SUM(W136:W137) -> 0 | X138: 0 | Y138: 0 | Z138: 0 | AA138: 0 | AC138: =SUM(AC136:AC137) -> 0 | AD138: =SUM(AD136:AD137) -> 0 | AE138: =SUM(AE136:AE137) -> 0 | AF138: =SUM(AF136:AF137) -> 0 | AG138: =SUM(AG136:AG137) -> 0 | AH138: =SUM(L138:P138)/SUM(AC138:AG138)-1 -> 
F139: Total overhead costs of mains replaced | L139: 79151.21755 | AB139: =SUM(G139:K139)/SUM(W139:AA139)-1 ->  | AH139: =SUM(L139:P139)/SUM(AC139:AG139)-1 -> 
F140: Related party and/or network operator margin
F141: Gross total cost of mains replaced (incl. escalation) | L141: =L138+L139 -> 721975.88 | W141: =SUM(W138:W140) -> 0 | X141: 0 | Y141: 0 | Z141: 0 | AA141: 0 | AB141: =SUM(G141:K141)/SUM(W141:AA141)-1 ->  | AC141: =SUM(AC138:AC140) -> 0 | AD141: =SUM(AD138:AD140) -> 0 | AE141: =SUM(AE138:AE140) -> 0 | AF141: =SUM(AF138:AF140) -> 0 | AG141: =SUM(AG138:AG140) -> 0 | AH141: =SUM(L141:P141)/SUM(AC141:AG141)-1 -> 
F142: Less customer contributions
F143: Net total cost of mains replaced (incl. escalation) | L143: =L141 -> 721975.88 | W143: =W141-W142 -> 0 | X143: 0 | Y143: 0 | Z143: 0 | AA143: 0 | AB143: =SUM(G143:K143)/SUM(W143:AA143)-1 ->  | AC143: =AC141-AC142 -> 0 | AD143: =AD141-AD142 -> 0 | AE143: =AE141-AE142 -> 0 | AF143: =AF141-AF142 -> 0 | AG143: =AG141-AG142 -> 0 | AH143: =SUM(L143:P143)/SUM(AC143:AG143)-1 -> 
E144: Prospect | F144: Length of mains replaced (metres) | AB144: =SUM(G144:K144)/SUM(W144:AA144)-1 ->  | AH144: =SUM(L144:P144)/SUM(AC144:AG144)-1 -> 
F145: Low pressure - High Pressure | L145: 7456
F146: Low pressure - Medium Pressure
F147: Low pressure - Low Pressure
F148: Medium Pressure - Medium Pressure
F149: Medium Pressure - High Pressure
F150: Total volume of proactive mains replaced | L150: =SUM(L145:L148) -> 7456 | W150: =SUM(W145:W149) -> 0 | X150: =SUM(X145:X149) -> 0 | Y150: =SUM(Y145:Y149) -> 0 | Z150: =SUM(Z145:Z149) -> 0 | AA150: =SUM(AA145:AA149) -> 0 | AC150: =SUM(AC145:AC149) -> 0 | AD150: =SUM(AD145:AD149) -> 0 | AE150: =SUM(AE145:AE149) -> 0 | AF150: =SUM(AF145:AF149) -> 0 | AG150: =SUM(AG145:AG149) -> 0
F151: Direct costs excluding escalation
F152: Direct contractor cost of mains replaced | L152: 526223.7125
F153: Direct internal labour cost of mains replaced | L153: 50719.92779
F154: Other internal direct cost of mains replaced | L154: 164188.3658
F155: Total direct cost of mains replaced | L155: =SUM(L152:L154) -> 741132.0061 | W155: =SUM(W152:W154) -> 0 | X155: 0 | Y155: 0 | Z155: 0 | AA155: =SUM(AA152:AA154) -> 0 | AB155: =SUM(G155:K155)/SUM(W155:AA155)-1 ->  | AC155: =SUM(AC152:AC154) -> 0 | AD155: =SUM(AD152:AD154) -> 0 | AE155: =SUM(AE152:AE154) -> 0 | AF155: =SUM(AF152:AF154) -> 0 | AG155: =SUM(AG152:AG154) -> 0 | AH155: =SUM(L155:P155)/SUM(AC155:AG155)-1 -> 
F156: Escalation
F157: Total direct cost of mains replaced (incl. escalation) | L157: =L155 -> 741132.0061 | W157: =SUM(W155:W156) -> 0 | X157: 0 | Y157: 0 | Z157: 0 | AA157: 0 | AC157: =SUM(AC155:AC156) -> 0 | AD157: =SUM(AD155:AD156) -> 0 | AE157: =SUM(AE155:AE156) -> 0 | AF157: =SUM(AF155:AF156) -> 0 | AG157: =SUM(AG155:AG156) -> 0 | AH157: =SUM(L157:P157)/SUM(AC157:AG157)-1 -> 
F158: Total overhead costs of mains replaced | L158: 91255.83394 | AB158: =SUM(G158:K158)/SUM(W158:AA158)-1 ->  | AH158: =SUM(L158:P158)/SUM(AC158:AG158)-1 -> 
F159: Related party and/or network operator margin
F160: Gross total cost of mains replaced (incl. escalation) | L160: =L157+L158 -> 832387.84 | W160: =SUM(W157:W159) -> 0 | X160: 0 | Y160: 0 | Z160: 0 | AA160: 0 | AB160: =SUM(G160:K160)/SUM(W160:AA160)-1 ->  | AC160: =SUM(AC157:AC159) -> 0 | AD160: =SUM(AD157:AD159) -> 0 | AE160: =SUM(AE157:AE159) -> 0 | AF160: =SUM(AF157:AF159) -> 0 | AG160: =SUM(AG157:AG159) -> 0 | AH160: =SUM(L160:P160)/SUM(AC160:AG160)-1 -> 
F161: Less customer contributions
F162: Net total cost of mains replaced (incl. escalation) | L162: =L160 -> 832387.84 | W162: =W160-W161 -> 0 | X162: 0 | Y162: 0 | Z162: 0 | AA162: 0 | AB162: =SUM(G162:K162)/SUM(W162:AA162)-1 ->  | AC162: =AC160-AC161 -> 0 | AD162: =AD160-AD161 -> 0 | AE162: =AE160-AE161 -> 0 | AF162: =AF160-AF161 -> 0 | AG162: =AG160-AG161 -> 0 | AH162: =SUM(L162:P162)/SUM(AC162:AG162)-1 -> 
E163: Panorama | F163: Length of mains replaced (metres) | AB163: =SUM(G163:K163)/SUM(W163:AA163)-1 ->  | AH163: =SUM(L163:P163)/SUM(AC163:AG163)-1 -> 
F164: Low pressure - High Pressure | L164: 12300 | M164: 7177
F165: Low pressure - Medium Pressure
F166: Low pressure - Low Pressure
F167: Medium Pressure - Medium Pressure
F168: Medium Pressure - High Pressure
F169: Total volume of proactive mains replaced | L169: =SUM(L164:L167) -> 12300 | M169: =SUM(M164:M167) -> 7177 | W169: =SUM(W164:W168) -> 0 | X169: =SUM(X164:X168) -> 0 | Y169: =SUM(Y164:Y168) -> 0 | Z169: =SUM(Z164:Z168) -> 0 | AA169: =SUM(AA164:AA168) -> 0 | AC169: =SUM(AC164:AC168) -> 0 | AD169: =SUM(AD164:AD168) -> 0 | AE169: =SUM(AE164:AE168) -> 0 | AF169: =SUM(AF164:AF168) -> 0 | AG169: =SUM(AG164:AG168) -> 0
F170: Direct costs excluding escalation
F171: Direct contractor cost of mains replaced | L171: 868099.7402 | M171: 679603.1293
F172: Direct internal labour cost of mains replaced | L172: 83671.5547 | M172: 73259.33957
F173: Other internal direct cost of mains replaced | L173: 270857.9533 | M173: 118175.1614
F174: Total direct cost of mains replaced | L174: =SUM(L171:L173) -> 1222629.248 | M174: =SUM(M171:M173) -> 871037.6303 | W174: =SUM(W171:W173) -> 0 | X174: 0 | Y174: 0 | Z174: 0 | AA174: =SUM(AA171:AA173) -> 0 | AB174: =SUM(G174:K174)/SUM(W174:AA174)-1 ->  | AC174: =SUM(AC171:AC173) -> 0 | AD174: =SUM(AD171:AD173) -> 0 | AE174: =SUM(AE171:AE173) -> 0 | AF174: =SUM(AF171:AF173) -> 0 | AG174: =SUM(AG171:AG173) -> 0 | AH174: =SUM(L174:P174)/SUM(AC174:AG174)-1 -> 
F175: Escalation
F176: Total direct cost of mains replaced (incl. escalation) | L176: =L174 -> 1222629.248 | M176: =M174 -> 871037.6303 | W176: =SUM(W174:W175) -> 0 | X176: 0 | Y176: 0 | Z176: 0 | AA176: 0 | AC176: =SUM(AC174:AC175) -> 0 | AD176: =SUM(AD174:AD175) -> 0 | AE176: =SUM(AE174:AE175) -> 0 | AF176: =SUM(AF174:AF175) -> 0 | AG176: =SUM(AG174:AG175) -> 0 | AH176: =SUM(L176:P176)/SUM(AC176:AG176)-1 -> 
F177: Total overhead costs of mains replaced | L177: 150542.7518 | M177: 82481.61903 | AB177: =SUM(G177:K177)/SUM(W177:AA177)-1 ->  | AH177: =SUM(L177:P177)/SUM(AC177:AG177)-1 -> 
F178: Related party and/or network operator margin
F179: Gross total cost of mains replaced (incl. escalation) | L179: =L176+L177 -> 1373172 | M179: =M176+M177 -> 953519.2493 | W179: =SUM(W176:W178) -> 0 | X179: 0 | Y179: 0 | Z179: 0 | AA179: 0 | AB179: =SUM(G179:K179)/SUM(W179:AA179)-1 ->  | AC179: =SUM(AC176:AC178) -> 0 | AD179: =SUM(AD176:AD178) -> 0 | AE179: =SUM(AE176:AE178) -> 0 | AF179: =SUM(AF176:AF178) -> 0 | AG179: =SUM(AG176:AG178) -> 0 | AH179: =SUM(L179:P179)/SUM(AC179:AG179)-1 -> 
F180: Less customer contributions
F181: Net total cost of mains replaced (incl. escalation) | L181: =L179 -> 1373172 | M181: =M179 -> 953519.2493 | W181: =W179-W180 -> 0 | X181: 0 | Y181: 0 | Z181: 0 | AA181: 0 | AB181: =SUM(G181:K181)/SUM(W181:AA181)-1 ->  | AC181: =AC179-AC180 -> 0 | AD181: =AD179-AD180 -> 0 | AE181: =AE179-AE180 -> 0 | AF181: =AF179-AF180 -> 0 | AG181: =AG179-AG180 -> 0 | AH181: =SUM(L181:P181)/SUM(AC181:AG181)-1 -> 
E182: Daveron Pk | F182: Length of mains replaced (metres) | AB182: =SUM(G182:K182)/SUM(W182:AA182)-1 ->  | AH182: =SUM(L182:P182)/SUM(AC182:AG182)-1 -> 
F183: Low pressure - High Pressure | L183: 9032 | M183: 9639 | N183: 3110
F184: Low pressure - Medium Pressure
F185: Low pressure - Low Pressure
F186: Medium Pressure - Medium Pressure
F187: Medium Pressure - High Pressure
F188: Total volume of proactive mains replaced | L188: =SUM(L183:L186) -> 9032 | M188: =SUM(M183:M186) -> 9639 | N188: 3110 | W188: =SUM(W183:W187) -> 0 | X188: =SUM(X183:X187) -> 0 | Y188: =SUM(Y183:Y187) -> 0 | Z188: =SUM(Z183:Z187) -> 0 | AA188: =SUM(AA183:AA187) -> 0 | AC188: =SUM(AC183:AC187) -> 0 | AD188: =SUM(AD183:AD187) -> 0 | AE188: =SUM(AE183:AE187) -> 0 | AF188: =SUM(AF183:AF187) -> 0 | AG188: =SUM(AG183:AG187) -> 0
F189: Direct costs excluding escalation
F190: Direct contractor cost of mains replaced | L190: 637453.4027 | M190: 912734.3685 | N190: 367772.3655
F191: Direct internal labour cost of mains replaced | L191: 61440.77089 | M191: 98390.24302 | N191: 24640.83101
F192: Other internal direct cost of mains replaced | L192: 198893.4174 | M192: 158714.0004 | N192: 61083.85696
F193: Total direct cost of mains replaced | L193: =SUM(L190:L192) -> 897787.591 | M193: =SUM(M190:M192) -> 1169838.612 | N193: 453497.0534 | W193: =SUM(W190:W192) -> 0 | X193: 0 | Y193: 0 | Z193: 0 | AA193: =SUM(AA190:AA192) -> 0 | AB193: =SUM(G193:K193)/SUM(W193:AA193)-1 ->  | AC193: =SUM(AC190:AC192) -> 0 | AD193: =SUM(AD190:AD192) -> 0 | AE193: =SUM(AE190:AE192) -> 0 | AF193: =SUM(AF190:AF192) -> 0 | AG193: =SUM(AG190:AG192) -> 0 | AH193: =SUM(L193:P193)/SUM(AC193:AG193)-1 -> 
F194: Escalation
F195: Total direct cost of mains replaced (incl. escalation) | L195: =L193 -> 897787.591 | M195: =M193 -> 1169838.612 | N195: 453497.0534 | W195: =SUM(W193:W194) -> 0 | X195: 0 | Y195: 0 | Z195: 0 | AA195: 0 | AC195: =SUM(AC193:AC194) -> 0 | AD195: =SUM(AD193:AD194) -> 0 | AE195: =SUM(AE193:AE194) -> 0 | AF195: =SUM(AF193:AF194) -> 0 | AG195: =SUM(AG193:AG194) -> 0 | AH195: =SUM(L195:P195)/SUM(AC195:AG195)-1 -> 
F196: Total overhead costs of mains replaced | L196: 110544.889 | M196: 110776.1357 | N196: 37982.97292 | AB196: =SUM(G196:K196)/SUM(W196:AA196)-1 ->  | AH196: =SUM(L196:P196)/SUM(AC196:AG196)-1 -> 
F197: Related party and/or network operator margin
F198: Gross total cost of mains replaced (incl. escalation) | L198: =L195+L196 -> 1008332.48 | M198: =M195+M196 -> 1280614.748 | N198: 491480.0263 | W198: =SUM(W195:W197) -> 0 | X198: 0 | Y198: 0 | Z198: 0 | AA198: 0 | AB198: =SUM(G198:K198)/SUM(W198:AA198)-1 ->  | AC198: =SUM(AC195:AC197) -> 0 | AD198: =SUM(AD195:AD197) -> 0 | AE198: =SUM(AE195:AE197) -> 0 | AF198: =SUM(AF195:AF197) -> 0 | AG198: =SUM(AG195:AG197) -> 0 | AH198: =SUM(L198:P198)/SUM(AC198:AG198)-1 -> 
F199: Less customer contributions
F200: Net total cost of mains replaced (incl. escalation) | L200: =L198 -> 1008332.48 | M200: =M198 -> 1280614.748 | N200: 491480.0263 | W200: =W198-W199 -> 0 | X200: 0 | Y200: 0 | Z200: 0 | AA200: 0 | AB200: =SUM(G200:K200)/SUM(W200:AA200)-1 ->  | AC200: =AC198-AC199 -> 0 | AD200: =AD198-AD199 -> 0 | AE200: =AE198-AE199 -> 0 | AF200: =AF198-AF199 -> 0 | AG200: =AG198-AG199 -> 0 | AH200: =SUM(L200:P200)/SUM(AC200:AG200)-1 -> 
E201: Paradise | F201: Length of mains replaced (metres) | AB201: =SUM(G201:K201)/SUM(W201:AA201)-1 ->  | AH201: =SUM(L201:P201)/SUM(AC201:AG201)-1 -> 
F202: Low pressure - High Pressure | L202: 11012 | M202: 10545 | N202: 1678
F203: Low pressure - Medium Pressure
F204: Low pressure - Low Pressure
F205: Medium Pressure - Medium Pressure
F206: Medium Pressure - High Pressure
F207: Total volume of proactive mains replaced | L207: =SUM(L202:L205) -> 11012 | M207: =SUM(M202:M205) -> 10545 | N207: 1678 | W207: =SUM(W202:W206) -> 0 | X207: =SUM(X202:X206) -> 0 | Y207: =SUM(Y202:Y206) -> 0 | Z207: =SUM(Z202:Z206) -> 0 | AA207: =SUM(AA202:AA206) -> 0 | AC207: =SUM(AC202:AC206) -> 0 | AD207: =SUM(AD202:AD206) -> 0 | AE207: =SUM(AE202:AE206) -> 0 | AF207: =SUM(AF202:AF206) -> 0 | AG207: =SUM(AG202:AG206) -> 0
F208: Direct costs excluding escalation
F209: Direct contractor cost of mains replaced | L209: 777196.2878 | M209: 998525.1495 | N209: 198431.5207
F210: Direct internal labour cost of mains replaced | L210: 74909.85043 | M210: 107638.2522 | N210: 13294.95641
F211: Other internal direct cost of mains replaced | L211: 242494.9416 | M211: 173632.0297 | N211: 32957.7852
... 1159 more rows

Sheet 7.Telemetry
E1: =SheetHeader -> REGULATORY REPORTING STATEMENT
E2: =dms_TradingName -> AGN
E3: =CONCATENATE(FRCP_y1," to ",FRCP_y5) -> 2016-17 to 2020-21 | H3: =CONCATENATE(LEFT(FRCP_y1,4),"-",LEFT(FRCP_y5,2),RIGHT(FRCP_y5,2)) -> 2016-2021
E4: 7. TELEMETRY CAPITAL EXPENDITURE
A6: Asset category
A7: HPM | B7: HP mains | E7: Instructions
A8: HPS | B8: HP services | E8: This template asks for information relating to telemetry capital expenditure
A9: MPM | B9: MP mains | E9: =CONCATENATE("As set out in cl.6.1 of the ", dms_TradingName, " RIN, for tables 7.1 to 7.2, where the requested data is captured in the ", dms_TradingName, " capex model it is not required to be reentered in the RIN template tables. If the requested data has not been provided in the ", dms_TradingName, " RIN please enter into the tables. This may require the insertion of new lines in each table.") -> As set out in cl.6.1 of the AGN RIN, for tables 7.1 to 7.2, where the requested data is captured in the AGN capex model it is not required to be reentered in the RIN template tables. If the requested data has not been provided in the AGN RIN please enter into the tables. This may require the insertion of new lines in each table.
A10: MPS | B10: MP services | E10: Reported expenditure is to be entered EXCLUSIVE of any profit margins or management fees paid pursuant to arrangements or contracts with any related parties and/or network operator. Include any related party margins or management fees in the separate 'Related party margin and/or network operator' line item.
A11: TRS | B11: TRS & DRS - valves & regulators | E11: =CONCATENATE("Subject to cl.6.1 of the ", dms_TradingName, " RIN, where linked/adjustable escalation is not provided in the ", dms_TradingName, " capex model, escalation should be linked to allocations derived in tab '2 - Escalators'.") -> Subject to cl.6.1 of the AGN RIN, where linked/adjustable escalation is not provided in the AGN capex model, escalation should be linked to allocations derived in tab '2 - Escalators'.
A12: CM | B12: Contract meters | E12: =CONCATENATE("Subject to cl.6.1 of the ", dms_TradingName, " RIN, where linked/adjustable overhead costs and related party margin costs is not provided in the ", dms_TradingName, " capex model, overhead costs and related party margin costs should be linked to allocations derived in tabs '12 - Overheads' and '13 - Related party transactions'.") -> Subject to cl.6.1 of the AGN RIN, where linked/adjustable overhead costs and related party margin costs is not provided in the AGN capex model, overhead costs and related party margin costs should be linked to allocations derived in tabs '12 - Overheads' and '13 - Related party transactions'.
A13: TM | B13: Tariff meters | E13: Capital expenditure amounts entered should be GROSS of customer contributions. There is a separate line item for customer contributions from which net capital expenditure is derived.
A14: ERC | B14: Equity raising costs
E16: Table 7.1 - Telemetry (actual / forecast)
G17: Previous access arrangement period | L17: Current access arrangement period | Q17: Variance | R17: Next access arrangement period | W17: Supporting documentation (business case, costing spreadsheet, contracts)
G18: $0's, Nominal | P18: $0's, Real June 2016 | R18: =CONCATENATE("$0's, Real ",dms_DollarReal) -> $0's, Real June 2016
A19: Internal identification code | B19: Asset category | C19: Percent allocation | G19: Actual | P19: Forecast | Q19: Actual vs Approved | R19: Forecast
G20: =PRCP -> 2006-07 | H20: 2007-08 | I20: 2008-09 | J20: 2009-10 | K20: 2010-11 | L20: =CRCP_y1 -> 2011-12 | M20: =CRCP_y2 -> 2012-13 | N20: =CRCP_y3 -> 2013-14 | O20: =CRCP_y4 -> 2014-15 | P20: =CRCP_y5 -> 2015-16 | Q20: % | R20: =FRCP -> 2016-17 | S20: 2017-18 | T20: 2018-19 | U20: 2019-20 | V20: 2020-21
E21: < insert sub-category >
E22: General | F22: Direct costs (excl escalation)
F23: Direct internal labour | L23: 131564.9106 | M23: 60084.09 | N23: 46494.07 | O23: 20356.34854 | P23: 0 | R23: 81670.58824 | S23: 63431.49905 | T23: 55325.23719 | U23: 57351.80266 | V23: 37491.4611
F24: Direct contractor costs | L24: 29376.91175 | M24: 22979.67 | N24: 105085.21 | O24: 234918.2237 | P24: 536026.5655 | R24: 0 | S24: 0 | T24: 0 | U24: 0 | V24: 0
F25: Other internal direct costs | L25: 49435.4283 | M25: 101664.2 | N25: 170646.88 | O25: 38725.42775 | P25: 0 | R25: 232244.4023 | S25: 178540.4175 | T25: 154626.945 | U25: 160605.3131 | V25: 105280.0759
F26: Total direct costs (excl escalation) | G26: =G28 -> 673714.5 | H26: 964981.88 | I26: 142620.79 | J26: 249866.95 | K26: =K28 -> 206210.7631 | L26: 210377.2506 | M26: 184727.96 | N26: 322226.16 | O26: =SUM(O23:O25) -> 294000 | P26: =SUM(P23:P25) -> 536026.5655 | R26: =SUM(R23:R25) -> 313914.9905 | S26: =SUM(S23:S25) -> 241971.9165 | T26: =SUM(T23:T25) -> 209952.1822 | U26: =SUM(U23:U25) -> 217957.1157 | V26: =SUM(V23:V25) -> 142771.537
F27: Escalation | L27: 0 | M27: 0 | N27: 0 | R27: 1769.711716 | S27: 2627.904829 | T27: 3548.829327 | U27: 5236.594502 | V27: 4995.396758
F28: Total direct costs (incl escalation) | G28: 673714.5 | H28: 964981.88 | I28: 142620.79 | J28: 249866.95 | K28: 206210.7631 | L28: 210377.2506 | M28: 184727.96 | N28: 322226.16 | O28: =SUM(O26:O27) -> 294000 | P28: =SUM(P26:P27) -> 536026.5655 | R28: =SUM(R26:R27) -> 315684.7022 | S28: =SUM(S26:S27) -> 244599.8213 | T28: =SUM(T26:T27) -> 213501.0115 | U28: =SUM(U26:U27) -> 223193.7103 | V28: =SUM(V26:V27) -> 147766.9338
F29: Total overhead costs | G29: 0 | H29: 0 | I29: 0 | J29: 0 | K29: 0 | L29: 25946.73935 | M29: 17824.36181 | N29: 27714.8173 | O29: 28341.6 | P29: 51672.96091 | R29: 30433.92633 | S29: 23580.91124 | T29: 20582.79672 | U29: 21517.23187 | V29: 14245.63162
F30: Related party and/or network operator margin | G30: 0 | H30: 0 | I30: 0 | J30: 0 | K30: 0 | L30: 0 | M30: 0 | N30: 0 | O30: 0 | P30: 0
F31: Total gross costs | G31: 673714.5 | H31: 964981.88 | I31: 142620.79 | J31: 249866.95 | K31: =+K28 -> 206210.7631 | L31: 236323.99 | M31: 202552.3218 | N31: 349940.9773 | O31: =SUM(O28:O30) -> 322341.6 | P31: =SUM(P28:P30) -> 587699.5264 | R31: =SUM(R28:R30) -> 346118.6286 | S31: =SUM(S28:S30) -> 268180.7326 | T31: =SUM(T28:T30) -> 234083.8082 | U31: =SUM(U28:U30) -> 244710.9421 | V31: =SUM(V28:V30) -> 162012.5654
F32: Less customer contributions | G32: 0 | H32: 0 | I32: 0 | J32: 0 | K32: 0 | L32: 0 | M32: 0 | N32: 0
F33: Total net costs | G33: 673714.5 | H33: 964981.88 | I33: 142620.79 | J33: 249866.95 | K33: =+K31 -> 206210.7631 | L33: 236323.99 | M33: 202552.3218 | N33: 349940.9773 | O33: =O31-O32 -> 322341.6 | P33: 587699.5264 | R33: =R31-R32 -> 346118.6286 | S33: =S31-S32 -> 268180.7326 | T33: =T31-T32 -> 234083.8082 | U33: =U31-U32 -> 244710.9421 | V33: =V31-V32 -> 162012.5654
E34: < insert project name > | F34: Direct costs (excl escalation)
F35: Direct internal labour
F36: Direct contractor costs
F37: Other internal direct costs
F38: Total direct costs (excl escalation) | L38: =SUM(L35:L37) -> 0 | M38: =SUM(M35:M37) -> 0 | N38: =SUM(N35:N37) -> 0 | O38: =SUM(O35:O37) -> 0 | P38: =SUM(P35:P37) -> 0 | R38: =SUM(R35:R37) -> 0 | S38: =SUM(S35:S37) -> 0 | T38: =SUM(T35:T37) -> 0 | U38: =SUM(U35:U37) -> 0 | V38: =SUM(V35:V37) -> 0
F39: Escalation
F40: Total direct costs (incl escalation) | L40: =SUM(L38:L39) -> 0 | M40: =SUM(M38:M39) -> 0 | N40: =SUM(N38:N39) -> 0 | O40: =SUM(O38:O39) -> 0 | P40: =SUM(P38:P39) -> 0 | R40: =SUM(R38:R39) -> 0 | S40: =SUM(S38:S39) -> 0 | T40: =SUM(T38:T39) -> 0 | U40: =SUM(U38:U39) -> 0 | V40: =SUM(V38:V39) -> 0
F41: Total overhead costs | L41: 0 | M41: 0 | N41: 0 | O41: 0 | P41: 0
F42: Related party and/or network operator margin | L42: 0 | M42: 0 | N42: 0 | O42: 0 | P42: 0
F43: Total gross costs | G43: =SUM(G40:G42) -> 0 | H43: =SUM(H40:H42) -> 0 | I43: 0 | J43: 0 | K43: 0 | L43: 0 | M43: 0 | N43: 0 | O43: 0 | P43: 0 | R43: =SUM(R40:R42) -> 0 | S43: =SUM(S40:S42) -> 0 | T43: =SUM(T40:T42) -> 0 | U43: =SUM(U40:U42) -> 0 | V43: =SUM(V40:V42) -> 0
F44: Less customer contributions
F45: Total net costs | G45: =G43-G44 -> 0 | H45: 0 | I45: 0 | J45: 0 | K45: 0 | L45: 0 | M45: 0 | N45: 0 | O45: 0 | P45: 0 | R45: =R43-R44 -> 0 | S45: =S43-S44 -> 0 | T45: =T43-T44 -> 0 | U45: =U43-U44 -> 0 | V45: =V43-V44 -> 0
E46: < insert sub-category > Totals | F46: Total direct costs (excl escalation) | G46: =SUMIF($F$22:$F$45,$F46,G$22:G$45) -> 673714.5 | H46: =SUMIF($F$22:$F$45,$F46,H$22:H$45) -> 964981.88 | I46: 142620.79 | J46: 249866.95 | K46: 206210.7631 | L46: =SUMIF($F$22:$F$45,$F46,L$22:L$45) -> 210377.2506 | M46: =SUMIF($F$22:$F$45,$F46,M$22:M$45) -> 184727.96 | N46: 322226.16 | O46: 294000 | P46: 536026.5655 | R46: =SUMIF($F$22:$F$45,$F46,R$22:R$45) -> 313914.9905 | S46: =SUMIF($F$22:$F$45,$F46,S$22:S$45) -> 241971.9165 | T46: 209952.1822 | U46: 217957.1157 | V46: 142771.537
F47: Escalation | G47: 0 | H47: 0 | I47: 0 | J47: 0 | K47: 0 | L47: 0 | M47: 0 | N47: 0 | O47: =SUMIF($E$22:$P$45,"Escalation",O$22:O$45) -> 0 | P47: =SUMIF($E$22:$P$45,"Escalation",P$22:P$45) -> 0 | R47: 1769.711716 | S47: 2627.904829 | T47: 3548.829327 | U47: 5236.594502 | V47: 4995.396758
F48: Total direct costs (incl escalation) | G48: =SUM(G46:G47) -> 673714.5 | H48: =SUM(H46:H47) -> 964981.88 | I48: 142620.79 | J48: 249866.95 | K48: 206210.7631 | L48: 210377.2506 | M48: 184727.96 | N48: 322226.16 | O48: 294000 | P48: 536026.5655 | R48: 315684.7022 | S48: 244599.8213 | T48: 213501.0115 | U48: 223193.7103 | V48: 147766.9338
F49: Total overhead costs | G49: 0 | H49: 0 | I49: 0 | J49: 0 | K49: 0 | L49: =SUMIF($F$22:$F$45,$F49,L$22:L$45) -> 25946.73935 | M49: =SUMIF($F$22:$F$45,$F49,M$22:M$45) -> 17824.36181 | N49: 27714.8173 | O49: 28341.6 | P49: 51672.96091 | R49: 30433.92633 | S49: 23580.91124 | T49: 20582.79672 | U49: 21517.23187 | V49: 14245.63162
F50: Related party and/or network operator margin | G50: 0 | H50: 0 | I50: 0 | J50: 0 | K50: 0 | L50: =SUMIF($F$22:$F$45,$F50,L$22:L$45) -> 0 | M50: 0 | N50: 0 | O50: 0 | P50: 0 | R50: =SUMIF($E$22:$P$45,"Related party margin",R$22:R$45) -> 0 | S50: =SUMIF($E$22:$P$45,"Related party margin",S$22:S$45) -> 0 | T50: =SUMIF($E$22:$P$45,"Related party margin",T$22:T$45) -> 0 | U50: =SUMIF($E$22:$P$45,"Related party margin",U$22:U$45) -> 0 | V50: =SUMIF($E$22:$P$45,"Related party margin",V$22:V$45) -> 0
F51: Total gross costs | G51: =SUM(G48:G50) -> 673714.5 | H51: =SUM(H48:H50) -> 964981.88 | I51: 142620.79 | J51: 249866.95 | K51: 206210.7631 | L51: 236323.99 | M51: 202552.3218 | N51: 349940.9773 | O51: 322341.6 | P51: 587699.5264 | R51: =SUM(R48:R50) -> 346118.6286 | S51: 268180.7326 | T51: 234083.8082 | U51: 244710.9421 | V51: 162012.5654
F52: Less customer contributions | G52: 0 | H52: 0 | I52: 0 | J52: 0 | K52: 0 | L52: 0 | M52: 0 | N52: 0 | O52: =SUMIF($E$22:$P$45,"Less customer contributions",O$22:O$45) -> 0 | P52: =SUMIF($E$22:$P$45,"Less customer contributions",P$22:P$45) -> 0 | R52: =SUMIF($E$22:$P$45,"Less customer contributions",R$22:R$45) -> 0 | S52: =SUMIF($E$22:$P$45,"Less customer contributions",S$22:S$45) -> 0 | T52: =SUMIF($E$22:$P$45,"Less customer contributions",T$22:T$45) -> 0 | U52: =SUMIF($E$22:$P$45,"Less customer contributions",U$22:U$45) -> 0 | V52: =SUMIF($E$22:$P$45,"Less customer contributions",V$22:V$45) -> 0
F53: Total net costs | G53: =SUM(G51:G52) -> 673714.5 | H53: =SUM(H51:H52) -> 964981.88 | I53: 142620.79 | J53: 249866.95 | K53: 206210.7631 | L53: 236323.99 | M53: 202552.3218 | N53: 349940.9773 | O53: 322341.6 | P53: 587699.5264 | Q53: 0 | R53: 346118.6286 | S53: 268180.7326 | T53: 234083.8082 | U53: 244710.9421 | V53: 162012.5654
E54: [insert sub-category] | F54: Related party and/or network operator margin
E55: <insert project name> | F55: Total gross costs
F56: Less customer contributions
F57: Total net costs
F58: Other internal direct costs
F59: Total direct costs (excl escalation) | L59: =SUM(L56:L58) -> 0 | M59: =SUM(M56:M58) -> 0 | N59: =SUM(N56:N58) -> 0 | O59: =SUM(O56:O58) -> 0 | P59: =SUM(P56:P58) -> 0 | R59: =SUM(R56:R58) -> 0 | S59: =SUM(S56:S58) -> 0 | T59: =SUM(T56:T58) -> 0 | U59: =SUM(U56:U58) -> 0 | V59: =SUM(V56:V58) -> 0
F60: Escalation
F61: Total direct costs (incl escalation) | L61: =SUM(L59:L60) -> 0 | M61: =SUM(M59:M60) -> 0 | N61: =SUM(N59:N60) -> 0 | O61: =SUM(O59:O60) -> 0 | P61: =SUM(P59:P60) -> 0 | R61: =SUM(R59:R60) -> 0 | S61: =SUM(S59:S60) -> 0 | T61: =SUM(T59:T60) -> 0 | U61: =SUM(U59:U60) -> 0 | V61: =SUM(V59:V60) -> 0
F62: Total overhead costs | L62: 0 | M62: 0 | N62: 0 | O62: 0 | P62: 0
F63: Related party and/or network operator margin | L63: 0 | M63: 0 | N63: 0 | O63: 0 | P63: 0
F64: Total gross costs | G64: =SUM(G61:G63) -> 0 | H64: =SUM(H61:H63) -> 0 | I64: 0 | J64: 0 | K64: 0 | L64: 0 | M64: =SUM(M61:M63) -> 0 | N64: 0 | O64: 0 | P64: 0 | R64: =SUM(R61:R63) -> 0 | S64: =SUM(S61:S63) -> 0 | T64: =SUM(T61:T63) -> 0 | U64: =SUM(U61:U63) -> 0 | V64: =SUM(V61:V63) -> 0
F65: Less customer contributions
F66: Total net costs | G66: =G64-G65 -> 0 | H66: 0 | I66: 0 | J66: 0 | K66: 0 | L66: 0 | M66: =M64-M65 -> 0 | N66: 0 | O66: 0 | P66: 0 | R66: =R64-R65 -> 0 | S66: =S64-S65 -> 0 | T66: =T64-T65 -> 0 | U66: =U64-U65 -> 0 | V66: =V64-V65 -> 0
E67: <insert project name> | F67: Direct costs (excl escalation)
F68: Direct internal labour
F69: Direct contractor costs
F70: Other internal direct costs
F71: Total direct costs (excl escalation) | L71: =SUM(L68:L70) -> 0 | M71: =SUM(M68:M70) -> 0 | N71: =SUM(N68:N70) -> 0 | O71: =SUM(O68:O70) -> 0 | P71: =SUM(P68:P70) -> 0 | R71: =SUM(R68:R70) -> 0 | S71: =SUM(S68:S70) -> 0 | T71: =SUM(T68:T70) -> 0 | U71: =SUM(U68:U70) -> 0 | V71: =SUM(V68:V70) -> 0
F72: Escalation
F73: Total direct costs (incl escalation) | L73: =SUM(L71:L72) -> 0 | M73: =SUM(M71:M72) -> 0 | N73: =SUM(N71:N72) -> 0 | O73: =SUM(O71:O72) -> 0 | P73: =SUM(P71:P72) -> 0 | R73: =SUM(R71:R72) -> 0 | S73: =SUM(S71:S72) -> 0 | T73: =SUM(T71:T72) -> 0 | U73: =SUM(U71:U72) -> 0 | V73: =SUM(V71:V72) -> 0
F74: Total overhead costs | L74: 0 | M74: 0 | N74: 0 | O74: 0 | P74: 0
F75: Related party and/or network operator margin | L75: 0 | M75: 0 | N75: 0 | O75: 0 | P75: 0
F76: Total gross costs | G76: =SUM(G73:G75) -> 0 | H76: =SUM(H73:H75) -> 0 | I76: 0 | J76: 0 | K76: 0 | L76: 0 | M76: =SUM(M73:M75) -> 0 | N76: 0 | O76: 0 | P76: 0 | R76: =SUM(R73:R75) -> 0 | S76: =SUM(S73:S75) -> 0 | T76: =SUM(T73:T75) -> 0 | U76: =SUM(U73:U75) -> 0 | V76: =SUM(V73:V75) -> 0
F77: Less customer contributions
F78: Total net costs | G78: =G76-G77 -> 0 | H78: 0 | I78: 0 | J78: 0 | K78: 0 | L78: 0 | M78: =M76-M77 -> 0 | N78: 0 | O78: 0 | P78: 0 | R78: =R76-R77 -> 0 | S78: =S76-S77 -> 0 | T78: =T76-T77 -> 0 | U78: =U76-U77 -> 0 | V78: =V76-V77 -> 0
E79: =CONCATENATE(E54, " Totals") -> [insert sub-category] Totals | F79: Total Direct costs (excl escalation) - [insert sub-category] | G79: =SUMIF($E$54:$P$78,"Total direct costs (excl escalation)",G$54:G$78) -> 0 | H79: 0 | I79: 0 | J79: 0 | K79: 0 | L79: 0 | M79: 0 | N79: 0 | O79: 0 | P79: 0 | R79: =SUMIF($E$54:$P$78,"Total direct costs (excl escalation)",R$54:R$78) -> 0 | S79: =SUMIF($E$54:$P$78,"Total direct costs (excl escalation)",S$54:S$78) -> 0 | T79: =SUMIF($E$54:$P$78,"Total direct costs (excl escalation)",T$54:T$78) -> 0 | U79: =SUMIF($E$54:$P$78,"Total direct costs (excl escalation)",U$54:U$78) -> 0 | V79: =SUMIF($E$54:$P$78,"Total direct costs (excl escalation)",V$54:V$78) -> 0
F80: Escalation - [insert sub-category] | G80: =SUMIF($E$54:$P$78,"Escalation",G$54:G$78) -> 0 | H80: 0 | I80: 0 | J80: 0 | K80: 0 | L80: 0 | M80: 0 | N80: 0 | O80: 0 | P80: 0 | R80: =SUMIF($E$54:$P$78,"Escalation",R$54:R$78) -> 0 | S80: =SUMIF($E$54:$P$78,"Escalation",S$54:S$78) -> 0 | T80: =SUMIF($E$54:$P$78,"Escalation",T$54:T$78) -> 0 | U80: =SUMIF($E$54:$P$78,"Escalation",U$54:U$78) -> 0 | V80: =SUMIF($E$54:$P$78,"Escalation",V$54:V$78) -> 0
F81: Total Direct Costs - [insert sub-category] | G81: =SUMIF($E$54:$P$78,"Total direct costs (incl escalation)",G$54:G$78) -> 0 | H81: 0 | I81: 0 | J81: 0 | K81: 0 | L81: 0 | M81: 0 | N81: 0 | O81: 0 | P81: 0 | R81: =SUMIF($E$54:$P$78,"Total direct costs (incl escalation)",R$54:R$78) -> 0 | S81: =SUMIF($E$54:$P$78,"Total direct costs (incl escalation)",S$54:S$78) -> 0 | T81: =SUMIF($E$54:$P$78,"Total direct costs (incl escalation)",T$54:T$78) -> 0 | U81: =SUMIF($E$54:$P$78,"Total direct costs (incl escalation)",U$54:U$78) -> 0 | V81: =SUMIF($E$54:$P$78,"Total direct costs (incl escalation)",V$54:V$78) -> 0
F82: Total Overhead cost - [enter sub-category] | G82: =SUMIF($E$54:$P$78,"Total overhead costs",G$54:G$78) -> 0 | H82: 0 | I82: 0 | J82: 0 | K82: 0 | L82: 0 | M82: 0 | N82: 0 | O82: 0 | P82: 0 | R82: =SUMIF($E$54:$P$78,"Total overhead costs",R$54:R$78) -> 0 | S82: =SUMIF($E$54:$P$78,"Total overhead costs",S$54:S$78) -> 0 | T82: =SUMIF($E$54:$P$78,"Total overhead costs",T$54:T$78) -> 0 | U82: =SUMIF($E$54:$P$78,"Total overhead costs",U$54:U$78) -> 0 | V82: =SUMIF($E$54:$P$78,"Total overhead costs",V$54:V$78) -> 0
F83: Related Party and/or network operator margin - [insert sub-category] | G83: =SUMIF($E$54:$P$78,"Related party margin",G$54:G$78) -> 0 | H83: 0 | I83: 0 | J83: 0 | K83: 0 | L83: 0 | M83: 0 | N83: 0 | O83: 0 | P83: 0 | R83: =SUMIF($E$54:$P$78,"Related party margin",R$54:R$78) -> 0 | S83: =SUMIF($E$54:$P$78,"Related party margin",S$54:S$78) -> 0 | T83: =SUMIF($E$54:$P$78,"Related party margin",T$54:T$78) -> 0 | U83: =SUMIF($E$54:$P$78,"Related party margin",U$54:U$78) -> 0 | V83: =SUMIF($E$54:$P$78,"Related party margin",V$54:V$78) -> 0
F84: Total Gross costs of facilities renewal & upgrade - [insert sub-category] | G84: =SUMIF($E$54:$P$78,"Total gross costs",G$54:G$78) -> 0 | H84: 0 | I84: 0 | J84: 0 | K84: 0 | L84: 0 | M84: 0 | N84: 0 | O84: 0 | P84: 0 | R84: =SUMIF($E$54:$P$78,"Total gross costs",R$54:R$78) -> 0 | S84: =SUMIF($E$54:$P$78,"Total gross costs",S$54:S$78) -> 0 | T84: =SUMIF($E$54:$P$78,"Total gross costs",T$54:T$78) -> 0 | U84: =SUMIF($E$54:$P$78,"Total gross costs",U$54:U$78) -> 0 | V84: =SUMIF($E$54:$P$78,"Total gross costs",V$54:V$78) -> 0
F85: Less customer contributions | G85: =SUMIF($E$54:$P$78,"Less customer contributions",G$54:G$78) -> 0 | H85: 0 | I85: 0 | J85: 0 | K85: 0 | L85: 0 | M85: 0 | N85: 0 | O85: 0 | P85: 0 | R85: =SUMIF($E$54:$P$78,"Less customer contributions",R$54:R$78) -> 0 | S85: =SUMIF($E$54:$P$78,"Less customer contributions",S$54:S$78) -> 0 | T85: =SUMIF($E$54:$P$78,"Less customer contributions",T$54:T$78) -> 0 | U85: =SUMIF($E$54:$P$78,"Less customer contributions",U$54:U$78) -> 0 | V85: =SUMIF($E$54:$P$78,"Less customer contributions",V$54:V$78) -> 0
F86: Total Net Costs of facilities renewal & upgrade - [insert sub-category] | G86: =SUMIF($E$54:$P$78,"Total net costs",G$54:G$78) -> 0 | H86: 0 | I86: 0 | J86: 0 | K86: 0 | L86: 0 | M86: 0 | N86: 0 | O86: 0 | P86: 0 | R86: =SUMIF($E$54:$P$78,"Total net costs",R$54:R$78) -> 0 | S86: =SUMIF($E$54:$P$78,"Total net costs",S$54:S$78) -> 0 | T86: =SUMIF($E$54:$P$78,"Total net costs",T$54:T$78) -> 0 | U86: =SUMIF($E$54:$P$78,"Total net costs",U$54:U$78) -> 0 | V86: =SUMIF($E$54:$P$78,"Total net costs",V$54:V$78) -> 0
E88: TOTALS | F88: Total Direct costs (excl escalation) | G88: =SUM(G46,G79) -> 673714.5 | H88: 964981.88 | I88: 142620.79 | J88: 249866.95 | K88: 206210.7631 | L88: 210377.2506 | M88: 184727.96 | N88: 322226.16 | O88: 294000 | P88: 536026.5655 | Q88: 0 | R88: 313914.9905 | S88: 241971.9165 | T88: 209952.1822 | U88: 217957.1157 | V88: 142771.537
F89: Escalation | G89: =SUM(G47,G80) -> 0 | H89: 0 | I89: 0 | J89: 0 | K89: 0 | L89: 0 | M89: 0 | N89: 0 | O89: 0 | P89: 0 | Q89: 0 | R89: 1769.711716 | S89: 2627.904829 | T89: 3548.829327 | U89: 5236.594502 | V89: 4995.396758
F90: Total Direct costs (incl escalation) | G90: =SUM(G48,G81) -> 673714.5 | H90: 964981.88 | I90: 142620.79 | J90: 249866.95 | K90: 206210.7631 | L90: 210377.2506 | M90: 184727.96 | N90: 322226.16 | O90: 294000 | P90: 536026.5655 | Q90: 0 | R90: 315684.7022 | S90: 244599.8213 | T90: 213501.0115 | U90: 223193.7103 | V90: 147766.9338
F91: Total Overhead cost | G91: =SUM(G49,G82) -> 0 | H91: 0 | I91: 0 | J91: 0 | K91: 0 | L91: 25946.73935 | M91: 17824.36181 | N91: 27714.8173 | O91: 28341.6 | P91: 51672.96091 | Q91: 0 | R91: 30433.92633 | S91: 23580.91124 | T91: 20582.79672 | U91: 21517.23187 | V91: 14245.63162
F92: Related party and/or network operator margin | G92: =SUM(G50,G83) -> 0 | H92: 0 | I92: 0 | J92: 0 | K92: 0 | L92: 0 | M92: 0 | N92: 0 | O92: 0 | P92: 0 | Q92: 0 | R92: 0 | S92: 0 | T92: 0 | U92: 0 | V92: 0
F93: Total Gross costs of facilities renewal & upgrade | G93: =SUM(G51,G84) -> 673714.5 | H93: 964981.88 | I93: 142620.79 | J93: 249866.95 | K93: 206210.7631 | L93: 236323.99 | M93: 202552.3218 | N93: 349940.9773 | O93: 322341.6 | P93: 587699.5264 | Q93: 0 | R93: 346118.6286 | S93: 268180.7326 | T93: 234083.8082 | U93: 244710.9421 | V93: 162012.5654
F94: Less customer contributions | G94: =SUM(G52,G85) -> 0 | H94: 0 | I94: 0 | J94: 0 | K94: 0 | L94: 0 | M94: 0 | N94: 0 | O94: 0 | P94: 0 | Q94: 0 | R94: 0 | S94: 0 | T94: 0 | U94: 0 | V94: 0
F95: Total Net Costs of facilities renewal & upgrade | G95: =SUM(G53,G86) -> 673714.5 | H95: 964981.88 | I95: 142620.79 | J95: 249866.95 | K95: 206210.7631 | L95: 236323.99 | M95: 202552.3218 | N95: 349940.9773 | O95: 322341.6 | P95: 587699.5264 | Q95: 0 | R95: 346118.6286 | S95: 268180.7326 | T95: 234083.8082 | U95: 244710.9421 | V95: 162012.5654
E96: Source(s) of data: | G96: 2006/07 to 2008/09 sourced from the SA Capex Past Performance Submission model. 2009/10 to 2013/14 sourced from the Capex Ring Fenced Accounts and the SA Annual RIN's. Forecast information has been sourced from the capex model at Attachment 8.8 of the AAI.
E98: Table 7.2 - Telemetry (approved)
G99: Previous access arrangement period | L99: Current access arrangement period
G100: $0's | L100: =CONCATENATE("$0's, Real ",dms_DollarReal) -> $0's, Real June 2016
G101: Approved
G102: =PRCP -> 2006-07 | H102: 2007-08 | I102: 2008-09 | J102: 2009-10 | K102: 2010-11 | L102: =CRCP_y1 -> 2011-12 | M102: =CRCP_y2 -> 2012-13 | N102: =CRCP_y3 -> 2013-14 | O102: =CRCP_y4 -> 2014-15 | P102: =CRCP_y5 -> 2015-16
E103: [insert sub-category]
E104: Total | F104: Direct costs (excl escalation)
F105: Direct internal labour (excl escalation)
F106: Direct contractor costs (excl escalation)
F107: Other internal direct costs (excl escalation)
F108: Total direct costs (excl escalation) | L108: =SUM(L105:L107) -> 0 | M108: =SUM(M105:M107) -> 0 | N108: =SUM(N105:N107) -> 0 | O108: =SUM(O105:O107) -> 0 | P108: =SUM(P105:P107) -> 0
F109: Escalation
F110: Total direct costs (incl escalation) | L110: =SUM(L108:L109) -> 0 | M110: =SUM(M108:M109) -> 0 | N110: =SUM(N108:N109) -> 0 | O110: =SUM(O108:O109) -> 0 | P110: =SUM(P108:P109) -> 0
F111: Total overhead costs | L111: 0 | M111: 0 | N111: 0 | O111: 0 | P111: 0
F112: Related party and/or network operator margin | L112: 0 | M112: 0 | N112: 0 | O112: 0 | P112: 0
F113: Total gross costs | G113: =SUM(G110:G112) -> 0 | H113: =SUM(H110:H112) -> 0 | I113: 0 | J113: 0 | K113: 0 | L113: 410619.469 | M113: 423362.8319 | N113: 433957.4973 | O113: 446671.0959 | P113: 452604.1085
F114: Less customer contributions
F115: Total net costs | G115: =G113-G114 -> 0 | H115: 0 | I115: 0 | J115: 0 | K115: 0 | L115: 410619.469 | M115: =M113-M114 -> 423362.8319 | N115: 433957.4973 | O115: 446671.0959 | P115: 452604.1085
E116: <insert project name> | F116: Direct costs (excl escalation)
F117: Direct internal labour (excl escalation)
F118: Direct contractor costs (excl escalation)
F119: Other internal direct costs (excl escalation)
F120: Total direct costs (excl escalation) | L120: =SUM(L117:L119) -> 0 | M120: =SUM(M117:M119) -> 0 | N120: =SUM(N117:N119) -> 0 | O120: =SUM(O117:O119) -> 0 | P120: =SUM(P117:P119) -> 0
F121: Escalation
F122: Total direct costs (incl escalation) | L122: =SUM(L120:L121) -> 0 | M122: =SUM(M120:M121) -> 0 | N122: =SUM(N120:N121) -> 0 | O122: =SUM(O120:O121) -> 0 | P122: =SUM(P120:P121) -> 0
F123: Total overhead costs | L123: 0 | M123: 0 | N123: 0 | O123: 0 | P123: 0
F124: Related party and/or network operator margin | L124: 0 | M124: 0 | N124: 0 | O124: 0 | P124: 0
F125: Total gross costs | G125: =SUM(G122:G124) -> 0 | H125: =SUM(H122:H124) -> 0 | I125: 0 | J125: 0 | K125: 0 | L125: 0 | M125: =SUM(M122:M124) -> 0 | N125: 0 | O125: 0 | P125: 0
F126: Less customer contributions
F127: Total net costs | G127: =G125-G126 -> 0 | H127: 0 | I127: 0 | J127: 0 | K127: 0 | L127: 0 | M127: =M125-M126 -> 0 | N127: 0 | O127: 0 | P127: 0
E128: =CONCATENATE(E103, " Totals") -> [insert sub-category] Totals | F128: =CONCATENATE("Total Direct costs (excl escalation) - ",E104) -> Total Direct costs (excl escalation) - Total | G128: =SUMIF($E$104:$P$127,"Total direct costs (excl escalation)",G$104:G$127) -> 0 | H128: 0 | I128: 0 | J128: 0 | K128: 0 | L128: 0 | M128: 0 | N128: 0 | O128: 0 | P128: 0
F129: =CONCATENATE("Escalation - ",E104) -> Escalation - Total | G129: =SUMIF($E$104:$P$127,"Escalation",G$104:G$127) -> 0 | H129: 0 | I129: 0 | J129: 0 | K129: 0 | L129: 0 | M129: 0 | N129: 0 | O129: 0 | P129: 0
F130: =CONCATENATE("Total Direct Costs - ",E104) -> Total Direct Costs - Total | G130: =SUMIF($E$104:$P$127,"Total direct costs (incl escalation)",G$104:G$127) -> 0 | H130: 0 | I130: 0 | J130: 0 | K130: 0 | L130: 0 | M130: 0 | N130: 0 | O130: 0 | P130: 0
F131: Total Overhead cost - [enter sub-category] | G131: =SUMIF($E$104:$P$127,"Total overhead costs",G$104:G$127) -> 0 | H131: 0 | I131: 0 | J131: 0 | K131: 0 | L131: 0 | M131: 0 | N131: 0 | O131: 0 | P131: 0
F132: =CONCATENATE("Related Party and/or network operator margin - ",E104) -> Related Party and/or network operator margin - Total | G132: =SUMIF($E$104:$P$127,"Related party margin",G$104:G$127) -> 0 | H132: 0 | I132: 0 | J132: 0 | K132: 0 | L132: 0 | M132: 0 | N132: 0 | O132: 0 | P132: 0
F133: =CONCATENATE("Total Gross costs of facilities renewal & upgrade - ",E104) -> Total Gross costs of facilities renewal & upgrade - Total | G133: =SUMIF($F$104:$F$127,"Total gross costs",G$104:G$127) -> 0 | H133: =SUMIF($F$104:$F$127,"Total gross costs",H$104:H$127) -> 0 | I133: 0 | J133: 0 | K133: 0 | L133: 410619.469 | M133: 423362.8319 | N133: 433957.4973 | O133: 446671.0959 | P133: 452604.1085
F134: Less customer contributions | G134: =SUMIF($E$104:$P$127,"Less customer contributions",G$104:G$127) -> 0 | H134: 0 | I134: 0 | J134: 0 | K134: 0 | L134: 0 | M134: 0 | N134: 0 | O134: 0 | P134: 0
F135: =CONCATENATE("Total Net Costs of facilities renewal & upgrade - ",E104) -> Total Net Costs of facilities renewal & upgrade - Total | G135: =SUM(G133:G134) -> 0 | H135: =SUM(H133:H134) -> 0 | I135: 0 | J135: 0 | K135: 0 | L135: 410619.469 | M135: 423362.8319 | N135: 433957.4973 | O135: 446671.0959 | P135: 452604.1085
E136: [insert sub-category]
E137: <insert project name> | F137: Direct costs (excl escalation)
F138: Direct internal labour (excl escalation)
F139: Direct contractor costs (excl escalation)
F140: Other internal direct costs (excl escalation)
F141: Total direct costs (excl escalation) | L141: =SUM(L138:L140) -> 0 | M141: =SUM(M138:M140) -> 0 | N141: =SUM(N138:N140) -> 0 | O141: =SUM(O138:O140) -> 0 | P141: =SUM(P138:P140) -> 0
F142: Escalation
F143: Total direct costs (incl escalation) | L143: =SUM(L141:L142) -> 0 | M143: =SUM(M141:M142) -> 0 | N143: =SUM(N141:N142) -> 0 | O143: =SUM(O141:O142) -> 0 | P143: =SUM(P141:P142) -> 0
F144: Total overhead costs | L144: 0 | M144: 0 | N144: 0 | O144: 0 | P144: 0
F145: Related party and/or network operator margin | L145: 0 | M145: 0 | N145: 0 | O145: 0 | P145: 0
F146: Total gross costs | G146: =SUM(G143:G145) -> 0 | H146: =SUM(H143:H145) -> 0 | I146: 0 | J146: 0 | K146: 0 | L146: 0 | M146: =SUM(M143:M145) -> 0 | N146: 0 | O146: 0 | P146: 0
F147: Less customer contributions
F148: Total net costs | G148: =G146-G147 -> 0 | H148: 0 | I148: 0 | J148: 0 | K148: 0 | L148: 0 | M148: =M146-M147 -> 0 | N148: 0 | O148: 0 | P148: 0
E149: <insert project name> | F149: Direct costs (excl escalation)
F150: Direct internal labour (excl escalation)
F151: Direct contractor costs (excl escalation)
F152: Other internal direct costs (excl escalation)
F153: Total direct costs (excl escalation) | L153: =SUM(L150:L152) -> 0 | M153: =SUM(M150:M152) -> 0 | N153: =SUM(N150:N152) -> 0 | O153: =SUM(O150:O152) -> 0 | P153: =SUM(P150:P152) -> 0
F154: Escalation
F155: Total direct costs (incl escalation) | L155: =SUM(L153:L154) -> 0 | M155: =SUM(M153:M154) -> 0 | N155: =SUM(N153:N154) -> 0 | O155: =SUM(O153:O154) -> 0 | P155: =SUM(P153:P154) -> 0
F156: Total overhead costs | L156: 0 | M156: 0 | N156: 0 | O156: 0 | P156: 0
F157: Related party and/or network operator margin | L157: 0 | M157: 0 | N157: 0 | O157: 0 | P157: 0
F158: Total gross costs | G158: =SUM(G155:G157) -> 0 | H158: =SUM(H155:H157) -> 0 | I158: 0 | J158: 0 | K158: 0 | L158: 0 | M158: =SUM(M155:M157) -> 0 | N158: 0 | O158: 0 | P158: 0
F159: Less customer contributions
F160: Total net costs | G160: =G158-G159 -> 0 | H160: 0 | I160: 0 | J160: 0 | K160: 0 | L160: 0 | M160: =M158-M159 -> 0 | N160: 0 | O160: 0 | P160: 0
E161: =CONCATENATE(E136, " Totals") -> [insert sub-category] Totals | F161: =CONCATENATE("Total Direct costs (excl escalation) - ",E137) -> Total Direct costs (excl escalation) - <insert project name> | G161: =SUMIF($E$137:$P$160,"Total direct costs (excl escalation)",G$137:G$160) -> 0 | H161: =SUMIF($E$137:$P$160,"Total direct costs (excl escalation)",H$137:H$160) -> 0 | I161: =SUMIF($E$137:$P$160,"Total direct costs (excl escalation)",I$137:I$160) -> 0 | J161: =SUMIF($E$137:$P$160,"Total direct costs (excl escalation)",J$137:J$160) -> 0 | K161: =SUMIF($E$137:$P$160,"Total direct costs (excl escalation)",K$137:K$160) -> 0 | L161: =SUMIF($E$137:$P$160,"Total direct costs (excl escalation)",$L$137:$L$160) -> 0 | M161: =SUMIF($E$137:$P$160,"Total direct costs (excl escalation)",$M$137:$M$160) -> 0 | N161: =SUMIF($E$137:$P$160,"Total direct costs (excl escalation)",$N$137:$N$160) -> 0 | O161: =SUMIF($E$137:$P$160,"Total direct costs (excl escalation)",$O$137:$O$160) -> 0 | P161: =SUMIF($E$137:$P$160,"Total direct costs (excl escalation)",$P$137:$P$160) -> 0
F162: =CONCATENATE("Escalation - ",E137) -> Escalation - <insert project name> | G162: =SUMIF($E$137:$P$160,"Escalation",G$137:G$160) -> 0 | H162: =SUMIF($E$137:$P$160,"Escalation",H$137:H$160) -> 0 | I162: =SUMIF($E$137:$P$160,"Escalation",I$137:I$160) -> 0 | J162: =SUMIF($E$137:$P$160,"Escalation",J$137:J$160) -> 0 | K162: =SUMIF($E$137:$P$160,"Escalation",K$137:K$160) -> 0 | L162: =SUMIF($E$137:$P$160,"Escalation",$L$137:$L$160) -> 0 | M162: =SUMIF($E$137:$P$160,"Escalation",$M$137:$M$160) -> 0 | N162: =SUMIF($E$137:$P$160,"Escalation",$N$137:$N$160) -> 0 | O162: =SUMIF($E$137:$P$160,"Escalation",$O$137:$O$160) -> 0 | P162: =SUMIF($E$137:$P$160,"Escalation",$P$137:$P$160) -> 0
F163: =CONCATENATE("Total Direct Costs - ",E137) -> Total Direct Costs - <insert project name> | G163: =SUMIF($E$137:$P$160,"Total direct costs (incl escalation)",G$137:G$160) -> 0 | H163: =SUMIF($E$137:$P$160,"Total direct costs (incl escalation)",H$137:H$160) -> 0 | I163: =SUMIF($E$137:$P$160,"Total direct costs (incl escalation)",I$137:I$160) -> 0 | J163: =SUMIF($E$137:$P$160,"Total direct costs (incl escalation)",J$137:J$160) -> 0 | K163: =SUMIF($E$137:$P$160,"Total direct costs (incl escalation)",K$137:K$160) -> 0 | L163: =SUMIF($E$137:$P$160,"Total direct costs (incl escalation)",$L$137:$L$160) -> 0 | M163: =SUMIF($E$137:$P$160,"Total direct costs (incl escalation)",$M$137:$M$160) -> 0 | N163: =SUMIF($E$137:$P$160,"Total direct costs (incl escalation)",$N$137:$N$160) -> 0 | O163: =SUMIF($E$137:$P$160,"Total direct costs (incl escalation)",$O$137:$O$160) -> 0 | P163: =SUMIF($E$137:$P$160,"Total direct costs (incl escalation)",$P$137:$P$160) -> 0
F164: Total Overhead cost - [enter sub-category] | G164: =SUMIF($E$137:$P$160,"Total overhead costs",G$137:G$160) -> 0 | H164: =SUMIF($E$137:$P$160,"Total overhead costs",H$137:H$160) -> 0 | I164: =SUMIF($E$137:$P$160,"Total overhead costs",I$137:I$160) -> 0 | J164: =SUMIF($E$137:$P$160,"Total overhead costs",J$137:J$160) -> 0 | K164: =SUMIF($E$137:$P$160,"Total overhead costs",K$137:K$160) -> 0 | L164: =SUMIF($E$137:$P$160,"Total overhead costs",$L$137:$L$160) -> 0 | M164: =SUMIF($E$137:$P$160,"Total overhead costs",$M$137:$M$160) -> 0 | N164: =SUMIF($E$137:$P$160,"Total overhead costs",$N$137:$N$160) -> 0 | O164: =SUMIF($E$137:$P$160,"Total overhead costs",$O$137:$O$160) -> 0 | P164: =SUMIF($E$137:$P$160,"Total overhead costs",$P$137:$P$160) -> 0
F165: =CONCATENATE("Related Party and/or network operator margin- ",E137) -> Related Party and/or network operator margin- <insert project name> | G165: =SUMIF($E$137:$P$160,"Related party margin",G$137:G$160) -> 0 | H165: =SUMIF($E$137:$P$160,"Related party margin",H$137:H$160) -> 0 | I165: =SUMIF($E$137:$P$160,"Related party margin",I$137:I$160) -> 0 | J165: =SUMIF($E$137:$P$160,"Related party margin",J$137:J$160) -> 0 | K165: =SUMIF($E$137:$P$160,"Related party margin",K$137:K$160) -> 0 | L165: =SUMIF($E$137:$P$160,"Related party margin",$L$137:$L$160) -> 0 | M165: =SUMIF($E$137:$P$160,"Related party margin",$M$137:$M$160) -> 0 | N165: =SUMIF($E$137:$P$160,"Related party margin",$N$137:$N$160) -> 0 | O165: =SUMIF($E$137:$P$160,"Related party margin",$O$137:$O$160) -> 0 | P165: =SUMIF($E$137:$P$160,"Related party margin",$P$137:$P$160) -> 0
F166: =CONCATENATE("Total Gross costs of facilities renewal & upgrade - ",E137) -> Total Gross costs of facilities renewal & upgrade - <insert project name> | G166: =SUMIF($E$137:$P$160,"Total gross costs",G$137:G$160) -> 0 | H166: =SUMIF($E$137:$P$160,"Total gross costs",H$137:H$160) -> 0 | I166: =SUMIF($E$137:$P$160,"Total gross costs",I$137:I$160) -> 0 | J166: =SUMIF($E$137:$P$160,"Total gross costs",J$137:J$160) -> 0 | K166: =SUMIF($E$137:$P$160,"Total gross costs",K$137:K$160) -> 0 | L166: =SUMIF($E$137:$P$160,"Total gross costs",$L$137:$L$160) -> 0 | M166: =SUMIF($E$137:$P$160,"Total gross costs",$M$137:$M$160) -> 0 | N166: =SUMIF($E$137:$P$160,"Total gross costs",$N$137:$N$160) -> 0 | O166: =SUMIF($E$137:$P$160,"Total gross costs",$O$137:$O$160) -> 0 | P166: =SUMIF($E$137:$P$160,"Total gross costs",$P$137:$P$160) -> 0
F167: Less customer contributions | G167: =SUMIF($E$137:$P$160,"Less customer contributions",G$137:G$160) -> 0 | H167: =SUMIF($E$137:$P$160,"Less customer contributions",H$137:H$160) -> 0 | I167: =SUMIF($E$137:$P$160,"Less customer contributions",I$137:I$160) -> 0 | J167: =SUMIF($E$137:$P$160,"Less customer contributions",J$137:J$160) -> 0 | K167: =SUMIF($E$137:$P$160,"Less customer contributions",K$137:K$160) -> 0 | L167: =SUMIF($E$137:$P$160,"Less customer contributions",$L$137:$L$160) -> 0 | M167: =SUMIF($E$137:$P$160,"Less customer contributions",$M$137:$M$160) -> 0 | N167: =SUMIF($E$137:$P$160,"Less customer contributions",$N$137:$N$160) -> 0 | O167: =SUMIF($E$137:$P$160,"Less customer contributions",$O$137:$O$160) -> 0 | P167: =SUMIF($E$137:$P$160,"Less customer contributions",$P$137:$P$160) -> 0
F168: =CONCATENATE("Total Net Costs of facilities renewal & upgrade - ",E137) -> Total Net Costs of facilities renewal & upgrade - <insert project name> | G168: =SUMIF($E$137:$P$160,"Total net costs",G$137:G$160) -> 0 | H168: =SUMIF($E$137:$P$160,"Total net costs",H$137:H$160) -> 0 | I168: =SUMIF($E$137:$P$160,"Total net costs",I$137:I$160) -> 0 | J168: =SUMIF($E$137:$P$160,"Total net costs",J$137:J$160) -> 0 | K168: =SUMIF($E$137:$P$160,"Total net costs",K$137:K$160) -> 0 | L168: =SUMIF($E$137:$P$160,"Total net costs",$L$137:$L$160) -> 0 | M168: =SUMIF($E$137:$P$160,"Total net costs",$M$137:$M$160) -> 0 | N168: =SUMIF($E$137:$P$160,"Total net costs",$N$137:$N$160) -> 0 | O168: =SUMIF($E$137:$P$160,"Total net costs",$O$137:$O$160) -> 0 | P168: =SUMIF($E$137:$P$160,"Total net costs",$P$137:$P$160) -> 0
E170: TOTALS | F170: Total Direct costs (excl escalation) | G170: =SUM(G128,G161) -> 0 | H170: 0 | I170: 0 | J170: 0 | K170: 0 | L170: 0 | M170: 0 | N170: 0 | O170: 0 | P170: 0
F171: Escalation | G171: =SUM(G129,G162) -> 0 | H171: 0 | I171: 0 | J171: 0 | K171: 0 | L171: 0 | M171: 0 | N171: 0 | O171: 0 | P171: 0
F172: Total Direct costs (incl escalation) | G172: =SUM(G130,G163) -> 0 | H172: 0 | I172: 0 | J172: 0 | K172: 0 | L172: 0 | M172: 0 | N172: 0 | O172: 0 | P172: 0
F173: Total Overhead cost | G173: =SUM(G131,G164) -> 0 | H173: 0 | I173: 0 | J173: 0 | K173: 0 | L173: 0 | M173: 0 | N173: 0 | O173: 0 | P173: 0
F174: Related party and/or network operator margin | G174: =SUM(G132,G165) -> 0 | H174: 0 | I174: 0 | J174: 0 | K174: 0 | L174: 0 | M174: 0 | N174: 0 | O174: 0 | P174: 0
F175: Total Gross costs of facilities renewal & upgrade | G175: =SUM(G133,G166) -> 0 | H175: 0 | I175: 0 | J175: 0 | K175: 0 | L175: 410619.469 | M175: 423362.8319 | N175: 433957.4973 | O175: 446671.0959 | P175: 452604.1085
F176: Less customer contributions | G176: =SUM(G134,G167) -> 0 | H176: 0 | I176: 0 | J176: 0 | K176: 0 | L176: 0 | M176: 0 | N176: 0 | O176: 0 | P176: 0
F177: Total Net Costs of facilities renewal & upgrade | G177: =SUM(G135,G168) -> 0 | H177: 0 | I177: 0 | J177: 0 | K177: 0 | L177: 410619.469 | M177: 423362.8319 | N177: 433957.4973 | O177: 446671.0959 | P177: 452604.1085
E178: Source(s) of data:

Sheet 8.Meter replacement
B1: =SheetHeader -> REGULATORY REPORTING STATEMENT
B2: =dms_TradingName -> AGN
B3: =CONCATENATE(FRCP_y1," to ",FRCP_y5) -> 2016-17 to 2020-21 | E3: =CONCATENATE(LEFT(FRCP_y1,4),"-",LEFT(FRCP_y5,2),RIGHT(FRCP_y5,2)) -> 2016-2021
B4: 8. METER REPLACEMENT CAPITAL EXPENDITURE
B7: Instructions
B8: This template asks for information relating to meter replacement
B9: Record data on the meters removed from service as part of the service provider's meter replacement program in Table 8.1. The data should be INCLUSIVE of meters removed through providing ancillary services.
B10: Record data on the cost and volume of meters refurbished and procured for the service provider's meter replacement program in Table 8.6. These data are to be exclusive of meters procured for new connections.
B11: Record Other internal costs attributable to the service provider's meter replacement program in tables 8.8.
B12: =CONCATENATE("As set out in cl.6.1 of the ", dms_TradingName, " RIN, for tables 8.2 to 8.8, where the requested data is captured in the ", dms_TradingName, " capex model it is not required to be reentered in the RIN template tables. If the requested data has not been provided in the ActewAGL RIN please enter into the tables. This may require the insertion of new lines in each table.") -> As set out in cl.6.1 of the AGN RIN, for tables 8.2 to 8.8, where the requested data is captured in the AGN capex model it is not required to be reentered in the RIN template tables. If the requested data has not been provided in the ActewAGL RIN please enter into the tables. This may require the insertion of new lines in each table.
B13: Reported expenditure is to be entered EXCLUSIVE of any profit margins or management fees paid directly or indirectly to related party contractors or network operator (which is not an actual incurred cost of the related party contractor or network operator). Include any related party or network operator margins or management fees in the separate 'Related party margin' line item.
B14: =CONCATENATE("Subject to cl.6.1 of the ", dms_TradingName, " RIN, where linked/adjustable escalation is not provided in the ", dms_TradingName, " capex model, escalation should be linked to allocations derived in tab '2 - Escalators'.") -> Subject to cl.6.1 of the AGN RIN, where linked/adjustable escalation is not provided in the AGN capex model, escalation should be linked to allocations derived in tab '2 - Escalators'.
B15: =CONCATENATE("Subject to cl.6.1 of the ", dms_TradingName, " RIN, where linked/adjustable overhead costs and related party margin or network operator costs is not provided in the ", dms_TradingName, " capex model, overhead costs and related party or network operator margin costs should be linked to allocations derived in tabs '12 - Overheads' and '13 - Related party transactions'.") -> Subject to cl.6.1 of the AGN RIN, where linked/adjustable overhead costs and related party margin or network operator costs is not provided in the AGN capex model, overhead costs and related party or network operator margin costs should be linked to allocations derived in tabs '12 - Overheads' and '13 - Related party transactions'.
B16: Capital expenditure amounts entered should be GROSS of customer contributions. There is a separate line item for customer contributions from which net capital expenditure is derived.
B19: Table 8.1 - Meters removed (actual/forecast)
C20: Previous access arrangement period | H20: Current access arrangement period | M20: Next access arrangement period
C21: whole numbers
C22: Actual | L22: Forecast
C23: =PRCP -> 2006-07 | D23: 2007-08 | E23: 2008-09 | F23: 2009-10 | G23: 2010-11 | H23: =CRCP_y1 -> 2011-12 | I23: =CRCP_y2 -> 2012-13 | J23: =CRCP_y3 -> 2013-14 | K23: =CRCP_y4 -> 2014-15 | L23: =CRCP_y5 -> 2015-16 | M23: =FRCP -> 2016-17 | N23: 2017-18 | O23: 2018-19 | P23: 2019-20 | Q23: 2020-21
B24: Domestic Meters
B25: Refurbishable meters | H25: 17438 | I25: 19499 | J25: 21431 | K25: 26021.66667 | L25: 24907 | M25: 35336 | N25: 32536 | O25: 28735 | P25: 20071 | Q25: 15117
B26: Meters decommissioned | H26: 2805 | I26: 1935 | J26: 7398 | K26: 6257 | L26: 8420 | M26: 9337 | N26: 8766 | O26: 7775 | P26: 6019 | Q26: 4164
B27: Total meters removed | C27: =C25+C26 -> 0 | D27: =D25+D26 -> 0 | E27: 0 | F27: 0 | G27: 0 | H27: 20243 | I27: =I25+I26 -> 21434 | J27: 28829 | K27: 32278.66667 | L27: 33327 | M27: 44673 | N27: 41302 | O27: 36510 | P27: 26090 | Q27: 19281
B28: I&C
B29: Refurbishable meters | H29: 583.2 | I29: 735.3 | J29: 1108.8 | K29: 1395.6 | L29: 743.4 | M29: 774 | N29: 859.5 | O29: 953.1 | P29: 911.7 | Q29: 1184.4
B30: Meters decommissioned | H30: 64.8 | I30: 81.7 | J30: 123.2 | K30: 155.0666667 | L30: 82.6 | M30: 86 | N30: 95.5 | O30: 105.9 | P30: 101.3 | Q30: 131.6
B31: Total meters removed | C31: =C29+C30 -> 0 | D31: =D29+D30 -> 0 | E31: 0 | F31: 0 | G31: 0 | H31: 648 | I31: =I29+I30 -> 817 | J31: 1232 | K31: 1550.666667 | L31: 826 | M31: 860 | N31: 955 | O31: 1059 | P31: 1013 | Q31: 1316
B32: <insert meter type>
B33: Refurbishable meters
B34: Meters decommissioned
B35: Total meters removed | C35: =C33+C34 -> 0 | D35: =D33+D34 -> 0 | E35: 0 | F35: 0 | G35: 0 | H35: =H33+H34 -> 0 | I35: =I33+I34 -> 0 | J35: 0 | K35: 0 | L35: 0 | M35: 0 | N35: 0 | O35: 0 | P35: 0 | Q35: 0
B36: <insert meter type>
B37: Refurbishable meters
B38: Meters decommissioned
B39: Total meters removed | C39: =C37+C38 -> 0 | D39: =D37+D38 -> 0 | E39: 0 | F39: 0 | G39: 0 | H39: 0 | I39: =I37+I38 -> 0 | J39: 0 | K39: 0 | L39: 0 | M39: 0 | N39: 0 | O39: 0 | P39: 0 | Q39: 0
B40: <insert meter type>
B41: Refurbishable meters
B42: Meters decommissioned
B43: Total meters removed | C43: =C41+C42 -> 0 | D43: =D41+D42 -> 0 | E43: 0 | F43: 0 | G43: 0 | H43: 0 | I43: =I41+I42 -> 0 | J43: 0 | K43: 0 | L43: 0 | M43: 0 | N43: 0 | O43: 0 | P43: 0 | Q43: 0
B44: <insert meter type>
B45: Refurbishable meters
B46: Meters decommissioned
B47: Total meters removed | C47: =C45+C46 -> 0 | D47: =D45+D46 -> 0 | E47: 0 | F47: 0 | G47: 0 | H47: 0 | I47: =I45+I46 -> 0 | J47: 0 | K47: 0 | L47: 0 | M47: 0 | N47: 0 | O47: 0 | P47: 0 | Q47: 0
B48: Total meters removed | C48: =C47+C43+C39+C35+C31+C27 -> 0 | D48: =D47+D43+D39+D35+D31+D27 -> 0 | E48: 0 | F48: 0 | G48: 0 | H48: 20891 | I48: =I47+I43+I39+I35+I31+I27 -> 22251 | J48: 30061 | K48: 33829.33333 | L48: 34153 | M48: 45533 | N48: 42257 | O48: 37569 | P48: 27103 | Q48: 20597
B49: Source(s) of data: | C49: Source(s) of data: Historic Total Meter Changes from the Oracle BM17 Report. I&C Meters Decomissioned based on estimate of 10%, Historic Domestic Meters Decommissioned and forecast total replacement numbers from Aged meter report Maximo. Domestic Meters decomissioned forecast at 25% based on recent historic %'s
B52: Table 8.2 - Meters replacement totals (actual/forecast)
C53: Previous access arrangement period | H53: Current access arrangement period | M53: Next access arrangement period
C54: $0's, Nominal | L54: =CONCATENATE("$0's, Real ",dms_DollarReal) -> $0's, Real June 2016
C55: Actual | L55: Forecast
C56: =PRCP -> 2006-07 | D56: 2007-08 | E56: 2008-09 | F56: 2009-10 | G56: 2010-11 | H56: =CRCP_y1 -> 2011-12 | I56: =CRCP_y2 -> 2012-13 | J56: =CRCP_y3 -> 2013-14 | K56: =CRCP_y4 -> 2014-15 | L56: =CRCP_y5 -> 2015-16 | M56: =FRCP -> 2016-17 | N56: 2017-18 | O56: 2018-19 | P56: 2019-20 | Q56: 2020-21
B57: Volume | H57: 20891 | I57: 22251 | J57: 30061 | K57: 33829.33333 | L57: 34153 | M57: 38207 | N57: 36019 | O57: 32160 | P57: 25090 | Q57: 17972
B58: Direct internal labour (excl escalation) | H58: 460394.8074 | I58: 433328.0472 | J58: 472949.7623 | K58: 303870.7867 | L58: 388907.6959 | M58: 432051.4852 | N58: 430014.0585 | O58: 416417.4653 | P58: 354276.6199 | Q58: 346695.5775
B59: Direct contractor costs (excl escalation) | H59: 597241.1365 | I59: 620351.5755 | J59: 855805.4499 | K59: 963993.3333 | L59: 994386.0228 | M59: 1115748.922 | N59: 1050684.011 | O59: 936443.4763 | P59: 729063.0057 | Q59: 517442.9602
B60: Other internal direct costs (excl escalation) | H60: 958747.0236 | I60: 1217069.639 | J60: 2173097.187 | K60: 2487229.213 | L60: 2278243.966 | M60: 2725619.202 | N60: 2595937.979 | O60: 2355583.628 | P60: 1871933.915 | Q60: 1448946.806
B61: Total direct cost (excl. escalation) | C61: =SUM(C58:C60) -> 0 | D61: 0 | E61: 0 | F61: 0 | G61: 0 | H61: 2016382.968 | I61: =SUM(I58:I60) -> 2270749.261 | J61: 3501852.399 | K61: 3755093.333 | L61: 3661537.685 | M61: 4273419.609 | N61: 4076636.049 | O61: 3708444.569 | P61: 2955273.541 | Q61: 2313085.343
B62: Escalation | M62: 20896.56406 | N62: 35936.25425 | O62: 49535.93002 | P62: 55189.55306 | Q62: 63148.28439
B63: Total direct cost (incl. escalation) | C63: =SUM(C61:C62) -> 0 | D63: 0 | E63: 0 | F63: 0 | G63: 0 | H63: 2016382.968 | I63: =SUM(I61:I62) -> 2270749.261 | J63: 3501852.399 | K63: 3755093.333 | L63: 3661537.685 | M63: =M62+M61 -> 4294316.173 | N63: =N62+N61 -> 4112572.304 | O63: =O62+O61 -> 3757980.499 | P63: =P62+P61 -> 3010463.094 | Q63: =Q62+Q61 -> 2376233.628
B64: Total overhead costs | H64: 248698.3824 | I64: 218867.4047 | J64: 301142.8274 | K64: 361990.9973 | L64: 352972.2328 | M64: 413998.2113 | N64: 396476.9963 | O64: 362292.1885 | P64: 290226.9618 | Q64: 229083.3818
B65: Related party and/or network operator margin
B66: Total gross costs | C66: =SUM(C63:C65) -> 0 | D66: =SUM(D63:D65) -> 0 | E66: 0 | F66: 0 | G66: 0 | H66: 2265081.35 | I66: =SUM(I63:I65) -> 2489616.666 | J66: 3802995.227 | K66: 4117084.331 | L66: 4014509.918 | M66: =M63+M64+M65 -> 4708314.384 | N66: =N63+N64+N65 -> 4509049.3 | O66: =O63+O64+O65 -> 4120272.688 | P66: =P63+P64+P65 -> 3300690.056 | Q66: =Q63+Q64+Q65 -> 2605317.01
B67: Less: contributions
B68: Total net costs | C68: =C66-C67 -> 0 | D68: 0 | E68: 0 | F68: 0 | G68: 0 | H68: 2265081.35 | I68: =I66-I67 -> 2489616.666 | J68: 3802995.227 | K68: 4117084.331 | L68: 4014509.918 | M68: =M66-M67 -> 4708314.384 | N68: =N66-N67 -> 4509049.3 | O68: =O66-O67 -> 4120272.688 | P68: =P66-P67 -> 3300690.056 | Q68: =Q66-Q67 -> 2605317.01
B69: Source(s) of data:
B71: Table 8.3 - Replacement meters installation costs (actual/forecast)
C72: Previous access arrangement period | H72: Current access arrangement period | M72: Next access arrangement period
C73: $0's, Nominal | L73: =CONCATENATE("$0's, Real ",dms_DollarReal) -> $0's, Real June 2016
C74: Actual | L74: Forecast
C75: =PRCP -> 2006-07 | D75: 2007-08 | E75: 2008-09 | F75: 2009-10 | G75: 2010-11 | H75: =CRCP_y1 -> 2011-12 | I75: =CRCP_y2 -> 2012-13 | J75: =CRCP_y3 -> 2013-14 | K75: =CRCP_y4 -> 2014-15 | L75: =CRCP_y5 -> 2015-16 | M75: =FRCP -> 2016-17 | N75: 2017-18 | O75: 2018-19 | P75: 2019-20 | Q75: 2020-21
B76: Table 8.3.1 - Total residential replacement meter installation costs
B77: Volume of meter replacements | H77: 20243000 | I77: 21434000 | J77: 28829000 | K77: 32278666.67 | L77: 33327000 | M77: 37347000 | N77: 35064000 | O77: 31101000 | P77: 24077000 | Q77: 16656000
B78: Direct internal labour costs | H78: 0 | I78: 0 | J78: 0 | K78: 0 | L78: 0 | M78: 0 | N78: 0 | O78: 0 | P78: 0 | Q78: 0
B79: Contractor costs | H79: 566804 | I79: 600152 | J79: 836041 | K79: 936081.3333 | L79: 979320.5351 | M79: 1097449.036 | N79: 1030362.626 | O79: 913909.0816 | P79: 707507.4421 | Q79: 489439.8786
B80: Other costs
B81: Total direct cost (excl. escalation) | C81: 1994207.66 | D81: 3191299.38 | E81: 3157651.58 | F81: 2902027.92 | G81: 2119178.983 | H81: =H78+H79+H80 -> 566804 | I81: 600152 | J81: 836041 | K81: 936081.3333 | L81: 979320.5351 | M81: =M78+M79+M80 -> 1097449.036 | N81: 1030362.626 | O81: 913909.0816 | P81: 707507.4421 | Q81: 489439.8786
B82: Escalation | C82: 0 | D82: 0 | E82: 0 | F82: 0 | G82: 0 | M82: 5366.408212 | N82: 9082.825364 | O82: 12207.63462 | P82: 13212.65831 | Q82: 13361.93182
B83: Total direct cost (incl. escalation) | C83: 1994207.66 | D83: 3191299.38 | E83: 3157651.58 | F83: 2902027.92 | G83: =+G81 -> 2119178.983 | H83: =H82+H81 -> 566804 | I83: 600152 | J83: 836041 | K83: 936081.3333 | L83: 979320.5351 | M83: 1102815.444 | N83: 1039445.452 | O83: 926116.7162 | P83: 720720.1004 | Q83: 502801.8104
B84: Total overhead costs | H84: 69922.42312 | I84: 57908.19542 | J84: 71894.61506 | K84: 94076.174 | L84: 98421.71378 | M84: 106318.1198 | N84: 100208.8669 | O84: 89283.28713 | P84: 69481.80347 | Q84: 48473.15422
B85: Related party and/or network operator margin
B86: Total gross costs | C86: 1994207.66 | D86: 3191299.38 | E86: 3157651.58 | F86: 2902027.92 | G86: =+G83 -> 2119178.983 | H86: =H83+H84+H85 -> 636726.4231 | I86: 658060.1954 | J86: 907935.6151 | K86: 1030157.507 | L86: 1077742.249 | M86: =M83+M84+M85 -> 1209133.564 | N86: 1139654.318 | O86: 1015400.003 | P86: 790201.9039 | Q86: 551274.9646
B87: Less: contributions | C87: 0 | D87: 0 | E87: 0 | F87: 0 | G87: 0
B88: Total net costs | C88: 1994207.66 | D88: 3191299.38 | E88: 3157651.58 | F88: 2902027.92 | G88: =+G86 -> 2119178.983 | H88: =H86-H87 -> 636726.4231 | I88: 658060.1954 | J88: 907935.6151 | K88: 1030157.507 | L88: 1077742.249 | M88: =M86-M87 -> 1209133.564 | N88: 1139654.318 | O88: 1015400.003 | P88: 790201.9039 | Q88: 551274.9646
B90: Table 8.3.2 - Total Industrial and commercial replacement meter installation cost
B91: Volume of meter replacements | H91: 648000 | I91: 817000 | J91: 1232000 | K91: 1550666.667 | L91: 826000 | M91: 860000 | N91: 955000 | O91: 1059000 | P91: 1013000 | Q91: 1316000
B92: Direct internal labour costs | H92: 121975.058 | I92: 154800 | J92: 206100 | K92: 168867.6 | L92: 91146.20038 | M92: 127837.7761 | N92: 141959.3909 | O92: 157418.8429 | P92: 150581.0083 | Q92: 195621.5271
B93: Contractor costs | H93: 3119.291607 | I93: 2300 | J93: 2200 | K93: 2791.2 | L93: 1506.548767 | M93: 1829.988615 | N93: 2032.13852 | O93: 2253.439469 | P93: 2155.556357 | Q93: 2800.308159
B94: Other costs
B95: Total direct cost (excl. escalation) | C95: 284133.62 | D95: 461711.08 | E95: 428203.55 | F95: 396315.58 | G95: 320379.9158 | H95: =H92+H93+H94 -> 125094.3496 | I95: 157100 | J95: 208300 | K95: 171658.8 | L95: 92652.74915 | M95: =M92+M93+M94 -> 129667.7647 | N95: 143991.5294 | O95: 159672.2824 | P95: 152736.5647 | Q95: 198421.8353
B96: Escalation | C96: 0 | D96: 0 | E96: 0 | F96: 0 | G96: 0 | H96: 0 | I96: 0 | J96: 0 | M96: 634.0614775 | N96: 1269.310321 | O96: 2132.838945 | P96: 2852.346027 | Q96: 5417.006562
B97: Total direct cost (incl. escalation) | C97: 284133.62 | D97: 461711.08 | E97: 428203.55 | F97: 396315.58 | G97: =+G95 -> 320379.9158 | H97: =H96+H95 -> 125094.3496 | I97: 157100 | J97: 208300 | K97: 171658.8 | L97: 92652.74915 | M97: 130301.8262 | N97: 145260.8397 | O97: 161805.1213 | P97: 155588.9107 | Q97: 203838.8419
B98: Total overhead costs | H98: 15412.46659 | I98: 15078.73522 | J98: 17914.21636 | K98: 17251.7094 | L98: 9311.601289 | M98: 12561.88897 | N98: 14004.0289 | O98: 15598.99832 | P98: 14999.7178 | Q98: 19651.30477
B99: Related party and/or network operator margin
B100: Total gross costs | C100: 284133.62 | D100: 461711.08 | E100: 428203.55 | F100: 396315.58 | G100: =+G97 -> 320379.9158 | H100: =H97+H98+H99 -> 140506.8162 | I100: 172178.7352 | J100: 226214.2164 | K100: 188910.5094 | L100: 101964.3504 | M100: =M97+M98+M99 -> 142863.7152 | N100: 159264.8686 | O100: 177404.1196 | P100: 170588.6285 | Q100: 223490.1466
B101: Less: contributions | C101: 0 | D101: 0 | E101: 0 | F101: 0 | G101: 0
B102: Total net costs | C102: 284133.62 | D102: 461711.08 | E102: 428203.55 | F102: 396315.58 | G102: =+G100 -> 320379.9158 | H102: =H100-H101 -> 140506.8162 | I102: 172178.7352 | J102: 226214.2164 | K102: 188910.5094 | L102: 101964.3504 | M102: =M100-M101 -> 142863.7152 | N102: 159264.8686 | O102: 177404.1196 | P102: 170588.6285 | Q102: 223490.1466
B104: Table 8.3.3 - Total water replacement meter installation cost
B105: Volume of meter replacements
B106: Direct internal labour costs
B107: Contractor costs
B108: Other costs
B109: Total direct cost (excl. escalation) | C109: =C106+C107+C108 -> 0 | D109: 0 | E109: 0 | F109: 0 | G109: 0 | H109: 0 | I109: =I106+I107+I108 -> 0 | J109: 0 | K109: 0 | L109: 0 | M109: 0 | N109: 0 | O109: 0 | P109: 0 | Q109: 0
B110: Escalation | F110: 0 | G110: 0
B111: Total direct cost (incl. escalation) | C111: =SUM(C109:C110) -> 0 | D111: 0 | E111: 0 | F111: 13177.1 | G111: 12069.95123 | H111: 0 | I111: =SUM(I109:I110) -> 0 | J111: 0 | K111: 0 | L111: 0 | M111: =M110+M109 -> 0 | N111: =N110+N109 -> 0 | O111: =O110+O109 -> 0 | P111: =P110+P109 -> 0 | Q111: =Q110+Q109 -> 0
B112: Total overhead costs | F112: 0 | G112: 0
B113: Related party and/or network operator margin | F113: 0 | G113: 0
B114: Total gross costs | C114: =C111+C112+C113 -> 0 | D114: =D111+D112+D113 -> 0 | E114: 0 | F114: 13177.1 | G114: =+G111 -> 12069.95123 | H114: 0 | I114: =I111+I112+I113 -> 0 | J114: 0 | K114: 0 | L114: 0 | M114: 0 | N114: 0 | O114: 0 | P114: 0 | Q114: 0
B115: Less: contributions | F115: 0 | G115: 0
B116: Total net costs | C116: =C114-C115 -> 0 | D116: =D114-D115 -> 0 | E116: 0 | F116: 13177.1 | G116: =+G114 -> 12069.95123 | H116: 0 | I116: =I114-I115 -> 0 | J116: 0 | K116: 0 | L116: 0 | M116: 0 | N116: 0 | O116: 0 | P116: 0 | Q116: 0
B118: Table 8.3.4 - Total replacement meter installation costs
B119: Volume of meter replacements | C119: =C77+C91+C105 -> 0 | D119: =D77+D91+D105 -> 0 | E119: 0 | F119: 0 | G119: 0 | H119: 20891000 | I119: =I77+I91+I105 -> 22251000 | J119: 30061000 | K119: 33829333.33 | L119: 34153000 | M119: 38207000 | N119: 36019000 | O119: 32160000 | P119: 25090000 | Q119: 17972000
B120: Direct internal labour costs | C120: =C78+C92+C106 -> 0 | D120: 0 | E120: 0 | F120: 0 | G120: 0 | H120: 121975.058 | I120: 154800 | J120: 206100 | K120: 168867.6 | L120: 91146.20038 | M120: 127837.7761 | N120: 141959.3909 | O120: 157418.8429 | P120: 150581.0083 | Q120: 195621.5271
B121: Contractor costs | C121: 0 | D121: 0 | E121: 0 | F121: 0 | G121: 0 | H121: 569923.2916 | I121: 602452 | J121: 838241 | K121: 938872.5333 | L121: 980827.0839 | M121: 1099279.025 | N121: 1032394.765 | O121: 916162.5211 | P121: 709662.9985 | Q121: 492240.1867
B122: Other costs | C122: 0 | D122: 0 | E122: 0 | F122: 0 | G122: 0 | H122: 0 | I122: 0 | J122: 0 | K122: 0 | L122: 0 | M122: 0 | N122: 0 | O122: 0 | P122: 0 | Q122: 0
B123: Total direct cost (excl. escalation) | C123: 2278341.28 | D123: 3653010.46 | E123: 3585855.13 | F123: 3298343.5 | G123: 2439558.899 | H123: 691898.3496 | I123: 757252 | J123: 1044341 | K123: 1107740.133 | L123: 1071973.284 | M123: 1227116.801 | N123: 1174354.156 | O123: 1073581.364 | P123: 860244.0068 | Q123: 687861.7139
B124: Escalation | C124: 0 | D124: 0 | E124: 0 | F124: 0 | G124: 0 | H124: 0 | I124: 0 | J124: 0 | K124: 0 | L124: 0 | M124: =M82+M96 -> 6000.469689 | N124: =N82+N96 -> 10352.13568 | O124: 14340.47356 | P124: 16065.00434 | Q124: 18778.93838
B125: Total direct cost (incl. escalation) | C125: 2278341.28 | D125: 3653010.46 | E125: 3585855.13 | F125: 3311520.6 | G125: 2451628.85 | H125: 691898.3496 | I125: 757252 | J125: 1044341 | K125: 1107740.133 | L125: 1071973.284 | M125: 1233117.27 | N125: 1184706.291 | O125: 1087921.838 | P125: 876309.0112 | Q125: 706640.6522
B126: Total overhead costs | C126: 0 | D126: 0 | E126: 0 | F126: 0 | G126: 0 | H126: 85334.88971 | I126: 72986.93063 | J126: 89808.83142 | K126: 111327.8834 | L126: 107733.3151 | M126: =M84+M98 -> 118880.0087 | N126: =N84+N98 -> 114212.8958 | O126: 104882.2855 | P126: 84481.52127 | Q126: 68124.45899
B127: Related party and/or network operator margin | C127: 0 | D127: 0 | E127: 0 | F127: 0 | G127: 0 | H127: 0 | I127: 0 | J127: 0 | K127: 0 | L127: 0 | M127: 0 | N127: 0 | O127: 0 | P127: 0 | Q127: 0
B128: Total gross costs | C128: 2278341.28 | D128: 3653010.46 | E128: 3585855.13 | F128: 3311520.6 | G128: 2451628.85 | H128: 777233.2393 | I128: 830238.9306 | J128: 1134149.831 | K128: 1219068.017 | L128: 1179706.599 | M128: 1351997.279 | N128: 1298919.187 | O128: 1192804.123 | P128: 960790.5324 | Q128: 774765.1112
B129: Less: contributions | C129: 0 | D129: 0 | E129: 0 | F129: 0 | G129: 0 | H129: 0 | I129: 0 | J129: 0 | K129: 0 | L129: 0 | M129: 0 | N129: 0 | O129: 0 | P129: 0 | Q129: 0
B130: Total net costs | C130: =C88+C102+C116 -> 2278341.28 | D130: 3653010.46 | E130: 3585855.13 | F130: 3311520.6 | G130: 2451628.85 | H130: 777233.2393 | I130: 830238.9306 | J130: 1134149.831 | K130: 1219068.017 | L130: 1179706.599 | M130: 1351997.279 | N130: 1298919.187 | O130: 1192804.123 | P130: 960790.5324 | Q130: 774765.1112
B131: Source(s) of data: | C131: Source(s) of data: Installation costs based on management estimate. APA do not collect data to this level of detail.
B133: Table 8.4 - Meters replacement totals (approved)
C134: Previous access arrangement period | H134: Current access arrangement period
C135: $0's, Nominal | L135: =CONCATENATE("$0's, Real ",dms_DollarReal) -> $0's, Real June 2016
C136: Approved
C137: =PRCP -> 2006-07 | D137: 2007-08 | E137: 2008-09 | F137: 2009-10 | G137: 2010-11 | H137: =CRCP_y1 -> 2011-12 | I137: =CRCP_y2 -> 2012-13 | J137: =CRCP_y3 -> 2013-14 | K137: =CRCP_y4 -> 2014-15 | L137: =CRCP_y5 -> 2015-16
B138: Total
B139: Direct internal labour (excl escalation)
B140: Direct contractor costs (excl escalation)
B141: Other internal direct costs (excl escalation)
B142: Total direct cost (excl. escalation) | H142: =SUM(H139:H141) -> 0 | I142: =SUM(I139:I141) -> 0 | J142: =SUM(J139:J141) -> 0 | K142: =SUM(K139:K141) -> 0 | L142: =SUM(L139:L141) -> 0
B143: Escalation
B144: Total direct cost (incl. escalation) | C144: =C143+C142 -> 0 | D144: =D143+D142 -> 0 | E144: 0 | F144: 0 | G144: 0 | H144: 0 | I144: =I143+I142 -> 0 | J144: 0 | K144: 0 | L144: 0
B145: Total overhead costs
B146: Related party and/or network operator margin
B147: Total gross costs | C147: =C144+C145+C146 -> 0 | D147: 0 | E147: 0 | F147: 0 | G147: 0 | H147: 2976991.15 | I147: 3069380.531 | J147: 3146191.856 | K147: 3238365.445 | L147: 3281379.787
B148: Less: contributions
B149: Total net costs | C149: =C147-C148 -> 0 | D149: 0 | E149: 0 | F149: 0 | G149: 0 | H149: =H147-H148 -> 2976991.15 | I149: 3069380.531 | J149: 3146191.856 | K149: 3238365.445 | L149: 3281379.787
B150: <insert category/project name>
B151: Direct internal labour (excl escalation)
B152: Direct contractor costs (excl escalation)
B153: Other internal direct costs (excl escalation)
B154: Total direct cost (excl. escalation) | H154: =SUM(H151:H153) -> 0 | I154: =SUM(I151:I153) -> 0 | J154: =SUM(J151:J153) -> 0 | K154: =SUM(K151:K153) -> 0 | L154: =SUM(L151:L153) -> 0
B155: Escalation
B156: Total direct cost (incl. escalation) | C156: =C155+C154 -> 0 | D156: =D155+D154 -> 0 | E156: 0 | F156: 0 | G156: 0 | H156: 0 | I156: =I155+I154 -> 0 | J156: 0 | K156: 0 | L156: 0
B157: Total overhead costs
B158: Related party and/or network operator margin
B159: Total gross costs | C159: =C156+C157+C158 -> 0 | D159: =D156+D157+D158 -> 0 | E159: 0 | F159: 0 | G159: 0 | H159: 0 | I159: =I156+I157+I158 -> 0 | J159: 0 | K159: 0 | L159: 0
B160: Less: contributions
B161: Total net costs | C161: =C159-C160 -> 0 | D161: =D159-D160 -> 0 | E161: 0 | F161: 0 | G161: 0 | H161: 0 | I161: =I159-I160 -> 0 | J161: 0 | K161: 0 | L161: 0
B162: <insert category/project name>
B163: Direct internal labour (excl escalation)
B164: Direct contractor costs (excl escalation)
B165: Other internal direct costs (excl escalation)
B166: Total direct cost (excl. escalation) | H166: =SUM(H163:H165) -> 0 | I166: =SUM(I163:I165) -> 0 | J166: =SUM(J163:J165) -> 0 | K166: =SUM(K163:K165) -> 0 | L166: =SUM(L163:L165) -> 0
B167: Escalation
B168: Total direct cost (incl. escalation) | C168: =C167+C166 -> 0 | D168: =D167+D166 -> 0 | E168: 0 | F168: 0 | G168: 0 | H168: 0 | I168: =I167+I166 -> 0 | J168: 0 | K168: 0 | L168: 0
B169: Total overhead costs
B170: Related party and/or network operator margin
B171: Total gross costs | C171: =C168+C169+C170 -> 0 | D171: =D168+D169+D170 -> 0 | E171: 0 | F171: 0 | G171: 0 | H171: 0 | I171: =I168+I169+I170 -> 0 | J171: 0 | K171: 0 | L171: 0
B172: Less: contributions
B173: Total net costs | C173: =C171-C172 -> 0 | D173: =D171-D172 -> 0 | E173: 0 | F173: 0 | G173: 0 | H173: 0 | I173: =I171-I172 -> 0 | J173: 0 | K173: 0 | L173: 0
B174: <insert category/project name>
B175: Direct internal labour (excl escalation)
B176: Direct contractor costs (excl escalation)
B177: Other internal direct costs (excl escalation)
B178: Total direct cost (excl. escalation) | H178: =SUM(H175:H177) -> 0 | I178: =SUM(I175:I177) -> 0 | J178: =SUM(J175:J177) -> 0 | K178: =SUM(K175:K177) -> 0 | L178: =SUM(L175:L177) -> 0
B179: Escalation
B180: Total direct cost (incl. escalation) | C180: =C179+C178 -> 0 | D180: =D179+D178 -> 0 | E180: 0 | F180: 0 | G180: 0 | H180: 0 | I180: =I179+I178 -> 0 | J180: 0 | K180: 0 | L180: 0
B181: Total overhead costs
B182: Related party and/or network operator margin
B183: Total gross costs | C183: =C180+C181+C182 -> 0 | D183: =D180+D181+D182 -> 0 | E183: 0 | F183: 0 | G183: 0 | H183: 0 | I183: =I180+I181+I182 -> 0 | J183: 0 | K183: 0 | L183: 0
B184: Less: contributions
B185: Total net costs | C185: =C183-C184 -> 0 | D185: =D183-D184 -> 0 | E185: 0 | F185: 0 | G185: 0 | H185: 0 | I185: =I183-I184 -> 0 | J185: 0 | K185: 0 | L185: 0
B187: Direct internal labour (excl escalation) | C187: =SUMIF($C$138:$L$185,"Direct internal labour (excl escalation)",C$138:C$185) -> 0 | D187: 0 | E187: 0 | F187: 0 | G187: 0 | H187: 0 | I187: 0 | J187: 0 | K187: 0 | L187: 0
B188: Direct contractor costs (excl escalation) | C188: =SUMIF($C$138:$L$185,"Direct contractor costs (excl escalation)",C$138:C$185) -> 0 | D188: 0 | E188: 0 | F188: 0 | G188: 0 | H188: 0 | I188: 0 | J188: 0 | K188: 0 | L188: 0
B189: Other internal direct costs (excl escalation) | C189: =SUMIF($C$138:$L$185,"Other internal direct costs (excl escalation)",C$138:C$185) -> 0 | D189: 0 | E189: 0 | F189: 0 | G189: 0 | H189: 0 | I189: 0 | J189: 0 | K189: 0 | L189: 0
B190: Total direct cost (excl. escalation) | C190: =SUMIF($C$138:$L$185,"Total direct cost (excl. escalation)",C$138:C$185) -> 0 | D190: 0 | E190: 0 | F190: 0 | G190: 0 | H190: 0 | I190: 0 | J190: 0 | K190: 0 | L190: 0
B191: Escalation | C191: =SUMIF($C$138:$L$185,"Escalation",C$138:C$185) -> 0 | D191: 0 | E191: 0 | F191: 0 | G191: 0 | H191: 0 | I191: 0 | J191: 0 | K191: 0 | L191: 0
B192: Total direct cost (incl. escalation) | C192: =SUMIF($C$138:$L$185,"Total direct cost (incl. escalation)",C$138:C$185) -> 0 | D192: 0 | E192: 0 | F192: 0 | G192: 0 | H192: 0 | I192: 0 | J192: 0 | K192: 0 | L192: 0
B193: Total overhead costs | C193: =SUMIF($C$138:$L$185,"Total overhead costs",C$138:C$185) -> 0 | D193: 0 | E193: 0 | F193: 0 | G193: 0 | H193: 0 | I193: 0 | J193: 0 | K193: 0 | L193: 0
B194: Related party and/or network operator margin | C194: =SUMIF($C$138:$L$185,"Related party margin",C$138:C$185) -> 0 | D194: 0 | E194: 0 | F194: 0 | G194: 0 | H194: 0 | I194: 0 | J194: 0 | K194: 0 | L194: 0
B195: Total gross costs | C195: =SUMIF($C$138:$L$185,"Total gross costs",C$138:C$185) -> 0 | D195: 0 | E195: 0 | F195: 0 | G195: 0 | H195: 0 | I195: 0 | J195: 0 | K195: 0 | L195: 0
B196: Less: contributions | C196: =SUMIF($C$138:$L$185,"Less: contributions",C$138:C$185) -> 0 | D196: 0 | E196: 0 | F196: 0 | G196: 0 | H196: 0 | I196: 0 | J196: 0 | K196: 0 | L196: 0
B197: Total net costs | C197: =SUMIF($C$138:$L$185,"Total net costs",C$138:C$185) -> 0 | D197: 0 | E197: 0 | F197: 0 | G197: 0 | H197: 0 | I197: 0 | J197: 0 | K197: 0 | L197: 0
B198: Source(s) of data: | C198: Table 4.1 of AA
B200: Table 8.5 - Replacement meter costs (actual/forecast)
C201: Previous access arrangement period | H201: Current access arrangement period | M201: Next access arrangement period
C202: $0's, Nominal | L202: =CONCATENATE("$0's, Real ",dms_DollarReal) -> $0's, Real June 2016
C203: Actual | L203: Forecast
C204: =PRCP -> 2006-07 | D204: 2007-08 | E204: 2008-09 | F204: 2009-10 | G204: 2010-11 | H204: =CRCP_y1 -> 2011-12 | I204: =CRCP_y2 -> 2012-13 | J204: =CRCP_y3 -> 2013-14 | K204: =CRCP_y4 -> 2014-15 | L204: =CRCP_y5 -> 2015-16 | M204: =FRCP -> 2016-17 | N204: 2017-18 | O204: 2018-19 | P204: 2019-20 | Q204: 2020-21
B205: Table 8.5.1 - New meters acquired
B206: Domestic
B207: Volume | H207: 2805 | I207: 1935 | J207: 7398 | K207: 6257 | L207: 8420 | M207: 9337 | N207: 8766 | O207: 7775 | P207: 6019 | Q207: 4164
B208: Total direct cost (excl. escalation) | C208: =C205+C206+C207 -> 0 | D208: =D205+D206+D207 -> 0 | E208: 0 | F208: 0 | G208: 0 | H208: 196350 | I208: 135450 | J208: 517860 | K208: 437990 | L208: 597228.8425 | M208: 680531.2314 | N208: 638913.6526 | O208: 566684.1945 | P208: 438697.3848 | Q208: 303494.9178
B209: Escalation | M209: 3327.724813 | N209: 5632.134728 | O209: 7569.542453 | P209: 8192.646894 | Q209: 8285.549617
B210: Total direct cost (incl. escalation) | C210: =SUM(C208:C209) -> 0 | D210: 0 | E210: 0 | F210: 0 | G210: 0 | H210: 196350 | I210: =SUM(I208:I209) -> 135450 | J210: 517860 | K210: 437990 | L210: 597228.8425 | M210: =M209+M208 -> 683858.9562 | N210: =N209+N208 -> 644545.7873 | O210: =O209+O208 -> 574253.7369 | P210: =P209+P208 -> 446890.0317 | Q210: =Q209+Q208 -> 311780.4674
B211: Total overhead costs | H211: 24222.24928 | I211: 13069.46418 | J211: 44532.91807 | K211: 44017.995 | L211: 60021.49867 | M211: 65928.16486 | N211: 62138.13615 | O211: 55361.55474 | P211: 43082.91851 | Q211: 30057.53433
B212: Related party and/or network operator margin
B213: Total gross costs | C213: =C210+C211+C212 -> 0 | D213: =D210+D211+D212 -> 0 | E213: 0 | F213: 0 | G213: 0 | H213: 220572.2493 | I213: =I210+I211+I212 -> 148519.4642 | J213: 562392.9181 | K213: 482007.995 | L213: 657250.3412 | M213: 749787.1211 | N213: 706683.9235 | O213: 629615.2917 | P213: 489972.9502 | Q213: 341838.0017
... 182 more rows

Sheet 9. Regulators
E1: =SheetHeader -> REGULATORY REPORTING STATEMENT
E2: =dms_TradingName -> AGN
E3: =CONCATENATE(FRCP_y1," to ",FRCP_y5) -> 2016-17 to 2020-21 | K3: =CONCATENATE(LEFT(FRCP_y1,4),"-",LEFT(FRCP_y5,2),RIGHT(FRCP_y5,2)) -> 2016-2021
E4: 9. REGULATORS CAPITAL EXPENDITURE
E7: Instructions
E8: This template asks for information relating to regulators capital expenditure
A9: HPS | B9: HP services | E9: =CONCATENATE("As set out in cl.6.1 of the ", dms_TradingName, " RIN, for tables 10.1 to 10.2, where the requested data is captured in the ", dms_TradingName, " capex model it is not required to be reentered in the RIN template tables. If the requested data has not been provided in the AGN RIN please enter into the tables. This may require the insertion of new lines in each table.") -> As set out in cl.6.1 of the AGN RIN, for tables 10.1 to 10.2, where the requested data is captured in the AGN capex model it is not required to be reentered in the RIN template tables. If the requested data has not been provided in the AGN RIN please enter into the tables. This may require the insertion of new lines in each table.
A10: MPM | B10: MP mains | E10: Reported expenditure is to be entered EXCLUSIVE of any profit margins or management fees paid pursuant to arrangements or contracts between AGN and any related parties o rnetwork operator. Include any related party or network operator margins or management fees in the separate 'Related party and/or network operator margin' line item.
A11: TRS | B11: TRS & DRS - valves & regulators | E11: =CONCATENATE("Subject to cl.6.1 of the ", dms_TradingName, " RIN, where linked/adjustable escalation is not provided in the ", dms_TradingName, " capex model, escalation should be linked to allocations derived in tab '2 - Escalators'.") -> Subject to cl.6.1 of the AGN RIN, where linked/adjustable escalation is not provided in the AGN capex model, escalation should be linked to allocations derived in tab '2 - Escalators'.
A12: CM | B12: Contract meters | E12: =CONCATENATE("Subject to cl.6.1 of the ", dms_TradingName, " RIN, where linked/adjustable overhead costs and related party margin costs is not provided in the ", dms_TradingName, " capex model, overhead costs and related party or network operator margin costs should be linked to allocations derived in tabs '12 - Overheads' and '13 - Related party transactions'.") -> Subject to cl.6.1 of the AGN RIN, where linked/adjustable overhead costs and related party margin costs is not provided in the AGN capex model, overhead costs and related party or network operator margin costs should be linked to allocations derived in tabs '12 - Overheads' and '13 - Related party transactions'.
A13: TM | B13: Tariff meters | E13: Capital expenditure amounts entered should be GROSS of customer contributions. There is a separate line item for customer contributions from which net capital expenditure is derived.
A14: ERC | B14: Equity raising costs
A16: Internal identification code | B16: Asset category | C16: Percent allocation | E16: Table 9.1 - Regulators capital expenditure (actual / forecast )
G17: Previous access arrangement period | L17: Current access arrangement period | Q17: Next access arrangement period | V17: Supporting documentation (business case, costing spreadsheet, contracts)
G18: $0's, Nominal | P18: =CONCATENATE("$0's, Real ",dms_DollarReal) -> $0's, Real June 2016
G19: Actual | P19: Forecast
G20: =PRCP -> 2006-07 | H20: 2007-08 | I20: 2008-09 | J20: 2009-10 | K20: 2010-11 | L20: =CRCP_y1 -> 2011-12 | M20: =CRCP_y2 -> 2012-13 | N20: =CRCP_y3 -> 2013-14 | O20: =CRCP_y4 -> 2014-15 | P20: =CRCP_y5 -> 2015-16 | Q20: =FRCP -> 2016-17 | R20: 2017-18 | S20: 2018-19 | T20: 2019-20 | U20: 2020-21
E21: Regulators SIB | F21: Direct costs (excl escalation) | V21: Historic data from Oracle Financials BM20 report. Forecast data from the Asset Management Plan.
F22: Direct internal labour | L22: 34710.4267 | M22: 6134.77 | N22: 274676.23 | O22: 76061.5
F23: Direct contractor costs | L23: 75801.30914 | M23: 2802.5 | N23: 407747.08 | O23: 847273.87
F24: Other internal direct costs | L24: 134826.4429 | M24: 32402.18 | N24: 1084348.28 | O24: -12934.66
F25: Total direct costs (excl escalation) | L25: 245338.1788 | M25: 41339.45 | N25: 1766771.59 | O25: =SUM(O22:O24) -> 910400.71 | P25: 0 | Q25: 0 | R25: 0 | S25: 0 | T25: 0 | U25: 0
F26: Escalation | L26: 0 | M26: 0 | N26: 0
F27: Total direct costs (incl escalation) | G27: 877003.59 | H27: 401486.63 | I27: 103218.3 | J27: 210693.7 | K27: 151251.4105 | L27: 245338.1788 | M27: 41339.45 | N27: 1766771.59 | O27: =SUM(O25:O26) -> 910400.71 | P27: 0 | Q27: 0 | R27: 0 | S27: 0 | T27: 0 | U27: 0
F28: Total overhead costs | L28: 18458.59123 | M28: 3988.826675 | N28: 151960.9176 | O28: 87762.62844
F29: Related party and/or network operator margin | L29: 0 | M29: 0 | N29: 0
F30: Total gross costs | G30: =SUM(G27:G29) -> 877003.59 | H30: =SUM(H27:H29) -> 401486.63 | I30: 103218.3 | J30: 210693.7 | K30: 151251.4105 | L30: 263796.77 | M30: 45328.27667 | N30: 1918732.508 | O30: 998163.3384 | P30: 0 | Q30: =SUM(Q27:Q29) -> 0 | R30: =SUM(R27:R29) -> 0 | S30: =SUM(S27:S29) -> 0 | T30: =SUM(T27:T29) -> 0 | U30: =SUM(U27:U29) -> 0
F31: Less customer contributions | L31: 0 | M31: 0 | N31: 0
F32: Total net costs | G32: =G30-G31 -> 877003.59 | H32: 401486.63 | I32: 103218.3 | J32: 210693.7 | K32: 151251.4105 | L32: 263796.77 | M32: 45328.27667 | N32: 1918732.508 | O32: 998163.3384 | P32: 0 | Q32: =Q30-Q31 -> 0 | R32: =R30-R31 -> 0 | S32: =S30-S31 -> 0 | T32: =T30-T31 -> 0 | U32: =U30-U31 -> 0
E33: Regulators Growth | F33: Direct costs (excl escalation) | V33: Historic data from Oracle Financials BM20 report. Forecast data from the Asset Management Plan.
F34: Direct internal labour | M34: 73271.57 | N34: 44605.34 | O34: 188716.31
F35: Direct contractor costs | M35: 231414.52 | N35: 287183.32 | O35: 969692.1
F36: Other internal direct costs | M36: 521014.73 | N36: 479923.55 | O36: 608219.28
F37: Total direct costs (excl escalation) | L37: =SUM(L34:L36) -> 0 | M37: 825700.82 | N37: 811712.21 | O37: 1766627.69 | P37: 673833.0171 | Q37: 0 | R37: 0 | S37: 0 | T37: 0 | U37: 0
F38: Escalation | M38: 0 | N38: 0
F39: Total direct costs (incl escalation) | L39: =SUM(L37:L38) -> 0 | M39: 825700.82 | N39: 811712.21 | O39: 1766627.69 | P39: 673833.0171 | Q39: 0 | R39: 0 | S39: 0 | T39: 0 | U39: 0
F40: Total overhead costs | M40: 79671.74223 | N40: 69815.81491 | O40: 170302.9093 | P40: 64957.50285
F41: Related party and/or network operator margin | M41: 0 | N41: 0
F42: Total gross costs | G42: =SUM(G39:G41) -> 0 | H42: 0 | I42: 0 | J42: 0 | K42: 0 | L42: 0 | M42: 905372.5622 | N42: 881528.0249 | O42: =SUM(O39:O41) -> 1936930.599 | P42: 738790.5199 | Q42: 0 | R42: 0 | S42: 0 | T42: 0 | U42: 0
F43: Less customer contributions | M43: 0 | N43: 0
F44: Total net costs | G44: =G42-G43 -> 0 | H44: 0 | I44: 0 | J44: 0 | K44: 0 | L44: 0 | M44: 905372.5622 | N44: 881528.0249 | O44: =O42-O43 -> 1936930.599 | P44: 738790.5199 | Q44: 0 | R44: 0 | S44: 0 | T44: 0 | U44: 0
E45: I&C Meter Set Rfurbishment- SA08 | F45: Direct costs (excl escalation) | V45: Historic data from Oracle Financials BM20 report. Forecast data from the Asset Management Plan.
F46: Direct internal labour | Q46: 12159.39279 | R46: 12159.39279 | S46: 12159.39279 | T46: 12159.39279 | U46: 12159.39279
F47: Direct contractor costs | Q47: 344516.129 | R47: 344516.129 | S47: 344516.129 | T47: 344516.129 | U47: 344516.129
F48: Other internal direct costs
F49: Total direct costs (excl escalation) | O49: =SUM(O46:O48) -> 0 | P49: 0 | Q49: 356675.5218 | R49: 356675.5218 | S49: 356675.5218 | T49: 356675.5218 | U49: 356675.5218
F50: Escalation | Q50: 1199.498194 | R50: 2561.039759 | S50: 4145.6598 | T50: 6037.931172 | U50: 8865.533806
F51: Total direct costs (incl escalation) | O51: =SUM(O49:O50) -> 0 | P51: 0 | Q51: 357875.02 | R51: 359236.5616 | S51: 360821.1816 | T51: 362713.453 | U51: 365541.0556
F52: Total overhead costs | Q52: 34513.79071 | R52: 34632.72072 | S52: 34784.87116 | T52: 34967.54273 | U52: 35239.60733
F53: Related party and/or network operator margin
F54: Total gross costs | G54: =SUM(G51:G53) -> 0 | H54: =SUM(H51:H53) -> 0 | I54: 0 | J54: 0 | K54: 0 | O54: =SUM(O51:O53) -> 0 | P54: 0 | Q54: =SUM(Q51:Q53) -> 392388.8107 | R54: =SUM(R51:R53) -> 393869.2823 | S54: =SUM(S51:S53) -> 395606.0528 | T54: =SUM(T51:T53) -> 397680.9957 | U54: =SUM(U51:U53) -> 400780.663
F55: Less customer contributions
F56: Total net costs | G56: =G54-G55 -> 0 | H56: 0 | I56: 0 | J56: 0 | K56: 0 | O56: =O54-O55 -> 0 | P56: 0 | Q56: =Q54-Q55 -> 392388.8107 | R56: =R54-R55 -> 393869.2823 | S56: =S54-S55 -> 395606.0528 | T56: =T54-T55 -> 397680.9957 | U56: =U54-U55 -> 400780.663
E57: Valve CP - SA09 | F57: Direct costs (excl escalation) | V57: Historic data from Oracle Financials BM20 report. Forecast data from the Asset Management Plan.
F58: Direct internal labour | Q58: 27966.60342 | R58: 27966.60342 | S58: 27966.60342 | T58: 27966.60342 | U58: 27966.60342
F59: Direct contractor costs | Q59: 35059.58254 | R59: 35059.58254 | S59: 35059.58254 | T59: 35059.58254 | U59: 35059.58254
F60: Other internal direct costs
F61: Total direct costs (excl escalation) | O61: =SUM(O58:O60) -> 0 | P61: 0 | Q61: 63026.18596 | R61: 63026.18596 | S61: 63026.18596 | T61: 63026.18596 | U61: 63026.18596
F62: Escalation | Q62: 211.9567831 | R62: 452.5473664 | S62: 732.5569305 | T62: 1066.929883 | U62: 1566.580121
F63: Total direct costs (incl escalation) | O63: =SUM(O61:O62) -> 0 | P63: 0 | Q63: 63238.14274 | R63: 63478.73332 | S63: 63758.74289 | T63: 64093.11584 | U63: 64592.76608
F64: Total overhead costs | Q64: 6098.743699 | R64: 6119.759174 | S64: 6146.644847 | T64: 6178.923744 | U64: 6226.998795
F65: Related party and/or network operator margin
F66: Total gross costs | G66: =SUM(G63:G65) -> 0 | H66: =SUM(H63:H65) -> 0 | I66: 0 | J66: 0 | K66: 0 | O66: =SUM(O63:O65) -> 0 | P66: 0 | Q66: =SUM(Q63:Q65) -> 69336.88644 | R66: =SUM(R63:R65) -> 69598.4925 | S66: =SUM(S63:S65) -> 69905.38774 | T66: =SUM(T63:T65) -> 70272.03959 | U66: =SUM(U63:U65) -> 70819.76487
F67: Less customer contributions
F68: Total net costs | G68: =G66-G67 -> 0 | H68: 0 | I68: 0 | J68: 0 | K68: 0 | O68: =O66-O67 -> 0 | P68: 0 | Q68: =Q66-Q67 -> 69336.88644 | R68: =R66-R67 -> 69598.4925 | S68: =S66-S67 -> 69905.38774 | T68: =T66-T67 -> 70272.03959 | U68: =U66-U67 -> 70819.76487
E69: Replace Below Ground Reg Valves - SA22 | F69: Direct costs (excl escalation) | V69: Historic data from Oracle Financials BM20 report. Forecast data from the Asset Management Plan.
F70: Direct internal labour | Q70: 756922.2011 | R70: 756922.2011 | S70: 756922.2011 | T70: 756922.2011 | U70: 756922.2011
F71: Direct contractor costs | Q71: 0 | R71: 0 | S71: 0 | T71: 0 | U71: 0
F72: Other internal direct costs | Q72: 243187.8558 | R72: 243187.8558 | S72: 243187.8558 | T72: 243187.8558 | U72: 243187.8558
F73: Total direct costs (excl escalation) | O73: =SUM(O70:O72) -> 0 | P73: 0 | Q73: 1000110.057 | R73: 1000110.057 | S73: 1000110.057 | T73: 1000110.057 | U73: 1000110.057
F74: Escalation | Q74: 3363.365674 | R74: 7181.097278 | S74: 11624.33586 | T74: 16930.22178 | U74: 24858.7553
F75: Total direct costs (incl escalation) | O75: =SUM(O73:O74) -> 0 | P75: 0 | Q75: 1003473.423 | R75: 1007291.154 | S75: 1011734.393 | T75: 1017040.279 | U75: 1024968.812
F76: Total overhead costs | Q76: 96775.88475 | R76: 97109.3618 | S76: 97535.98817 | T76: 98048.19509 | U76: 98811.05804
F77: Related party and/or network operator margin
F78: Total gross costs | G78: =SUM(G75:G77) -> 0 | H78: =SUM(H75:H77) -> 0 | I78: 0 | J78: 0 | K78: 0 | O78: =SUM(O75:O77) -> 0 | P78: 0 | Q78: =SUM(Q75:Q77) -> 1100249.307 | R78: =SUM(R75:R77) -> 1104400.516 | S78: =SUM(S75:S77) -> 1109270.381 | T78: =SUM(T75:T77) -> 1115088.474 | U78: =SUM(U75:U77) -> 1123779.87
F79: Less customer contributions
F80: Total net costs | G80: =G78-G79 -> 0 | H80: 0 | I80: 0 | J80: 0 | K80: 0 | O80: =O78-O79 -> 0 | P80: 0 | Q80: =Q78-Q79 -> 1100249.307 | R80: =R78-R79 -> 1104400.516 | S80: =S78-S79 -> 1109270.381 | T80: =T78-T79 -> 1115088.474 | U80: =U78-U79 -> 1123779.87
E81: Upgrade Demand Customer Meter Sets SA33 | F81: Direct costs (excl escalation) | V81: Historic data from Oracle Financials BM20 report. Forecast data from the Asset Management Plan.
F82: Direct internal labour | Q82: 111461.1006 | R82: 111461.1006 | S82: 111461.1006 | T82: 111461.1006 | U82: 89168.88046
F83: Direct contractor costs | Q83: 0 | R83: 0 | S83: 0 | T83: 0 | U83: 0
F84: Other internal direct costs | Q84: 309051.2334 | R84: 309051.2334 | S84: 309051.2334 | T84: 309051.2334 | U84: 247240.9867
F85: Total direct costs (excl escalation) | O85: =SUM(O82:O84) -> 0 | P85: 0 | Q85: 420512.334 | R85: 420512.334 | S85: 420512.334 | T85: 420512.334 | U85: 336409.8672
F86: Escalation | Q86: 1414.181109 | R86: 3019.40767 | S86: 4887.638684 | T86: 7118.583627 | U86: 8361.810295
F87: Total direct costs (incl escalation) | O87: =SUM(O85:O86) -> 0 | P87: 0 | Q87: 421926.5151 | R87: 423531.7416 | S87: 425399.9726 | T87: 427630.9176 | U87: 344771.6775
F88: Total overhead costs | Q88: 40690.97484 | R88: 40831.19063 | S88: 41010.57253 | T88: 41225.93816 | U88: 33237.35691
F89: Related party and/or network operator margin
F90: Total gross costs | G90: =SUM(G87:G89) -> 0 | H90: =SUM(H87:H89) -> 0 | I90: 0 | J90: 0 | K90: 0 | O90: =SUM(O87:O89) -> 0 | P90: 0 | Q90: =SUM(Q87:Q89) -> 462617.4899 | R90: =SUM(R87:R89) -> 464362.9323 | S90: =SUM(S87:S89) -> 466410.5452 | T90: =SUM(T87:T89) -> 468856.8558 | U90: =SUM(U87:U89) -> 378009.0344
F91: Less customer contributions
F92: Total net costs | G92: =G90-G91 -> 0 | H92: 0 | I92: 0 | J92: 0 | K92: 0 | O92: =O90-O91 -> 0 | P92: 0 | Q92: =Q90-Q91 -> 462617.4899 | R92: =R90-R91 -> 464362.9323 | S92: =S90-S91 -> 466410.5452 | T92: =T90-T91 -> 468856.8558 | U92: =U90-U91 -> 378009.0344
E93: Replacement of Obsolete TP Reg Station Components- SA34 | F93: Direct costs (excl escalation) | V93: Historic data from Oracle Financials BM20 report. Forecast data from the Asset Management Plan.
F94: Direct internal labour | Q94: 43267.17268 | R94: 52589.37381 | S94: 54109.29791 | T94: 87192.97913 | U94: 6586.337761
F95: Direct contractor costs | Q95: 65650.58824 | R95: 37015.21822 | S95: 46793.39658 | T95: 35880.34156 | U95: 11348.7666
F96: Other internal direct costs
F97: Total direct costs (excl escalation) | O97: =SUM(O94:O96) -> 0 | P97: 0 | Q97: 108917.7609 | R97: 89604.59203 | S97: 100902.6945 | T97: 123073.3207 | U97: 17935.10436
F98: Escalation | Q98: 366.2899456 | R98: 643.3884825 | S98: 1172.797735 | T98: 2083.429319 | U98: 445.7953079
F99: Total direct costs (incl escalation) | O99: =SUM(O97:O98) -> 0 | P99: 0 | Q99: 109284.0509 | R99: 90247.98051 | S99: 102075.4922 | T99: 125156.75 | U99: 18380.89967
F100: Total overhead costs | Q100: 10539.45274 | R100: 8700.487198 | S100: 9840.560995 | T100: 12065.78903 | U100: 1771.991618
F101: Related party and/or network operator margin
F102: Total gross costs | G102: =SUM(G99:G101) -> 0 | H102: =SUM(H99:H101) -> 0 | I102: 0 | J102: 0 | K102: 0 | O102: =SUM(O99:O101) -> 0 | P102: 0 | Q102: =SUM(Q99:Q101) -> 119823.5036 | R102: =SUM(R99:R101) -> 98948.46771 | S102: =SUM(S99:S101) -> 111916.0532 | T102: =SUM(T99:T101) -> 137222.539 | U102: =SUM(U99:U101) -> 20152.89129
F103: Less customer contributions
F104: Total net costs | G104: =G102-G103 -> 0 | H104: 0 | I104: 0 | J104: 0 | K104: 0 | O104: =O102-O103 -> 0 | P104: 0 | Q104: =Q102-Q103 -> 119823.5036 | R104: =R102-R103 -> 98948.46771 | S104: =S102-S103 -> 111916.0532 | T104: =T102-T103 -> 137222.539 | U104: =U102-U103 -> 20152.89129
E105: Non Compliant Domestic Reg Replacement - SA45 | F105: Direct costs (excl escalation) | V105: Historic data from Oracle Financials BM20 report. Forecast data from the Asset Management Plan.
F106: Direct internal labour
F107: Direct contractor costs | Q107: 28675.90133 | R107: 61708.91841 | S107: 61708.91841 | T107: 61708.91841 | U107: 61708.91841
F108: Other internal direct costs | Q108: 161517.2676 | R108: 126356.3567 | S108: 126356.3567 | T108: 126356.3567 | U108: 126356.3567
F109: Total direct costs (excl escalation) | O109: =SUM(O106:O108) -> 0 | P109: 0 | Q109: 190193.1689 | R109: 188065.2751 | S109: 188065.2751 | T109: 188065.2751 | U109: 188065.2751
F110: Escalation | Q110: 639.6187813 | R110: 1350.366418 | S110: 2185.893349 | T110: 3183.636436 | U110: 4674.554189
F111: Total direct costs (incl escalation) | O111: =SUM(O109:O110) -> 0 | P111: 0 | Q111: 190832.7877 | R111: 189415.6416 | S111: 190251.1685 | T111: 191248.9116 | U111: 192739.8293
F112: Total overhead costs | Q112: 18404.08669 | R112: 18260.88911 | S112: 18341.11388 | T112: 18437.43162 | U112: 18580.88386
F113: Related party and/or network operator margin
F114: Total gross costs | G114: =SUM(G111:G113) -> 0 | H114: =SUM(H111:H113) -> 0 | I114: 0 | J114: 0 | K114: 0 | O114: =SUM(O111:O113) -> 0 | P114: 0 | Q114: =SUM(Q111:Q113) -> 209236.8744 | R114: =SUM(R111:R113) -> 207676.5307 | S114: =SUM(S111:S113) -> 208592.2824 | T114: =SUM(T111:T113) -> 209686.3432 | U114: =SUM(U111:U113) -> 211320.7132
F115: Less customer contributions
F116: Total net costs | G116: =G114-G115 -> 0 | H116: 0 | I116: 0 | J116: 0 | K116: 0 | O116: =O114-O115 -> 0 | P116: 0 | Q116: =Q114-Q115 -> 209236.8744 | R116: =R114-R115 -> 207676.5307 | S116: =S114-S115 -> 208592.2824 | T116: =T114-T115 -> 209686.3432 | U116: =U114-U115 -> 211320.7132
E117: Transmission Valve Replacement - SA70 | F117: Direct costs (excl escalation) | V117: Historic data from Oracle Financials BM20 report. Forecast data from the Asset Management Plan.
F118: Direct internal labour | Q118: 21076.28083 | R118: 42152.56167 | S118: 29993.16888 | T118: 29993.16888 | U118: 29993.16888
F119: Direct contractor costs | Q119: 6383.681214 | R119: 12767.36243 | S119: 74476.28083 | T119: 74476.28083 | U119: 74476.28083
F120: Other internal direct costs | Q120: 15199.24099 | R120: 30398.48197 | S120: 157058.8235 | T120: 157058.8235 | U120: 157058.8235
F121: Total direct costs (excl escalation) | O121: =SUM(O118:O120) -> 0 | P121: 0 | Q121: 42659.20304 | R121: 85318.40607 | S121: 261528.2732 | T121: 261528.2732 | U121: 261528.2732
F122: Escalation | Q122: 143.4627101 | R122: 612.6123513 | S122: 3039.757938 | T122: 4427.244419 | U122: 6500.551919
F123: Total direct costs (incl escalation) | O123: =SUM(O121:O122) -> 0 | P123: 0 | Q123: 42802.66575 | R123: 85931.01842 | S123: 264568.0312 | T123: 265955.5177 | U123: 268028.8252
F124: Total overhead costs | Q124: 4127.927809 | R124: 8284.304219 | S124: 25505.6115 | T124: 25639.55335 | U124: 25839.04162
F125: Related party and/or network operator margin
F126: Total gross costs | G126: =SUM(G123:G125) -> 0 | H126: =SUM(H123:H125) -> 0 | I126: 0 | J126: 0 | K126: 0 | O126: =SUM(O123:O125) -> 0 | P126: 0 | Q126: =SUM(Q123:Q125) -> 46930.59356 | R126: =SUM(R123:R125) -> 94215.32264 | S126: =SUM(S123:S125) -> 290073.6427 | T126: =SUM(T123:T125) -> 291595.071 | U126: =SUM(U123:U125) -> 293867.8668
F127: Less customer contributions
F128: Total net costs | G128: =G126-G127 -> 0 | H128: 0 | I128: 0 | J128: 0 | K128: 0 | O128: =O126-O127 -> 0 | P128: 0 | Q128: =Q126-Q127 -> 46930.59356 | R128: =R126-R127 -> 94215.32264 | S128: =S126-S127 -> 290073.6427 | T128: =T126-T127 -> 291595.071 | U128: =U126-U127 -> 293867.8668
E129: Move Meters in Vunerable Positions - SA75 | F129: Direct costs (excl escalation) | V129: Historic data from Oracle Financials BM20 report. Forecast data from the Asset Management Plan.
F130: Direct internal labour
F131: Direct contractor costs | Q131: 474216.3188 | R131: 474216.3188 | S131: 474216.3188 | T131: 474216.3188 | U131: 474216.3188
F132: Other internal direct costs
F133: Total direct costs (excl escalation) | O133: =SUM(O130:O132) -> 0 | P133: 0 | Q133: 474216.3188 | R133: 474216.3188 | S133: 474216.3188 | T133: 474216.3188 | U133: 474216.3188
F134: Escalation | Q134: 1594.787371 | R134: 3405.01877 | S134: 5511.843143 | T134: 8027.703945 | U134: 11787.13017
F135: Total direct costs (incl escalation) | O135: =SUM(O133:O134) -> 0 | P135: 0 | Q135: 475811.1062 | R135: 477621.3376 | S135: 479728.1619 | T135: 482244.0227 | U135: 486003.449
F136: Total overhead costs | Q136: 45887.65356 | R136: 46045.77642 | S136: 46248.06734 | T136: 46490.93749 | U136: 46852.65974
F137: Related party and/or network operator margin
F138: Total gross costs | G138: =SUM(G135:G137) -> 0 | H138: =SUM(H135:H137) -> 0 | I138: 0 | J138: 0 | K138: 0 | O138: 0 | P138: 0 | Q138: =SUM(Q135:Q137) -> 521698.7597 | R138: =SUM(R135:R137) -> 523667.114 | S138: =SUM(S135:S137) -> 525976.2293 | T138: =SUM(T135:T137) -> 528734.9602 | U138: =SUM(U135:U137) -> 532856.1087
F139: Less customer contributions
F140: Total net costs | G140: =G138-G139 -> 0 | H140: 0 | I140: 0 | J140: 0 | K140: 0 | O140: 0 | P140: 0 | Q140: =Q138-Q139 -> 521698.7597 | R140: =R138-R139 -> 523667.114 | S140: =S138-S139 -> 525976.2293 | T140: =T138-T139 -> 528734.9602 | U140: =U138-U139 -> 532856.1087
E142: TOTALS | F142: Total Direct costs (excl escalation) | G142: =SUMIF($F$21:$F$140,$F142,G$21:G$140) -> 0 | H142: 0 | I142: 0 | J142: 0 | K142: 0 | L142: 245338.1788 | M142: 867040.27 | N142: 2578483.8 | O142: 2677028.4 | P142: 673833.0171 | Q142: 2656310.55 | R142: 2677528.691 | S142: 2865036.66 | T142: 2887207.287 | U142: 2697966.603
F143: Escalation | G143: 0 | H143: 0 | I143: 0 | J143: 0 | K143: 0 | L143: 0 | M143: 0 | N143: 0 | O143: 0 | P143: 0 | Q143: 8933.160569 | R143: 19225.47809 | S143: 33300.48344 | T143: 48875.68058 | U143: 67060.71112
F144: Total Direct costs (incl escalation) | G144: =SUMIF($F$21:$F$140,$F144,G$21:G$140) -> 877003.59 | H144: 401486.63 | I144: 103218.3 | J144: 210693.7 | K144: 151251.4105 | L144: 245338.1788 | M144: 867040.27 | N144: 2578483.8 | O144: 2677028.4 | P144: =SUMIF($F$21:$F$140,$F144,P$21:P$140) -> 673833.0171 | Q144: =SUM(Q142:Q143) -> 2665243.711 | R144: =SUM(R142:R143) -> 2696754.169 | S144: 2898337.144 | T144: 2936082.967 | U144: 2765027.315
F145: Total Overhead costs | G145: =SUMIF($F$21:$F$140,$F145,G$21:G$140) -> 0 | H145: 0 | I145: 0 | J145: 0 | K145: 0 | L145: 18458.59123 | M145: 83660.56891 | N145: 221776.7325 | O145: 258065.5378 | P145: 64957.50285 | Q145: 257038.5148 | R145: 259984.4893 | S145: 279413.4304 | T145: 283054.3112 | U145: 266559.5979
F146: Related party and/or network operator margin | G146: 0 | H146: 0 | I146: 0 | J146: 0 | K146: 0 | L146: 0 | M146: 0 | N146: 0 | O146: 0 | P146: 0 | Q146: 0 | R146: 0 | S146: 0 | T146: 0 | U146: 0
F147: Total Gross costs | G147: 877003.59 | H147: 401486.63 | I147: 103218.3 | J147: 210693.7 | K147: =SUM(K144:K146) -> 151251.4105 | L147: 263796.77 | M147: 950700.8389 | N147: 2800260.532 | O147: 2935093.938 | P147: 738790.5199 | Q147: =SUM(Q144:Q146) -> 2922282.226 | R147: =SUM(R144:R146) -> 2956738.658 | S147: 3177750.574 | T147: 3219137.278 | U147: 3031586.912
F148: Less customer contributions | G148: 0 | H148: 0 | I148: 0 | J148: 0 | K148: 0 | L148: 0 | M148: 0 | N148: 0 | O148: 0 | P148: 0 | Q148: 0 | R148: 0 | S148: 0 | T148: 0 | U148: 0
F149: Total net costs | G149: =SUM(G147:G148) -> 877003.59 | H149: =SUM(H147:H148) -> 401486.63 | I149: 103218.3 | J149: 210693.7 | K149: 151251.4105 | L149: 263796.77 | M149: 950700.8389 | N149: 2800260.532 | O149: 2935093.938 | P149: 738790.5199 | Q149: 2922282.226 | R149: 2956738.658 | S149: 3177750.574 | T149: 3219137.278 | U149: 3031586.912
E150: Source(s) of data: | G150: 2006/07 to 2008/09 sourced from the SA Capex Past Performance Submission model. 2009/10 to 2013/14 sourced from the Capex Ring Fenced Accounts and the SA Annual RIN's.
E152: Table 9.2 - Regulators capital expenditure (approved)
G153: Previous access arrangement period | L153: Current access arrangement period
G154: $0's, Nominal | P154: =CONCATENATE("$0's, Real ",dms_DollarReal) -> $0's, Real June 2016
G155: Approved
G156: =PRCP -> 2006-07 | H156: 2007-08 | I156: 2008-09 | J156: 2009-10 | K156: 2010-11 | L156: =CRCP_y1 -> 2011-12 | M156: =CRCP_y2 -> 2012-13 | N156: =CRCP_y3 -> 2013-14 | O156: =CRCP_y4 -> 2014-15 | P156: =CRCP_y5 -> 2015-16
E157: <insert project name> | F157: Direct costs (excl escalation)
F158: Direct internal labour
F159: Direct contractor costs
F160: Other internal direct costs (excl escalation)
F161: Total direct costs (excl escalation) | L161: =SUM(L158:L160) -> 0 | M161: =SUM(M158:M160) -> 0 | N161: =SUM(N158:N160) -> 0 | O161: =SUM(O158:O160) -> 0 | P161: =SUM(P158:P160) -> 0
F162: Escalation
F163: Total direct costs (incl escalation) | L163: =SUM(L161:L162) -> 0 | M163: =SUM(M161:M162) -> 0 | N163: =SUM(N161:N162) -> 0 | O163: =SUM(O161:O162) -> 0 | P163: =SUM(P161:P162) -> 0
F164: Total overhead costs
F165: Related party and/or network operator margin
F166: Total gross costs | G166: =SUM(G163:G165) -> 0 | H166: 0 | I166: 0 | J166: 0 | K166: 0 | L166: 821238.9381 | M166: 846725.6637 | N166: 867914.9946 | O166: 893342.1917 | P166: 905208.2171
F167: Less customer contributions
F168: Total net costs | G168: =G166-G167 -> 0 | H168: 0 | I168: 0 | J168: 0 | K168: 0 | L168: =L166-L167 -> 821238.9381 | M168: 846725.6637 | N168: 867914.9946 | O168: 893342.1917 | P168: 905208.2171
E169: <insert project name> | F169: Direct costs (excl escalation)
F170: Direct internal labour
F171: Direct contractor costs
F172: Other internal direct costs (excl escalation)
F173: Total direct costs (excl escalation) | L173: =SUM(L170:L172) -> 0 | M173: =SUM(M170:M172) -> 0 | N173: =SUM(N170:N172) -> 0 | O173: =SUM(O170:O172) -> 0 | P173: =SUM(P170:P172) -> 0
F174: Escalation
F175: Total direct costs (incl escalation) | L175: =SUM(L173:L174) -> 0 | M175: =SUM(M173:M174) -> 0 | N175: =SUM(N173:N174) -> 0 | O175: =SUM(O173:O174) -> 0 | P175: =SUM(P173:P174) -> 0
F176: Total overhead costs
F177: Related party and/or network operator margin
F178: Total gross costs | G178: =SUM(G175:G177) -> 0 | H178: 0 | I178: 0 | J178: 0 | K178: 0 | L178: =SUM(L175:L177) -> 0 | M178: 0 | N178: 0 | O178: 0 | P178: 0
F179: Less customer contributions
F180: Total net costs | G180: =G178-G179 -> 0 | H180: 0 | I180: 0 | J180: 0 | K180: 0 | L180: =L178-L179 -> 0 | M180: 0 | N180: 0 | O180: 0 | P180: 0
E182: TOTALS | F182: Total Direct costs (excl escalation) | G182: =SUMIF($E$157:$P$180,"Total direct costs (excl escalation)",G$157:G$180) -> 0 | H182: 0 | I182: 0 | J182: 0 | K182: 0 | L182: 0 | M182: 0 | N182: 0 | O182: 0 | P182: 0
F183: Escalation | G183: =SUMIF($E$157:$P$180,"Escalation",G$157:G$180) -> 0 | H183: 0 | I183: 0 | J183: 0 | K183: 0 | L183: 0 | M183: 0 | N183: 0 | O183: 0 | P183: 0
F184: Total Direct costs (incl escalation) | G184: =SUMIF($E$157:$P$180,"Total direct costs (incl escalation)",G$157:G$180) -> 0 | H184: 0 | I184: 0 | J184: 0 | K184: 0 | L184: 0 | M184: 0 | N184: 0 | O184: 0 | P184: 0
F185: Total Overhead cost | G185: =SUMIF($E$157:$P$180,"Total overhead costs",G$157:G$180) -> 0 | H185: 0 | I185: 0 | J185: 0 | K185: 0 | L185: 0 | M185: 0 | N185: 0 | O185: 0 | P185: 0
F186: Related party and/or network operator margin | G186: =SUMIF($E$157:$P$180,"Related party margin",G$157:G$180) -> 0 | H186: 0 | I186: 0 | J186: 0 | K186: 0 | L186: 0 | M186: 0 | N186: 0 | O186: 0 | P186: 0
F187: Total Gross costs of augmentation | G187: =SUMIF($F$157:$F$180,"Total gross costs",G$157:G$180) -> 0 | H187: =SUMIF($F$157:$F$180,"Total gross costs",H$157:H$180) -> 0 | I187: 0 | J187: 0 | K187: 0 | L187: 821238.9381 | M187: 846725.6637 | N187: 867914.9946 | O187: 893342.1917 | P187: 905208.2171
F188: Less customer contributions | G188: =SUMIF($E$157:$P$180,"Less customer contributions",G$157:G$180) -> 0 | H188: 0 | I188: 0 | J188: 0 | K188: 0 | L188: 0 | M188: 0 | N188: 0 | O188: 0 | P188: 0
F189: Total Net Costs of augmentation | G189: =SUM(G187:G188) -> 0 | H189: =SUM(H187:H188) -> 0 | I189: 0 | J189: 0 | K189: 0 | L189: 821238.9381 | M189: 846725.6637 | N189: 867914.9946 | O189: 893342.1917 | P189: 905208.2171
E190: Source(s) of data: | G190: Table 4.1 of AA

Sheet 10. Other distribution system
E1: =SheetHeader -> REGULATORY REPORTING STATEMENT
E2: =dms_TradingName -> AGN
E3: =CONCATENATE(FRCP_y1," to ",FRCP_y5) -> 2016-17 to 2020-21 | J3: =CONCATENATE(LEFT(FRCP_y1,4),"-",LEFT(FRCP_y5,2),RIGHT(FRCP_y5,2)) -> 2016-2021
E4: 10. OTHER DISTRIBUTION SYSTEM CAPITAL EXPENDITURE
E8: Instructions
E9: This template asks for information relating to other distribution system capital expenditure
A10: HPS | B10: HP services | E10: As set out in cl.6.1 of the AGN RIN, for tables 10.1 to 10.2, where the requested data is captured in the AGN capex model it is not required to be reentered in the RIN template tables. If the requested data has not been provided in the AGN RIN please enter into the tables. This may require the insertion of new lines in each table.
A11: MPM | B11: MP mains | E11: Reported expenditure is to be entered EXCLUSIVE of any profit margins or management fees paid pursuant to arrangements or contracts with any related parties or network operator. Include any related party or network operator margins or management fees in the separate 'Related party margin' line item.
A12: TRS | B12: TRS & DRS - valves & regulators | E12: Subject to cl.6.1 of the AGN RIN, where linked/adjustable escalation is not provided in the AGN capex model, escalation should be linked to allocations derived in tab '2 - Escalators'.
A13: CM | B13: Contract meters | E13: Subject to cl.6.1 of the AGN RIN, where linked/adjustable overhead costs and related party margin costs is not provided in the AGN capex model, overhead costs and related party margin costs should be linked to allocations derived in tabs '12 - Overheads' and '13 - Related party transactions'.
A14: TM | B14: Tariff meters | E14: Capital expenditure amounts entered should be GROSS of customer contributions. There is a separate line item for customer contributions from which net capital expenditure is derived.
A15: ERC | B15: Equity raising costs
E17: Table 10.1 - Other distribution system (actual / forecast)
G18: Previous access arrangement period | L18: Current access arrangement period | Q18: Variance | R18: Next access arrangement period | W18: Supporting documentation (business case, costing spreadsheet, contracts)
G19: $0's, Nominal | P19: =CONCATENATE("$0's, Real ",dms_DollarReal) -> $0's, Real June 2016 | R19: =CONCATENATE("$0's, Real ",dms_DollarReal) -> $0's, Real June 2016
A20: Internal identification code | B20: Asset category | C20: Percent allocation | G20: Actual | P20: Forecast | Q20: Actual vs Approved | R20: Forecast
G21: =PRCP -> 2006-07 | H21: 2007-08 | I21: 2008-09 | J21: 2009-10 | K21: 2010-11 | L21: =CRCP_y1 -> 2011-12 | M21: =CRCP_y2 -> 2012-13 | N21: =CRCP_y3 -> 2013-14 | O21: =CRCP_y4 -> 2014-15 | P21: =CRCP_y5 -> 2015-16 | Q21: % | R21: =FRCP -> 2016-17 | S21: 2017-18 | T21: 2018-19 | U21: 2019-20 | V21: 2020-21
E22: < insert sub-category >
E23: General (CP) | F23: Direct costs (excl escalation) | W23: Historic data from Oracle Financials BM20 report. Forecast has been sourced from the Asset Management Plan.
F24: Direct internal labour | L24: 647.0088622 | M24: 45943.70261 | N24: 205677.1541 | O24: 93432.33139
F25: Direct contractor costs | L25: 183425.9531 | M25: 410904.8124 | N25: 1178747.611 | O25: 445472.1306
F26: Other internal direct costs | L26: 1279301.12 | M26: 279747.408 | N26: 1766529.194 | O26: 722095.538
F27: Total direct costs (excl escalation) | L27: 1463374.082 | M27: 736595.923 | N27: 3150953.959 | O27: =SUM(O24:O26) -> 1261000 | P27: 0 | Q27: 0 | R27: 0 | S27: 0 | T27: 0 | U27: 0
F28: Escalation | L28: 0 | M28: 0 | N28: 0
F29: Total direct costs (incl escalation) | G29: 3751925.01 | H29: 2173295.25 | I29: 2562181.43 | J29: 992973.83 | K29: 641.3871887 | L29: 1463374.082 | M29: 736595.923 | N29: 3150953.959 | O29: =SUM(O27:O28) -> 1261000 | P29: 0 | Q29: 0 | R29: 0 | S29: 0 | T29: 0 | U29: 0
F30: Total overhead costs | L30: 177331.708 | M30: 71068.19386 | N30: 267047.1821 | O30: 121560.4
F31: Related party and/or network operator margin | L31: 0 | M31: 0 | N31: 0
F32: Total gross costs | G32: =SUM(G29:G31) -> 3751925.01 | H32: =SUM(H29:H31) -> 2173295.25 | I32: =SUM(I29:I31) -> 2562181.43 | J32: 992973.83 | K32: 641.3871887 | L32: 1640705.79 | M32: 807664.1169 | N32: 3418001.141 | O32: 1382560.4 | P32: 0 | Q32: =SUM(Q29:Q31) -> 0 | R32: =SUM(R29:R31) -> 0 | S32: =SUM(S29:S31) -> 0 | T32: =SUM(T29:T31) -> 0 | U32: =SUM(U29:U31) -> 0
F33: Less customer contributions | L33: 0 | M33: 0 | N33: 0
F34: Total net costs | G34: =G32-G33 -> 3751925.01 | H34: 2173295.25 | I34: 2562181.43 | J34: 992973.83 | K34: 641.3871887 | L34: 1640705.79 | M34: 807664.1169 | N34: 3418001.141 | O34: 1382560.4 | P34: 0 | Q34: =Q32-Q33 -> 0 | R34: =R32-R33 -> 0 | S34: =S32-S33 -> 0 | T34: =T32-T33 -> 0 | U34: =U32-U33 -> 0
E35: Large Customers | F35: Direct costs (excl escalation) | W35: Historic data from Oracle Financials BM20 report. Forecast has been sourced from the Asset Management Plan.
F36: Direct internal labour
F37: Direct contractor costs | O37: 416000 | P37: 415445.9203
F38: Other internal direct costs
F39: Total direct costs (excl escalation) | M39: =SUM(M36:M38) -> 0 | N39: 0 | O39: 416000 | P39: 415445.9203 | Q39: 0 | R39: 0 | S39: 0 | T39: 0 | U39: 0
F40: Escalation
F41: Total direct costs (incl escalation) | M41: =SUM(M39:M40) -> 0 | N41: 0 | O41: 416000 | P41: 415445.9203 | Q41: 0 | R41: 0 | S41: 0 | T41: 0 | U41: 0
F42: Total overhead costs | O42: 40102.4 | P42: 40048.98672
F43: Related party and/or network operator margin
F44: Total gross costs | G44: =SUM(G41:G43) -> 0 | H44: 0 | I44: 0 | J44: 0 | K44: 0 | L44: 0 | M44: 0 | N44: 0 | O44: 456102.4 | P44: 455494.907 | Q44: 0 | R44: 0 | S44: 0 | T44: 0 | U44: 0
F45: Less customer contributions
F46: Total net costs | G46: =G44-G45 -> 0 | H46: 0 | I46: 0 | J46: 0 | K46: 0 | L46: 0 | M46: 0 | N46: 0 | O46: 456102.4 | P46: 455494.907 | Q46: 0 | R46: 0 | S46: 0 | T46: 0 | U46: 0
E47: [Sub-category]
E48: Install Impressed Current CP Units (SA06) | F48: Direct costs (excl escalation) | W48: Historic data from Oracle Financials BM20 report. Forecast has been sourced from the Asset Management Plan.
F49: Direct internal labour
F50: Direct contractor costs | R50: 54717.26755 | S50: 54717.26755 | T50: 54717.26755
F51: Other internal direct costs | R51: 70929.79127 | S51: 70929.79127 | T51: 70929.79127
F52: Total direct costs (excl escalation) | M52: =SUM(M49:M51) -> 0 | N52: 0 | O52: 0 | P52: 0 | Q52: 0 | R52: 125647.0588 | S52: 125647.0588 | T52: 125647.0588 | U52: 0 | V52: 0
F53: Escalation | R53: 479.8663023 | S53: 1049.612561 | T53: 1713.236786 | U53: 0 | V53: 0
F54: Total direct costs (incl escalation) | M54: =SUM(M52:M53) -> 0 | N54: 0 | O54: 0 | P54: 0 | Q54: 0 | R54: 126126.9251 | S54: 126696.6714 | T54: 127360.2956 | U54: 0 | V54: 0
F55: Total overhead costs | R55: 12159.47111 | S55: 12214.33011 | T55: 12278.22449 | U55: 0 | V55: 0
F56: Related party and/or network operator margin
F57: Total gross costs | G57: =SUM(G54:G56) -> 0 | H57: 0 | I57: 0 | J57: 0 | K57: 0 | L57: 0 | M57: 0 | N57: 0 | O57: 0 | P57: 0 | Q57: 0 | R57: 138286.3962 | S57: 138911.0015 | T57: 139638.5201 | U57: =SUM(U54:U56) -> 0 | V57: =SUM(V54:V56) -> 0
F58: Less customer contributions
F59: Total net costs | G59: =G57-G58 -> 0 | H59: 0 | I59: 0 | J59: 0 | K59: 0 | L59: 0 | M59: 0 | N59: 0 | O59: 0 | P59: 0 | Q59: 0 | R59: 138286.3962 | S59: 138911.0015 | T59: 139638.5201 | U59: =U57-U58 -> 0 | V59: =V57-V58 -> 0
E60: Replace above Ground PE Pipe - SA28 | F60: Direct costs (excl escalation) | W60: Historic data from Oracle Financials BM20 report. Forecast has been sourced from the Asset Management Plan.
F61: Direct internal labour | R61: 60796.96395 | S61: 60796.96395 | T61: 60796.96395 | U61: 60796.96395 | V61: 60796.96395
F62: Direct contractor costs | R62: 1155142.315 | S62: 1155142.315 | T62: 1155142.315 | U62: 1155142.315 | V62: 1155142.315
F63: Other internal direct costs | R63: 227988.6148 | S63: 227988.6148 | T63: 227988.6148 | U63: 227988.6148 | V63: 227988.6148
F64: Total direct costs (excl escalation) | M64: =SUM(M61:M63) -> 0 | N64: 0 | O64: 0 | P64: 0 | Q64: 0 | R64: 1443927.894 | S64: 1443927.894 | T64: 1443927.894 | U64: 1443927.894 | V64: 1443927.894
F65: Escalation | R65: 5514.592587 | S65: 12062.07983 | T65: 19688.40662 | U65: 28817.68797 | V65: 42383.01577
F66: Total direct costs (incl escalation) | M66: =SUM(M64:M65) -> 0 | N66: 0 | O66: 0 | P66: 0 | Q66: 0 | R66: 1449442.486 | S66: 1455989.974 | T66: 1463616.3 | U66: 1472745.582 | V66: 1486310.91
F67: Total overhead costs | R67: 139735.8575 | S67: 140366.2936 | T67: 141100.5637 | U67: 141982.6569 | V67: 143289.4163
F68: Related party and/or network operator margin
F69: Total gross costs | G69: =SUM(G66:G68) -> 0 | H69: 0 | I69: 0 | J69: 0 | K69: 0 | L69: 0 | M69: 0 | N69: 0 | O69: 0 | P69: 0 | Q69: 0 | R69: 1589178.344 | S69: 1596356.267 | T69: 1604716.864 | U69: =SUM(U66:U68) -> 1614728.239 | V69: =SUM(V66:V68) -> 1629600.326
F70: Less customer contributions
F71: Total net costs | G71: =G69-G70 -> 0 | H71: 0 | I71: 0 | J71: 0 | K71: 0 | L71: 0 | M71: 0 | N71: 0 | O71: 0 | P71: 0 | Q71: 0 | R71: 1589178.344 | S71: 1596356.267 | T71: 1604716.864 | U71: =U69-U70 -> 1614728.239 | V71: =V69-V70 -> 1629600.326
E72: Fire Saftey Valves - SA31 | F72: Direct costs (excl escalation) | W72: Historic data from Oracle Financials BM20 report. Forecast has been sourced from the Asset Management Plan.
F73: Direct internal labour
F74: Direct contractor costs | R74: 1455788.368 | S74: 662139.7343 | T74: 601905.1423 | U74: 495145.6736 | V74: 382352.1063
F75: Other internal direct costs | R75: 2005433.454 | S75: 1544992.713 | T75: 1404445.332 | U75: 1155339.905 | V75: 892154.9146
F76: Total direct costs (excl escalation) | M76: =SUM(M73:M75) -> 0 | N76: 0 | O76: 0 | P76: 0 | Q76: 0 | R76: 3461221.822 | S76: 2207132.448 | T76: 2006350.474 | U76: 1650485.579 | V76: 1274507.021
F77: Escalation | R77: 13218.96217 | S77: 18437.62968 | T77: 27357.2137 | U77: 32940.13407 | V77: 37410.07526
F78: Total direct costs (incl escalation) | M78: =SUM(M76:M77) -> 0 | N78: 0 | O78: 0 | P78: 0 | Q78: 0 | R78: 3474440.784 | S78: 2225570.077 | T78: 2033707.688 | U78: 1683425.713 | V78: 1311917.096
F79: Total overhead costs | R79: 334959.1079 | S79: 214558.4987 | T79: 196060.4709 | U79: 162293.6496 | V79: 126476.7915
F80: Related party and/or network operator margin
F81: Total gross costs | G81: =SUM(G78:G80) -> 0 | H81: 0 | I81: 0 | J81: 0 | K81: 0 | L81: 0 | M81: 0 | N81: 0 | O81: 0 | P81: 0 | Q81: 0 | R81: 3809399.892 | S81: 2440128.576 | T81: 2229768.159 | U81: =SUM(U78:U80) -> 1845719.362 | V81: =SUM(V78:V80) -> 1438393.888
F82: Less customer contributions
F83: Total net costs | G83: =G81-G82 -> 0 | H83: 0 | I83: 0 | J83: 0 | K83: 0 | L83: 0 | M83: 0 | N83: 0 | O83: 0 | P83: 0 | Q83: 0 | R83: 3809399.892 | S83: 2440128.576 | T83: 2229768.159 | U83: =U81-U82 -> 1845719.362 | V83: =V81-V82 -> 1438393.888
E84: [Sub-category]
E85: Non Compliant Meters Inside Buildings - SA32 | F85: Direct costs (excl escalation) | W85: Historic data from Oracle Financials BM20 report. Forecast has been sourced from the Asset Management Plan.
F86: Direct internal labour | R86: 40855.55977 | S86: 40855.55977 | T86: 40855.55977 | U86: 40855.55977 | V86: 40855.55977
F87: Direct contractor costs | R87: 180870.9677 | S87: 180870.9677 | T87: 180870.9677 | U87: 180870.9677 | V87: 180870.9677
F88: Other internal direct costs | R88: 62904.59203 | S88: 62904.59203 | T88: 62904.59203 | U88: 62904.59203 | V88: 62904.59203
F89: Total direct costs (excl escalation) | M89: =SUM(M86:M88) -> 0 | N89: 0 | O89: 0 | P89: 0 | Q89: 0 | R89: 284631.1195 | S89: 284631.1195 | T89: 284631.1195 | U89: 284631.1195 | V89: 284631.1195
F90: Escalation | R90: 1087.05197 | S90: 2377.711035 | T90: 3881.033978 | U90: 5680.623544 | V90: 8354.659039
F91: Total direct costs (incl escalation) | M91: =SUM(M89:M90) -> 0 | N91: 0 | O91: 0 | P91: 0 | Q91: 0 | R91: 285718.1715 | S91: 287008.8306 | T91: 288512.1535 | U91: 290311.7431 | V91: 292985.7786
F92: Total overhead costs | R92: 27545.12446 | S92: 27669.3978 | T92: 27814.13918 | U92: 27988.01987 | V92: 28245.61196
F93: Related party and/or network operator margin
F94: Total gross costs | G94: =SUM(G91:G93) -> 0 | H94: 0 | I94: 0 | J94: 0 | K94: 0 | L94: 0 | M94: 0 | N94: 0 | O94: 0 | P94: 0 | Q94: 0 | R94: 313263.296 | S94: 314678.2284 | T94: 316326.2927 | U94: =SUM(U91:U93) -> 318299.763 | V94: =SUM(V91:V93) -> 321231.3905
F95: Less customer contributions
F96: Total net costs | G96: =G94-G95 -> 0 | H96: 0 | I96: 0 | J96: 0 | K96: 0 | L96: 0 | M96: 0 | N96: 0 | O96: 0 | P96: 0 | Q96: 0 | R96: 313263.296 | S96: 314678.2284 | T96: 316326.2927 | U96: =U94-U95 -> 318299.763 | V96: =V94-V95 -> 321231.3905
E97: Replacement of TP Pipelines Insulation Flanges - SA37 | F97: Direct costs (excl escalation) | W97: Historic data from Oracle Financials BM20 report. Forecast has been sourced from the Asset Management Plan.
F98: Direct internal labour
F99: Direct contractor costs | R99: 163746.4896 | S99: 163746.4896 | T99: 163746.4896 | U99: 163746.4896 | V99: 163746.4896
F100: Other internal direct costs | R100: 8207.590133 | S100: 8207.590133 | T100: 8207.590133 | U100: 8207.590133 | V100: 8207.590133
F101: Total direct costs (excl escalation) | M101: =SUM(M98:M100) -> 0 | N101: 0 | O101: 0 | P101: 0 | Q101: 0 | R101: 171954.0797 | S101: 171954.0797 | T101: 171954.0797 | U101: 171954.0797 | V101: 171954.0797
F102: Escalation | R102: 656.720254 | S102: 1436.445577 | T102: 2344.647441 | U102: 3431.832736 | V102: 5047.296686
F103: Total direct costs (incl escalation) | M103: =SUM(M101:M102) -> 0 | N103: 0 | O103: 0 | P103: 0 | Q103: 0 | R103: 172610.8 | S103: 173390.5253 | T103: 174298.7271 | U103: 175385.9124 | V103: 177001.3764
F104: Total overhead costs | R104: 16640.82457 | S104: 16715.90177 | T104: 16803.34432 | U104: 16908.39079 | V104: 17064.00979
F105: Related party and/or network operator margin
F106: Total gross costs | G106: =SUM(G103:G105) -> 0 | H106: 0 | I106: 0 | J106: 0 | K106: 0 | L106: 0 | M106: 0 | N106: 0 | O106: 0 | P106: 0 | Q106: 0 | R106: 189251.6245 | S106: 190106.427 | T106: 191102.0715 | U106: =SUM(U103:U105) -> 192294.3032 | V106: =SUM(V103:V105) -> 194065.3862
F107: Less customer contributions
F108: Total net costs | G108: =G106-G107 -> 0 | H108: 0 | I108: 0 | J108: 0 | K108: 0 | L108: 0 | M108: 0 | N108: 0 | O108: 0 | P108: 0 | Q108: 0 | R108: 189251.6245 | S108: 190106.427 | T108: 191102.0715 | U108: =U106-U107 -> 192294.3032 | V108: =V106-V107 -> 194065.3862
E109: Sleeved Railway Crossings - SA37 | F109: Direct costs (excl escalation) | W109: Historic data from Oracle Financials BM20 report. Forecast has been sourced from the Asset Management Plan.
F110: Direct internal labour | R110: 407744.9715 | S110: 407744.9715 | T110: 407744.9715 | U110: 407744.9715 | V110: 407744.9715
F111: Direct contractor costs | R111: 0 | S111: 0 | T111: 0 | U111: 0 | V111: 0
F112: Other internal direct costs | R112: 34552.94118 | S112: 34552.94118 | T112: 34552.94118 | U112: 34552.94118 | V112: 34552.94118
F113: Total direct costs (excl escalation) | M113: =SUM(M110:M112) -> 0 | N113: 0 | O113: 0 | P113: 0 | Q113: 0 | R113: 442297.9127 | S113: 442297.9127 | T113: 442297.9127 | U113: 442297.9127 | V113: 442297.9127
F114: Escalation | R114: 1689.206782 | S114: 3694.805506 | T114: 6030.869816 | U114: 8827.312841 | V114: 12982.58694
F115: Total direct costs (incl escalation) | M115: =SUM(M113:M114) -> 0 | N115: 0 | O115: 0 | P115: 0 | Q115: 0 | R115: 443987.1195 | S115: 445992.7182 | T115: 448328.7825 | U115: 451125.2256 | V115: 455280.4997
F116: Total overhead costs | R116: 42803.2995 | S116: 42996.41203 | T116: 43221.33055 | U116: 43491.52964 | V116: 43891.81068
F117: Related party and/or network operator margin
F118: Total gross costs | G118: =SUM(G115:G117) -> 0 | H118: 0 | I118: 0 | J118: 0 | K118: 0 | L118: 0 | M118: 0 | N118: 0 | O118: 0 | P118: 0 | Q118: 0 | R118: 486790.419 | S118: 488989.1303 | T118: 491550.1131 | U118: =SUM(U115:U117) -> 494616.7552 | V118: =SUM(V115:V117) -> 499172.3103
F119: Less customer contributions
F120: Total net costs | G120: =G118-G119 -> 0 | H120: 0 | I120: 0 | J120: 0 | K120: 0 | L120: 0 | M120: 0 | N120: 0 | O120: 0 | P120: 0 | Q120: 0 | R120: 486790.419 | S120: 488989.1303 | T120: 491550.1131 | U120: =U118-U119 -> 494616.7552 | V120: =V118-V119 -> 499172.3103
E121: TP Pipelines - Additional Dig Ups And Remediation - SA36 | F121: Direct costs (excl escalation) | W121: Historic data from Oracle Financials BM20 report. Forecast has been sourced from the Asset Management Plan.
F122: Direct internal labour | R122: 0 | S122: 0 | T122: 0 | U122: 0 | V122: 0
F123: Direct contractor costs | R123: 216639.8482 | S123: 216639.8482 | T123: 216639.8482 | U123: 216639.8482 | V123: 216639.8482
F124: Other internal direct costs | R124: 0 | S124: 0 | T124: 0 | U124: 0 | V124: 0
F125: Total direct costs (excl escalation) | M125: =SUM(M122:M124) -> 0 | N125: 0 | O125: 0 | P125: 0 | Q125: 0 | R125: 216639.8482 | S125: 216639.8482 | T125: 216639.8482 | U125: 216639.8482 | V125: 216639.8482
F126: Escalation | R126: 827.3823825 | S126: 1809.735206 | T126: 2953.951814 | U126: 4323.664342 | V126: 6358.939489
F127: Total direct costs (incl escalation) | M127: =SUM(M125:M126) -> 0 | N127: 0 | O127: 0 | P127: 0 | Q127: 0 | R127: 217467.2306 | S127: 218449.5834 | T127: 219593.8 | U127: 220963.5125 | V127: 222998.7877
F128: Total overhead costs | R128: 20965.28163 | S128: 21059.86917 | T128: 21170.03545 | U128: 21302.38038 | V128: 21498.44015
F129: Related party and/or network operator margin
F130: Total gross costs | G130: =SUM(G127:G129) -> 0 | H130: 0 | I130: 0 | J130: 0 | K130: 0 | L130: 0 | M130: 0 | N130: 0 | O130: 0 | P130: 0 | Q130: 0 | R130: 238432.5122 | S130: 239509.4526 | T130: 240763.8355 | U130: =SUM(U127:U129) -> 242265.8929 | V130: =SUM(V127:V129) -> 244497.2278
F131: Less customer contributions
F132: Total net costs | G132: =G130-G131 -> 0 | H132: 0 | I132: 0 | J132: 0 | K132: 0 | L132: 0 | M132: 0 | N132: 0 | O132: 0 | P132: 0 | Q132: 0 | R132: 238432.5122 | S132: 239509.4526 | T132: 240763.8355 | U132: =U130-U131 -> 242265.8929 | V132: =V130-V131 -> 244497.2278
E133: DCVG Survey & Digups Distribution Trunk Mains - SA49 | F133: Direct costs (excl escalation) | W133: Historic data from Oracle Financials BM20 report. Forecast has been sourced from the Asset Management Plan.
F134: Direct internal labour | R134: 0 | S134: 0 | T134: 0 | U134: 0 | V134: 0
F135: Direct contractor costs | R135: 385858.0645 | S135: 213600 | T135: 213600 | U135: 213600 | V135: 213600
F136: Other internal direct costs | R136: 0 | S136: 0 | T136: 0 | U136: 0 | V136: 0
F137: Total direct costs (excl escalation) | M137: =SUM(M134:M136) -> 0 | N137: 0 | O137: 0 | P137: 0 | Q137: 0 | R137: 385858.0645 | S137: 213600 | T137: 213600 | U137: 213600 | V137: 213600
F138: Escalation | R138: 1473.653935 | S138: 1784.341353 | T138: 2912.502537 | U138: 4262.995526 | V138: 6269.712088
F139: Total direct costs (incl escalation) | M139: =SUM(M137:M138) -> 0 | N139: 0 | O139: 0 | P139: 0 | Q139: 0 | R139: 387331.7185 | S139: 215384.3414 | T139: 216512.5025 | U139: 217862.9955 | V139: 219869.7121
F140: Total overhead costs | R140: 37341.34352 | S140: 20764.36118 | T140: 20872.98163 | U140: 21003.46952 | V140: 21196.77822
F141: Related party and/or network operator margin
F142: Total gross costs | G142: =SUM(G139:G141) -> 0 | H142: 0 | I142: 0 | J142: 0 | K142: 0 | L142: 0 | M142: 0 | N142: 0 | O142: 0 | P142: 0 | Q142: 0 | R142: 424673.062 | S142: 236148.7025 | T142: 237385.4842 | U142: =SUM(U139:U141) -> 238866.465 | V142: =SUM(V139:V141) -> 241066.4903
F143: Less customer contributions
F144: Total net costs | G144: =G142-G143 -> 0 | H144: 0 | I144: 0 | J144: 0 | K144: 0 | L144: 0 | M144: 0 | N144: 0 | O144: 0 | P144: 0 | Q144: 0 | R144: 424673.062 | S144: 236148.7025 | T144: 237385.4842 | U144: =U142-U143 -> 238866.465 | V144: =V142-V143 -> 241066.4903
E145: HDPE Live Camera Inspection/Repairs - SA52 | F145: Direct costs (excl escalation) | W145: Historic data from Oracle Financials BM20 report. Forecast has been sourced from the Asset Management Plan.
F146: Direct internal labour | R146: 1499658.444 | S146: 1499658.444 | T146: 1499658.444 | U146: 1499658.444 | V146: 1499658.444
F147: Direct contractor costs | R147: 0 | S147: 0 | T147: 0 | U147: 0 | V147: 0
F148: Other internal direct costs | R148: 847104.3643 | S148: 847104.3643 | T148: 847104.3643 | U148: 847104.3643 | V148: 847104.3643
F149: Total direct costs (excl escalation) | M149: =SUM(M146:M148) -> 0 | N149: 0 | O149: 0 | P149: 0 | Q149: 0 | R149: 2346762.808 | S149: 2346762.808 | T149: 2346762.808 | U149: 2346762.808 | V149: 2346762.808
F150: Escalation | R150: 8962.664162 | S150: 19604.05396 | T150: 31998.84191 | U150: 46836.32655 | V150: 68883.55406
F151: Total direct costs (incl escalation) | M151: =SUM(M149:M150) -> 0 | N151: 0 | O151: 0 | P151: 0 | Q151: 0 | R151: 2355725.473 | S151: 2366366.862 | T151: 2378761.65 | U151: 2393599.135 | V151: 2415646.362
F152: Total overhead costs | R152: 227107.541 | S152: 228132.1656 | T152: 229325.5477 | U152: 230759.1813 | V152: 232883.0092
F153: Related party and/or network operator margin
F154: Total gross costs | G154: =SUM(G151:G153) -> 0 | H154: 0 | I154: 0 | J154: 0 | K154: 0 | L154: 0 | M154: 0 | N154: 0 | O154: 0 | P154: 0 | Q154: 0 | R154: 2582833.013 | S154: 2594499.028 | T154: 2608087.198 | U154: =SUM(U151:U153) -> 2624358.316 | V154: =SUM(V151:V153) -> 2648529.372
F155: Less customer contributions
F156: Total net costs | G156: =G154-G155 -> 0 | H156: 0 | I156: 0 | J156: 0 | K156: 0 | L156: 0 | M156: 0 | N156: 0 | O156: 0 | P156: 0 | Q156: 0 | R156: 2582833.013 | S156: 2594499.028 | T156: 2608087.198 | U156: =U154-U155 -> 2624358.316 | V156: =V154-V155 -> 2648529.372
E157: CP TP Mains M36/Flagstaff Hill- SA53 | F157: Direct costs (excl escalation) | W157: Historic data from Oracle Financials BM20 report. Forecast has been sourced from the Asset Management Plan.
F158: Direct internal labour | R158: 0 | S158: 0 | T158: 0 | U158: 0 | V158: 0
F159: Direct contractor costs | R159: 145507.4004 | S159: 139123.7192 | T159: 139123.7192 | U159: 139123.7192 | V159: 139123.7192
F160: Other internal direct costs | R160: 0 | S160: 0 | T160: 0 | U160: 0 | V160: 0
F161: Total direct costs (excl escalation) | M161: =SUM(M158:M160) -> 0 | N161: 0 | O161: 0 | P161: 0 | Q161: 0 | R161: 145507.4004 | S161: 139123.7192 | T161: 139123.7192 | U161: 139123.7192 | V161: 139123.7192
F162: Escalation | R162: 555.7161372 | S162: 1162.191972 | T162: 1896.995248 | U162: 2776.609514 | V162: 4083.640748
F163: Total direct costs (incl escalation) | M163: =SUM(M161:M162) -> 0 | N163: 0 | O163: 0 | P163: 0 | Q163: 0 | R163: 146063.1165 | S163: 140285.9111 | T163: 141020.7144 | U163: 141900.3287 | V163: 143207.3599
F164: Total overhead costs | R164: 14081.45202 | S164: 13524.41551 | T164: 13595.16308 | U164: 13680.15354 | V164: 13806.06095
F165: Related party and/or network operator margin
F166: Total gross costs | G166: =SUM(G163:G165) -> 0 | H166: 0 | I166: 0 | J166: 0 | K166: 0 | L166: 0 | M166: 0 | N166: 0 | O166: 0 | P166: 0 | Q166: 0 | R166: 160144.5685 | S166: 153810.3267 | T166: 154615.8775 | U166: =SUM(U163:U165) -> 155580.4822 | V166: =SUM(V163:V165) -> 157013.4209
F167: Less customer contributions
F168: Total net costs | G168: =G166-G167 -> 0 | H168: 0 | I168: 0 | J168: 0 | K168: 0 | L168: 0 | M168: 0 | N168: 0 | O168: 0 | P168: 0 | Q168: 0 | R168: 160144.5685 | S168: 153810.3267 | T168: 154615.8775 | U168: =U166-U167 -> 155580.4822 | V168: =V166-V167 -> 157013.4209
E169: Mains Alterations | F169: Direct costs (excl escalation) | W169: Historic data from Oracle Financials BM20 report. Forecast has been sourced from the Asset Management Plan.
F170: Direct internal labour | O170: 26194.64 | P170: 0
F171: Direct contractor costs | O171: 750689.01 | P171: 1319294.118
F172: Other internal direct costs | O172: 52557.16 | P172: 0
F173: Total direct costs (excl escalation) | O173: =SUM(O170:O172) -> 829440.81 | P173: 1319294.118 | Q173: 0 | R173: 0 | S173: 0 | T173: 0 | U173: 0 | V173: 0
F174: Escalation
F175: Total direct costs (incl escalation) | O175: =SUM(O173:O174) -> 829440.81 | P175: 1319294.118 | Q175: 0 | R175: 0 | S175: 0 | T175: 0 | U175: 0 | V175: 0
F176: Total overhead costs | O176: 79958.09408 | P176: 127179.9529
F177: Related party and/or network operator margin
F178: Total gross costs | G178: =SUM(G175:G177) -> 0 | H178: 0 | I178: 0 | J178: 0 | K178: 0 | O178: 909398.9041 | P178: 1446474.071 | Q178: 0 | R178: 0 | S178: 0 | T178: 0 | U178: =SUM(U175:U177) -> 0 | V178: =SUM(V175:V177) -> 0
F179: Less customer contributions
F180: Total net costs | G180: =G178-G179 -> 0 | H180: 0 | I180: 0 | J180: 0 | K180: 0 | O180: 909398.9041 | P180: 1446474.071 | Q180: 0 | R180: 0 | S180: 0 | T180: 0 | U180: =U178-U179 -> 0 | V180: =V178-V179 -> 0
E182: TOTALS | F182: Total Direct costs (excl escalation) | G182: =SUMIF($F$22:$F$180,"Total direct costs (excl escalation)",G$22:G$180) -> 0 | H182: 0 | I182: 0 | J182: 0 | K182: 0 | L182: =SUMIF($F$22:$F$180,$F182,L$22:L$180) -> 1463374.082 | M182: =SUMIF($F$22:$F$180,$F182,M$22:M$180) -> 736595.923 | N182: 3150953.959 | O182: 2506440.81 | P182: 1734740.038 | R182: 9024448.008 | S182: 7591716.888 | T182: 7390934.915 | U182: 6909422.96 | V182: 6533444.402
F183: Escalation | G183: 0 | H183: 0 | I183: 0 | J183: 0 | K183: 0 | L183: 0 | M183: 0 | N183: =SUMIF($E$22:$U$180,"Escalation",N$22:N$180) -> 0 | O183: =SUMIF($E$22:$U$180,"Escalation",O$22:O$180) -> 0 | P183: =SUMIF($E$22:$U$180,"Escalation",P$22:P$180) -> 0 | R183: 34465.81668 | S183: 63418.60667 | T183: 100777.6998 | U183: 137897.1871 | V183: 191773.4801
F184: Total Direct costs (incl escalation) | G184: 3751925.01 | H184: 2173295.25 | I184: 2562181.43 | J184: 992973.83 | K184: =+K29 -> 641.3871887 | L184: =SUM(L182:L183) -> 1463374.082 | M184: =SUM(M182:M183) -> 736595.923 | N184: 3150953.959 | O184: 2506440.81 | P184: 1734740.038 | R184: 9058913.824 | S184: 7655135.495 | T184: 7491712.614 | U184: 7047320.147 | V184: 6725217.882
F185: Total Overhead costs | G185: 0 | H185: 0 | I185: 0 | J185: 0 | K185: 0 | L185: =SUMIF($F$22:$F$180,"Total overhead costs",L$22:L$180) -> 177331.708 | M185: =SUMIF($F$22:$F$180,"Total overhead costs",M$22:M$180) -> 71068.19386 | N185: 267047.1821 | O185: =SUMIF($F$22:$F$180,"Total overhead costs",O$22:O$180) -> 241620.8941 | P185: =SUMIF($F$22:$F$180,"Total overhead costs",P$22:P$180) -> 167228.9397 | R185: 873339.3031 | S185: 738001.6454 | T185: 722241.801 | U185: 679409.4315 | V185: 648351.9288
F186: Related party and/or network operator margin | G186: 0 | H186: 0 | I186: 0 | J186: 0 | K186: 0 | L186: 0 | M186: 0 | N186: 0 | O186: =SUMIF($E$22:$U$180,"Related party margin",O$22:O$180) -> 0 | P186: 0 | R186: 0 | S186: 0 | T186: 0 | U186: 0
F187: Total Gross costs | G187: 3751925.01 | H187: 2173295.25 | I187: 2562181.43 | J187: 992973.83 | K187: =+K184 -> 641.3871887 | L187: =SUM(L184:L186) -> 1640705.79 | M187: =SUM(M184:M186) -> 807664.1169 | N187: 3418001.141 | O187: 2748061.704 | P187: 1901968.978 | R187: 9932253.127 | S187: 8393137.14 | T187: 8213954.415 | U187: 7726729.579 | V187: 7373569.811
F188: Less customer contributions | G188: 0 | H188: 0 | I188: 0 | J188: 0 | K188: 0 | L188: 0 | M188: 0 | N188: 0 | O188: =SUMIF($E$22:$U$180,"Less customer contributions",O$22:O$180) -> 0 | P188: 0 | R188: 0 | S188: 0 | T188: 0 | U188: 0
F189: Total Net Costs Other | G189: 3751925.01 | H189: 2173295.25 | I189: 2562181.43 | J189: 992973.83 | K189: =+K187 -> 641.3871887 | L189: =SUM(L187:L188) -> 1640705.79 | M189: =SUM(M187:M188) -> 807664.1169 | N189: 3418001.141 | O189: 2748061.704 | P189: 1901968.978 | R189: 9932253.127 | S189: 8393137.14 | T189: 8213954.415 | U189: 7726729.579 | V189: 7373569.811
E190: Source(s) of data: | G190: 2006/07 to 2008/09 sourced from the SA Capex Past Performance Submission model. 2009/10 to 2013/14 sourced from the Capex Ring Fenced Accounts and the SA Annual RIN's.
E192: Table 10.2 - Other distribution system (approved)
G193: Previous access arrangement period | L193: Current access arrangement period
G194: $0's, Nominal | P194: =CONCATENATE("$0's, Real ",dms_DollarReal) -> $0's, Real June 2016
G195: Approved
G196: =PRCP -> 2006-07 | H196: 2007-08 | I196: 2008-09 | J196: 2009-10 | K196: 2010-11 | L196: =CRCP_y1 -> 2011-12 | M196: =CRCP_y2 -> 2012-13 | N196: =CRCP_y3 -> 2013-14 | O196: =CRCP_y4 -> 2014-15 | P196: =CRCP_y5 -> 2015-16
E197: [Sub-category]
E198: <insert project name> | F198: Direct costs (excl escalation)
F199: Direct internal labour
F200: Direct contractor costs
F201: Other internal direct costs (excl escalation)
F202: Total direct costs (excl escalation) | L202: =SUM(L199:L201) -> 0 | M202: =SUM(M199:M201) -> 0 | N202: =SUM(N199:N201) -> 0 | O202: =SUM(O199:O201) -> 0 | P202: =SUM(P199:P201) -> 0
F203: Escalation
F204: Total direct costs (incl escalation) | L204: =SUM(L202:L203) -> 0 | M204: =SUM(M202:M203) -> 0 | N204: =SUM(N202:N203) -> 0 | O204: =SUM(O202:O203) -> 0 | P204: =SUM(P202:P203) -> 0
F205: Total overhead costs
F206: Related party and/or network operator margin
... 49 more rows

Sheet 11. Other non-distribution syst
E1: =SheetHeader -> REGULATORY REPORTING STATEMENT
E2: =dms_TradingName -> AGN
E3: =CONCATENATE(FRCP_y1," to ",FRCP_y5) -> 2016-17 to 2020-21 | J3: =CONCATENATE(LEFT(FRCP_y1,4),"-",LEFT(FRCP_y5,2),RIGHT(FRCP_y5,2)) -> 2016-2021
E4: 11. OTHER NON-DISTRIBUTION SYSTEM CAPITAL EXPENDITURE
E8: Instructions
E9: This template asks for information relating to other non-distribution system capital expenditure
A10: HPS | B10: HP services | E10: As set out in cl.6.1 of the AGN RIN, for tables 11.1 to 11.2, where the requested data is captured in the AGN capex model it is not required to be reentered in the RIN template tables. If the requested data has not been provided in the AGN RIN please enter into the tables. This may require the insertion of new lines in each table.
A11: MPM | B11: MP mains | E11: Reported expenditure is to be entered EXCLUSIVE of any profit margins or management fees paid pursuant to arrangements or contracts with any related parties or network operator. Include any related party or network operator margins or management fees in the separate 'Related party margin' line item.
A12: TRS | B12: TRS & DRS - valves & regulators | E12: Subject to cl.6.1 of the AGN RIN, where linked/adjustable escalation is not provided in the AGN capex model, escalation should be linked to allocations derived in tab '2 - Escalators'.
A13: CM | B13: Contract meters | E13: Subject to cl.6.1 of the AGN RIN, where linked/adjustable overhead costs and related party margin costs is not provided in the AGN capex model, overhead costs and related party margin or network operator costs should be linked to allocations derived in tabs '12 - Overheads' and '13 - Related party transactions'.
A14: TM | B14: Tariff meters | E14: Capital expenditure amounts entered should be GROSS of customer contributions. There is a separate line item for customer contributions from which net capital expenditure is derived.
A15: ERC | B15: Equity raising costs
E17: Table 11.1 - Other non-distribution system (actual / forecast)
G18: Previous access arrangement period | L18: Current access arrangement period | Q18: Variance | R18: Next access arrangement period | W18: Supporting documentation (business case, costing spreadsheet, contracts)
G19: $0's, Nominal | P19: =CONCATENATE("$0's, Real ",dms_DollarReal) -> $0's, Real June 2016 | R19: =CONCATENATE("$0's, Real ",dms_DollarReal) -> $0's, Real June 2016
A20: Internal identification code | B20: Asset category | C20: Percent allocation | G20: Actual | P20: Forecast | Q20: Actual vs Approved | R20: Forecast
G21: =PRCP -> 2006-07 | H21: 2007-08 | I21: 2008-09 | J21: 2009-10 | K21: 2010-11 | L21: =CRCP_y1 -> 2011-12 | M21: =CRCP_y2 -> 2012-13 | N21: =CRCP_y3 -> 2013-14 | O21: =CRCP_y4 -> 2014-15 | P21: =CRCP_y5 -> 2015-16 | Q21: % | R21: =FRCP -> 2016-17 | S21: 2017-18 | T21: 2018-19 | U21: 2019-20 | V21: 2020-21
E22: < insert sub-category >
E23: General | F23: Direct costs (excl escalation) | W23: Historic data from Oracle Financials BM20 report. Forecast data has been sourced from the Asset Management Plan.
F24: Direct internal labour | M24: 41184.49736 | N24: 14305.13972 | O24: 264969.512
F25: Direct contractor costs | M25: 368340.1033 | N25: 278126.6874 | O25: 2187565.817
F26: Other internal direct costs | M26: 250769.0006 | N26: 294477.9973 | O26: 687464.6712
F27: Total direct costs (excl escalation) | K27: 702498.1053 | L27: 0 | M27: 660293.6012 | N27: 586909.8244 | O27: =SUM(O24:O26) -> 3140000 | P27: 2312311.195 | Q27: 0 | R27: 0 | S27: 0 | T27: 0 | U27: 0
F28: Escalation | M28: 0 | N28: 0
F29: Total direct costs (incl escalation) | K29: =+K27 -> 702498.1053 | L29: 0 | M29: 660293.6012 | N29: 586909.8244 | O29: =SUM(O27:O28) -> 3140000 | P29: 2312311.195 | Q29: 0 | R29: 0 | S29: 0 | T29: 0 | U29: 0
F30: Total overhead costs | M30: 63706.39883 | N30: 69994.75822 | O30: 302696 | P30: 222906.7992
F31: Related party and/or network operator margin | M31: 0 | N31: 0
F32: Total gross costs | G32: =SUM(G29:G31) -> 0 | H32: =SUM(H29:H31) -> 0 | I32: =SUM(I29:I31) -> 0 | J32: 0 | K32: 702498.1053 | L32: 0 | M32: 724000 | N32: 656904.5826 | O32: 3442696 | P32: 2535217.995 | Q32: =SUM(Q29:Q31) -> 0 | R32: =SUM(R29:R31) -> 0 | S32: =SUM(S29:S31) -> 0 | T32: =SUM(T29:T31) -> 0 | U32: =SUM(U29:U31) -> 0
F33: Less customer contributions | M33: 0 | N33: 0
F34: Total net costs | G34: =G32-G33 -> 0 | H34: =H32-H33 -> 0 | I34: 0 | J34: 0 | K34: 702498.1053 | L34: 0 | M34: 724000 | N34: 656904.5826 | O34: 3442696 | P34: 2535217.995 | Q34: =Q32-Q33 -> 0 | R34: =R32-R33 -> 0 | S34: =S32-S33 -> 0 | T34: =T32-T33 -> 0 | U34: =U32-U33 -> 0
E35: < insert project name > | F35: Direct costs (excl escalation)
F36: Direct internal labour
F37: Direct contractor costs
F38: Other internal direct costs
